Workbook

Sheet LDC Info
AA3: Algoma Power Inc.
AA4: Atikokan Hydro Inc.
AA5: Attawapiskat Power Corporation
AA6: Bluewater Power Distribution Corporation
AA7: Brant County Power Inc.
AA8: Brantford Power Inc.
AA9: Burlington Hydro Inc.
AA10: Cambridge and North Dumfries Hydro Inc.
AA11: Canadian Niagara Power Inc.
AA12: Centre Wellington Hydro Ltd.
AA13: Chapleau Public Utilities Corporation
D14: Utility Name | E14: Wellington North Power Inc. | AA14: COLLUS PowerStream Corp.
AA15: Cooperative Hydro Embrun Inc.
D16: Assigned EB Number | E16: EB-2015-0110 | AA16: E.L.K. Energy Inc.
AA17: Enersource Hydro Mississauga Inc.
D18: Name of Contact and Title | E18: Richard Bucknall, CAO | AA18: Entegrus Powerlines Inc.
AA19: EnWin Utilities Ltd.
D20: Phone Number | E20: 1-519-323-1710 | AA20: Erie Thames Powerlines Corporation
AA21: Espanola Regional Hydro Distribution Corporation
D22: Email Address | E22: rbucknall@wellingtonnorthpower.com | AA22: Essex Powerlines Corporation
AA23: Festival Hydro Inc.
D24: Test Year | E24: 2016 | AA24: Fort Albany Power Corporation
AA25: Fort Frances Power Corporation
D26: Bridge Year | E26: =IF(ISBLANK(E24), "", E24-1) -> 2015 | AA26: Greater Sudbury Hydro Inc.
AA27: Grimsby Power Inc.
D28: Last Rebasing Year | E28: 2012 | AA28: Guelph Hydro Electric Systems Inc.
AA29: Haldimand County Hydro Inc.
A30: Identify the accounting standard used for the test year | AA30: Halton Hills Hydro Inc.
E31: MIFRS | AA31: Hearst Power Distribution Company Limited
AA32: Horizon Utilities Corporation
A33: Did you update your depreciation and capitalization policies? | AA33: Hydro 2000 Inc.
E34: Yes | AA34: Hydro Hawkesbury Inc.
AA35: Hydro One Brampton Networks Inc.
A36: When did you update your depreciation and capitalization policies? | AA36: Hydro One Networks Inc.
E37: 2001-01-01 | F37: 2012 | AA37: Hydro One Remote Communities Inc.
AA38: Hydro Ottawa Limited
A39: Identify the year that the applicant has adopted or is expected to adopt IFRS for financial reporting purposes | AA39: Innpower Corporation
E40: 2015 or Later | AA40: Kashechewan Power Corporation
AA41: Kenora Hydro Electric Corporation Ltd.
AA42: Kingston Hydro Corporation
A43: Are you applying for cost recovery for the test and/or future year(s) for Green Energy initiatives? | AA43: Kitchener-Wilmot Hydro Inc.
E44: No | AA44: Lakefront Utilities Inc.
AA45: Lakeland Power Distribution Ltd.
A46: ="Is " & E14 & " an embedded distributor?" -> Is Wellington North Power Inc. an embedded distributor? | E46: Yes | AA46: London Hydro Inc.
AA47: Midland Power Utility Corporation
AA48: Milton Hydro Distribution Inc.
B49: Notes | AA49: Newmarket-Tay Power Distribution Ltd.
AA50: Niagara Peninsula Energy Inc.
C51: Pale green cells represent input cells. | AA51: Niagara-on-the-Lake Hydro Inc.
AA52: Norfolk Power Distribution Inc.
C53: Pale blue cells represent drop-down lists. The applicant should select the appropriate item from the drop-down list. | AA53: North Bay Hydro Distribution Limited
AA54: Northern Ontario Wires Inc.
C55: White cells contain fixed values, automatically generated values or formulae. | AA55: Oakville Hydro Electricity Distribution Inc.
AA56: Orangeville Hydro Limited
AA57: Orillia Power Distribution Corporation
AA58: Oshawa PUC Networks Inc.
AA59: Ottawa River Power Corporation
AA60: Peterborough Distribution Incorporated
AA61: PowerStream Inc.
AA62: PUC Distribution Inc.
AA63: Renfrew Hydro Inc.
AA64: Rideau St. Lawrence Distribution Inc.
AA65: Sioux Lookout Hydro Inc.
AA66: St. Thomas Energy Inc.
AA67: Thunder Bay Hydro Electricity Distribution Inc.
AA68: Tillsonburg Hydro Inc.
AA69: Toronto Hydro-Electric System Limited
AA70: Veridian Connections Inc.
AA71: Wasaga Distribution Inc.
AA72: Waterloo North Hydro Inc.
AA73: Welland Hydro-Electric System Corp.
AA74: Wellington North Power Inc.
AA75: West Coast Huron Energy Inc.
AA76: Westario Power Inc.
AA77: Whitby Hydro Electric Corporation
AA78: Woodstock Hydro Services Inc.

Sheet Index
A15: 1 | B15: LDC Information Sheet | E15: 28 | F15: App.2-G: Service Reliability Indicators
A16: 2 | B16: Index | E16: 29 | F16: App.2-H: Other Operating Revenue
A17: 3 | B17: Cost of Service Application Flowchart | E17: 30 | F17: App.2-I: Load Forecast CDM Adjustment Workform
A18: 4 | B18: List of Key References | E18: 31 | F18: App.2-IA: Actual and Forecast Load and Customer Data
A19: 5 | B19: App.2-AA: Capital Projects Table | E19: 32 | F19: App.2-JA: OM&A Summary Analysis
A20: 6 | B20: App.2-AB: Capital Expenditures | E20: 33 | F20: App.2-JB: Recoverable OM&A Cost Driver Table
A21: 7 | B21: App. 2-AC: Customer Engagement Worksheet | E21: 34 | F21: App.2-JC: OM&A Programs Table
A22: 8 | B22: App.2-B: General Accounting Instructions | E22: 35 | F22: App.2-K: Employee Costs
A23: 9 | B23: App.2-BA: Fixed Asset Continuity Schedule | E23: 36 | F23: App.2-L: Recoverable OM&A Cost per Customer and per FTE
A24: 10 | B24: Appendix 2-BB: Service Life Comparison | E24: 37 | F24: App.2-M: Regulatory Costs Schedule
A25: 11 | B25: App.2-CA: 2012 Depreciation and Amortization Expense (Old CGAAP) | E25: 38 | F25: App.2-N: Shared Servcies and Corporate Cost Allocation
A26: 12 | B26: App.2-CB: 2012 Depreciation and Amortization Expense (New CGAAP) | E26: 39 | F26: App.2-OA: Capital Structure and Cost of Capital
A27: 13 | B27: App.2-CC: 2013 Depreciation and Amortization Expense (New CGAAP) | E27: 40 | F27: App.2-OB: Debt Instruments
A28: 14 | B28: App.2-CD: 2014 Depreciation and Amortization Expense (MIFRS) | E28: 41 | F28: App.2-P: Cost Allocation
A29: 15 | B29: App.2-CE: 2015 Depreciation and Amortization Expense (MIFRS) | E29: 42 | F29: App.2-PA: New Rate Design Policy For Residential Customers
A30: 16 | B30: App.2-CF: 2015 Depreciation and Amortization Expense (MIFRS) | E30: 43 | F30: App.2-Q: Cost of Serving Embedded Distributor(s)
A31: 17 | B31: App.2-CG: 2013 Depreciation and Amortization Expense (Old CGAAP) | E31: 44 | F31: App.2-R: Loss Factors
A32: 18 | B32: App.2-CH: 2013 Depreciation and Amortization Expense (New CGAAP) | E32: 45 | F32: App.2-S: Stranded Meter Treatment
A33: 19 | B33: App.2-CI: 2014 Depreciation and Amortization Expense (MIFRS) | E33: 46 | F33: App.2-TA: Account 1592, PILs and Tax Variances
A34: 20 | B34: App.2-CJ: 2015 Depreciation and Amortization Expense (MIFRS) | E34: 47 | F34: App.2-TB: Account 1592, HST-OVAT Input Tax Credits
A35: 21 | B35: App.2-CK: 2016 Depreciation and Amortization Expense (MIFRS) | E35: 48 | F35: App.2-U: One-Time Incremental IFRS Transition Costs
A36: 22 | B36: App.2-D: Overhead Expenses | E36: 49 | F36: App.2-V: Revenue Reconciliation
A37: 23 | B37: App.2-EA: Account 1575 PP&E Deferral Account (2015 IFRS Adopters) | E37: 50 | F37: App.2-W: Bill Impacts
A38: 24 | B38: App.2-EB: Account 1576 - Accounting Changes Under CGAAP (2012 Changes) | E38: 51 | F38: App.2-Y: Transition to MIFRS Summary Impact
A39: 25 | B39: App.2-EC: Account 1576 - Accounting Changes Under CGAAP (2013 Changes) | E39: 52 | F39: App. 2-Z: Tariff Schedule
A40: 26 | B40: App.2-FA: Renewable Generation Connection Investment Summary
A41: 27 | B41: App.2-FB: Calculation of Renewable Generation Connection Direct Benefits/Provincial Amount: Renewable Enabling Improvement Investments
A42: 28 | B42: App.2-FC: Calculation of Renewable Generation Connection Direct Benefits/Provincial Amount: Renewable Expansion Investments

Sheet COS Flowchart
B4: Cost of Service Rate Application Schematic
B6: The Cost of Service Rate Application Schematic is a flowchart appended to Chapter 2 of the Filing Requirements as a guide for the components of an application and how demand and costs interrelate to derive the revenue requirement and then how the revenue requirement is allocated between classes and through fixed/variable splits to derive rates that will be compensatory for the annual revenue requirement, based on the the forecasted demand. There is no form to be filled out; therefore, this Schedule is not required to be filed.

Sheet List of Key References
B3: List of Key References
A5: A list of key references for understanding the Filing Requirements has been embedded in the document below. To access the list of references and associated hyperlinks double-click the icon below.

Sheet App.2-AA_Capital Projects
G1: File Number: | H1: =EBNUMBER -> EB-2015-0110
G2: Exhibit: | H2: 2
G3: Tab: | H3: 5
G4: Schedule: | H4: 1
G5: Page: | H5: 38
G7: Date: | H7: Mar-4-2016
A9: Appendix 2-AA
A10: Capital Projects Table
A13: Projects | B13: =C13-1 -> 2011 | C13: =D13-1 -> 2012 | D13: =E13-1 -> 2013 | E13: =BridgeYear - 1 -> 2014 | F13: =BridgeYear & " Bridge Year" -> 2015 Bridge Year | G13: =TestYear & " Test Year" -> 2016 Test Year
A14: Reporting Basis | B14: CGAAP | C14: CGAAP | D14: CGAAP | E14: CGAAP | F14: MIFRS | G14: MIFRS
A15: General Plant
A16: Non-system physical plant - Building structure | B16: 19274.21 | C16: 56563.57 | D16: 7384 | E16: 4250 | F16: 77000 | G16: 30000
A17: Non-system physical plant - Equipment & Tools | B17: 6718.75 | C17: 1842.19 | D17: 309831 | E17: 3339.69 | F17: 35000
A18: Non-system physical plant - Land Rights / Acquisition | B18: 1006 | C18: 2843.196 | D18: 6835 | E18: 3993.1
A19: Non-system physical plant - Software / Hardware | B19: 42532 | C19: 77026.29 | D19: 35527.68 | E19: 27034.39 | F19: 108000 | G19: 40650
A20: System capital investment support - Asset Management Study | B20: 27911.1
A21: Sub-Total | B21: =SUM(B16:B20) -> 97442.06 | C21: 138275.246 | D21: 359577.68 | E21: 38617.18 | F21: 220000 | G21: 70650
A22: System Access
A23: Customer Service Request | B23: 100386.3 | C23: 89303.263 | D23: 55279.31 | E23: 221880.7 | F23: 84000 | G23: 60000
A24: Customer Service Request - Contributed Capital | B24: -113405 | C24: -4691 | E24: -113297 | F24: -130000
A25: Compliance - Financial Software | B25: 230549.17
A26: Metering | B26: 41576.25 | C26: 15587.39 | D26: 2450.31 | E26: 17202.97
A27: Other 3rd party infrastructure development requirements | B27: 14373.53 | C27: 6971.586 | F27: 88500
A28: Sub-Total | B28: =SUM(B23:B27) -> 273480.25 | C28: 107171.239 | D28: 57729.62 | E28: 125786.67 | F28: 42500 | G28: 60000
A29: System Renewal
A30: Failure risk - Asset replacement | B30: 192014.04 | C30: 307635.597 | D30: 283466.79 | E30: 413894.38 | F30: 285500 | G30: 90000
A32: Special Project - MS2 Substation replacement (Incremental Capital Module as part of IRM application EB-2014-0178) | E32: 1433955
A35: Sub-Total | B35: =SUM(B30:B34) -> 192014.04 | C35: 307635.597 | D35: 283466.79 | E35: 1847849.38 | F35: 285500 | G35: 90000
A36: System Service
A37: Operational Effectiveness | B37: 34362.3 | C37: 13375.2 | D37: 56912 | E37: 61612.96 | F37: 212000 | G37: 44
A39: Special Project - 2nd line feeder to Mount Forest (construction by Hydro One. Will be a contributed capital payment from WNP to HO) | G39: 913217
A40: New Primary Meter Equipment (PME) at 2nd line feeder demarcation point of WNP service area | G40: 80000
A41: Construction of new pole line to connect new 2nd line feeder 44kV to WNP's MS1 substation | G41: 380000
A42: Sub-Total | B42: =SUM(B37:B41) -> 34362.3 | C42: 13375.2 | D42: 56912 | E42: 61612.96 | F42: 212000 | G42: =SUM(G37:G41) -> 1373261
A43: Miscellaneous
A44: Total | B44: =SUMPRODUCT(--($A15:$A43="Sub-Total"), B$15:B$43)+B43 -> 597298.65 | C44: 566457.282 | D44: 757686.09 | E44: 2073866.19 | F44: 760000 | G44: 1593911
A45: Less Renewable Generation Facility Assets and Other Non-Rate-Regulated Utility Assets (input as negative)
A46: Total | B46: =B44+B45 -> 597298.65 | C46: 566457.282 | D46: 757686.09 | E46: 2073866.19 | F46: 760000 | G46: 1593911
A48: Notes:
A50: 1 Please provide a breakdown of the major components of each capital project undertaken in each year. Please ensure that all projects below the materiality threshold are included in the miscellaneous line. Add more projects as required.
A51: 2 The applicant should group projects appropriately and avoid presentations that result in classification of significant components of the capital budget in the miscellaneous category.

Sheet App.2-AB_Capital Expenditures
S1: File Number: | U1: =EBNUMBER -> EB-2015-0110
S2: Exhibit: | U2: 2
S3: Tab: | U3: Appendix 2A
S4: Schedule: | U4: DSP - Secion 5.4.4
S5: Page: | U5: 123
S7: Date: | U7: Mar-4-2016
A9: Appendix 2-AB
A10: Table 2 - Capital Expenditure Summary from Chapter 5 Consolidated Distribution System Plan Filing Requirements
A12: First year of Forecast Period: | B12: =TestYear -> 2016
A13: CATEGORY | B13: Historical Period (previous plan1 & actual) | Q13: Forecast Period (planned)
B14: =E14-1 -> 2011 | E14: =H14-1 -> 2012 | H14: =K14-1 -> 2013 | K14: =N14-1 -> 2014 | N14: =Q14-1 -> 2015 | Q14: =B12 -> 2016 | R14: =Q14+1 -> 2017 | S14: =R14+1 -> 2018 | T14: 2019 | U14: 2020
B15: Plan | C15: Actual | D15: Var | E15: Plan | F15: Actual | G15: Var | H15: Plan | I15: Actual | J15: Var | K15: Plan | L15: Actual | M15: Var | N15: Plan | O15: Actual2 | P15: Var
B16: $ '000 | D16: % | E16: $ '000 | G16: % | H16: $ '000 | J16: % | K16: $ '000 | M16: % | N16: $ '000 | P16: % | Q16: $ '000
A17: System Access | B17: 156.36941 | C17: 42.93108 | D17: =IF(ISERROR((C17-B17)/B17),"--",(C17-B17)/B17) -> -0.725450905 | E17: 102.00927 | F17: 107.171239 | G17: =IF(ISERROR((F17-E17)/E17),"--",(F17-E17)/E17) -> 0.0506029403 | H17: 54.85008 | I17: 57.72962 | J17: =IF(ISERROR((I17-H17)/H17),"--",(I17-H17)/H17) -> 0.05249837375 | K17: 228.76 | L17: 239.08367 | M17: =IF(ISERROR((L17-K17)/K17),"--",(L17-K17)/K17) -> 0.04512882497 | N17: 172.5 | O17: 34.605 | P17: =IF(ISERROR((O17-N17)/N17),"--",(O17-N17)/N17) -> -0.7993913043 | Q17: 60 | R17: 240 | S17: 240 | T17: 240 | U17: 60
A18: System Renewal | B18: 231.43519 | C18: 192.01404 | D18: -0.1703334311 | E18: 260.6713 | F18: 307.635597 | G18: 0.1801667349 | H18: 273.00127 | I18: 283.46679 | J18: 0.03833505976 | K18: 1756.1 | L18: 1847.84938 | M18: 0.05224610216 | N18: 155.5 | O18: 206.239 | P18: 0.3262958199 | Q18: 90 | R18: 390 | S18: 1932 | T18: 290 | U18: 450
A19: System Service | B19: 39.113 | C19: 34.3623 | D19: -0.1214608954 | E19: 9.15662 | F19: 13.3752 | G19: 0.4607136695 | H19: 55.5 | I19: 54.80159 | J19: -0.01258396396 | K19: 65.5 | L19: 61.61296 | M19: -0.05934412214 | N19: 212 | O19: 16.587 | P19: -0.921759434 | Q19: 1373.261 | R19: 0 | S19: 0 | T19: 0 | U19: 0
A20: General Plant | B20: 243.3 | C20: 327.99123 | D20: 0.3480938348 | E20: 152.45578 | F20: 138.275246 | G20: -0.09301407923 | H20: 377.1 | I20: 361.68812 | J20: -0.04086947759 | K20: 24.5 | L20: 38.61718 | M20: 0.5762114286 | N20: 220 | O20: 76.703 | P20: -0.65135 | Q20: 70.65 | R20: 138.67 | S20: 24.47 | T20: 421.85 | U20: 453
A21: TOTAL EXPENDITURE | B21: =SUM(B17:B20) -> 670.2176 | C21: =SUM(C17:C20) -> 597.29865 | D21: -0.1087989184 | E21: 524.29297 | F21: 566.457282 | G21: 0.08042128049 | H21: 760.45135 | I21: 757.68612 | J21: -0.003636300994 | K21: 2074.86 | L21: 2187.16319 | M21: 0.05412567113 | N21: 760 | O21: 334.134 | P21: -0.56035 | Q21: 1593.911 | R21: 768.67 | S21: 2196.47 | T21: 951.85 | U21: =SUM(U17:U20) -> 963
A22: System O&M | C22: ='[12]1.2 TB Historical Balances'!$E$467/1000 -> 530.45596 | D22: -- | E22: ='[12]4.2 OM&A_Summary_Analys'!$B$16/1000 -> 501.2858357 | F22: ='[12]4.2 OM&A_Summary_Analys'!$C$16/1000 -> 588.65387 | G22: 0.1742878574 | H22: 570 | I22: ='[12]4.2 OM&A_Summary_Analys'!$D$16/1000 -> 587.97379 | J22: 0.03153296491 | K22: 583 | L22: ='[12]4.2 OM&A_Summary_Analys'!$E$16/1000 -> 567.9491 | M22: -0.02581629503 | N22: ='[12]4.2 OM&A_Summary_Analys'!$F$16/1000 -> 613.27461 | O22: =394438/1000 -> 394.438 | P22: -0.3568329855 | Q22: ='[12]4.2 OM&A_Summary_Analys'!$G$16/1000 -> 654.5 | R22: ='[12]4.2 OM&A_Summary_Analys'!$J$16/1000 -> 670.8625 | S22: ='[12]4.2 OM&A_Summary_Analys'!$K$16/1000 -> 687.6340625 | T22: ='[12]4.2 OM&A_Summary_Analys'!$L$16/1000 -> 704.8249141 | U22: ='[12]4.2 OM&A_Summary_Analys'!$M$16/1000 -> 722.4455369
A24: Notes to the Table:
A25: 1. Historical “previous plan” data is not required unless a plan has previously been filed
A26: 2. Indicate the number of months of 'actual' data included in the last year of the Historical Period (normally a 'bridge' year): | J26: 8
A28: Explanatory Notes on Variances (complete only if applicable)
A29: Notes on shifts in forecast vs. historical budgets by category
A32: Notes on year over year Plan vs. Actual variances for Total Expenditures
A33: 2015: Actual includes costs as at 31st August 2015. The System Renewal Actual CapEx spend is currently higher than Plan (32.6%) due to a Capital Contribution project that to date has not been started. This is a developer project that is planned for completion within the year and has a planned capital contribution of $130,000 - this contribution will reduce the LDC's system renewal spend if it is started/completed within the year. 2015: System service includes a new SCADA system being installed and implemented at the LDC. This is due to be implemented in October 2015. 2015: General Plant includes the purchasing of a pick-up truck and necessary building renovation work - these investments account for $110,000 of planned CapEx spend and are due to be started and completed in Q4 of 2015
A35: Notes on Plan vs. Actual variance trends for individual expenditure categories
A36: $40,000 added to System Renewal for years of 2016, 2017, 2018, 2019 and 2020 for pole-line projects to offset OM&A labour expenses of $10,000 per year as per Settlement Proposal

Sheet App. 2-AC_Customer Engagement
B1: File Number: | C1: =EBNUMBER -> EB-2015-0110
B2: Exhibit: | C2: 1
B3: Tab: | C3: 5
B4: Schedule: | C4: 1
B5: Page: | C5: 57
B7: Date: | C7: Mar-4-2016
A9: Appendix 2-AC
A10: Customer Engagement Activities Summary
A12: Provide a list of customer engagement activities | B12: Provide a list of customer needs and preferences identified through each engagement activity | C12: Actions taken to respond to identified needs and preferences. If no action was taken, explain why.
A13: In-Office Customer Engagement Office is open 5 days a week during business hours where customers can telephone, e-mail or visit and speak to a person | B13: a) Front Counter Engagement b) Technical Engagement c) Bill query support - consumption analysis | C13: Consumer concerns and issues are dealt with immediately by knowledgeable Customer Service Representatives (CSR) and in-person. For any concerns that cannot be resolved, the Customer Service Representative (CSR) will involve the CSR Supervisor or Lead-Hand and if required, also include the Chief Operating Officer and/or Chief administrative Officer of the company. Queries regarding service lay-out requests, power outage or partial power are discussed with the Lead-Hand, the Operations Technician or the Chief Operating Officer who will investigate. CSR's assist consumers with billing queries such as understanding the bill and reviewing electricity usage queries. For example, CSR's can print interval data for a specified period and present to customers information showing when their consumption appears irregular (high/low). This assists customers in understanding TOU periods and rates.
A14: Financial Assistance Program | B14: WNP provides support through two agency partners with the province's Low-income Energy Assistance Program (LEAP). This emergency financial assistance programs are designed to help low-income customers who have difficulty making their electricity bill payments. | C14: WNP continues to promote verbally the emergency financial assistance programs that are available to assist low-income customers
A15: Customer Connect and on-line payment services | B15: WNP provides a self-service tool, accessible through the LDC's website where a customer can review their consumption history and payment records. Customers can view their information anytime | C15: Customers contact the LDC to request initial set-up. No further action is necessary as this is a self-service tool.
A16: Customer Surveys | B16: UtilityPULSE (3rd party) telephone survey in 2013 and 2014 | C16: WNP received complaints from customers about being interrupted to participate in a survey. For example, of 989 residential and small businesses contacted, WNP staff and Board Directors received negative feedback from 19 customers (2%) advising they had been interrupted or if they had a problem with their local hydro company, they would tell us directly. WNP is investigating the benefits and cost of using "pull" surveys i.e. where customers complete a survey in their own time and convenience.
A17: Annual Spring/Fall Fairs in the communities of Arthur and Mount Forest | B17: a) Conservation and usage reduction for small business and residential customers, Customer Connect, billing queries and Electrical Safety awareness | C17: General awareness of conservation activities and programs as well as electrical safety
A18: Regional Planning Engagements | B18: a) WNP is invited to participate in IESO regional planning meetings b) Meetings with Hydro One | C18: a) To date, there are regional planned projects that affect WNP b) WNP and Hydro One meet annually, if required, to address any issues. For example, WNP has been working with Hydro One on a 2nd-line feeder to Mount Forest proposal to address current capacity limitations as well as reliability concerns. This proposal has been included in this rate application seeking OEB approval to recover the project cost from ratepayers.
A19: Customer Education literature | B19: WNP publishes advertisements and includes bill inserts regarding energy conservation, electrical safety and annual updates regarding major capital projects completed or planned by the LDC | C19: WNP received feedback from one customer advising the annual updates were informative but what was cost to print this information. WNP contacted the customer by telephone (and followed up by e-mail) thanking him for the feedback and advising the article was written in-house and the only cost was placing the notice in the newspaper ($395+HST). The LDC is using social media (Twitter and Facebook) to provide updates as this incurs no cost and will be re-launching its website in 2016 which will contain capital project information for consumers to review at their convenience
A20: Social Media | B20: During a power outage, customers want updated information about restoration times. WNP introduced social media (Twitter and Facebook) and provide real-time updates of outages, promotion of electrical safety, energy conservation and events that the LDC will be attending | C20: The LDC has received positive customers feedback regarding notification of power outages and restoration times via social media
A21: Public meetings | B21: In March 2015, WNP hosted two public meetings to share information regarding proposed capital plans and energy conservation programs. Regrettably, there was zero attendance despite promoting the events in newspaper adverts and bill inserts. | C21: WNP is considering alternative methods to interact with consumers, such as speaking at a Chamber of Commerce and holding a Questions & Answers session.
A22: Industrial and Commercial consumer interaction | B22: If there is a power outage (even a momentarily interruption) Industrial and Commercial contact the Chief Operating Officer (COO) on his cell. The COO maintains personal contact with these customers advising of updates and progress. The COO also personally meets with these customers periodically throughout the year to discuss matters including sharing of information regarding changing their shift patterns, expansion, reduction and demand capacity requirements | C22: Industrial and Commercial customer appreciate the accessibility to knowledgeable WNP staff who take action and support their requirements. For example, there is a current demand capacity constraint which in the near future will affect growth in Mount Forest. WNP has worked with intensive energy users to understand their future energy demands and provided updated demand forecast data to Hydro One to explore opportunities. Hydro One and WNP have worked on a 2nd line feeder proposal which is included in this rate application and has support from industrial/commercial customers
A45: Note: Use "ALT-ENTER" to go to the next line within a cell

Sheet App.2-B_Acct Instructions
A1: General Instructions to MIFRS Appendices
A2: Types of Schedules to File
A4: The purpose of this tab is to provide general instructions. The specific instructions to each appendix are listed in footnotes of each appendix.
A6: The typical applicant is expected to have made capitalization and depreciation policy changes under CGAAP as permitted by the Board on January 1, 2012 or mandated by the Board by January 1, 2013, and adopted IFRS for reporting purposes on January 1, 2015 (transition date January 1, 2014). In general, applicants under the two scenarios should provide the following information in the appendices:
E9: Accounting Policy Changes in 2012 and Adopted IFRS in 2015 | F9: Accounting Policy Changes in 2013 and Adopted IFRS in 2015
E10: (Date of Transition to IFRS 2014)
A11: Information to be filed in 2016 CoS Application | B11: 2016 | C11: Test | E11: MIFRS | F11: MIFRS
B12: 2015 | C12: Bridge | E12: MIFRS | F12: MIFRS
B13: 2014 | C13: Historical | E13: MIFRS and Revised CGAAP* | F13: MIFRS and Revised CGAAP*
B14: 2013 | C14: Historical | E14: Revised CGAAP | F14: CGAAP and Revised CGAAP
B15: 2012 | C15: Historical | E15: CGAAP and Revised CGAAP | F15: CGAAP
B16: 2011 and Prior | C16: Historical | E16: CGAAP | F16: CGAAP
A18: 1) For the year that the applicant implemented changes to its capitalization and depreciation policies (2012 or 2013), the applicant must file two appendices, one before and one after the policy changes.
A21: 2) For the transition year (2014), the applicant may file two appendices, one under Revised CGAAP and one under MIFRS, depending on the materiality of impacts. See the specific instructions under each appendix below for further details.
A26: Appendix 2-BA - Fixed Asset Schedule
A28: Applicants are to provide Appendix 2-BA in accordance with the years and corresponding accounting standards noted in the above table to provide a year over year continuity in fixed assets.
A29: *For the transition year (2014), the applicant should file two appendices, one under Revised CGAAP and one under MIFRS if the change between Revised CGAAP and MIFRS is material. If the change from the accounting standards is not material, the applicant may choose to only provide one appendix under MIFRS. However, the applicant must also indicate the fixed asset net book value balance under Revised CGAAP, the total dollar value of the change and explain why it is not material.
A33: Regulatory Gross Assets of Property, Plant and Equipment
A35: For an applicant that adopted IFRS on January 1, 2015 for financial reporting purposes, the applicant must establish the continuity of historic cost by using the December 31, 2013 regulatory gross assets of property, plant and equipment as the opening January 1, 2014 regulatory gross assets. The applicant must provide schedules (including Appendix 2-BA, Fixed Asset Continuity Schedule) which must identify the following details to substantiate the continuity of historic cost for regulatory purposes:
A38: · December 31, 2013 regulatory gross assets of property, plant and equipment, by asset class; and
A39: · January 1, 2014 regulatory gross assets of property, plant and equipment, by asset class.
A41: Accumulated Depreciation
A43: For an applicant that adopted IFRS on January 1, 2015 for financial reporting purposes, the applicant must establish the continuity of historic cost by using the December 31, 2013 regulatory accumulated depreciation as the opening January 1, 2014 regulatory accumulated depreciation. The applicant must provide schedules (including Appendix 2-BA, Fixed Asset Continuity Schedule) which must identify the following details to substantiate the continuity of historic cost for regulatory purposes:
A46: · December 31, 2013 regulatory accumulated depreciation, by asset class; and
A47: · January 1, 2014 regulatory accumulated depreciation, by asset class.
A49: Appendix 2-C - Depreciation and Amortization
A51: Applicants are to provide Appendix 2-C starting in the year capitalization and depreciation policy changes were implemented in accordance with the years and corresponding accounting standards listed in the above table.
A52: If an applicant changed capitalization and depreciation policies effective January 1, 2012 and adopted IFRS for reporting purposes effective January 1, 2015, the applicant must complete Appendix 2-CA to 2-CF (inclusive).
A53: If an applicant changed capitalization and depreciation policies effective January 1, 2013 and adopted IFRS for reporting purposes effective January 1, 2015, the applicant must complete Appendix 2-CG to 2-CK (inclusive).
A54: *Depreciation accounting policy changes were mandated by the Board by January 1, 2013. These accounting changes should be implemented consistent with the Board’s regulatory accounting policies as set out for MIFRS as contained in the Report of the Board, Transition to International Financial Reporting Standards (EB-2008-0408), the Depreciation Study for Use by Electricity Distributors (EB-2010-0178) and the Revised 2012 Accounting Procedures Handbook for Electricity Distributors. In general, no further changes to an applicant's depreciation policy (i.e. assets' service lives) are expected after the Board mandated changes by January 1, 2013. The set of Appendix CA to CK assumes this to be the case. If the applicant has made any changes to its depreciation policy subsequent to the Board mandated changes, applicants must identify the change, explain the nature of the change, the reason for the change, quantify the impact of the change, and quantify the depreciation expense before and after the change.
A57: Appendix 2-E - Account 1575, IFRS-CGAAP Transitional PP&E Amounts (2-EA), Account 1576, Accounting Changes Under CGAAP (2-EB, 2-EC)
A59: If an applicant changed capitalization and depreciation policies effective January 1, 2012 and adopted IFRS for reporting purposes effective January 1, 2015, the applicant must complete Appendix 2-EA and 2-EB. If the applicant did not make any further PP&E accounting policy changes beyond the capitalization and depreciation policy changes as permitted by the Board on January 1, 2012 (i.e. no further changes made on transition to IFRS), the applicant must indicate this and does not need to complete Appendix 2-EA.
A61: If an applicant changed capitalization and depreciation policies effective January 1, 2013 and adopted IFRS for reporting purposes effective January 1, 2015, the applicant must complete Appendix 2-EA and 2-EC. If the applicant did not make any further PP&E accounting policy changes beyond the capitalization and depreciation policy changes as mandated by the Board by January 1, 2013 (i.e. no further changes made on transition to IFRS), the applicant must indicate this and does not need to complete Appendix 2-EA.
A63: Please refer to section 2.12.4 and 2.12.5 of the Filing Requirements for further details.
A65: Appendix 2-YA - Summary of Impacts to Revenue Requirement from Transition to MIFRS
A67: For applicants adopting MIFRS, the applicants must provide a summary of the dollar impacts of MIFRS to each component of the revenue requirement (e.g. rate base, operating costs, etc), including the overall impact on the proposed revenue requirement. Accordingly, the applicants must identify financial differences and resulting revenue requirement impacts arising from the adoption of MIFRS as compared to CGAAP prior to capitalization and depreciation policy changes.

Sheet App.2-BA_FA Cont 2011 CGAAP
L1: File Number: | M1: =EBNUMBER -> EB-2015-0110
L2: Exhibit: | M2: 2
L3: Tab: | M3: 1
L4: Schedule: | M4: 4
L5: Page: | M5: 11
L7: Date: | M7: Mar-4-2016
A9: Appendix 2-BA
A10: Fixed Asset Continuity Schedule 1
E12: Accounting Standard | F12: CGAAP
E13: Year | F13: 2011
D15: Cost | J15: Accumulated Depreciation
A16: CCA Class 2 | B16: OEB Account 3 | C16: Description 3 | D16: Opening Balance | E16: Additions 4 | F16: Disposals | G16: Closing Balance | I16: Opening Balance | J16: Additions | K16: Disposals | L16: Closing Balance | M16: Net Book Value
A17: 45 | B17: 1611 | C17: Computer Software (Formally known as Account 1925) | D17: ='[12]2.6 Fixed Asset Cont Stmt'!E101 -> 362308.25 | E17: ='[12]2.6 Fixed Asset Cont Stmt'!F101 -> 244594 | F17: ='[12]2.6 Fixed Asset Cont Stmt'!G101 -> 0 | G17: =D17+E17+F17 -> 606902.25 | I17: ='[12]2.6 Fixed Asset Cont Stmt'!K101 -> 227044.87 | J17: ='[12]2.6 Fixed Asset Cont Stmt'!L101 -> 71092.744 | K17: ='[12]2.6 Fixed Asset Cont Stmt'!M101 -> 0 | L17: =I17+J17+K17 -> 298137.614 | M17: =G17-L17 -> 308764.636
A18: CEC | B18: 1612 | C18: Land Rights (Formally known as Account 1906) | D18: ='[12]2.6 Fixed Asset Cont Stmt'!E78 -> 5815.05 | E18: ='[12]2.6 Fixed Asset Cont Stmt'!F78 -> 1006 | F18: ='[12]2.6 Fixed Asset Cont Stmt'!G78 -> 0 | G18: =D18+E18+F18 -> 6821.05 | I18: ='[12]2.6 Fixed Asset Cont Stmt'!K78 -> 0 | J18: ='[12]2.6 Fixed Asset Cont Stmt'!L78 -> 0 | K18: ='[12]2.6 Fixed Asset Cont Stmt'!M78 -> 0 | L18: =I18+J18+K18 -> 0 | M18: =G18-L18 -> 6821.05
A19: N/A | B19: 1805 | C19: Land | D19: ='[12]2.6 Fixed Asset Cont Stmt'!E77 -> 41987.65 | E19: ='[12]2.6 Fixed Asset Cont Stmt'!F77 -> 0 | F19: ='[12]2.6 Fixed Asset Cont Stmt'!G77 -> 0 | G19: =D19+E19+F19 -> 41987.65 | I19: ='[12]2.6 Fixed Asset Cont Stmt'!K77 -> 0 | J19: ='[12]2.6 Fixed Asset Cont Stmt'!L77 -> 0 | K19: ='[12]2.6 Fixed Asset Cont Stmt'!M77 -> 0 | L19: =I19+J19+K19 -> 0 | M19: 41987.65
A20: 47 | B20: 1808 | C20: Buildings | D20: ='[12]2.6 Fixed Asset Cont Stmt'!E79 -> 431211.95 | E20: ='[12]2.6 Fixed Asset Cont Stmt'!F79 -> 13668 | F20: ='[12]2.6 Fixed Asset Cont Stmt'!G79 -> 0 | G20: =D20+E20+F20 -> 444879.95 | I20: ='[12]2.6 Fixed Asset Cont Stmt'!K79 -> 178633.64 | J20: ='[12]2.6 Fixed Asset Cont Stmt'!L79 -> 8328 | K20: ='[12]2.6 Fixed Asset Cont Stmt'!M79 -> 0 | L20: =I20+J20+K20 -> 186961.64 | M20: 257918.31
A21: 13 | B21: 1810 | C21: Leasehold Improvements | G21: 0 | L21: 0 | M21: 0
A22: 47 | B22: 1815 | C22: Transformer Station Equipment >50 kV | G22: 0 | L22: 0 | M22: 0
A23: 47 | B23: 1820 | C23: Distribution Station Equipment <50 kV | D23: ='[12]2.6 Fixed Asset Cont Stmt'!E82 -> 995757.97 | E23: ='[12]2.6 Fixed Asset Cont Stmt'!F82 -> 14099.97 | F23: ='[12]2.6 Fixed Asset Cont Stmt'!G82 -> 0 | G23: 1009857.94 | I23: ='[12]2.6 Fixed Asset Cont Stmt'!K82 -> 612014 | J23: ='[12]2.6 Fixed Asset Cont Stmt'!L82 -> 26303 | K23: ='[12]2.6 Fixed Asset Cont Stmt'!M82 -> 0 | L23: 638317 | M23: 371540.94
A24: 47 | B24: 1825 | C24: Storage Battery Equipment | G24: 0 | L24: 0 | M24: 0
A25: 47 | B25: 1830 | C25: Poles, Towers & Fixtures | D25: ='[12]2.6 Fixed Asset Cont Stmt'!E84 -> 2589866.38 | E25: ='[12]2.6 Fixed Asset Cont Stmt'!F84 -> 84285.8 | F25: ='[12]2.6 Fixed Asset Cont Stmt'!G84 -> 0 | G25: 2674152.18 | I25: ='[12]2.6 Fixed Asset Cont Stmt'!K84 -> 794104.37 | J25: ='[12]2.6 Fixed Asset Cont Stmt'!L84 -> 43539 | K25: ='[12]2.6 Fixed Asset Cont Stmt'!M84 -> 0 | L25: 837643.37 | M25: 1836508.81
A26: 47 | B26: 1835 | C26: Overhead Conductors & Devices | D26: ='[12]2.6 Fixed Asset Cont Stmt'!E85 -> 1848020.67 | E26: ='[12]2.6 Fixed Asset Cont Stmt'!F85 -> 86632.09 | F26: ='[12]2.6 Fixed Asset Cont Stmt'!G85 -> 0 | G26: 1934652.76 | I26: ='[12]2.6 Fixed Asset Cont Stmt'!K85 -> 1536041.58 | J26: ='[12]2.6 Fixed Asset Cont Stmt'!L85 -> 104024 | K26: ='[12]2.6 Fixed Asset Cont Stmt'!M85 -> 0 | L26: 1640065.58 | M26: 294587.18
A27: 47 | B27: 1840 | C27: Underground Conduit | D27: ='[12]2.6 Fixed Asset Cont Stmt'!E86 -> 146575.41 | E27: ='[12]2.6 Fixed Asset Cont Stmt'!F86 -> 4686.52 | F27: ='[12]2.6 Fixed Asset Cont Stmt'!G86 -> 0 | G27: 151261.93 | I27: ='[12]2.6 Fixed Asset Cont Stmt'!K86 -> 134572.21 | J27: ='[12]2.6 Fixed Asset Cont Stmt'!L86 -> 16690 | K27: ='[12]2.6 Fixed Asset Cont Stmt'!M86 -> 0 | L27: 151262.21 | M27: -0.28
A28: 47 | B28: 1845 | C28: Underground Conductors & Devices | D28: ='[12]2.6 Fixed Asset Cont Stmt'!E87 -> 437016.01 | E28: ='[12]2.6 Fixed Asset Cont Stmt'!F87 -> 17894.73 | F28: ='[12]2.6 Fixed Asset Cont Stmt'!G87 -> 0 | G28: 454910.74 | I28: ='[12]2.6 Fixed Asset Cont Stmt'!K87 -> 133096.01 | J28: ='[12]2.6 Fixed Asset Cont Stmt'!L87 -> 5575 | K28: ='[12]2.6 Fixed Asset Cont Stmt'!M87 -> 0 | L28: 138671.01 | M28: 316239.73
A29: 47 | B29: 1850 | C29: Line Transformers | D29: ='[12]2.6 Fixed Asset Cont Stmt'!E88 -> 1105683.32 | E29: ='[12]2.6 Fixed Asset Cont Stmt'!F88 -> 77258.43 | F29: ='[12]2.6 Fixed Asset Cont Stmt'!G88 -> 0 | G29: 1182941.75 | I29: ='[12]2.6 Fixed Asset Cont Stmt'!K88 -> 346534 | J29: ='[12]2.6 Fixed Asset Cont Stmt'!L88 -> 61778 | K29: ='[12]2.6 Fixed Asset Cont Stmt'!M88 -> 0 | L29: 408312 | M29: 774629.75
A30: 47 | B30: 1855 | C30: Services (Overhead & Underground) | D30: ='[12]2.6 Fixed Asset Cont Stmt'!E89 -> 512533.25 | E30: ='[12]2.6 Fixed Asset Cont Stmt'!F89 -> 35433.16 | F30: ='[12]2.6 Fixed Asset Cont Stmt'!G89 -> 0 | G30: 547966.41 | I30: ='[12]2.6 Fixed Asset Cont Stmt'!K89 -> 413746.9 | J30: ='[12]2.6 Fixed Asset Cont Stmt'!L89 -> 10838 | K30: ='[12]2.6 Fixed Asset Cont Stmt'!M89 -> 0 | L30: 424584.9 | M30: 123381.51
A31: 47 | B31: 1860 | C31: Meters | D31: ='[12]2.6 Fixed Asset Cont Stmt'!E90 -> 686882.16 | E31: ='[12]2.6 Fixed Asset Cont Stmt'!F90 -> 25582 | F31: ='[12]2.6 Fixed Asset Cont Stmt'!G90 -> 0 | G31: 712464.16 | I31: ='[12]2.6 Fixed Asset Cont Stmt'!K90 -> 373042.06 | J31: ='[12]2.6 Fixed Asset Cont Stmt'!L90 -> 25991 | K31: ='[12]2.6 Fixed Asset Cont Stmt'!M90 -> 0 | L31: 399033.06 | M31: 313431.1
A32: 47 | B32: 1860 | C32: Meters (Smart Meters) | G32: 0 | L32: 0 | M32: 0
A33: N/A | B33: 1905 | C33: Land | G33: 0 | L33: 0 | M33: 0
A34: 47 | B34: 1908 | C34: Buildings & Fixtures | G34: 0 | L34: 0 | M34: 0
A35: 13 | B35: 1910 | C35: Leasehold Improvements | G35: 0 | L35: 0 | M35: 0
A36: 8 | B36: 1915 | C36: Office Furniture & Equipment (10 years) | D36: ='[12]2.6 Fixed Asset Cont Stmt'!E96 -> 137638.65 | E36: ='[12]2.6 Fixed Asset Cont Stmt'!F96 -> 12101 | F36: ='[12]2.6 Fixed Asset Cont Stmt'!G96 -> 0 | G36: 149739.65 | I36: ='[12]2.6 Fixed Asset Cont Stmt'!K96 -> 96819.6 | J36: ='[12]2.6 Fixed Asset Cont Stmt'!L96 -> 10199.0025 | K36: ='[12]2.6 Fixed Asset Cont Stmt'!M96 -> 0 | L36: 107018.6025 | M36: 42721.0475
A37: 8 | B37: 1915 | C37: Office Furniture & Equipment (5 years) | G37: 0 | L37: 0 | M37: 0
A38: 10 | B38: 1920 | C38: Computer Equipment - Hardware | G38: 0 | L38: 0 | M38: 0
A39: 10 | B39: 1920 | C39: Computer Equip.-Hardware(Post Mar. 22/04) | D39: ='[12]2.6 Fixed Asset Cont Stmt'!E99 -> 285555.12 | E39: ='[12]2.6 Fixed Asset Cont Stmt'!F99 -> 29173 | F39: ='[12]2.6 Fixed Asset Cont Stmt'!G99 -> 0 | G39: 314728.12 | I39: ='[12]2.6 Fixed Asset Cont Stmt'!K99 -> 162745.04 | J39: ='[12]2.6 Fixed Asset Cont Stmt'!L99 -> 0 | K39: ='[12]2.6 Fixed Asset Cont Stmt'!M99 -> 0 | L39: 162745.04 | M39: 151983.08
A40: 10 | B40: 1920 | C40: Computer Equip.-Hardware(Post Mar. 19/07) | G40: 0 | L40: 0 | M40: 0
A41: 10 | B41: 1930 | C41: Transportation Equipment | D41: ='[12]2.6 Fixed Asset Cont Stmt'!E103 -> 755265.32 | E41: ='[12]2.6 Fixed Asset Cont Stmt'!F103 -> 6719 | F41: ='[12]2.6 Fixed Asset Cont Stmt'!G103 -> 0 | G41: 761984.32 | I41: ='[12]2.6 Fixed Asset Cont Stmt'!K103 -> 482822.74 | J41: ='[12]2.6 Fixed Asset Cont Stmt'!L103 -> 71091.025 | K41: ='[12]2.6 Fixed Asset Cont Stmt'!M103 -> 0 | L41: 553913.765 | M41: 208070.555
A42: 8 | B42: 1935 | C42: Stores Equipment | D42: ='[12]2.6 Fixed Asset Cont Stmt'!E104 -> 4634.55 | E42: ='[12]2.6 Fixed Asset Cont Stmt'!F104 -> 0 | F42: ='[12]2.6 Fixed Asset Cont Stmt'!G104 -> 0 | G42: 4634.55 | I42: ='[12]2.6 Fixed Asset Cont Stmt'!K104 -> -584.77 | J42: ='[12]2.6 Fixed Asset Cont Stmt'!L104 -> 5219 | K42: ='[12]2.6 Fixed Asset Cont Stmt'!M104 -> 0 | L42: 4634.23 | M42: 0.32
A43: 8 | B43: 1940 | C43: Tools, Shop & Garage Equipment | D43: ='[12]2.6 Fixed Asset Cont Stmt'!E105 -> 91579.3 | E43: ='[12]2.6 Fixed Asset Cont Stmt'!F105 -> 0 | F43: ='[12]2.6 Fixed Asset Cont Stmt'!G105 -> 0 | G43: 91579.3 | I43: ='[12]2.6 Fixed Asset Cont Stmt'!K105 -> 91579.3 | J43: ='[12]2.6 Fixed Asset Cont Stmt'!L105 -> 0 | K43: ='[12]2.6 Fixed Asset Cont Stmt'!M105 -> 0 | L43: 91579.3 | M43: 0
A44: 8 | B44: 1945 | C44: Measurement & Testing Equipment | D44: ='[12]2.6 Fixed Asset Cont Stmt'!E106 -> 1964.22 | E44: ='[12]2.6 Fixed Asset Cont Stmt'!F106 -> 0 | F44: ='[12]2.6 Fixed Asset Cont Stmt'!G106 -> 0 | G44: 1964.22 | I44: ='[12]2.6 Fixed Asset Cont Stmt'!K106 -> 1964 | J44: ='[12]2.6 Fixed Asset Cont Stmt'!L106 -> 0 | K44: ='[12]2.6 Fixed Asset Cont Stmt'!M106 -> 0 | L44: 1964 | M44: 0.22
A45: 8 | B45: 1950 | C45: Power Operated Equipment | G45: 0 | I45: ='[12]2.6 Fixed Asset Cont Stmt'!K107 -> 0 | J45: ='[12]2.6 Fixed Asset Cont Stmt'!L107 -> 0 | K45: ='[12]2.6 Fixed Asset Cont Stmt'!M107 -> 0 | L45: 0 | M45: 0
A46: 8 | B46: 1955 | C46: Communications Equipment | D46: ='[12]2.6 Fixed Asset Cont Stmt'!E108 -> 16485.93 | E46: ='[12]2.6 Fixed Asset Cont Stmt'!F108 -> 8800 | F46: ='[12]2.6 Fixed Asset Cont Stmt'!G108 -> 0 | G46: 25285.93 | I46: ='[12]2.6 Fixed Asset Cont Stmt'!K108 -> 14945.86 | J46: ='[12]2.6 Fixed Asset Cont Stmt'!L108 -> 1285 | K46: ='[12]2.6 Fixed Asset Cont Stmt'!M108 -> 0 | L46: 16230.86 | M46: 9055.07
A47: 8 | B47: 1955 | C47: Communication Equipment (Smart Meters) | G47: 0 | L47: 0 | M47: 0
A48: 8 | B48: 1960 | C48: Miscellaneous Equipment | G48: 0 | L48: 0 | M48: 0
A49: 47 | B49: 1970 | C49: Load Management Controls Customer Premises | G49: 0 | L49: 0 | M49: 0
A50: 47 | B50: 1975 | C50: Load Management Controls Utility Premises | G50: 0 | L50: 0 | M50: 0
A51: 47 | B51: 1980 | C51: System Supervisor Equipment | D51: ='[12]2.6 Fixed Asset Cont Stmt'!E113 -> 316405.76 | E51: ='[12]2.6 Fixed Asset Cont Stmt'!F113 -> 27911 | F51: ='[12]2.6 Fixed Asset Cont Stmt'!G113 -> 0 | G51: 344316.76 | I51: ='[12]2.6 Fixed Asset Cont Stmt'!K113 -> 200830.37 | J51: ='[12]2.6 Fixed Asset Cont Stmt'!L113 -> 31685 | K51: ='[12]2.6 Fixed Asset Cont Stmt'!M113 -> 0 | L51: 232515.37 | M51: 111801.39
A52: 47 | B52: 1985 | C52: Miscellaneous Fixed Assets | D52: ='[12]2.6 Fixed Asset Cont Stmt'!E114 -> 3934.52 | E52: ='[12]2.6 Fixed Asset Cont Stmt'!F114 -> 0 | F52: ='[12]2.6 Fixed Asset Cont Stmt'!G114 -> 0 | G52: 3934.52 | I52: ='[12]2.6 Fixed Asset Cont Stmt'!K114 -> 3934.52 | J52: ='[12]2.6 Fixed Asset Cont Stmt'!L114 -> 0 | K52: ='[12]2.6 Fixed Asset Cont Stmt'!M114 -> 0 | L52: 3934.52 | M52: 0
A53: 47 | B53: 1990 | C53: Other Tangible Property | G53: 0 | L53: 0 | M53: 0
A54: 47 | B54: 1995 | C54: Contributions & Grants | D54: ='[12]2.6 Fixed Asset Cont Stmt'!E115 -> -277253.3 | E54: ='[12]2.6 Fixed Asset Cont Stmt'!F115 -> -113405.13 | F54: ='[12]2.6 Fixed Asset Cont Stmt'!G115 -> 0 | G54: -390658.43 | I54: ='[12]2.6 Fixed Asset Cont Stmt'!K115 -> -31679.28 | J54: ='[12]2.6 Fixed Asset Cont Stmt'!L115 -> -14722 | K54: ='[12]2.6 Fixed Asset Cont Stmt'!M115 -> 0 | L54: -46401.28 | M54: -344257.15
A55: 47 | B55: 2440 | C55: Deferred Revenue5
G56: 0 | L56: 0 | M56: =G56+L56 -> 0
C57: Sub-Total | D57: =SUM(D17:D56) -> 10499868.14 | E57: =SUM(E17:E56) -> 576439.57 | F57: =SUM(F17:F56) -> 0 | G57: =SUM(G17:G56) -> 11076307.71 | I57: =SUM(I17:I56) -> 5772207.02 | J57: =SUM(J17:J56) -> 478915.7715 | K57: =SUM(K17:K56) -> 0 | L57: =SUM(L17:L56) -> 6251122.791 | M57: =SUM(M17:M56) -> 4825184.918
C58: Less Socialized Renewable Energy Generation Investments (input as negative) | G58: =D58+E58+F58 -> 0 | L58: =I58+J58+K58 -> 0 | M58: =G58+L58 -> 0
C59: Less Other Non Rate-Regulated Utility Assets (input as negative) | G59: 0 | L59: 0 | M59: 0
C60: Total PP&E | D60: =SUM(D57:D59) -> 10499868.14 | E60: =SUM(E57:E59) -> 576439.57 | F60: 0 | G60: 11076307.71 | I60: =SUM(I57:I59) -> 5772207.02 | J60: 478915.7715 | K60: 0 | L60: 6251122.791 | M60: 4825184.918
C61: Depreciation Expense adj. from gain or loss on the retirement of assets (pool of like assets), if applicable6
C62: Total | J62: =J60+J61 -> 478915.7715
I64: Less: Fully Allocated Depreciation
A65: 10 | C65: Transportation | I65: Transportation | K65: =J41 -> 71091.025
A66: 8 | C66: Stores Equipment | I66: Stores Equipment | K66: =J42 -> 5219
A67: 8 | C67: Tools, Shop | I67: Tools, Shop | K67: =J43 -> 0
A68: 8 | C68: Meas/Testing | I68: Measurement & Testing | K68: 0
A69: 8 | C69: Communications Equipment | I69: Communications Equipment | K69: =J46 -> 1285
I70: Net Depreciation | K70: =J62-K65-K66-K67-K68-K69 -> 401320.7465
A72: Notes:
A74: 1 | B74: Tables in the format outlined above covering all fixed asset accounts should be submitted for the Test Year, Bridge Year and all relevant historical years. At a minimum , the applicant must provide data for the earlier of: 1) all historical years back to its last rebasing; or 2) at least three years of historical actuals, in addition to Bridge Year and Test Year forecasts.
A77: 2 | B77: The "CCA Class" for fixed assets should agree with the CCA Class used for tax purposes in Tax Returns. Fixed Assets sub-components may be used where the underlying asset components are classified under multiple CCA Classes for tax purposes. If an applicant uses any different classes from those shown in the table, an explanation should be provided. (also see note 3).
A80: 3 | B80: The table may need to be customized for a utility's asset categories or for any new asset accounts announced or authorized by the Board.
A82: 4 | B82: The additions in column (E) must not include construction work in progress (CWIP).
A84: 5 | B84: Effective on the date of IFRS adoption, customer contributions will no longer be recorded in Account 1995 Contributions & Grants, but will be recorded in Account 2440, Deferred Revenues.
A86: 6 | B86: Where a distributor for general financial reporting purposes under IFRS has accounted for the amount of gain or loss on the retirement of assets in a pool of like assets as a charge or credit to income, for reporting and rate application filings, the distributor shall reclassify such gains and losses as depreciation expense, and disclose the amount separately.

Sheet App.2-BA_FA Cont 2012 Rev CGAAP
L1: File Number: | M1: =EBNUMBER -> EB-2015-0110
L2: Exhibit: | M2: 2
L3: Tab: | M3: 1
L4: Schedule: | M4: 4
L5: Page: | M5: 12
L7: Date: | M7: Mar-4-2016
A9: Appendix 2-BA
A10: Fixed Asset Continuity Schedule 1
E12: Accounting Standard | F12: CGAAP | G12: With Capitalization and Depreciation Policy Changes effective January 1st 2012 (as approved in last CoS EB-2011-0249)
E13: Year | F13: 2012
D15: Cost | J15: Accumulated Depreciation
A16: CCA Class 2 | B16: OEB Account 3 | C16: Description 3 | D16: Opening Balance | E16: Additions 4 | F16: Disposals | G16: Closing Balance | I16: Opening Balance | J16: Additions | K16: Disposals | L16: Closing Balance | M16: Net Book Value
A17: 45 | B17: 1611 | C17: Computer Software (Formally known as Account 1925) | D17: ='App.2-BA_FA Cont 2011 CGAAP'!G17 -> 606902.25 | E17: ='[12]2.6 Fixed Asset Cont Stmt'!G142 -> 314202.46 | F17: ='[12]2.6 Fixed Asset Cont Stmt'!H142 -> 0 | G17: =D17+E17+F17 -> 921104.71 | I17: ='App.2-BA_FA Cont 2011 CGAAP'!L17 -> 298137.614 | J17: ='[12]2.6 Fixed Asset Cont Stmt'!N142 -> 258970.18 | K17: ='[12]2.6 Fixed Asset Cont Stmt'!O142 -> 0 | L17: =I17+J17+K17 -> 557107.794 | M17: =G17-L17 -> 363996.916
A18: CEC | B18: 1612 | C18: Land Rights (Formally known as Account 1906) | D18: ='App.2-BA_FA Cont 2011 CGAAP'!G18 -> 6821.05 | E18: ='[12]2.6 Fixed Asset Cont Stmt'!$G$143+'[12]2.6 Fixed Asset Cont Stmt'!$H$145 -> 1650 | G18: =D18+E18+F18 -> 8471.05 | I18: ='App.2-BA_FA Cont 2011 CGAAP'!L18 -> 0 | J18: ='[12]2.6 Fixed Asset Cont Stmt'!N145 -> 0 | K18: ='[12]2.6 Fixed Asset Cont Stmt'!O145 -> 0 | L18: =I18+J18+K18 -> 0 | M18: =G18-L18 -> 8471.05
A19: N/A | B19: 1805 | C19: Land | D19: ='App.2-BA_FA Cont 2011 CGAAP'!G19 -> 41987.65 | E19: ='[12]2.6 Fixed Asset Cont Stmt'!$G$144 -> 0 | F19: ='[12]2.6 Fixed Asset Cont Stmt'!$G$144 -> 0 | G19: 41987.65 | I19: ='App.2-BA_FA Cont 2011 CGAAP'!L19 -> 0 | J19: ='[12]2.6 Fixed Asset Cont Stmt'!N144 -> 0 | K19: ='[12]2.6 Fixed Asset Cont Stmt'!O144 -> 0 | L19: =I19+J19+K19 -> 0 | M19: 41987.65
A20: 47 | B20: 1808 | C20: Buildings | D20: ='App.2-BA_FA Cont 2011 CGAAP'!G20 -> 444879.95 | E20: =SUM('[12]2.6 Fixed Asset Cont Stmt'!G146:G155) -> 56563.57 | F20: =SUM('[12]2.6 Fixed Asset Cont Stmt'!H146:H155) -> 0 | G20: 501443.52 | I20: ='App.2-BA_FA Cont 2011 CGAAP'!L20 -> 186961.64 | J20: =SUM('[12]2.6 Fixed Asset Cont Stmt'!N146:N155) -> 10864.17 | K20: =SUM('[12]2.6 Fixed Asset Cont Stmt'!O146:O155) -> 0 | L20: =I20+J20+K20 -> 197825.81 | M20: 303617.71
A21: 13 | B21: 1810 | C21: Leasehold Improvements | G21: 0 | L21: 0 | M21: 0
A22: 47 | B22: 1815 | C22: Transformer Station Equipment >50 kV | G22: 0 | L22: 0 | M22: 0
A23: 47 | B23: 1820 | C23: Distribution Station Equipment <50 kV | D23: ='App.2-BA_FA Cont 2011 CGAAP'!G23 -> 1009857.94 | E23: =SUM('[12]2.6 Fixed Asset Cont Stmt'!G156:G163) -> 9565.2 | F23: =SUM('[12]2.6 Fixed Asset Cont Stmt'!H156:H163) -> 0 | G23: 1019423.14 | I23: ='App.2-BA_FA Cont 2011 CGAAP'!L23 -> 638317 | J23: =SUM('[12]2.6 Fixed Asset Cont Stmt'!N156:N163) -> 14659.81 | K23: =SUM('[12]2.6 Fixed Asset Cont Stmt'!O156:O163) -> 0 | L23: 652976.81 | M23: 366446.33
A24: 47 | B24: 1825 | C24: Storage Battery Equipment | G24: 0 | L24: 0 | M24: 0
A25: 47 | B25: 1830 | C25: Poles, Towers & Fixtures | D25: ='App.2-BA_FA Cont 2011 CGAAP'!G25 -> 2674152.18 | E25: =SUM('[12]2.6 Fixed Asset Cont Stmt'!G164:G166) -> 126330.84 | F25: =SUM('[12]2.6 Fixed Asset Cont Stmt'!H164:H166) -> -11766.06 | G25: 2788716.96 | I25: ='App.2-BA_FA Cont 2011 CGAAP'!L25 -> 837643.37 | J25: =SUM('[12]2.6 Fixed Asset Cont Stmt'!N164:N166) -> 47579.24 | K25: =SUM('[12]2.6 Fixed Asset Cont Stmt'!O164:O166) -> -9406.04 | L25: 875816.57 | M25: 1912900.39
A26: 47 | B26: 1835 | C26: Overhead Conductors & Devices | D26: ='App.2-BA_FA Cont 2011 CGAAP'!G26 -> 1934652.76 | E26: =SUM('[12]2.6 Fixed Asset Cont Stmt'!G167:G168) -> 116504.72 | F26: =SUM('[12]2.6 Fixed Asset Cont Stmt'!H167:H168) -> -24661.88 | G26: 2026495.6 | I26: ='App.2-BA_FA Cont 2011 CGAAP'!L26 -> 1640065.58 | J26: =SUM('[12]2.6 Fixed Asset Cont Stmt'!N167:N168) -> 7554.44 | K26: =SUM('[12]2.6 Fixed Asset Cont Stmt'!O167:O168) -> -24661.88 | L26: 1622958.14 | M26: 403537.46
A27: 47 | B27: 1840 | C27: Underground Conduit | D27: ='App.2-BA_FA Cont 2011 CGAAP'!G27 -> 151261.93 | E27: =SUM('[12]2.6 Fixed Asset Cont Stmt'!G169:G171) -> 888 | F27: =SUM('[12]2.6 Fixed Asset Cont Stmt'!H169:H171) -> -773 | G27: 151376.93 | I27: ='App.2-BA_FA Cont 2011 CGAAP'!L27 -> 151262.21 | J27: =SUM('[12]2.6 Fixed Asset Cont Stmt'!N169:N170) -> 8.88 | K27: =SUM('[12]2.6 Fixed Asset Cont Stmt'!O169:O170) -> 0 | L27: 151271.09 | M27: 105.84
A28: 47 | B28: 1845 | C28: Underground Conductors & Devices | D28: ='App.2-BA_FA Cont 2011 CGAAP'!G28 -> 454910.74 | E28: ='[12]2.6 Fixed Asset Cont Stmt'!G172 -> 22149.88 | F28: ='[12]2.6 Fixed Asset Cont Stmt'!H172 -> 0 | G28: 477060.62 | I28: ='App.2-BA_FA Cont 2011 CGAAP'!L28 -> 138671.01 | J28: ='[12]2.6 Fixed Asset Cont Stmt'!N172 -> 9646.06 | K28: ='[12]2.6 Fixed Asset Cont Stmt'!O172 -> 0 | L28: 148317.07 | M28: 328743.55
A29: 47 | B29: 1850 | C29: Line Transformers | D29: ='App.2-BA_FA Cont 2011 CGAAP'!G29 -> 1182941.75 | E29: =SUM('[12]2.6 Fixed Asset Cont Stmt'!G173:G176) -> 99196.25 | F29: =SUM('[12]2.6 Fixed Asset Cont Stmt'!H173:H176) -> -11533.61 | G29: 1270604.39 | I29: ='App.2-BA_FA Cont 2011 CGAAP'!L29 -> 408312 | J29: =SUM('[12]2.6 Fixed Asset Cont Stmt'!N173:N176) -> 13205.84 | K29: =SUM('[12]2.6 Fixed Asset Cont Stmt'!O173:O176) -> -987.66 | L29: 420530.18 | M29: 850074.21
A30: 47 | B30: 1855 | C30: Services (Overhead & Underground) | D30: ='App.2-BA_FA Cont 2011 CGAAP'!G30 -> 547966.41 | E30: =SUM('[12]2.6 Fixed Asset Cont Stmt'!G177:G178) -> 27651.31 | F30: =SUM('[12]2.6 Fixed Asset Cont Stmt'!H177:H178) -> -7202.43 | G30: 568415.29 | I30: ='App.2-BA_FA Cont 2011 CGAAP'!L30 -> 424584.9 | J30: =SUM('[12]2.6 Fixed Asset Cont Stmt'!N177:N178) -> 12400.99 | K30: =SUM('[12]2.6 Fixed Asset Cont Stmt'!O177:O178) -> -16271.1 | L30: 420714.79 | M30: 147700.5
A31: 47 | B31: 1860 | C31: Meters | D31: ='App.2-BA_FA Cont 2011 CGAAP'!G31-D32 -> 201720.16 | E31: =SUM('[12]2.6 Fixed Asset Cont Stmt'!G179:G184) -> 13987.37 | F31: =SUM('[12]2.6 Fixed Asset Cont Stmt'!H179:H184) -> -1765 | G31: 213942.53 | I31: ='App.2-BA_FA Cont 2011 CGAAP'!L31-I32 -> 89522 | J31: =SUM('[12]2.6 Fixed Asset Cont Stmt'!N179:N184) -> 7903.16 | K31: =SUM('[12]2.6 Fixed Asset Cont Stmt'!O179:O184) -> -1858 | L31: 95567.16 | M31: 118375.37
A32: 47 | B32: 1860 | C32: Meters (Stranded Meters) | D32: ='[12]2.6 Fixed Asset Cont Stmt'!$E$188 -> 510744 | F32: ='[12]2.6 Fixed Asset Cont Stmt'!H188 -> -510744 | G32: 0 | I32: ='[12]2.6 Fixed Asset Cont Stmt'!L188 -> 309511.06 | J32: ='[12]2.6 Fixed Asset Cont Stmt'!N188 -> 0 | K32: ='[12]2.6 Fixed Asset Cont Stmt'!O188 -> -309511.1 | L32: -0.03999999998 | M32: 0.03999999998
A33: 47 | B33: 1860 | C33: Meters (Smart Meters) | E33: ='[12]2.6 Fixed Asset Cont Stmt'!G185 -> 614067.85 | F33: ='[12]2.6 Fixed Asset Cont Stmt'!H185 -> 0 | G33: =D33+E33+F33 -> 614067.85 | J33: ='[12]2.6 Fixed Asset Cont Stmt'!N185 -> 125034.89 | K33: ='[12]2.6 Fixed Asset Cont Stmt'!O185 -> 0 | L33: 125034.89 | M33: 489032.96
A34: N/A | B34: 1905 | C34: Land | G34: =D34+E34+F34 -> 0 | L34: 0 | M34: 0
A35: 47 | B35: 1908 | C35: Buildings & Fixtures | G35: 0 | L35: 0 | M35: 0
A36: 13 | B36: 1910 | C36: Leasehold Improvements | G36: 0 | L36: 0 | M36: 0
A37: 8 | B37: 1915 | C37: Office Furniture & Equipment (10 years) | D37: ='App.2-BA_FA Cont 2011 CGAAP'!G36 -> 149739.65 | E37: ='[12]2.6 Fixed Asset Cont Stmt'!G189 -> 0 | F37: ='[12]2.6 Fixed Asset Cont Stmt'!H189 -> 0 | G37: 149739.65 | I37: ='App.2-BA_FA Cont 2011 CGAAP'!L36 -> 107018.6025 | J37: ='[12]2.6 Fixed Asset Cont Stmt'!N189 -> 10479.71 | K37: ='[12]2.6 Fixed Asset Cont Stmt'!O189 -> 0 | L37: 117498.3125 | M37: 32241.3375
A38: 8 | B38: 1915 | C38: Office Furniture & Equipment (5 years) | G38: 0 | L38: 0 | M38: 0
A39: 10 | B39: 1920 | C39: Computer Equipment - Hardware | G39: 0 | L39: 0 | M39: 0
A40: 10 | B40: 1920 | C40: Computer Equip.-Hardware(Post Mar. 22/04) | D40: ='App.2-BA_FA Cont 2011 CGAAP'!G39 -> 314728.12 | E40: ='[12]2.6 Fixed Asset Cont Stmt'!G190 -> 62866.72 | F40: ='[12]2.6 Fixed Asset Cont Stmt'!H190 -> -95944.85 | G40: 281649.99 | I40: ='App.2-BA_FA Cont 2011 CGAAP'!L39 -> 162745.04 | J40: ='[12]2.6 Fixed Asset Cont Stmt'!N190 -> 43538.27 | K40: ='[12]2.6 Fixed Asset Cont Stmt'!O190 -> -95944.85 | L40: 110338.46 | M40: 171311.53
A41: 10 | B41: 1920 | C41: Computer Equip.-Hardware(Post Mar. 19/07) | G41: 0 | L41: 0 | M41: 0
A42: 10 | B42: 1930 | C42: Transportation Equipment | D42: ='App.2-BA_FA Cont 2011 CGAAP'!G41 -> 761984.32 | E42: =SUM('[12]2.6 Fixed Asset Cont Stmt'!$G$191:$G$193) -> 0 | F42: =SUM('[12]2.6 Fixed Asset Cont Stmt'!$G$191:$G$193) -> 0 | G42: 761984.32 | I42: ='App.2-BA_FA Cont 2011 CGAAP'!L41 -> 553913.765 | J42: =SUM('[12]2.6 Fixed Asset Cont Stmt'!N191:N193) -> 62157.22 | K42: =SUM('[12]2.6 Fixed Asset Cont Stmt'!O191:O193) -> 0 | L42: 616070.985 | M42: 145913.335
A43: 8 | B43: 1935 | C43: Stores Equipment | D43: ='App.2-BA_FA Cont 2011 CGAAP'!G42 -> 4634.55 | E43: ='[12]2.6 Fixed Asset Cont Stmt'!G194 -> 1842.19 | F43: ='[12]2.6 Fixed Asset Cont Stmt'!H194 -> 0 | G43: 6476.74 | I43: ='App.2-BA_FA Cont 2011 CGAAP'!L42 -> 4634.23 | J43: ='[12]2.6 Fixed Asset Cont Stmt'!N194 -> 115.14 | K43: ='[12]2.6 Fixed Asset Cont Stmt'!O194 -> 0 | L43: 4749.37 | M43: 1727.37
A44: 8 | B44: 1940 | C44: Tools, Shop & Garage Equipment | D44: ='App.2-BA_FA Cont 2011 CGAAP'!G43 -> 91579.3 | E44: ='[12]2.6 Fixed Asset Cont Stmt'!G195 -> 4400 | F44: ='[12]2.6 Fixed Asset Cont Stmt'!H195 -> 0 | G44: 95979.3 | I44: ='App.2-BA_FA Cont 2011 CGAAP'!L43 -> 91579.3 | J44: ='[12]2.6 Fixed Asset Cont Stmt'!N195 -> 48.7 | K44: ='[12]2.6 Fixed Asset Cont Stmt'!O195 -> -388.8 | L44: 91239.2 | M44: 4740.1
A45: 8 | B45: 1945 | C45: Measurement & Testing Equipment | D45: ='App.2-BA_FA Cont 2011 CGAAP'!G44 -> 1964.22 | G45: 1964.22 | I45: ='App.2-BA_FA Cont 2011 CGAAP'!L44 -> 1964 | J45: ='[12]2.6 Fixed Asset Cont Stmt'!$N196 -> 0 | K45: ='[12]2.6 Fixed Asset Cont Stmt'!$N196 -> 0 | L45: 1964 | M45: 0.22
A46: 8 | B46: 1950 | C46: Power Operated Equipment | D46: ='App.2-BA_FA Cont 2011 CGAAP'!G45 -> 0 | G46: 0 | L46: 0 | M46: 0
A47: 8 | B47: 1955 | C47: Communications Equipment | D47: ='App.2-BA_FA Cont 2011 CGAAP'!G46 -> 25285.93 | E47: ='[12]2.6 Fixed Asset Cont Stmt'!G197 -> 4995 | F47: ='[12]2.6 Fixed Asset Cont Stmt'!H197 -> 0 | G47: 30280.93 | I47: ='App.2-BA_FA Cont 2011 CGAAP'!L46 -> 16230.86 | J47: ='[12]2.6 Fixed Asset Cont Stmt'!N197 -> 2746.13 | K47: ='[12]2.6 Fixed Asset Cont Stmt'!O197 -> 0 | L47: 18976.99 | M47: 11303.94
A48: 8 | B48: 1955 | C48: Communication Equipment (Smart Meters - Collectors & Repeaters) | E48: =SUM('[12]2.6 Fixed Asset Cont Stmt'!G186:G187) -> 87888.61 | F48: =SUM('[12]2.6 Fixed Asset Cont Stmt'!H186:H187) -> 0 | G48: 87888.61 | I48: ='App.2-BA_FA Cont 2011 CGAAP'!L47 -> 0 | J48: =SUM('[12]2.6 Fixed Asset Cont Stmt'!N186:N187) -> 31502.34 | K48: =SUM('[12]2.6 Fixed Asset Cont Stmt'!O186:O187) -> 0 | L48: 31502.34 | M48: 56386.27
A49: 8 | B49: 1960 | C49: Miscellaneous Equipment | G49: 0 | L49: 0 | M49: 0
A50: 47 | B50: 1970 | C50: Load Management Controls Customer Premises | G50: 0 | L50: 0 | M50: 0
A51: 47 | B51: 1975 | C51: Load Management Controls Utility Premises | G51: 0 | L51: 0 | M51: 0
A52: 47 | B52: 1980 | C52: System Supervisor Equipment | D52: ='App.2-BA_FA Cont 2011 CGAAP'!G51 -> 344316.76 | E52: ='[12]2.6 Fixed Asset Cont Stmt'!G198 -> 3810 | F52: ='[12]2.6 Fixed Asset Cont Stmt'!H198 -> 0 | G52: 348126.76 | I52: ='App.2-BA_FA Cont 2011 CGAAP'!L51 -> 232515.37 | J52: ='[12]2.6 Fixed Asset Cont Stmt'!N198 -> 13844.13 | K52: ='[12]2.6 Fixed Asset Cont Stmt'!O198 -> 0 | L52: 246359.5 | M52: 101767.26
A53: 47 | B53: 1985 | C53: Miscellaneous Fixed Assets (Sentinel Lighting Rentals) | D53: ='App.2-BA_FA Cont 2011 CGAAP'!G52 -> 3934.52 | E53: ='[12]2.6 Fixed Asset Cont Stmt'!G199 -> 0 | F53: ='[12]2.6 Fixed Asset Cont Stmt'!H199 -> -3934.52 | G53: 0 | I53: ='App.2-BA_FA Cont 2011 CGAAP'!L52 -> 3934.52 | J53: ='[12]2.6 Fixed Asset Cont Stmt'!N199 -> 0 | K53: ='[12]2.6 Fixed Asset Cont Stmt'!O199 -> -3934.52 | L53: 0 | M53: 0
A54: 47 | B54: 1990 | C54: Other Tangible Property | G54: 0 | L54: 0 | M54: 0
A55: 47 | B55: 1995 | C55: Contributions & Grants | D55: ='App.2-BA_FA Cont 2011 CGAAP'!G54 -> -390658.43 | E55: ='[12]2.6 Fixed Asset Cont Stmt'!G200 -> -4691.01 | G55: =D55+E55+F55 -> -395349.44 | I55: ='App.2-BA_FA Cont 2011 CGAAP'!L54 -> -46401.28 | J55: ='[12]2.6 Fixed Asset Cont Stmt'!N200 -> -17084.28 | K55: ='[12]2.6 Fixed Asset Cont Stmt'!O200 -> 0 | L55: -63485.56 | M55: -331863.88
A56: 47 | B56: 2440 | C56: Deferred Revenue5 | L56: 0 | M56: =G56+L56 -> 0
C57: Sub-Total | D57: =SUM(D17:D56) -> 11076307.71 | E57: =SUM(E17:E56) -> 1563868.96 | F57: =SUM(F17:F56) -> -668325.35 | G57: =SUM(G17:G56) -> 11971851.32 | I57: =SUM(I17:I56) -> 6251122.791 | J57: =SUM(J17:J56) -> 655175.02 | K57: =SUM(K17:K56) -> -462963.95 | L57: =SUM(L17:L56) -> 6443333.861 | M57: =SUM(M17:M56) -> 5528517.458
C58: Less Socialized Renewable Energy Generation Investments (input as negative) | G58: =D58+E58+F58 -> 0 | L58: =I58+J58+K58 -> 0 | M58: =G58+L58 -> 0
C59: Less Other Non Rate-Regulated Utility Assets (input as negative) | G59: =D59+E59+F59 -> 0 | L59: 0 | M59: 0
C60: Total PP&E | D60: =SUM(D57:D59) -> 11076307.71 | E60: =SUM(E57:E59) -> 1563868.96 | F60: -668325.35 | G60: 11971851.32 | I60: =SUM(I57:I59) -> 6251122.791 | J60: 655175.02 | K60: -462963.95 | L60: 6443333.861 | M60: 5528517.458
C61: Depreciation Expense adj. from gain or loss on the retirement of assets (pool of like assets), if applicable6
C62: Total | J62: =J60+J61 -> 655175.02
I64: Less: Fully Allocated Depreciation
A65: 10 | C65: Transportation | I65: Transportation | K65: =J42 -> 62157.22
A66: 8 | C66: Stores Equipment | I66: Stores Equipment | K66: =J43 -> 115.14
A67: 8 | C67: Tools, Shop | I67: Tools, Shop | K67: =J44 -> 48.7
A68: 8 | C68: Meas/Testing | I68: Measurement & Testing | K68: =J45 -> 0
A69: 8 | C69: Communications Equipment | I69: Communications Equipment | K69: =J47 -> 2746.13
I70: Net Depreciation | K70: =J62-K65-K66-K67-K68-K69 -> 590107.83
A72: Notes:
A74: 1 | B74: Tables in the format outlined above covering all fixed asset accounts should be submitted for the Test Year, Bridge Year and all relevant historical years. At a minimum , the applicant must provide data for the earlier of: 1) all historical years back to its last rebasing; or 2) at least three years of historical actuals, in addition to Bridge Year and Test Year forecasts.
A77: 2 | B77: The "CCA Class" for fixed assets should agree with the CCA Class used for tax purposes in Tax Returns. Fixed Assets sub-components may be used where the underlying asset components are classified under multiple CCA Classes for tax purposes. If an applicant uses any different classes from those shown in the table, an explanation should be provided. (also see note 3).
A80: 3 | B80: The table may need to be customized for a utility's asset categories or for any new asset accounts announced or authorized by the Board.
A82: 4 | B82: The additions in column (E) must not include construction work in progress (CWIP).
A84: 5 | B84: Effective on the date of IFRS adoption, customer contributions will no longer be recorded in Account 1995 Contributions & Grants, but will be recorded in Account 2440, Deferred Revenues.
A86: 6 | B86: Where a distributor for general financial reporting purposes under IFRS has accounted for the amount of gain or loss on the retirement of assets in a pool of like assets as a charge or credit to income, for reporting and rate application filings, the distributor shall reclassify such gains and losses as depreciation expense, and disclose the amount separately.

Sheet App.2-BA_FA Cont 2013 Rev CGAAP
L1: File Number: | M1: =EBNUMBER -> EB-2015-0110
L2: Exhibit: | M2: 2
L3: Tab: | M3: 1
L4: Schedule: | M4: 4
L5: Page: | M5: 13
L7: Date: | M7: Mar-4-2016
A9: Appendix 2-BA
A10: Fixed Asset Continuity Schedule 1
E12: Accounting Standard | F12: CGAAP | G12: With Capitalization and Depreciation Policy Changes effective January 1st 2012 (as approved in last CoS EB-2011-0249)
E13: Year | F13: 2013
D15: Cost | J15: Accumulated Depreciation
A16: CCA Class 2 | B16: OEB Account 3 | C16: Description 3 | D16: Opening Balance | E16: Additions 4 | F16: Disposals | G16: Closing Balance | I16: Opening Balance | J16: Additions | K16: Disposals | L16: Closing Balance | M16: Net Book Value
A17: 45 | B17: 1611 | C17: Computer Software (Formally known as Account 1925) | D17: ='App.2-BA_FA Cont 2012 Rev CGAAP'!G17 -> 921104.71 | E17: ='[12]2.6 Fixed Asset Cont Stmt'!E221 -> 10143.28 | F17: ='[12]2.6 Fixed Asset Cont Stmt'!F221 -> 0 | G17: =D17+E17+F17 -> 931247.99 | I17: ='App.2-BA_FA Cont 2012 Rev CGAAP'!L17 -> 557107.794 | J17: ='[12]2.6 Fixed Asset Cont Stmt'!K221 -> 137479.33 | K17: ='[12]2.6 Fixed Asset Cont Stmt'!M221 -> 0 | L17: =I17+J17+K17 -> 694587.124 | M17: =G17-L17 -> 236660.866
A18: CEC | B18: 1612 | C18: Land Rights (Formally known as Account 1906) | D18: ='App.2-BA_FA Cont 2012 Rev CGAAP'!G18 -> 8471.05 | E18: ='[12]2.6 Fixed Asset Cont Stmt'!E222 -> 10768.5 | F18: ='[12]2.6 Fixed Asset Cont Stmt'!F222 -> 0 | G18: =D18+E18+F18 -> 19239.55 | I18: ='App.2-BA_FA Cont 2012 Rev CGAAP'!L18 -> 0 | J18: ='[12]2.6 Fixed Asset Cont Stmt'!K222 -> 0 | K18: ='[12]2.6 Fixed Asset Cont Stmt'!M222 -> 0 | L18: =I18+J18+K18 -> 0 | M18: =G18-L18 -> 19239.55
A19: N/A | B19: 1805 | C19: Land | D19: ='App.2-BA_FA Cont 2012 Rev CGAAP'!G19 -> 41987.65 | E19: ='[12]2.6 Fixed Asset Cont Stmt'!E223 -> 0 | F19: ='[12]2.6 Fixed Asset Cont Stmt'!F223 -> 0 | G19: 41987.65 | I19: ='App.2-BA_FA Cont 2012 Rev CGAAP'!L19 -> 0 | J19: ='[12]2.6 Fixed Asset Cont Stmt'!K223 -> 0 | K19: ='[12]2.6 Fixed Asset Cont Stmt'!M223 -> 0 | L19: 0 | M19: 41987.65
A20: 47 | B20: 1808 | C20: Buildings | D20: ='App.2-BA_FA Cont 2012 Rev CGAAP'!G20 -> 501443.52 | E20: =SUM('[12]2.6 Fixed Asset Cont Stmt'!E225:E234) -> 3450 | F20: =SUM('[12]2.6 Fixed Asset Cont Stmt'!F225:F234) -> 0 | G20: 504893.52 | I20: ='App.2-BA_FA Cont 2012 Rev CGAAP'!L20 -> 197825.81 | J20: =SUM('[12]2.6 Fixed Asset Cont Stmt'!K225:K234) -> 11807.06 | K20: =SUM('[12]2.6 Fixed Asset Cont Stmt'!M225:M234) -> 0 | L20: 209632.87 | M20: =G20-L20 -> 295260.65
A21: 13 | B21: 1810 | C21: Leasehold Improvements | G21: 0 | L21: 0 | M21: 0
A22: 47 | B22: 1815 | C22: Transformer Station Equipment >50 kV | G22: 0 | L22: 0 | M22: 0
A23: 47 | B23: 1820 | C23: Distribution Station Equipment <50 kV | D23: ='App.2-BA_FA Cont 2012 Rev CGAAP'!G23 -> 1019423.14 | E23: =SUM('[12]2.6 Fixed Asset Cont Stmt'!E235:E242) -> 49608.95 | F23: =SUM('[12]2.6 Fixed Asset Cont Stmt'!F235:F242) -> 0 | G23: 1069032.09 | I23: ='App.2-BA_FA Cont 2012 Rev CGAAP'!L23 -> 652976.81 | J23: =SUM('[12]2.6 Fixed Asset Cont Stmt'!K235:K242) -> 15289.64 | K23: =SUM('[12]2.6 Fixed Asset Cont Stmt'!M235:M242) -> 0 | L23: 668266.45 | M23: 400765.64
A24: 47 | B24: 1825 | C24: Storage Battery Equipment | G24: 0 | L24: 0 | M24: 0
A25: 47 | B25: 1830 | C25: Poles, Towers & Fixtures | D25: ='App.2-BA_FA Cont 2012 Rev CGAAP'!G25 -> 2788716.96 | E25: =SUM('[12]2.6 Fixed Asset Cont Stmt'!E243:E245) -> 127006.12 | F25: =SUM('[12]2.6 Fixed Asset Cont Stmt'!F243:F245) -> -8909.14 | G25: 2906813.94 | I25: ='App.2-BA_FA Cont 2012 Rev CGAAP'!L25 -> 875816.57 | J25: =SUM('[12]2.6 Fixed Asset Cont Stmt'!K243:K245) -> 46951.57 | K25: =SUM('[12]2.6 Fixed Asset Cont Stmt'!M243:M245) -> -2308.2 | L25: 920459.94 | M25: 1986354
A26: 47 | B26: 1835 | C26: Overhead Conductors & Devices | D26: ='App.2-BA_FA Cont 2012 Rev CGAAP'!G26 -> 2026495.6 | E26: =SUM('[12]2.6 Fixed Asset Cont Stmt'!E246:E247) -> 64608.98 | F26: =SUM('[12]2.6 Fixed Asset Cont Stmt'!F246:F247) -> -15261.75 | G26: 2075842.83 | I26: ='App.2-BA_FA Cont 2012 Rev CGAAP'!L26 -> 1622958.14 | J26: =SUM('[12]2.6 Fixed Asset Cont Stmt'!K246:K247) -> 3013.34 | K26: =SUM('[12]2.6 Fixed Asset Cont Stmt'!M246:M247) -> -9460 | L26: 1616511.48 | M26: 459331.35
A27: 47 | B27: 1840 | C27: Underground Conduit | D27: ='App.2-BA_FA Cont 2012 Rev CGAAP'!G27 -> 151376.93 | E27: =SUM('[12]2.6 Fixed Asset Cont Stmt'!E248:E250) -> 0 | F27: =SUM('[12]2.6 Fixed Asset Cont Stmt'!F248:F250) -> 0 | G27: 151376.93 | I27: ='App.2-BA_FA Cont 2012 Rev CGAAP'!L27 -> 151271.09 | J27: =SUM('[12]2.6 Fixed Asset Cont Stmt'!K249:K250) -> 106 | K27: =SUM('[12]2.6 Fixed Asset Cont Stmt'!L249:M249) -> -861 | L27: 150516.09 | M27: 860.84
A28: 47 | B28: 1845 | C28: Underground Conductors & Devices | D28: ='App.2-BA_FA Cont 2012 Rev CGAAP'!G28 -> 477060.62 | E28: ='[12]2.6 Fixed Asset Cont Stmt'!E251 -> 5261.28 | F28: ='[12]2.6 Fixed Asset Cont Stmt'!F251 -> 0 | G28: 482321.9 | I28: ='App.2-BA_FA Cont 2012 Rev CGAAP'!L28 -> 148317.07 | J28: ='[12]2.6 Fixed Asset Cont Stmt'!K251 -> 10780.81 | K28: ='[12]2.6 Fixed Asset Cont Stmt'!M251 -> 0 | L28: 159097.88 | M28: 323224.02
A29: 47 | B29: 1850 | C29: Line Transformers | D29: ='App.2-BA_FA Cont 2012 Rev CGAAP'!G29 -> 1270604.39 | E29: =SUM('[12]2.6 Fixed Asset Cont Stmt'!E252:E255) -> 83750.44 | F29: =SUM('[12]2.6 Fixed Asset Cont Stmt'!F252:F255) -> -7284.49 | G29: 1347070.34 | I29: ='App.2-BA_FA Cont 2012 Rev CGAAP'!L29 -> 420530.18 | J29: =SUM('[12]2.6 Fixed Asset Cont Stmt'!K252:K255) -> 8205.12 | K29: =SUM('[12]2.6 Fixed Asset Cont Stmt'!L252:L255) -> 0 | L29: 428735.3 | M29: 918335.04
A30: 47 | B30: 1855 | C30: Services (Overhead & Underground) | D30: ='App.2-BA_FA Cont 2012 Rev CGAAP'!G30 -> 568415.29 | E30: =SUM('[12]2.6 Fixed Asset Cont Stmt'!E256:E257) -> 42588.75 | F30: =SUM('[12]2.6 Fixed Asset Cont Stmt'!F256:F257) -> -8234.21 | G30: 602769.83 | I30: ='App.2-BA_FA Cont 2012 Rev CGAAP'!L30 -> 420714.79 | J30: =SUM('[12]2.6 Fixed Asset Cont Stmt'!K256:K257) -> 4068 | K30: =SUM('[12]2.6 Fixed Asset Cont Stmt'!L256:M257) -> -7855 | L30: 416927.79 | M30: 185842.04
A31: 47 | B31: 1860 | C31: Meters | D31: ='App.2-BA_FA Cont 2012 Rev CGAAP'!G31 -> 213942.53 | E31: =SUM('[12]2.6 Fixed Asset Cont Stmt'!E260:E263) -> 21470.32 | F31: =SUM('[12]2.6 Fixed Asset Cont Stmt'!F258:F263) -> -44719.23 | G31: 190693.62 | I31: ='App.2-BA_FA Cont 2012 Rev CGAAP'!L31 -> 95567.16 | J31: =SUM('[12]2.6 Fixed Asset Cont Stmt'!K258:K263) -> 5031.8 | K31: =SUM('[12]2.6 Fixed Asset Cont Stmt'!L258:M263) -> -17537.43 | L31: 83061.53 | M31: 107632.09
A32: 47 | B32: 1860 | C32: Meters (Stranded Meters) | G32: 0 | I32: ='App.2-BA_FA Cont 2012 Rev CGAAP'!L32 -> -0.03999999998 | L32: -0.03999999998 | M32: 0.03999999998
A33: 47 | B33: 1860 | C33: Meters (Smart Meters) | D33: ='App.2-BA_FA Cont 2012 Rev CGAAP'!G33 -> 614067.85 | E33: =SUM('[12]2.6 Fixed Asset Cont Stmt'!E264) -> 907.21 | F33: =SUM('[12]2.6 Fixed Asset Cont Stmt'!F264) -> -10817.5 | G33: =D33+E33+F33 -> 604157.56 | I33: ='App.2-BA_FA Cont 2012 Rev CGAAP'!L33 -> 125034.89 | J33: ='[12]2.6 Fixed Asset Cont Stmt'!K264 -> 44028.97 | K33: =SUM('[12]2.6 Fixed Asset Cont Stmt'!L264:M264) -> -5259.19 | L33: 163804.67 | M33: 440352.89
A34: N/A | B34: 1905 | C34: Land | G34: =D34+E34+F34 -> 0 | L34: 0 | M34: 0
A35: 47 | B35: 1908 | C35: Buildings & Fixtures | G35: 0 | L35: 0 | M35: 0
A36: 13 | B36: 1910 | C36: Leasehold Improvements | G36: 0 | L36: 0 | M36: 0
A37: 8 | B37: 1915 | C37: Office Furniture & Equipment (10 years) | D37: ='App.2-BA_FA Cont 2012 Rev CGAAP'!G37 -> 149739.65 | E37: ='[12]2.6 Fixed Asset Cont Stmt'!E268 -> 16600 | F37: ='[12]2.6 Fixed Asset Cont Stmt'!F268 -> 0 | G37: 166339.65 | I37: ='App.2-BA_FA Cont 2012 Rev CGAAP'!L37 -> 117498.3125 | J37: =SUM('[12]2.6 Fixed Asset Cont Stmt'!K268) -> 10671.35 | K37: =SUM('[12]2.6 Fixed Asset Cont Stmt'!M268) -> 0 | L37: 128169.6625 | M37: 38169.9875
A38: 8 | B38: 1915 | C38: Office Furniture & Equipment (5 years) | G38: 0 | L38: 0 | M38: 0
A39: 10 | B39: 1920 | C39: Computer Equipment - Hardware | G39: 0 | L39: 0 | M39: 0
A40: 10 | B40: 1920 | C40: Computer Equip.-Hardware(Post Mar. 22/04) | D40: ='App.2-BA_FA Cont 2012 Rev CGAAP'!G40 -> 281649.99 | E40: =SUM('[12]2.6 Fixed Asset Cont Stmt'!E269) -> 8886.47 | F40: =SUM('[12]2.6 Fixed Asset Cont Stmt'!F269) -> 0 | G40: 290536.46 | I40: ='App.2-BA_FA Cont 2012 Rev CGAAP'!L40 -> 110338.46 | J40: ='[12]2.6 Fixed Asset Cont Stmt'!K269 -> 31281.64 | K40: ='[12]2.6 Fixed Asset Cont Stmt'!M269 -> 0 | L40: 141620.1 | M40: 148916.36
A41: 10 | B41: 1920 | C41: Computer Equip.-Hardware(Post Mar. 19/07) | G41: 0 | L41: 0 | M41: 0
A42: 10 | B42: 1930 | C42: Transportation Equipment | D42: ='App.2-BA_FA Cont 2012 Rev CGAAP'!G42 -> 761984.32 | E42: =SUM('[12]2.6 Fixed Asset Cont Stmt'!E270:E272) -> 309830.79 | F42: =SUM('[12]2.6 Fixed Asset Cont Stmt'!F270:F272) -> -24508.05 | G42: 1047307.06 | I42: ='App.2-BA_FA Cont 2012 Rev CGAAP'!L42 -> 616070.985 | J42: =SUM('[12]2.6 Fixed Asset Cont Stmt'!K270:K272) -> 72184.43 | K42: =SUM('[12]2.6 Fixed Asset Cont Stmt'!M270:M272) -> -24508 | L42: 663747.415 | M42: 383559.645
A43: 8 | B43: 1935 | C43: Stores Equipment | D43: ='App.2-BA_FA Cont 2012 Rev CGAAP'!G43 -> 6476.74 | E43: ='[12]2.6 Fixed Asset Cont Stmt'!E273 -> 0 | F43: ='[12]2.6 Fixed Asset Cont Stmt'!F273 -> 0 | G43: 6476.74 | I43: ='App.2-BA_FA Cont 2012 Rev CGAAP'!L43 -> 4749.37 | J43: ='[12]2.6 Fixed Asset Cont Stmt'!K273 -> 230.28 | K43: ='[12]2.6 Fixed Asset Cont Stmt'!M273 -> 0 | L43: 4979.65 | M43: 1497.09
A44: 8 | B44: 1940 | C44: Tools, Shop & Garage Equipment | D44: ='App.2-BA_FA Cont 2012 Rev CGAAP'!G44 -> 95979.3 | E44: ='[12]2.6 Fixed Asset Cont Stmt'!E274 -> 0 | F44: ='[12]2.6 Fixed Asset Cont Stmt'!F274 -> 0 | G44: 95979.3 | I44: ='App.2-BA_FA Cont 2012 Rev CGAAP'!L44 -> 91239.2 | J44: ='[12]2.6 Fixed Asset Cont Stmt'!K274 -> 708.87 | K44: ='[12]2.6 Fixed Asset Cont Stmt'!M274 -> 0 | L44: 91948.07 | M44: 4031.23
A45: 8 | B45: 1945 | C45: Measurement & Testing Equipment | D45: ='App.2-BA_FA Cont 2012 Rev CGAAP'!G45 -> 1964.22 | E45: ='[12]2.6 Fixed Asset Cont Stmt'!E275 -> 0 | F45: ='[12]2.6 Fixed Asset Cont Stmt'!F275 -> 0 | G45: 1964.22 | I45: ='App.2-BA_FA Cont 2012 Rev CGAAP'!L45 -> 1964 | J45: ='[12]2.6 Fixed Asset Cont Stmt'!K275 -> 0.22 | K45: ='[12]2.6 Fixed Asset Cont Stmt'!M275 -> 0 | L45: 1964.22 | M45: 0
A46: 8 | B46: 1950 | C46: Power Operated Equipment | G46: 0 | L46: 0 | M46: 0
A47: 8 | B47: 1955 | C47: Communications Equipment | D47: ='App.2-BA_FA Cont 2012 Rev CGAAP'!G47 -> 30280.93 | E47: ='[12]2.6 Fixed Asset Cont Stmt'!E276 -> 2008.71 | F47: ='[12]2.6 Fixed Asset Cont Stmt'!F276 -> 0 | G47: 32289.64 | I47: ='App.2-BA_FA Cont 2012 Rev CGAAP'!L47 -> 18976.99 | J47: ='[12]2.6 Fixed Asset Cont Stmt'!K276 -> 4050.9 | K47: ='[12]2.6 Fixed Asset Cont Stmt'!M276 -> 0 | L47: 23027.89 | M47: 9261.75
A48: 8 | B48: 1955 | C48: Communication Equipment (Smart Meters - Collectors & Repeaters) | D48: ='App.2-BA_FA Cont 2012 Rev CGAAP'!G48 -> 87888.61 | E48: =SUM('[12]2.6 Fixed Asset Cont Stmt'!E265:E266) -> 0 | F48: =SUM('[12]2.6 Fixed Asset Cont Stmt'!F265:F266) -> 0 | G48: 87888.61 | I48: ='App.2-BA_FA Cont 2012 Rev CGAAP'!L48 -> 31502.34 | J48: =SUM('[12]2.6 Fixed Asset Cont Stmt'!K265:K266) -> 12699.25 | K48: =SUM('[12]2.6 Fixed Asset Cont Stmt'!M265:M266) -> 0 | L48: 44201.59 | M48: 43687.02
A49: 8 | B49: 1960 | C49: Miscellaneous Equipment | G49: 0 | L49: 0 | M49: 0
A50: 47 | B50: 1970 | C50: Load Management Controls Customer Premises | G50: 0 | L50: 0 | M50: 0
A51: 47 | B51: 1975 | C51: Load Management Controls Utility Premises | G51: 0 | L51: 0 | M51: 0
A52: 47 | B52: 1980 | C52: System Supervisor Equipment | D52: ='App.2-BA_FA Cont 2012 Rev CGAAP'!G52 -> 348126.76 | E52: ='[12]2.6 Fixed Asset Cont Stmt'!E277 -> 0 | F52: ='[12]2.6 Fixed Asset Cont Stmt'!F277 -> 0 | G52: 348126.76 | I52: ='App.2-BA_FA Cont 2012 Rev CGAAP'!L52 -> 246359.5 | J52: ='[12]2.6 Fixed Asset Cont Stmt'!K277 -> 13997.35 | K52: ='[12]2.6 Fixed Asset Cont Stmt'!M277 -> 0 | L52: 260356.85 | M52: 87769.91
A53: 47 | B53: 1985 | C53: Miscellaneous Fixed Assets (Sentinel Lighting Rentals) | G53: 0 | L53: 0 | M53: 0
A54: 47 | B54: 1990 | C54: Other Tangible Property | G54: 0 | L54: 0 | M54: 0
A55: 47 | B55: 1995 | C55: Contributions & Grants | D55: ='App.2-BA_FA Cont 2012 Rev CGAAP'!G55 -> -395349.44 | E55: ='[12]2.6 Fixed Asset Cont Stmt'!E279 -> 785 | F55: ='[12]2.6 Fixed Asset Cont Stmt'!F279 -> 0 | G55: -394564.44 | I55: ='App.2-BA_FA Cont 2012 Rev CGAAP'!L55 -> -63485.56 | J55: ='[12]2.6 Fixed Asset Cont Stmt'!K279 -> -515 | K55: ='[12]2.6 Fixed Asset Cont Stmt'!M279 -> 0 | L55: -64000.56 | M55: -330563.88
A56: 47 | B56: 2440 | C56: Deferred Revenue5 | L56: 0 | M56: 0
C57: Sub-Total | D57: =SUM(D17:D56) -> 11971851.32 | E57: =SUM(E17:E56) -> 757674.8 | F57: =SUM(F17:F56) -> -119734.37 | G57: =SUM(G17:G56) -> 12609791.75 | I57: =SUM(I17:I56) -> 6443333.861 | J57: =SUM(J17:J56) -> 432070.93 | K57: =SUM(K17:K56) -> -67788.82 | L57: =SUM(L17:L56) -> 6807615.972 | M57: =SUM(M17:M56) -> 5802175.778
C58: Less Socialized Renewable Energy Generation Investments (input as negative) | G58: =D58+E58+F58 -> 0 | L58: =I58+J58+K58 -> 0 | M58: =G58+L58 -> 0
C59: Less Other Non Rate-Regulated Utility Assets (input as negative) | G59: 0 | L59: 0 | M59: =G59+L59 -> 0
C60: Total PP&E | D60: =SUM(D57:D59) -> 11971851.32 | E60: =SUM(E57:E59) -> 757674.8 | F60: -119734.37 | G60: 12609791.75 | I60: =SUM(I57:I59) -> 6443333.861 | J60: 432070.93 | K60: -67788.82 | L60: 6807615.972 | M60: 5802175.778
C61: Depreciation Expense adj. from gain or loss on the retirement of assets (pool of like assets), if applicable6
C62: Total | J62: =J60+J61 -> 432070.93
I64: Less: Fully Allocated Depreciation
A65: 10 | C65: Transportation | I65: Transportation | K65: =J42 -> 72184.43
A66: 8 | C66: Stores Equipment | I66: Stores Equipment | K66: =J43 -> 230.28
A67: 8 | C67: Tools, Shop | I67: Tools, Shop | K67: =J44 -> 708.87
A68: 8 | C68: Meas/Testing | I68: Measurement & Testing | K68: =J45 -> 0.22
A69: 8 | C69: Communications Equipment | I69: Communications Equipment | K69: =J47 -> 4050.9
I70: Net Depreciation | K70: =J62-K65-K66-K67-K68-K69 -> 354896.23
A72: Notes:
A74: 1 | B74: Tables in the format outlined above covering all fixed asset accounts should be submitted for the Test Year, Bridge Year and all relevant historical years. At a minimum , the applicant must provide data for the earlier of: 1) all historical years back to its last rebasing; or 2) at least three years of historical actuals, in addition to Bridge Year and Test Year forecasts.
A77: 2 | B77: The "CCA Class" for fixed assets should agree with the CCA Class used for tax purposes in Tax Returns. Fixed Assets sub-components may be used where the underlying asset components are classified under multiple CCA Classes for tax purposes. If an applicant uses any different classes from those shown in the table, an explanation should be provided. (also see note 3).
A80: 3 | B80: The table may need to be customized for a utility's asset categories or for any new asset accounts announced or authorized by the Board.
A82: 4 | B82: The additions in column (E) must not include construction work in progress (CWIP).
A84: 5 | B84: Effective on the date of IFRS adoption, customer contributions will no longer be recorded in Account 1995 Contributions & Grants, but will be recorded in Account 2440, Deferred Revenues.
A86: 6 | B86: Where a distributor for general financial reporting purposes under IFRS has accounted for the amount of gain or loss on the retirement of assets in a pool of like assets as a charge or credit to income, for reporting and rate application filings, the distributor shall reclassify such gains and losses as depreciation expense, and disclose the amount separately.

Sheet App.2-BA_FA Cont 2014 Rev CGAAP
L1: File Number: | M1: =EBNUMBER -> EB-2015-0110
L2: Exhibit: | M2: 2
L3: Tab: | M3: 1
L4: Schedule: | M4: 4
L5: Page: | M5: 14
L7: Date: | M7: Mar-4-2016
A9: Appendix 2-BA
A10: Fixed Asset Continuity Schedule 1
E12: Accounting Standard | F12: CGAAP | G12: With Capitalization and Depreciation Policy Changes effective January 1st 2012 (as approved in last CoS EB-2011-0249)
E13: Year | F13: 2014
D15: Cost | J15: Accumulated Depreciation
A16: CCA Class 2 | B16: OEB Account 3 | C16: Description 3 | D16: Opening Balance | E16: Additions 4 | F16: Disposals | G16: Closing Balance | I16: Opening Balance | J16: Additions | K16: Disposals | L16: Closing Balance | M16: Net Book Value
A17: 45 | B17: 1611 | C17: Computer Software (Formally known as Account 1925) | D17: ='App.2-BA_FA Cont 2013 Rev CGAAP'!G17 -> 931247.99 | E17: ='[12]2.6 Fixed Asset Cont Stmt'!E302 -> 10319.64 | F17: ='[12]2.6 Fixed Asset Cont Stmt'!F302 -> 0 | G17: =D17+E17+F17 -> 941567.63 | I17: ='App.2-BA_FA Cont 2013 Rev CGAAP'!L17 -> 694587.124 | J17: ='[12]2.6 Fixed Asset Cont Stmt'!K302 -> 130245.09 | K17: ='[12]2.6 Fixed Asset Cont Stmt'!M302 -> 0 | L17: =I17+J17+K17 -> 824832.214 | M17: =G17-L17 -> 116735.416
A18: CEC | B18: 1612 | C18: Land Rights (Formally known as Account 1906) | D18: ='App.2-BA_FA Cont 2013 Rev CGAAP'!G18 -> 19239.55 | E18: ='[12]2.6 Fixed Asset Cont Stmt'!E303 -> 9411.1 | F18: ='[12]2.6 Fixed Asset Cont Stmt'!F303 -> 0 | G18: =D18+E18+F18 -> 28650.65 | I18: ='App.2-BA_FA Cont 2013 Rev CGAAP'!L18 -> 0 | J18: ='[12]2.6 Fixed Asset Cont Stmt'!K303 -> 0 | K18: ='[12]2.6 Fixed Asset Cont Stmt'!M303 -> 0 | L18: =I18+J18+K18 -> 0 | M18: =G18-L18 -> 28650.65
A19: N/A | B19: 1805 | C19: Land | D19: ='App.2-BA_FA Cont 2013 Rev CGAAP'!G19 -> 41987.65 | E19: ='[12]2.6 Fixed Asset Cont Stmt'!E304 -> 0 | F19: ='[12]2.6 Fixed Asset Cont Stmt'!F304 -> 0 | G19: 41987.65 | I19: ='App.2-BA_FA Cont 2013 Rev CGAAP'!L19 -> 0 | J19: ='[12]2.6 Fixed Asset Cont Stmt'!K304 -> 0 | K19: ='[12]2.6 Fixed Asset Cont Stmt'!M304 -> 0 | L19: 0 | M19: 41987.65
A20: 47 | B20: 1808 | C20: Buildings | D20: ='App.2-BA_FA Cont 2013 Rev CGAAP'!G20 -> 504893.52 | E20: =SUM('[12]2.6 Fixed Asset Cont Stmt'!E306:E315) -> 4250 | F20: =SUM('[12]2.6 Fixed Asset Cont Stmt'!F306:F315) -> 0 | G20: 509143.52 | I20: ='App.2-BA_FA Cont 2013 Rev CGAAP'!L20 -> 209632.87 | J20: =SUM('[12]2.6 Fixed Asset Cont Stmt'!K306:K315) -> 11886.15 | K20: =SUM('[12]2.6 Fixed Asset Cont Stmt'!M306:M315) -> 0 | L20: 221519.02 | M20: =G20-L20 -> 287624.5
A21: 13 | B21: 1810 | C21: Leasehold Improvements | G21: 0 | L21: 0 | M21: 0
A22: 47 | B22: 1815 | C22: Transformer Station Equipment >50 kV | G22: 0 | L22: 0 | M22: 0
A23: 47 | B23: 1820 | C23: Distribution Station Equipment <50 kV | D23: ='App.2-BA_FA Cont 2013 Rev CGAAP'!G23 -> 1069032.09 | E23: =SUM('[12]2.6 Fixed Asset Cont Stmt'!E316:E323) -> 237845.58 | F23: =SUM('[12]2.6 Fixed Asset Cont Stmt'!F316:F323) -> -75889.63 | G23: 1230988.04 | I23: ='App.2-BA_FA Cont 2013 Rev CGAAP'!L23 -> 668266.45 | J23: =SUM('[12]2.6 Fixed Asset Cont Stmt'!K316:K323) -> 18644.27 | K23: =SUM('[12]2.6 Fixed Asset Cont Stmt'!M316:M323) -> -74461.06 | L23: 612449.66 | M23: 618538.38
A24: 47 | B24: 1825 | C24: Storage Battery Equipment | G24: 0 | I24: ='App.2-BA_FA Cont 2013 Rev CGAAP'!L24 -> 0 | L24: 0 | M24: 0
A25: 47 | B25: 1830 | C25: Poles, Towers & Fixtures | D25: ='App.2-BA_FA Cont 2013 Rev CGAAP'!G25 -> 2906813.94 | E25: =SUM('[12]2.6 Fixed Asset Cont Stmt'!E324:E327) -> 94033.71 | F25: =SUM('[12]2.6 Fixed Asset Cont Stmt'!F324:F327) -> -9843.4 | G25: 2991004.25 | I25: ='App.2-BA_FA Cont 2013 Rev CGAAP'!L25 -> 920459.94 | J25: =SUM('[12]2.6 Fixed Asset Cont Stmt'!K324:K327) -> 52026.76 | K25: =SUM('[12]2.6 Fixed Asset Cont Stmt'!M324:M327) -> -7125.8 | L25: 965360.9 | M25: 2025643.35
A26: 47 | B26: 1835 | C26: Overhead Conductors & Devices | D26: ='App.2-BA_FA Cont 2013 Rev CGAAP'!G26 -> 2075842.83 | E26: =SUM('[12]2.6 Fixed Asset Cont Stmt'!E328:E329) -> 51847.17 | F26: =SUM('[12]2.6 Fixed Asset Cont Stmt'!F328:F329) -> 0 | G26: 2127690 | I26: ='App.2-BA_FA Cont 2013 Rev CGAAP'!L26 -> 1616511.48 | J26: =SUM('[12]2.6 Fixed Asset Cont Stmt'!K328:K329) -> 9416.87 | K26: =SUM('[12]2.6 Fixed Asset Cont Stmt'!M328:M329) -> 0 | L26: 1625928.35 | M26: 501761.65
A27: 47 | B27: 1840 | C27: Underground Conduit | D27: ='App.2-BA_FA Cont 2013 Rev CGAAP'!G27 -> 151376.93 | E27: =SUM('[12]2.6 Fixed Asset Cont Stmt'!E330:E332) -> 0 | F27: =SUM('[12]2.6 Fixed Asset Cont Stmt'!F330:F332) -> 0 | G27: 151376.93 | I27: ='App.2-BA_FA Cont 2013 Rev CGAAP'!L27 -> 150516.09 | J27: =SUM('[12]2.6 Fixed Asset Cont Stmt'!K331:K332) -> 17.8 | K27: =SUM('[12]2.6 Fixed Asset Cont Stmt'!M331:M332) -> 0 | L27: 150533.89 | M27: 843.04
A28: 47 | B28: 1845 | C28: Underground Conductors & Devices | D28: ='App.2-BA_FA Cont 2013 Rev CGAAP'!G28 -> 482321.9 | E28: ='[12]2.6 Fixed Asset Cont Stmt'!E333 -> 123029.26 | F28: ='[12]2.6 Fixed Asset Cont Stmt'!F333 -> -463 | G28: 604888.16 | I28: ='App.2-BA_FA Cont 2013 Rev CGAAP'!L28 -> 159097.88 | J28: ='[12]2.6 Fixed Asset Cont Stmt'!K333 -> 11189.03 | K28: ='[12]2.6 Fixed Asset Cont Stmt'!M333 -> -462.89 | L28: 169824.02 | M28: 435064.14
A29: 47 | B29: 1850 | C29: Line Transformers | D29: ='App.2-BA_FA Cont 2013 Rev CGAAP'!G29 -> 1347070.34 | E29: =SUM('[12]2.6 Fixed Asset Cont Stmt'!E334:E337) -> 96958.06 | F29: =SUM('[12]2.6 Fixed Asset Cont Stmt'!F334:F337) -> -8629.38 | G29: 1435399.02 | I29: ='App.2-BA_FA Cont 2013 Rev CGAAP'!L29 -> 428735.3 | J29: =SUM('[12]2.6 Fixed Asset Cont Stmt'!K334:K337) -> 27865.65 | K29: =SUM('[12]2.6 Fixed Asset Cont Stmt'!M334:M337) -> -8629.38 | L29: 447971.57 | M29: 987427.45
A30: 47 | B30: 1855 | C30: Services (Overhead & Underground) | D30: ='App.2-BA_FA Cont 2013 Rev CGAAP'!G30 -> 602769.83 | E30: =SUM('[12]2.6 Fixed Asset Cont Stmt'!E338:E339) -> 83349.3 | F30: =SUM('[12]2.6 Fixed Asset Cont Stmt'!F338:F339) -> -12273.94 | G30: 673845.19 | I30: ='App.2-BA_FA Cont 2013 Rev CGAAP'!L30 -> 416927.79 | J30: =SUM('[12]2.6 Fixed Asset Cont Stmt'!K338:K339) -> 5368.35 | K30: =SUM('[12]2.6 Fixed Asset Cont Stmt'!M338:M339) -> -12273.94 | L30: 410022.2 | M30: 263822.99
A31: 47 | B31: 1860 | C31: Meters | D31: ='App.2-BA_FA Cont 2013 Rev CGAAP'!G31 -> 190693.62 | E31: =SUM('[12]2.6 Fixed Asset Cont Stmt'!E340:E345) -> 0 | F31: =SUM('[12]2.6 Fixed Asset Cont Stmt'!F340:F345) -> 0 | G31: 190693.62 | I31: ='App.2-BA_FA Cont 2013 Rev CGAAP'!L31 -> 83061.53 | J31: =SUM('[12]2.6 Fixed Asset Cont Stmt'!K340:K345) -> 3918.4 | K31: =SUM('[12]2.6 Fixed Asset Cont Stmt'!M340:M345) -> 0 | L31: 86979.93 | M31: 103713.69
A32: 47 | B32: 1860 | C32: Meters (Stranded Meters) | G32: 0 | I32: ='App.2-BA_FA Cont 2013 Rev CGAAP'!L32 -> -0.03999999998 | L32: -0.03999999998 | M32: 0.03999999998
A33: 47 | B33: 1860 | C33: Meters (Smart Meters) | D33: ='App.2-BA_FA Cont 2013 Rev CGAAP'!G33 -> 604157.56 | E33: ='[12]2.6 Fixed Asset Cont Stmt'!E346+'[12]2.6 Fixed Asset Cont Stmt'!E350 -> 20340.3 | F33: ='[12]2.6 Fixed Asset Cont Stmt'!F346+'[12]2.6 Fixed Asset Cont Stmt'!F350 -> -22469.35 | G33: =D33+E33+F33 -> 602028.51 | I33: ='App.2-BA_FA Cont 2013 Rev CGAAP'!L33 -> 163804.67 | J33: ='[12]2.6 Fixed Asset Cont Stmt'!K346+'[12]2.6 Fixed Asset Cont Stmt'!K350 -> 46512.42 | K33: ='[12]2.6 Fixed Asset Cont Stmt'!M346+'[12]2.6 Fixed Asset Cont Stmt'!M350 -> -8556.41 | L33: 201760.68 | M33: 400267.83
A34: N/A | B34: 1905 | C34: Land | G34: =D34+E34+F34 -> 0 | L34: 0 | M34: 0
A35: 47 | B35: 1908 | C35: Buildings & Fixtures | G35: 0 | L35: 0 | M35: 0
A36: 13 | B36: 1910 | C36: Leasehold Improvements | G36: 0 | L36: 0 | M36: 0
A37: 8 | B37: 1915 | C37: Office Furniture & Equipment (10 years) | D37: ='App.2-BA_FA Cont 2013 Rev CGAAP'!G37 -> 166339.65 | E37: ='[12]2.6 Fixed Asset Cont Stmt'!E351 -> 0 | F37: ='[12]2.6 Fixed Asset Cont Stmt'!F351 -> 0 | G37: 166339.65 | I37: ='App.2-BA_FA Cont 2013 Rev CGAAP'!L37 -> 128169.6625 | J37: =SUM('[12]2.6 Fixed Asset Cont Stmt'!K351) -> 10475.11 | K37: =SUM('[12]2.6 Fixed Asset Cont Stmt'!M351) -> 0 | L37: 138644.7725 | M37: 27694.8775
A38: 8 | B38: 1915 | C38: Office Furniture & Equipment (5 years) | G38: 0 | L38: 0 | M38: 0
A39: 10 | B39: 1920 | C39: Computer Equipment - Hardware | G39: 0 | L39: 0 | M39: 0
A40: 10 | B40: 1920 | C40: Computer Equip.-Hardware(Post Mar. 22/04) | D40: ='App.2-BA_FA Cont 2013 Rev CGAAP'!G40 -> 290536.46 | E40: ='[12]2.6 Fixed Asset Cont Stmt'!E352 -> 18484.39 | F40: ='[12]2.6 Fixed Asset Cont Stmt'!F352 -> 0 | G40: 309020.85 | I40: ='App.2-BA_FA Cont 2013 Rev CGAAP'!L40 -> 141620.1 | J40: ='[12]2.6 Fixed Asset Cont Stmt'!K352 -> 26841.47 | K40: ='[12]2.6 Fixed Asset Cont Stmt'!M352 -> 0 | L40: 168461.57 | M40: 140559.28
A41: 10 | B41: 1920 | C41: Computer Equip.-Hardware(Post Mar. 19/07) | G41: 0 | L41: 0 | M41: 0
A42: 10 | B42: 1930 | C42: Transportation Equipment | D42: ='App.2-BA_FA Cont 2013 Rev CGAAP'!G42 -> 1047307.06 | E42: =SUM('[12]2.6 Fixed Asset Cont Stmt'!E353:E355) -> 0 | F42: =SUM('[12]2.6 Fixed Asset Cont Stmt'!F353:F355) -> -213651.09 | G42: 833655.97 | I42: ='App.2-BA_FA Cont 2013 Rev CGAAP'!L42 -> 663747.415 | J42: =SUM('[12]2.6 Fixed Asset Cont Stmt'!K353:K355) -> 83936.11 | K42: =SUM('[12]2.6 Fixed Asset Cont Stmt'!M353:M355) -> -213651.09 | L42: 534032.435 | M42: 299623.535
A43: 8 | B43: 1935 | C43: Stores Equipment | D43: ='App.2-BA_FA Cont 2013 Rev CGAAP'!G43 -> 6476.74 | E43: ='[12]2.6 Fixed Asset Cont Stmt'!E356 -> 0 | F43: ='[12]2.6 Fixed Asset Cont Stmt'!F356 -> 0 | G43: 6476.74 | I43: ='App.2-BA_FA Cont 2013 Rev CGAAP'!L43 -> 4979.65 | J43: ='[12]2.6 Fixed Asset Cont Stmt'!K356 -> 236.01 | K43: ='[12]2.6 Fixed Asset Cont Stmt'!M356 -> 0 | L43: 5215.66 | M43: 1261.08
A44: 8 | B44: 1940 | C44: Tools, Shop & Garage Equipment | D44: ='App.2-BA_FA Cont 2013 Rev CGAAP'!G44 -> 95979.3 | E44: ='[12]2.6 Fixed Asset Cont Stmt'!E357 -> 3339.69 | F44: ='[12]2.6 Fixed Asset Cont Stmt'!F357 -> 0 | G44: 99318.99 | I44: ='App.2-BA_FA Cont 2013 Rev CGAAP'!L44 -> 91948.07 | J44: ='[12]2.6 Fixed Asset Cont Stmt'!K357 -> 631.25 | K44: ='[12]2.6 Fixed Asset Cont Stmt'!M357 -> 0 | L44: 92579.32 | M44: 6739.67
A45: 8 | B45: 1945 | C45: Measurement & Testing Equipment | D45: ='App.2-BA_FA Cont 2013 Rev CGAAP'!G45 -> 1964.22 | E45: ='[12]2.6 Fixed Asset Cont Stmt'!E358 -> 0 | F45: ='[12]2.6 Fixed Asset Cont Stmt'!F358 -> 0 | G45: 1964.22 | I45: ='App.2-BA_FA Cont 2013 Rev CGAAP'!L45 -> 1964.22 | J45: ='[12]2.6 Fixed Asset Cont Stmt'!K358 -> 0 | K45: ='[12]2.6 Fixed Asset Cont Stmt'!M358 -> 0 | L45: 1964.22 | M45: 0
A46: 8 | B46: 1950 | C46: Power Operated Equipment | G46: 0 | I46: ='App.2-BA_FA Cont 2013 Rev CGAAP'!L46 -> 0 | L46: 0 | M46: 0
A47: 8 | B47: 1955 | C47: Communications Equipment | D47: ='App.2-BA_FA Cont 2013 Rev CGAAP'!G47 -> 32289.64 | E47: ='[12]2.6 Fixed Asset Cont Stmt'!E359 -> 0 | F47: ='[12]2.6 Fixed Asset Cont Stmt'!F359 -> -2037 | G47: 30252.64 | I47: ='App.2-BA_FA Cont 2013 Rev CGAAP'!L47 -> 23027.89 | J47: ='[12]2.6 Fixed Asset Cont Stmt'!K359 -> 3466.25 | K47: ='[12]2.6 Fixed Asset Cont Stmt'!M359 -> -2037.01 | L47: 24457.13 | M47: 5795.51
A48: 8 | B48: 1955 | C48: Communication Equipment (Smart Meters - Collectors & Repeaters) | D48: ='App.2-BA_FA Cont 2013 Rev CGAAP'!G48 -> 87888.61 | E48: =SUM('[12]2.6 Fixed Asset Cont Stmt'!E347:E348) -> 0 | F48: =SUM('[12]2.6 Fixed Asset Cont Stmt'!F347:F348) -> 0 | G48: 87888.61 | I48: ='App.2-BA_FA Cont 2013 Rev CGAAP'!L48 -> 44201.59 | J48: =SUM('[12]2.6 Fixed Asset Cont Stmt'!K347:K348) -> 16686.62 | K48: =SUM('[12]2.6 Fixed Asset Cont Stmt'!M347:M348) -> 0 | L48: 60888.21 | M48: 27000.4
A49: 8 | B49: 1960 | C49: Miscellaneous Equipment | G49: 0 | L49: 0 | M49: 0
A50: 47 | B50: 1970 | C50: Load Management Controls Customer Premises | G50: 0 | L50: 0 | M50: 0
A51: 47 | B51: 1975 | C51: Load Management Controls Utility Premises | G51: 0 | L51: 0 | M51: 0
A52: 47 | B52: 1980 | C52: System Supervisor Equipment | D52: ='App.2-BA_FA Cont 2013 Rev CGAAP'!G52 -> 348126.76 | E52: ='[12]2.6 Fixed Asset Cont Stmt'!E360 -> 0 | F52: ='[12]2.6 Fixed Asset Cont Stmt'!F360 -> 0 | G52: 348126.76 | I52: ='App.2-BA_FA Cont 2013 Rev CGAAP'!L52 -> 260356.85 | J52: ='[12]2.6 Fixed Asset Cont Stmt'!K360 -> 14027.63 | K52: ='[12]2.6 Fixed Asset Cont Stmt'!M360 -> 0 | L52: 274384.48 | M52: 73742.28
A53: 47 | B53: 1985 | C53: Miscellaneous Fixed Assets (Sentinel Lighting Rentals) | G53: 0 | L53: 0 | M53: 0
A54: 47 | B54: 1990 | C54: Other Tangible Property | G54: 0 | L54: 0 | M54: 0
A55: 47 | B55: 1995 | C55: Contributions & Grants | D55: ='App.2-BA_FA Cont 2013 Rev CGAAP'!G55 -> -394564.44 | E55: ='[12]2.6 Fixed Asset Cont Stmt'!E362 -> -113297 | F55: ='[12]2.6 Fixed Asset Cont Stmt'!F362 -> 0 | G55: -507861.44 | I55: ='App.2-BA_FA Cont 2013 Rev CGAAP'!L55 -> -64000.56 | J55: ='[12]2.6 Fixed Asset Cont Stmt'!K362 -> -10194.02 | K55: ='[12]2.6 Fixed Asset Cont Stmt'!M362 -> 0 | L55: -74194.58 | M55: -433666.86
A56: 47 | B56: 2440 | C56: Deferred Revenue5 | L56: 0 | M56: 0
C57: Sub-Total | D57: =SUM(D17:D56) -> 12609791.75 | E57: =SUM(E17:E56) -> 639911.2 | F57: =SUM(F17:F56) -> -345256.79 | G57: =SUM(G17:G56) -> 12904446.16 | I57: =SUM(I17:I56) -> 6807615.972 | J57: =SUM(J17:J56) -> 463197.22 | K57: =SUM(K17:K56) -> -327197.58 | L57: =SUM(L17:L56) -> 6943615.612 | M57: =SUM(M17:M56) -> 5960830.548
C58: Less Socialized Renewable Energy Generation Investments (input as negative) | G58: =D58+E58+F58 -> 0 | L58: =I58+J58+K58 -> 0 | M58: =G58+L58 -> 0
C59: Less Other Non Rate-Regulated Utility Assets (input as negative) | G59: 0 | L59: 0 | M59: 0
C60: Total PP&E | D60: =SUM(D57:D59) -> 12609791.75 | E60: =SUM(E57:E59) -> 639911.2 | F60: -345256.79 | G60: 12904446.16 | I60: =SUM(I57:I59) -> 6807615.972 | J60: 463197.22 | K60: -327197.58 | L60: 6943615.612 | M60: 5960830.548
C61: Depreciation Expense adj. from gain or loss on the retirement of assets (pool of like assets), if applicable6
C62: Total | J62: =J60+J61 -> 463197.22
I64: Less: Fully Allocated Depreciation
A65: 10 | C65: Transportation | I65: Transportation | K65: =J42 -> 83936.11
A66: 8 | C66: Stores Equipment | I66: Stores Equipment | K66: =J43 -> 236.01
A67: 8 | C67: Tools, Shop | I67: Tools, Shop | K67: =J44 -> 631.25
A68: 8 | C68: Meas/Testing | I68: Measurement & Testing | K68: =J45 -> 0
A69: 8 | C69: Communications Equipment | I69: Communications Equipment | K69: =J47 -> 3466.25
I70: Net Depreciation | K70: =J62-K65-K66-K67-K68-K69 -> 374927.6
A72: Notes:
A74: 1 | B74: Tables in the format outlined above covering all fixed asset accounts should be submitted for the Test Year, Bridge Year and all relevant historical years. At a minimum , the applicant must provide data for the earlier of: 1) all historical years back to its last rebasing; or 2) at least three years of historical actuals, in addition to Bridge Year and Test Year forecasts.
A77: 2 | B77: The "CCA Class" for fixed assets should agree with the CCA Class used for tax purposes in Tax Returns. Fixed Assets sub-components may be used where the underlying asset components are classified under multiple CCA Classes for tax purposes. If an applicant uses any different classes from those shown in the table, an explanation should be provided. (also see note 3).
A80: 3 | B80: The table may need to be customized for a utility's asset categories or for any new asset accounts announced or authorized by the Board.
A82: 4 | B82: The additions in column (E) must not include construction work in progress (CWIP).
A84: 5 | B84: Effective on the date of IFRS adoption, customer contributions will no longer be recorded in Account 1995 Contributions & Grants, but will be recorded in Account 2440, Deferred Revenues.
A86: 6 | B86: Where a distributor for general financial reporting purposes under IFRS has accounted for the amount of gain or loss on the retirement of assets in a pool of like assets as a charge or credit to income, for reporting and rate application filings, the distributor shall reclassify such gains and losses as depreciation expense, and disclose the amount separately.

Sheet App.2-BA_FA Cont 2014 MIFRS
L1: File Number: | M1: =EBNUMBER -> EB-2015-0110
L2: Exhibit: | M2: 2
L3: Tab: | M3: 1
L4: Schedule: | M4: 4
L5: Page: | M5: 15
L7: Date: | M7: Mar-4-2016
A9: Appendix 2-BA
A10: Fixed Asset Continuity Schedule 1
E12: Accounting Standard | F12: MIFRS | G12: 2014 is Transiton Year - Adopted IFRS on January 1, 2015
E13: Year | F13: 2014 | G13: With Capitalization and Depreciation Policy Changes effective January 1st 2012 (as approved in last CoS EB-2011-0249)
D15: Cost | J15: Accumulated Depreciation
A16: CCA Class 2 | B16: OEB Account 3 | C16: Description 3 | D16: Opening Balance | E16: Additions 4 | F16: Disposals | G16: Closing Balance | I16: Opening Balance | J16: Additions | K16: Disposals | L16: Closing Balance | M16: Net Book Value
A17: 45 | B17: 1611 | C17: Computer Software (Formally known as Account 1925) | D17: ='App.2-BA_FA Cont 2014 Rev CGAAP'!D17 -> 931247.99 | E17: ='App.2-BA_FA Cont 2014 Rev CGAAP'!E17 -> 10319.64 | F17: ='App.2-BA_FA Cont 2014 Rev CGAAP'!F17 -> 0 | G17: =D17+E17+F17 -> 941567.63 | I17: ='App.2-BA_FA Cont 2014 Rev CGAAP'!I17 -> 694587.124 | J17: ='App.2-BA_FA Cont 2014 Rev CGAAP'!J17 -> 130245.09 | K17: ='App.2-BA_FA Cont 2014 Rev CGAAP'!K17 -> 0 | L17: =I17+J17+K17 -> 824832.214 | M17: =G17-L17 -> 116735.416
A18: CEC | B18: 1612 | C18: Land Rights (Formally known as Account 1906) | D18: ='App.2-BA_FA Cont 2014 Rev CGAAP'!D18 -> 19239.55 | E18: ='App.2-BA_FA Cont 2014 Rev CGAAP'!E18 -> 9411.1 | F18: ='App.2-BA_FA Cont 2014 Rev CGAAP'!F18 -> 0 | G18: =D18+E18+F18 -> 28650.65 | I18: ='App.2-BA_FA Cont 2014 Rev CGAAP'!I18 -> 0 | J18: ='App.2-BA_FA Cont 2014 Rev CGAAP'!J18 -> 0 | K18: ='App.2-BA_FA Cont 2014 Rev CGAAP'!K18 -> 0 | L18: =I18+J18+K18 -> 0 | M18: =G18-L18 -> 28650.65
A19: N/A | B19: 1805 | C19: Land | D19: ='App.2-BA_FA Cont 2014 Rev CGAAP'!D19 -> 41987.65 | E19: ='App.2-BA_FA Cont 2014 Rev CGAAP'!E19 -> 0 | F19: ='App.2-BA_FA Cont 2014 Rev CGAAP'!F19 -> 0 | G19: 41987.65 | I19: ='App.2-BA_FA Cont 2014 Rev CGAAP'!I19 -> 0 | J19: ='App.2-BA_FA Cont 2014 Rev CGAAP'!J19 -> 0 | K19: ='App.2-BA_FA Cont 2014 Rev CGAAP'!K19 -> 0 | L19: 0 | M19: 41987.65
A20: 47 | B20: 1808 | C20: Buildings | D20: ='App.2-BA_FA Cont 2014 Rev CGAAP'!D20 -> 504893.52 | E20: ='App.2-BA_FA Cont 2014 Rev CGAAP'!E20 -> 4250 | F20: ='App.2-BA_FA Cont 2014 Rev CGAAP'!F20 -> 0 | G20: 509143.52 | I20: ='App.2-BA_FA Cont 2014 Rev CGAAP'!I20 -> 209632.87 | J20: ='App.2-BA_FA Cont 2014 Rev CGAAP'!J20 -> 11886.15 | K20: ='App.2-BA_FA Cont 2014 Rev CGAAP'!K20 -> 0 | L20: 221519.02 | M20: =G20-L20 -> 287624.5
A21: 13 | B21: 1810 | C21: Leasehold Improvements | D21: ='App.2-BA_FA Cont 2014 Rev CGAAP'!D21 -> 0 | E21: ='App.2-BA_FA Cont 2014 Rev CGAAP'!E21 -> 0 | F21: ='App.2-BA_FA Cont 2014 Rev CGAAP'!F21 -> 0 | G21: 0 | I21: ='App.2-BA_FA Cont 2014 Rev CGAAP'!I21 -> 0 | J21: ='App.2-BA_FA Cont 2014 Rev CGAAP'!J21 -> 0 | K21: ='App.2-BA_FA Cont 2014 Rev CGAAP'!K21 -> 0 | L21: 0 | M21: 0
A22: 47 | B22: 1815 | C22: Transformer Station Equipment >50 kV | D22: ='App.2-BA_FA Cont 2014 Rev CGAAP'!D22 -> 0 | E22: ='App.2-BA_FA Cont 2014 Rev CGAAP'!E22 -> 0 | F22: ='App.2-BA_FA Cont 2014 Rev CGAAP'!F22 -> 0 | G22: 0 | I22: ='App.2-BA_FA Cont 2014 Rev CGAAP'!I22 -> 0 | J22: ='App.2-BA_FA Cont 2014 Rev CGAAP'!J22 -> 0 | K22: ='App.2-BA_FA Cont 2014 Rev CGAAP'!K22 -> 0 | L22: 0 | M22: 0
A23: 47 | B23: 1820 | C23: Distribution Station Equipment <50 kV | D23: ='App.2-BA_FA Cont 2014 Rev CGAAP'!D23 -> 1069032.09 | E23: ='App.2-BA_FA Cont 2014 Rev CGAAP'!E23 -> 237845.58 | F23: ='App.2-BA_FA Cont 2014 Rev CGAAP'!F23 -> -75889.63 | G23: 1230988.04 | I23: ='App.2-BA_FA Cont 2014 Rev CGAAP'!I23 -> 668266.45 | J23: ='App.2-BA_FA Cont 2014 Rev CGAAP'!J23 -> 18644.27 | K23: ='App.2-BA_FA Cont 2014 Rev CGAAP'!K23 -> -74461.06 | L23: 612449.66 | M23: 618538.38
A24: 47 | B24: 1825 | C24: Storage Battery Equipment | D24: ='App.2-BA_FA Cont 2014 Rev CGAAP'!D24 -> 0 | E24: ='App.2-BA_FA Cont 2014 Rev CGAAP'!E24 -> 0 | F24: ='App.2-BA_FA Cont 2014 Rev CGAAP'!F24 -> 0 | G24: 0 | I24: ='App.2-BA_FA Cont 2014 Rev CGAAP'!I24 -> 0 | J24: ='App.2-BA_FA Cont 2014 Rev CGAAP'!J24 -> 0 | K24: ='App.2-BA_FA Cont 2014 Rev CGAAP'!K24 -> 0 | L24: 0 | M24: 0
A25: 47 | B25: 1830 | C25: Poles, Towers & Fixtures | D25: ='App.2-BA_FA Cont 2014 Rev CGAAP'!D25 -> 2906813.94 | E25: ='App.2-BA_FA Cont 2014 Rev CGAAP'!E25 -> 94033.71 | F25: ='App.2-BA_FA Cont 2014 Rev CGAAP'!F25 -> -9843.4 | G25: 2991004.25 | I25: ='App.2-BA_FA Cont 2014 Rev CGAAP'!I25 -> 920459.94 | J25: ='App.2-BA_FA Cont 2014 Rev CGAAP'!J25 -> 52026.76 | K25: ='App.2-BA_FA Cont 2014 Rev CGAAP'!K25 -> -7125.8 | L25: 965360.9 | M25: 2025643.35
A26: 47 | B26: 1835 | C26: Overhead Conductors & Devices | D26: ='App.2-BA_FA Cont 2014 Rev CGAAP'!D26 -> 2075842.83 | E26: ='App.2-BA_FA Cont 2014 Rev CGAAP'!E26 -> 51847.17 | F26: ='App.2-BA_FA Cont 2014 Rev CGAAP'!F26 -> 0 | G26: 2127690 | I26: ='App.2-BA_FA Cont 2014 Rev CGAAP'!I26 -> 1616511.48 | J26: ='App.2-BA_FA Cont 2014 Rev CGAAP'!J26 -> 9416.87 | K26: ='App.2-BA_FA Cont 2014 Rev CGAAP'!K26 -> 0 | L26: 1625928.35 | M26: 501761.65
A27: 47 | B27: 1840 | C27: Underground Conduit | D27: ='App.2-BA_FA Cont 2014 Rev CGAAP'!D27 -> 151376.93 | E27: ='App.2-BA_FA Cont 2014 Rev CGAAP'!E27 -> 0 | F27: ='App.2-BA_FA Cont 2014 Rev CGAAP'!F27 -> 0 | G27: 151376.93 | I27: ='App.2-BA_FA Cont 2014 Rev CGAAP'!I27 -> 150516.09 | J27: ='App.2-BA_FA Cont 2014 Rev CGAAP'!J27 -> 17.8 | K27: ='App.2-BA_FA Cont 2014 Rev CGAAP'!K27 -> 0 | L27: 150533.89 | M27: 843.04
A28: 47 | B28: 1845 | C28: Underground Conductors & Devices | D28: ='App.2-BA_FA Cont 2014 Rev CGAAP'!D28 -> 482321.9 | E28: ='App.2-BA_FA Cont 2014 Rev CGAAP'!E28 -> 123029.26 | F28: ='App.2-BA_FA Cont 2014 Rev CGAAP'!F28 -> -463 | G28: 604888.16 | I28: ='App.2-BA_FA Cont 2014 Rev CGAAP'!I28 -> 159097.88 | J28: ='App.2-BA_FA Cont 2014 Rev CGAAP'!J28 -> 11189.03 | K28: ='App.2-BA_FA Cont 2014 Rev CGAAP'!K28 -> -462.89 | L28: 169824.02 | M28: 435064.14
A29: 47 | B29: 1850 | C29: Line Transformers | D29: ='App.2-BA_FA Cont 2014 Rev CGAAP'!D29 -> 1347070.34 | E29: ='App.2-BA_FA Cont 2014 Rev CGAAP'!E29 -> 96958.06 | F29: ='App.2-BA_FA Cont 2014 Rev CGAAP'!F29 -> -8629.38 | G29: 1435399.02 | I29: ='App.2-BA_FA Cont 2014 Rev CGAAP'!I29 -> 428735.3 | J29: ='App.2-BA_FA Cont 2014 Rev CGAAP'!J29 -> 27865.65 | K29: ='App.2-BA_FA Cont 2014 Rev CGAAP'!K29 -> -8629.38 | L29: 447971.57 | M29: 987427.45
A30: 47 | B30: 1855 | C30: Services (Overhead & Underground) | D30: ='App.2-BA_FA Cont 2014 Rev CGAAP'!D30 -> 602769.83 | E30: ='App.2-BA_FA Cont 2014 Rev CGAAP'!E30 -> 83349.3 | F30: ='App.2-BA_FA Cont 2014 Rev CGAAP'!F30 -> -12273.94 | G30: 673845.19 | I30: ='App.2-BA_FA Cont 2014 Rev CGAAP'!I30 -> 416927.79 | J30: ='App.2-BA_FA Cont 2014 Rev CGAAP'!J30 -> 5368.35 | K30: ='App.2-BA_FA Cont 2014 Rev CGAAP'!K30 -> -12273.94 | L30: 410022.2 | M30: 263822.99
A31: 47 | B31: 1860 | C31: Meters | D31: ='App.2-BA_FA Cont 2014 Rev CGAAP'!D31 -> 190693.62 | E31: ='App.2-BA_FA Cont 2014 Rev CGAAP'!E31 -> 0 | F31: ='App.2-BA_FA Cont 2014 Rev CGAAP'!F31 -> 0 | G31: 190693.62 | I31: ='App.2-BA_FA Cont 2014 Rev CGAAP'!I31 -> 83061.53 | J31: ='App.2-BA_FA Cont 2014 Rev CGAAP'!J31 -> 3918.4 | K31: ='App.2-BA_FA Cont 2014 Rev CGAAP'!K31 -> 0 | L31: 86979.93 | M31: 103713.69
A32: 47 | B32: 1860 | C32: Meters (Stranded Meters) | D32: ='App.2-BA_FA Cont 2014 Rev CGAAP'!D32 -> 0 | E32: ='App.2-BA_FA Cont 2014 Rev CGAAP'!E32 -> 0 | F32: ='App.2-BA_FA Cont 2014 Rev CGAAP'!F32 -> 0 | G32: =D32+E32+F32 -> 0 | I32: ='App.2-BA_FA Cont 2014 Rev CGAAP'!I32 -> -0.03999999998 | J32: ='App.2-BA_FA Cont 2014 Rev CGAAP'!J32 -> 0 | K32: ='App.2-BA_FA Cont 2014 Rev CGAAP'!K32 -> 0 | L32: -0.03999999998 | M32: 0.03999999998
A33: 47 | B33: 1860 | C33: Meters (Smart Meters) | D33: ='App.2-BA_FA Cont 2014 Rev CGAAP'!D33 -> 604157.56 | E33: ='App.2-BA_FA Cont 2014 Rev CGAAP'!E33 -> 20340.3 | F33: ='App.2-BA_FA Cont 2014 Rev CGAAP'!F33 -> -22469.35 | G33: =D33+E33+F33 -> 602028.51 | I33: ='App.2-BA_FA Cont 2014 Rev CGAAP'!I33 -> 163804.67 | J33: ='App.2-BA_FA Cont 2014 Rev CGAAP'!J33 -> 46512.42 | K33: ='App.2-BA_FA Cont 2014 Rev CGAAP'!K33 -> -8556.41 | L33: 201760.68 | M33: 400267.83
A34: N/A | B34: 1905 | C34: Land | D34: ='App.2-BA_FA Cont 2014 Rev CGAAP'!D34 -> 0 | E34: ='App.2-BA_FA Cont 2014 Rev CGAAP'!E34 -> 0 | F34: ='App.2-BA_FA Cont 2014 Rev CGAAP'!F34 -> 0 | G34: =D34+E34+F34 -> 0 | I34: ='App.2-BA_FA Cont 2014 Rev CGAAP'!I34 -> 0 | J34: ='App.2-BA_FA Cont 2014 Rev CGAAP'!J34 -> 0 | K34: ='App.2-BA_FA Cont 2014 Rev CGAAP'!K34 -> 0 | L34: 0 | M34: 0
A35: 47 | B35: 1908 | C35: Buildings & Fixtures | D35: ='App.2-BA_FA Cont 2014 Rev CGAAP'!D35 -> 0 | E35: ='App.2-BA_FA Cont 2014 Rev CGAAP'!E35 -> 0 | F35: ='App.2-BA_FA Cont 2014 Rev CGAAP'!F35 -> 0 | G35: 0 | I35: ='App.2-BA_FA Cont 2014 Rev CGAAP'!I35 -> 0 | J35: ='App.2-BA_FA Cont 2014 Rev CGAAP'!J35 -> 0 | K35: ='App.2-BA_FA Cont 2014 Rev CGAAP'!K35 -> 0 | L35: 0 | M35: 0
A36: 13 | B36: 1910 | C36: Leasehold Improvements | D36: ='App.2-BA_FA Cont 2014 Rev CGAAP'!D36 -> 0 | E36: ='App.2-BA_FA Cont 2014 Rev CGAAP'!E36 -> 0 | F36: ='App.2-BA_FA Cont 2014 Rev CGAAP'!F36 -> 0 | G36: 0 | I36: ='App.2-BA_FA Cont 2014 Rev CGAAP'!I36 -> 0 | J36: ='App.2-BA_FA Cont 2014 Rev CGAAP'!J36 -> 0 | K36: ='App.2-BA_FA Cont 2014 Rev CGAAP'!K36 -> 0 | L36: 0 | M36: 0
A37: 8 | B37: 1915 | C37: Office Furniture & Equipment (10 years) | D37: ='App.2-BA_FA Cont 2014 Rev CGAAP'!D37 -> 166339.65 | E37: ='App.2-BA_FA Cont 2014 Rev CGAAP'!E37 -> 0 | F37: ='App.2-BA_FA Cont 2014 Rev CGAAP'!F37 -> 0 | G37: 166339.65 | I37: ='App.2-BA_FA Cont 2014 Rev CGAAP'!I37 -> 128169.6625 | J37: ='App.2-BA_FA Cont 2014 Rev CGAAP'!J37 -> 10475.11 | K37: ='App.2-BA_FA Cont 2014 Rev CGAAP'!K37 -> 0 | L37: 138644.7725 | M37: 27694.8775
A38: 8 | B38: 1915 | C38: Office Furniture & Equipment (5 years) | D38: ='App.2-BA_FA Cont 2014 Rev CGAAP'!D38 -> 0 | E38: ='App.2-BA_FA Cont 2014 Rev CGAAP'!E38 -> 0 | F38: ='App.2-BA_FA Cont 2014 Rev CGAAP'!F38 -> 0 | G38: 0 | I38: ='App.2-BA_FA Cont 2014 Rev CGAAP'!I38 -> 0 | J38: ='App.2-BA_FA Cont 2014 Rev CGAAP'!J38 -> 0 | K38: ='App.2-BA_FA Cont 2014 Rev CGAAP'!K38 -> 0 | L38: 0 | M38: 0
A39: 10 | B39: 1920 | C39: Computer Equipment - Hardware | D39: ='App.2-BA_FA Cont 2014 Rev CGAAP'!D39 -> 0 | E39: ='App.2-BA_FA Cont 2014 Rev CGAAP'!E39 -> 0 | F39: ='App.2-BA_FA Cont 2014 Rev CGAAP'!F39 -> 0 | G39: 0 | I39: ='App.2-BA_FA Cont 2014 Rev CGAAP'!I39 -> 0 | J39: ='App.2-BA_FA Cont 2014 Rev CGAAP'!J39 -> 0 | K39: ='App.2-BA_FA Cont 2014 Rev CGAAP'!K39 -> 0 | L39: 0 | M39: 0
A40: 10 | B40: 1920 | C40: Computer Equip.-Hardware(Post Mar. 22/04) | D40: ='App.2-BA_FA Cont 2014 Rev CGAAP'!D40 -> 290536.46 | E40: ='App.2-BA_FA Cont 2014 Rev CGAAP'!E40 -> 18484.39 | F40: ='App.2-BA_FA Cont 2014 Rev CGAAP'!F40 -> 0 | G40: 309020.85 | I40: ='App.2-BA_FA Cont 2014 Rev CGAAP'!I40 -> 141620.1 | J40: ='App.2-BA_FA Cont 2014 Rev CGAAP'!J40 -> 26841.47 | K40: ='App.2-BA_FA Cont 2014 Rev CGAAP'!K40 -> 0 | L40: 168461.57 | M40: 140559.28
A41: 10 | B41: 1920 | C41: Computer Equip.-Hardware(Post Mar. 19/07) | D41: ='App.2-BA_FA Cont 2014 Rev CGAAP'!D41 -> 0 | E41: ='App.2-BA_FA Cont 2014 Rev CGAAP'!E41 -> 0 | F41: ='App.2-BA_FA Cont 2014 Rev CGAAP'!F41 -> 0 | G41: 0 | I41: ='App.2-BA_FA Cont 2014 Rev CGAAP'!I41 -> 0 | J41: ='App.2-BA_FA Cont 2014 Rev CGAAP'!J41 -> 0 | K41: ='App.2-BA_FA Cont 2014 Rev CGAAP'!K41 -> 0 | L41: 0 | M41: 0
A42: 10 | B42: 1930 | C42: Transportation Equipment | D42: ='App.2-BA_FA Cont 2014 Rev CGAAP'!D42 -> 1047307.06 | E42: ='App.2-BA_FA Cont 2014 Rev CGAAP'!E42 -> 0 | F42: ='App.2-BA_FA Cont 2014 Rev CGAAP'!F42 -> -213651.09 | G42: 833655.97 | I42: ='App.2-BA_FA Cont 2014 Rev CGAAP'!I42 -> 663747.415 | J42: ='App.2-BA_FA Cont 2014 Rev CGAAP'!J42 -> 83936.11 | K42: ='App.2-BA_FA Cont 2014 Rev CGAAP'!K42 -> -213651.09 | L42: 534032.435 | M42: 299623.535
A43: 8 | B43: 1935 | C43: Stores Equipment | D43: ='App.2-BA_FA Cont 2014 Rev CGAAP'!D43 -> 6476.74 | E43: ='App.2-BA_FA Cont 2014 Rev CGAAP'!E43 -> 0 | F43: ='App.2-BA_FA Cont 2014 Rev CGAAP'!F43 -> 0 | G43: 6476.74 | I43: ='App.2-BA_FA Cont 2014 Rev CGAAP'!I43 -> 4979.65 | J43: ='App.2-BA_FA Cont 2014 Rev CGAAP'!J43 -> 236.01 | K43: ='App.2-BA_FA Cont 2014 Rev CGAAP'!K43 -> 0 | L43: 5215.66 | M43: 1261.08
A44: 8 | B44: 1940 | C44: Tools, Shop & Garage Equipment | D44: ='App.2-BA_FA Cont 2014 Rev CGAAP'!D44 -> 95979.3 | E44: ='App.2-BA_FA Cont 2014 Rev CGAAP'!E44 -> 3339.69 | F44: ='App.2-BA_FA Cont 2014 Rev CGAAP'!F44 -> 0 | G44: 99318.99 | I44: ='App.2-BA_FA Cont 2014 Rev CGAAP'!I44 -> 91948.07 | J44: ='App.2-BA_FA Cont 2014 Rev CGAAP'!J44 -> 631.25 | K44: ='App.2-BA_FA Cont 2014 Rev CGAAP'!K44 -> 0 | L44: 92579.32 | M44: 6739.67
A45: 8 | B45: 1945 | C45: Measurement & Testing Equipment | D45: ='App.2-BA_FA Cont 2014 Rev CGAAP'!D45 -> 1964.22 | E45: ='App.2-BA_FA Cont 2014 Rev CGAAP'!E45 -> 0 | F45: ='App.2-BA_FA Cont 2014 Rev CGAAP'!F45 -> 0 | G45: 1964.22 | I45: ='App.2-BA_FA Cont 2014 Rev CGAAP'!I45 -> 1964.22 | J45: ='App.2-BA_FA Cont 2014 Rev CGAAP'!J45 -> 0 | K45: ='App.2-BA_FA Cont 2014 Rev CGAAP'!K45 -> 0 | L45: 1964.22 | M45: 0
A46: 8 | B46: 1950 | C46: Power Operated Equipment | D46: ='App.2-BA_FA Cont 2014 Rev CGAAP'!D46 -> 0 | E46: ='App.2-BA_FA Cont 2014 Rev CGAAP'!E46 -> 0 | F46: ='App.2-BA_FA Cont 2014 Rev CGAAP'!F46 -> 0 | G46: 0 | I46: ='App.2-BA_FA Cont 2014 Rev CGAAP'!I46 -> 0 | J46: ='App.2-BA_FA Cont 2014 Rev CGAAP'!J46 -> 0 | K46: ='App.2-BA_FA Cont 2014 Rev CGAAP'!K46 -> 0 | L46: 0 | M46: 0
A47: 8 | B47: 1955 | C47: Communications Equipment | D47: ='App.2-BA_FA Cont 2014 Rev CGAAP'!D47 -> 32289.64 | E47: ='App.2-BA_FA Cont 2014 Rev CGAAP'!E47 -> 0 | F47: ='App.2-BA_FA Cont 2014 Rev CGAAP'!F47 -> -2037 | G47: 30252.64 | I47: ='App.2-BA_FA Cont 2014 Rev CGAAP'!I47 -> 23027.89 | J47: ='App.2-BA_FA Cont 2014 Rev CGAAP'!J47 -> 3466.25 | K47: ='App.2-BA_FA Cont 2014 Rev CGAAP'!K47 -> -2037.01 | L47: 24457.13 | M47: 5795.51
A48: 8 | B48: 1955 | C48: Communication Equipment (Smart Meters - Collectors & Repeaters) | D48: ='App.2-BA_FA Cont 2014 Rev CGAAP'!D48 -> 87888.61 | E48: ='App.2-BA_FA Cont 2014 Rev CGAAP'!E48 -> 0 | F48: ='App.2-BA_FA Cont 2014 Rev CGAAP'!F48 -> 0 | G48: 87888.61 | I48: ='App.2-BA_FA Cont 2014 Rev CGAAP'!I48 -> 44201.59 | J48: ='App.2-BA_FA Cont 2014 Rev CGAAP'!J48 -> 16686.62 | K48: ='App.2-BA_FA Cont 2014 Rev CGAAP'!K48 -> 0 | L48: 60888.21 | M48: 27000.4
A49: 8 | B49: 1960 | C49: Miscellaneous Equipment | D49: ='App.2-BA_FA Cont 2014 Rev CGAAP'!D49 -> 0 | E49: ='App.2-BA_FA Cont 2014 Rev CGAAP'!E49 -> 0 | F49: ='App.2-BA_FA Cont 2014 Rev CGAAP'!F49 -> 0 | G49: 0 | I49: ='App.2-BA_FA Cont 2014 Rev CGAAP'!I49 -> 0 | J49: ='App.2-BA_FA Cont 2014 Rev CGAAP'!J49 -> 0 | K49: ='App.2-BA_FA Cont 2014 Rev CGAAP'!K49 -> 0 | L49: 0 | M49: 0
A50: 47 | B50: 1970 | C50: Load Management Controls Customer Premises | D50: ='App.2-BA_FA Cont 2014 Rev CGAAP'!D50 -> 0 | E50: ='App.2-BA_FA Cont 2014 Rev CGAAP'!E50 -> 0 | F50: ='App.2-BA_FA Cont 2014 Rev CGAAP'!F50 -> 0 | G50: 0 | I50: ='App.2-BA_FA Cont 2014 Rev CGAAP'!I50 -> 0 | J50: ='App.2-BA_FA Cont 2014 Rev CGAAP'!J50 -> 0 | K50: ='App.2-BA_FA Cont 2014 Rev CGAAP'!K50 -> 0 | L50: 0 | M50: 0
A51: 47 | B51: 1975 | C51: Load Management Controls Utility Premises | D51: ='App.2-BA_FA Cont 2014 Rev CGAAP'!D51 -> 0 | E51: ='App.2-BA_FA Cont 2014 Rev CGAAP'!E51 -> 0 | F51: ='App.2-BA_FA Cont 2014 Rev CGAAP'!F51 -> 0 | G51: 0 | I51: ='App.2-BA_FA Cont 2014 Rev CGAAP'!I51 -> 0 | J51: ='App.2-BA_FA Cont 2014 Rev CGAAP'!J51 -> 0 | K51: ='App.2-BA_FA Cont 2014 Rev CGAAP'!K51 -> 0 | L51: 0 | M51: 0
A52: 47 | B52: 1980 | C52: System Supervisor Equipment | D52: ='App.2-BA_FA Cont 2014 Rev CGAAP'!D52 -> 348126.76 | E52: ='App.2-BA_FA Cont 2014 Rev CGAAP'!E52 -> 0 | F52: ='App.2-BA_FA Cont 2014 Rev CGAAP'!F52 -> 0 | G52: 348126.76 | I52: ='App.2-BA_FA Cont 2014 Rev CGAAP'!I52 -> 260356.85 | J52: ='App.2-BA_FA Cont 2014 Rev CGAAP'!J52 -> 14027.63 | K52: ='App.2-BA_FA Cont 2014 Rev CGAAP'!K52 -> 0 | L52: 274384.48 | M52: 73742.28
A53: 47 | B53: 1985 | C53: Miscellaneous Fixed Assets (Sentinel Lighting Rentals) | D53: ='App.2-BA_FA Cont 2014 Rev CGAAP'!D53 -> 0 | E53: ='App.2-BA_FA Cont 2014 Rev CGAAP'!E53 -> 0 | F53: ='App.2-BA_FA Cont 2014 Rev CGAAP'!F53 -> 0 | G53: 0 | L53: 0 | M53: 0
A54: 47 | B54: 1990 | C54: Other Tangible Property | D54: ='App.2-BA_FA Cont 2014 Rev CGAAP'!D54 -> 0 | E54: ='App.2-BA_FA Cont 2014 Rev CGAAP'!E54 -> 0 | F54: ='App.2-BA_FA Cont 2014 Rev CGAAP'!F54 -> 0 | G54: 0 | L54: 0 | M54: 0
A55: 47 | B55: 1995 | C55: Contributions & Grants | E55: 0 | F55: ='[12]2.6 Fixed Asset Cont Stmt'!F460 -> 0 | G55: 0 | J55: ='[12]2.6 Fixed Asset Cont Stmt'!K460 -> 0 | K55: ='[12]2.6 Fixed Asset Cont Stmt'!M460 -> 0 | L55: 0 | M55: 0
A56: 47 | B56: 2440 | C56: Deferred Revenue5 | D56: ='App.2-BA_FA Cont 2014 Rev CGAAP'!D55 -> -394564.44 | E56: ='App.2-BA_FA Cont 2014 Rev CGAAP'!E55 -> -113297 | F56: =-'App.2-BA_FA Cont 2014 Rev CGAAP'!J55 -> 10194.02 | G56: -497667.42 | I56: ='App.2-BA_FA Cont 2014 Rev CGAAP'!I55 -> -64000.56 | J56: 0 | K56: ='[12]2.6 Fixed Asset Cont Stmt'!M461 -> 0 | L56: -64000.56 | M56: -433666.86
C57: Sub-Total | D57: =SUM(D17:D56) -> 12609791.75 | E57: =SUM(E17:E56) -> 639911.2 | F57: =SUM(F17:F56) -> -335062.77 | G57: =SUM(G17:G56) -> 12914640.18 | I57: =SUM(I17:I56) -> 6807615.972 | J57: =SUM(J17:J56) -> 473391.24 | K57: =SUM(K17:K56) -> -327197.58 | L57: =SUM(L17:L56) -> 6953809.632 | M57: =SUM(M17:M56) -> 5960830.548
C58: Less Socialized Renewable Energy Generation Investments (input as negative) | G58: =D58+E58+F58 -> 0 | L58: =I58+J58+K58 -> 0 | M58: =G58+L58 -> 0
C59: Less Other Non Rate-Regulated Utility Assets (input as negative) | G59: 0 | L59: 0 | M59: 0
C60: Total PP&E | D60: =SUM(D57:D59) -> 12609791.75 | E60: =SUM(E57:E59) -> 639911.2 | F60: -335062.77 | G60: 12914640.18 | I60: =SUM(I57:I59) -> 6807615.972 | J60: 473391.24 | K60: -327197.58 | L60: 6953809.632 | M60: 5960830.548
C61: Depreciation Expense adj. from gain or loss on the retirement of assets (pool of like assets), if applicable6
C62: Total | J62: =J60+J61 -> 473391.24
I64: Less: Fully Allocated Depreciation
A65: 10 | C65: Transportation | I65: Transportation | K65: =J42 -> 83936.11
A66: 8 | C66: Stores Equipment | I66: Stores Equipment | K66: =J43 -> 236.01
A67: 8 | C67: Tools, Shop | I67: Tools, Shop | K67: =J44 -> 631.25
A68: 8 | C68: Meas/Testing | I68: Measurement & Testing | K68: =J45 -> 0
A69: 8 | C69: Communications Equipment | I69: Communications Equipment | K69: =J47 -> 3466.25
I70: Net Depreciation | K70: =J62-K65-K66-K67-K68-K69 -> 385121.62
A72: Notes:
A74: 1 | B74: Tables in the format outlined above covering all fixed asset accounts should be submitted for the Test Year, Bridge Year and all relevant historical years. At a minimum , the applicant must provide data for the earlier of: 1) all historical years back to its last rebasing; or 2) at least three years of historical actuals, in addition to Bridge Year and Test Year forecasts.
A77: 2 | B77: The "CCA Class" for fixed assets should agree with the CCA Class used for tax purposes in Tax Returns. Fixed Assets sub-components may be used where the underlying asset components are classified under multiple CCA Classes for tax purposes. If an applicant uses any different classes from those shown in the table, an explanation should be provided. (also see note 3).
A80: 3 | B80: The table may need to be customized for a utility's asset categories or for any new asset accounts announced or authorized by the Board.
A82: 4 | B82: The additions in column (E) must not include construction work in progress (CWIP).
A84: 5 | B84: Effective on the date of IFRS adoption, customer contributions will no longer be recorded in Account 1995 Contributions & Grants, but will be recorded in Account 2440, Deferred Revenues.
A86: 6 | B86: Where a distributor for general financial reporting purposes under IFRS has accounted for the amount of gain or loss on the retirement of assets in a pool of like assets as a charge or credit to income, for reporting and rate application filings, the distributor shall reclassify such gains and losses as depreciation expense, and disclose the amount separately.

Sheet App.2-BA_FA Cont 2015 MIFRS
L1: File Number: | M1: =EBNUMBER -> EB-2015-0110
L2: Exhibit: | M2: 2
L3: Tab: | M3: 1
L4: Schedule: | M4: 4
L5: Page: | M5: 16
L7: Date: | M7: Mar-4-2016
A9: Appendix 2-BA
A10: Fixed Asset Continuity Schedule 1
E12: Accounting Standard | F12: MIFRS | G12: 2014 is Transiton Year - Adopted IFRS on January 1, 2015
E13: Year | F13: 2015 | G13: With Capitalization and Depreciation Policy Changes effective January 1st 2012 (as approved in last CoS EB-2011-0249)
D15: Cost | J15: Accumulated Depreciation
A16: CCA Class 2 | B16: OEB Account 3 | C16: Description 3 | D16: Opening Balance | E16: Additions 4 | F16: Disposals | G16: Closing Balance | I16: Opening Balance | J16: Additions | K16: Disposals | L16: Closing Balance | M16: Net Book Value
A17: 45 | B17: 1611 | C17: Computer Software (Formally known as Account 1925) | D17: ='App.2-BA_FA Cont 2014 Rev CGAAP'!G17 -> 941567.63 | E17: ='[12]2.6 Fixed Asset Cont Stmt'!E481 -> 21972.67 | F17: ='[12]2.6 Fixed Asset Cont Stmt'!F481 -> -46012.18 | G17: =D17+E17+F17 -> 917528.12 | I17: ='App.2-BA_FA Cont 2014 Rev CGAAP'!L17 -> 824832.214 | J17: ='[12]2.6 Fixed Asset Cont Stmt'!K481 -> 87461.727 | K17: ='[12]2.6 Fixed Asset Cont Stmt'!M481 -> -46012.18 | L17: =I17+J17+K17-1 -> 866280.761 | M17: =G17-L17 -> 51247.359
A18: CEC | B18: 1612 | C18: Land Rights (Formally known as Account 1906) | D18: ='App.2-BA_FA Cont 2014 Rev CGAAP'!G18 -> 28650.65 | E18: ='[12]2.6 Fixed Asset Cont Stmt'!E482 -> 0 | F18: ='[12]2.6 Fixed Asset Cont Stmt'!F482 -> 0 | G18: =D18+E18+F18 -> 28650.65 | I18: ='App.2-BA_FA Cont 2014 Rev CGAAP'!L18 -> 0 | J18: ='[12]2.6 Fixed Asset Cont Stmt'!K482 -> 0 | K18: ='[12]2.6 Fixed Asset Cont Stmt'!M482 -> 0 | L18: =I18+J18+K18 -> 0 | M18: =G18-L18 -> 28650.65
A19: N/A | B19: 1805 | C19: Land | D19: ='App.2-BA_FA Cont 2014 Rev CGAAP'!G19 -> 41987.65 | E19: ='[12]2.6 Fixed Asset Cont Stmt'!E483 -> 0 | F19: ='[12]2.6 Fixed Asset Cont Stmt'!F483 -> 0 | G19: 41987.65 | I19: ='App.2-BA_FA Cont 2014 Rev CGAAP'!L19 -> 0 | J19: ='[12]2.6 Fixed Asset Cont Stmt'!K483 -> 0 | K19: ='[12]2.6 Fixed Asset Cont Stmt'!M483 -> 0 | L19: 0 | M19: 41987.65
A20: 47 | B20: 1808 | C20: Buildings | D20: ='App.2-BA_FA Cont 2014 Rev CGAAP'!G20 -> 509143.52 | E20: =SUM('[12]2.6 Fixed Asset Cont Stmt'!E485:E493) -> 75808.29 | F20: =SUM('[12]2.6 Fixed Asset Cont Stmt'!F485:F493) -> 0 | G20: 584951.81 | I20: ='App.2-BA_FA Cont 2014 Rev CGAAP'!L20 -> 221519.02 | J20: =SUM('[12]2.6 Fixed Asset Cont Stmt'!K485:K494) -> 13610.32575 | K20: =SUM('[12]2.6 Fixed Asset Cont Stmt'!M485:M494) -> 0 | L20: 235129.3457 | M20: =G20-L20 -> 349822.4643
A21: 13 | B21: 1810 | C21: Leasehold Improvements | D21: ='App.2-BA_FA Cont 2014 Rev CGAAP'!G21 -> 0 | G21: 0 | I21: ='App.2-BA_FA Cont 2014 Rev CGAAP'!L21 -> 0 | L21: 0 | M21: 0
A22: 47 | B22: 1815 | C22: Transformer Station Equipment >50 kV | D22: ='App.2-BA_FA Cont 2014 Rev CGAAP'!G22 -> 0 | G22: 0 | I22: ='App.2-BA_FA Cont 2014 Rev CGAAP'!L22 -> 0 | L22: 0 | M22: 0
A23: 47 | B23: 1820 | C23: Distribution Station Equipment <50 kV | D23: ='App.2-BA_FA Cont 2014 Rev CGAAP'!G23 -> 1230988.04 | E23: =SUM('[12]2.6 Fixed Asset Cont Stmt'!E495:E502) -> 0 | F23: =SUM('[12]2.6 Fixed Asset Cont Stmt'!F495:F502) -> 0 | G23: 1230988.04 | I23: ='App.2-BA_FA Cont 2014 Rev CGAAP'!L23 -> 612449.66 | J23: =SUM('[12]2.6 Fixed Asset Cont Stmt'!K495:K502) -> 20303.78 | K23: =SUM('[12]2.6 Fixed Asset Cont Stmt'!M495:M502) -> 0 | L23: 632753.44 | M23: 598234.6
A24: 47 | B24: 1825 | C24: Storage Battery Equipment | D24: ='App.2-BA_FA Cont 2014 Rev CGAAP'!G24 -> 0 | G24: 0 | I24: ='App.2-BA_FA Cont 2014 Rev CGAAP'!L24 -> 0 | L24: 0 | M24: 0
A25: 47 | B25: 1830 | C25: Poles, Towers & Fixtures | D25: ='App.2-BA_FA Cont 2014 Rev CGAAP'!G25 -> 2991004.25 | E25: =SUM('[12]2.6 Fixed Asset Cont Stmt'!E503:E506) -> 148631.32 | F25: =SUM('[12]2.6 Fixed Asset Cont Stmt'!F503:F506) -> -7327.54 | G25: 3132308.03 | I25: ='App.2-BA_FA Cont 2014 Rev CGAAP'!L25 -> 965360.9 | J25: =SUM('[12]2.6 Fixed Asset Cont Stmt'!K503:K506) -> 54678.26911 | K25: =SUM('[12]2.6 Fixed Asset Cont Stmt'!M503:M506) -> -519.55 | L25: =I25+J25+K25-1 -> 1019518.619 | M25: 2112789.411
A26: 47 | B26: 1835 | C26: Overhead Conductors & Devices | D26: ='App.2-BA_FA Cont 2014 Rev CGAAP'!G26 -> 2127690 | E26: =SUM('[12]2.6 Fixed Asset Cont Stmt'!E507:E508) -> 80009.56 | F26: =SUM('[12]2.6 Fixed Asset Cont Stmt'!F507:F508) -> 0 | G26: 2207699.56 | I26: ='App.2-BA_FA Cont 2014 Rev CGAAP'!L26 -> 1625928.35 | J26: =SUM('[12]2.6 Fixed Asset Cont Stmt'!K507:K508) -> 10515.68633 | K26: =SUM('[12]2.6 Fixed Asset Cont Stmt'!M507:M508) -> 0 | L26: =I26+J26+K26-1 -> 1636443.036 | M26: 571256.5237
A27: 47 | B27: 1840 | C27: Underground Conduit | D27: ='App.2-BA_FA Cont 2014 Rev CGAAP'!G27 -> 151376.93 | E27: =SUM('[12]2.6 Fixed Asset Cont Stmt'!E509:E511) -> 0 | F27: =SUM('[12]2.6 Fixed Asset Cont Stmt'!F509:F511) -> 0 | G27: 151376.93 | I27: ='App.2-BA_FA Cont 2014 Rev CGAAP'!L27 -> 150533.89 | J27: =SUM('[12]2.6 Fixed Asset Cont Stmt'!K509:K511) -> 17.8 | K27: =SUM('[12]2.6 Fixed Asset Cont Stmt'!M509:M511) -> 0 | L27: 150551.69 | M27: 825.24
A28: 47 | B28: 1845 | C28: Underground Conductors & Devices | D28: ='App.2-BA_FA Cont 2014 Rev CGAAP'!G28 -> 604888.16 | E28: ='[12]2.6 Fixed Asset Cont Stmt'!E512 -> 61892.62 | F28: ='[12]2.6 Fixed Asset Cont Stmt'!F512 -> 0 | G28: 666780.78 | I28: ='App.2-BA_FA Cont 2014 Rev CGAAP'!L28 -> 169824.02 | J28: ='[12]2.6 Fixed Asset Cont Stmt'!K512 -> 13289.57018 | K28: ='[12]2.6 Fixed Asset Cont Stmt'!M512 -> 0 | L28: 183113.5902 | M28: 483667.1898
A29: 47 | B29: 1850 | C29: Line Transformers | D29: ='App.2-BA_FA Cont 2014 Rev CGAAP'!G29 -> 1435399.02 | E29: =SUM('[12]2.6 Fixed Asset Cont Stmt'!E513:E516) -> 58123.03 | F29: =SUM('[12]2.6 Fixed Asset Cont Stmt'!F513:F516) -> 0 | G29: 1493522.05 | I29: ='App.2-BA_FA Cont 2014 Rev CGAAP'!L29 -> 447971.57 | J29: =SUM('[12]2.6 Fixed Asset Cont Stmt'!K513:K516) -> 29718.07787 | K29: =SUM('[12]2.6 Fixed Asset Cont Stmt'!M513:M516) -> 0 | L29: 477689.6479 | M29: 1015832.402
A30: 47 | B30: 1855 | C30: Services (Overhead & Underground) | D30: ='App.2-BA_FA Cont 2014 Rev CGAAP'!G30 -> 673845.19 | E30: =SUM('[12]2.6 Fixed Asset Cont Stmt'!E517:E518) -> 28986.98 | F30: =SUM('[12]2.6 Fixed Asset Cont Stmt'!F517:F518) -> -718.68 | G30: 702113.49 | I30: ='App.2-BA_FA Cont 2014 Rev CGAAP'!L30 -> 410022.2 | J30: =SUM('[12]2.6 Fixed Asset Cont Stmt'!K517:K518) -> 6450.329542 | K30: =SUM('[12]2.6 Fixed Asset Cont Stmt'!M517:M518) -> -33.58 | L30: 416438.9495 | M30: 285674.5405
A31: 47 | B31: 1860 | C31: Meters | D31: ='App.2-BA_FA Cont 2014 Rev CGAAP'!G31 -> 190693.62 | E31: =SUM('[12]2.6 Fixed Asset Cont Stmt'!E519:E524,'[12]2.6 Fixed Asset Cont Stmt'!E529) -> 0 | F31: =SUM('[12]2.6 Fixed Asset Cont Stmt'!F519:F524,'[12]2.6 Fixed Asset Cont Stmt'!F529) -> 0 | G31: 190693.62 | I31: ='App.2-BA_FA Cont 2014 Rev CGAAP'!L31 -> 86979.93 | J31: =SUM('[12]2.6 Fixed Asset Cont Stmt'!K519:K524,'[12]2.6 Fixed Asset Cont Stmt'!K529) -> 5017.98 | K31: =SUM('[12]2.6 Fixed Asset Cont Stmt'!M519:M524,'[12]2.6 Fixed Asset Cont Stmt'!M529) -> 0 | L31: 91997.91 | M31: 98695.71
A32: 47 | B32: 1860 | C32: Meters (Stranded Meters) | D32: ='App.2-BA_FA Cont 2014 Rev CGAAP'!G32 -> 0 | G32: 0 | I32: ='App.2-BA_FA Cont 2014 Rev CGAAP'!L32 -> -0.03999999998 | L32: -0.03999999998 | M32: 0.03999999998
A33: 47 | B33: 1860 | C33: Meters (Smart Meters) | D33: ='App.2-BA_FA Cont 2014 Rev CGAAP'!G33 -> 602028.51 | E33: ='[12]2.6 Fixed Asset Cont Stmt'!E525 -> 28290.16 | F33: ='[12]2.6 Fixed Asset Cont Stmt'!F525 -> -14723.27 | G33: =D33+E33+F33 -> 615595.4 | I33: ='App.2-BA_FA Cont 2014 Rev CGAAP'!L33 -> 201760.68 | J33: ='[12]2.6 Fixed Asset Cont Stmt'!K525 -> 46219.33533 | K33: ='[12]2.6 Fixed Asset Cont Stmt'!M525 -> -2033.94 | L33: 245946.0753 | M33: 369649.3247
A34: N/A | B34: 1905 | C34: Land | D34: ='App.2-BA_FA Cont 2014 Rev CGAAP'!G34 -> 0 | G34: =D34+E34+F34 -> 0 | I34: ='App.2-BA_FA Cont 2014 Rev CGAAP'!L34 -> 0 | L34: 0 | M34: 0
A35: 47 | B35: 1908 | C35: Buildings & Fixtures | D35: ='App.2-BA_FA Cont 2014 Rev CGAAP'!G35 -> 0 | G35: 0 | I35: ='App.2-BA_FA Cont 2014 Rev CGAAP'!L35 -> 0 | L35: 0 | M35: 0
A36: 13 | B36: 1910 | C36: Leasehold Improvements | D36: ='App.2-BA_FA Cont 2014 Rev CGAAP'!G36 -> 0 | G36: 0 | I36: ='App.2-BA_FA Cont 2014 Rev CGAAP'!L36 -> 0 | L36: 0 | M36: 0
A37: 8 | B37: 1915 | C37: Office Furniture & Equipment (10 years) | D37: ='App.2-BA_FA Cont 2014 Rev CGAAP'!G37 -> 166339.65 | E37: ='[12]2.6 Fixed Asset Cont Stmt'!E530 -> 1229.99 | F37: ='[12]2.6 Fixed Asset Cont Stmt'!F530 -> -3286.83 | G37: 164282.81 | I37: ='App.2-BA_FA Cont 2014 Rev CGAAP'!L37 -> 138644.7725 | J37: ='[12]2.6 Fixed Asset Cont Stmt'!K530 -> 7164.3995 | K37: ='[12]2.6 Fixed Asset Cont Stmt'!M530 -> -3286.83 | L37: 142522.342 | M37: 21760.468
A38: 8 | B38: 1915 | C38: Office Furniture & Equipment (5 years) | D38: ='App.2-BA_FA Cont 2014 Rev CGAAP'!G38 -> 0 | G38: 0 | I38: ='App.2-BA_FA Cont 2014 Rev CGAAP'!L38 -> 0 | L38: 0 | M38: 0
A39: 10 | B39: 1920 | C39: Computer Equipment - Hardware | D39: ='App.2-BA_FA Cont 2014 Rev CGAAP'!G39 -> 0 | G39: 0 | I39: ='App.2-BA_FA Cont 2014 Rev CGAAP'!L39 -> 0 | L39: 0 | M39: 0
A40: 10 | B40: 1920 | C40: Computer Equip.-Hardware(Post Mar. 22/04) | D40: ='App.2-BA_FA Cont 2014 Rev CGAAP'!G40 -> 309020.85 | E40: ='[12]2.6 Fixed Asset Cont Stmt'!E531 -> 75779.74 | F40: ='[12]2.6 Fixed Asset Cont Stmt'!F531 -> -2618.04 | G40: 382182.55 | I40: ='App.2-BA_FA Cont 2014 Rev CGAAP'!L40 -> 168461.57 | J40: ='[12]2.6 Fixed Asset Cont Stmt'!K531 -> 38161.064 | K40: ='[12]2.6 Fixed Asset Cont Stmt'!M531 -> -2618.04 | L40: 204004.594 | M40: 178177.956
A41: 10 | B41: 1920 | C41: Computer Equip.-Hardware(Post Mar. 19/07) | D41: ='App.2-BA_FA Cont 2014 Rev CGAAP'!G41 -> 0 | G41: 0 | I41: ='App.2-BA_FA Cont 2014 Rev CGAAP'!L41 -> 0 | L41: 0 | M41: 0
A42: 10 | B42: 1930 | C42: Transportation Equipment | D42: ='App.2-BA_FA Cont 2014 Rev CGAAP'!G42 -> 833655.97 | E42: =SUM('[12]2.6 Fixed Asset Cont Stmt'!E532:E534) -> 29551.21 | F42: =SUM('[12]2.6 Fixed Asset Cont Stmt'!F532:F534) -> 0 | G42: 863207.18 | I42: ='App.2-BA_FA Cont 2014 Rev CGAAP'!L42 -> 534032.435 | J42: =SUM('[12]2.6 Fixed Asset Cont Stmt'!K532:K534) -> 86891.201 | K42: =SUM('[12]2.6 Fixed Asset Cont Stmt'!M532:M534) -> 0 | L42: =I42+J42+K42-1 -> 620922.636 | M42: 242284.544
A43: 8 | B43: 1935 | C43: Stores Equipment | D43: ='App.2-BA_FA Cont 2014 Rev CGAAP'!G43 -> 6476.74 | E43: ='[12]2.6 Fixed Asset Cont Stmt'!E535 -> 0 | F43: ='[12]2.6 Fixed Asset Cont Stmt'!F535 -> 0 | G43: 6476.74 | I43: ='App.2-BA_FA Cont 2014 Rev CGAAP'!L43 -> 5215.66 | J43: ='[12]2.6 Fixed Asset Cont Stmt'!K535 -> 236.01 | K43: ='[12]2.6 Fixed Asset Cont Stmt'!M535 -> 0 | L43: 5451.67 | M43: 1025.07
A44: 8 | B44: 1940 | C44: Tools, Shop & Garage Equipment | D44: ='App.2-BA_FA Cont 2014 Rev CGAAP'!G44 -> 99318.99 | E44: ='[12]2.6 Fixed Asset Cont Stmt'!E536 -> 1245 | F44: ='[12]2.6 Fixed Asset Cont Stmt'!F536 -> 0 | G44: 100563.99 | I44: ='App.2-BA_FA Cont 2014 Rev CGAAP'!L44 -> 92579.32 | J44: ='[12]2.6 Fixed Asset Cont Stmt'!K536 -> 860.49 | K44: ='[12]2.6 Fixed Asset Cont Stmt'!M536 -> 0 | L44: 93439.81 | M44: 7124.18
A45: 8 | B45: 1945 | C45: Measurement & Testing Equipment | D45: ='App.2-BA_FA Cont 2014 Rev CGAAP'!G45 -> 1964.22 | E45: ='[12]2.6 Fixed Asset Cont Stmt'!E537 -> 0 | F45: ='[12]2.6 Fixed Asset Cont Stmt'!F537 -> 0 | G45: 1964.22 | I45: ='App.2-BA_FA Cont 2014 Rev CGAAP'!L45 -> 1964.22 | J45: ='[12]2.6 Fixed Asset Cont Stmt'!K537 -> 0 | K45: ='[12]2.6 Fixed Asset Cont Stmt'!M537 -> 0 | L45: 1964.22 | M45: 0
A46: 8 | B46: 1950 | C46: Power Operated Equipment | D46: ='App.2-BA_FA Cont 2014 Rev CGAAP'!G46 -> 0 | G46: 0 | I46: ='App.2-BA_FA Cont 2014 Rev CGAAP'!L46 -> 0 | L46: 0 | M46: 0
A47: 8 | B47: 1955 | C47: Communications Equipment | D47: ='App.2-BA_FA Cont 2014 Rev CGAAP'!G47 -> 30252.64 | E47: ='[12]2.6 Fixed Asset Cont Stmt'!E538 -> 0 | F47: ='[12]2.6 Fixed Asset Cont Stmt'!F538 -> 0 | G47: 30252.64 | I47: ='App.2-BA_FA Cont 2014 Rev CGAAP'!L47 -> 24457.13 | J47: ='[12]2.6 Fixed Asset Cont Stmt'!K538 -> 3466.24 | K47: ='[12]2.6 Fixed Asset Cont Stmt'!M538 -> 0 | L47: 27923.37 | M47: 2329.27
A48: 8 | B48: 1955 | C48: Communication Equipment (Smart Meters - Collectors & Repeaters) | D48: ='App.2-BA_FA Cont 2014 Rev CGAAP'!G48 -> 87888.61 | E48: =SUM('[12]2.6 Fixed Asset Cont Stmt'!E526:E527) -> 0 | F48: =SUM('[12]2.6 Fixed Asset Cont Stmt'!F526:F527) -> 0 | G48: 87888.61 | I48: ='App.2-BA_FA Cont 2014 Rev CGAAP'!L48 -> 60888.21 | J48: =SUM('[12]2.6 Fixed Asset Cont Stmt'!K526:K527) -> 2608.35 | K48: =SUM('[12]2.6 Fixed Asset Cont Stmt'!M526:M527) -> 0 | L48: 63496.56 | M48: 24392.05
A49: 8 | B49: 1960 | C49: Miscellaneous Equipment | G49: 0 | L49: 0 | M49: 0
A50: 47 | B50: 1970 | C50: Load Management Controls Customer Premises | G50: 0 | L50: 0 | M50: 0
A51: 47 | B51: 1975 | C51: Load Management Controls Utility Premises | G51: 0 | L51: 0 | M51: 0
A52: 47 | B52: 1980 | C52: System Supervisor Equipment | D52: ='App.2-BA_FA Cont 2014 Rev CGAAP'!G52 -> 348126.76 | E52: ='[12]2.6 Fixed Asset Cont Stmt'!E539 -> 186917.74 | F52: ='[12]2.6 Fixed Asset Cont Stmt'!F539 -> 0 | G52: 535044.5 | I52: ='App.2-BA_FA Cont 2014 Rev CGAAP'!L52 -> 274384.48 | J52: ='[12]2.6 Fixed Asset Cont Stmt'!K539 -> 23373.517 | K52: ='[12]2.6 Fixed Asset Cont Stmt'!M539 -> 0 | L52: 297757.997 | M52: 237286.503
A53: 47 | B53: 1985 | C53: Miscellaneous Fixed Assets (Sentinel Lighting Rentals) | D53: ='App.2-BA_FA Cont 2014 MIFRS'!G53 -> 0 | G53: 0 | I53: ='App.2-BA_FA Cont 2014 MIFRS'!L53 -> 0 | L53: 0 | M53: 0
A54: 47 | B54: 1990 | C54: Other Tangible Property | D54: ='App.2-BA_FA Cont 2014 MIFRS'!G54 -> 0 | G54: 0 | I54: ='App.2-BA_FA Cont 2014 MIFRS'!L54 -> 0 | L54: 0 | M54: 0
A55: 47 | B55: 1995 | C55: Contributions & Grants | D55: ='App.2-BA_FA Cont 2014 MIFRS'!G55 -> 0 | E55: 0 | F55: ='[12]2.6 Fixed Asset Cont Stmt'!F541 -> 0 | G55: 0 | I55: ='App.2-BA_FA Cont 2014 MIFRS'!L55 -> 0 | J55: ='[12]2.6 Fixed Asset Cont Stmt'!K541 -> 0 | K55: ='[12]2.6 Fixed Asset Cont Stmt'!M541 -> 0 | L55: 0 | M55: 0
A56: 47 | B56: 2440 | C56: Deferred Revenue5 | D56: ='App.2-BA_FA Cont 2014 MIFRS'!G56 -> -497667.42 | E56: ='[12]2.6 Fixed Asset Cont Stmt'!E542 -> 0 | F56: ='[12]2.6 Fixed Asset Cont Stmt'!F542 -> 11565.22 | G56: -486102.2 | I56: ='App.2-BA_FA Cont 2014 MIFRS'!L56 -> -64000.56 | J56: ='[12]2.6 Fixed Asset Cont Stmt'!K542 -> 0 | K56: ='[12]2.6 Fixed Asset Cont Stmt'!M542 -> 0 | L56: -64000.56 | M56: -422101.64
C57: Sub-Total | D57: =SUM(D17:D56) -> 12914640.18 | E57: =SUM(E17:E56) -> 798438.31 | F57: =SUM(F17:F56) -> -63121.32 | G57: =SUM(G17:G56) -> 13649957.17 | I57: =SUM(I17:I56) -> 6953809.632 | J57: =SUM(J17:J56) -> 450044.1526 | K57: =SUM(K17:K56) -> -54504.12 | L57: =SUM(L17:L56) -> 7349345.664 | M57: =SUM(M17:M56) -> 6300611.506
C58: Less Socialized Renewable Energy Generation Investments (input as negative) | G58: =D58+E58+F58 -> 0 | L58: =I58+J58+K58 -> 0 | M58: =G58+L58 -> 0
C59: Less Other Non Rate-Regulated Utility Assets (input as negative) | G59: 0 | L59: 0 | M59: 0
C60: Total PP&E | D60: =SUM(D57:D59) -> 12914640.18 | E60: =SUM(E57:E59) -> 798438.31 | F60: -63121.32 | G60: 13649957.17 | I60: =SUM(I57:I59) -> 6953809.632 | J60: 450044.1526 | K60: -54504.12 | L60: 7349345.664 | M60: 6300611.506
C61: Depreciation Expense adj. from gain or loss on the retirement of assets (pool of like assets), if applicable6
C62: Total | J62: =J60+J61 -> 450044.1526
I64: Less: Fully Allocated Depreciation
A65: 10 | C65: Transportation | I65: Transportation | K65: =J42 -> 86891.201
A66: 8 | C66: Stores Equipment | I66: Stores Equipment | K66: =J43 -> 236.01
A67: 8 | C67: Tools, Shop | I67: Tools, Shop | K67: =J44 -> 860.49
A68: 8 | C68: Meas/Testing | I68: Measurement & Testing | K68: =J45 -> 0
A69: 8 | C69: Communications Equipment | I69: Communications Equipment | K69: =J47 -> 3466.24
I70: Net Depreciation | K70: =J62-K65-K66-K67-K68-K69 -> 358590.2116
A72: Notes:
A74: 1 | B74: Tables in the format outlined above covering all fixed asset accounts should be submitted for the Test Year, Bridge Year and all relevant historical years. At a minimum , the applicant must provide data for the earlier of: 1) all historical years back to its last rebasing; or 2) at least three years of historical actuals, in addition to Bridge Year and Test Year forecasts.
A77: 2 | B77: The "CCA Class" for fixed assets should agree with the CCA Class used for tax purposes in Tax Returns. Fixed Assets sub-components may be used where the underlying asset components are classified under multiple CCA Classes for tax purposes. If an applicant uses any different classes from those shown in the table, an explanation should be provided. (also see note 3).
A80: 3 | B80: The table may need to be customized for a utility's asset categories or for any new asset accounts announced or authorized by the Board.
A82: 4 | B82: The additions in column (E) must not include construction work in progress (CWIP).
A84: 5 | B84: Effective on the date of IFRS adoption, customer contributions will no longer be recorded in Account 1995 Contributions & Grants, but will be recorded in Account 2440, Deferred Revenues.
A86: 6 | B86: Where a distributor for general financial reporting purposes under IFRS has accounted for the amount of gain or loss on the retirement of assets in a pool of like assets as a charge or credit to income, for reporting and rate application filings, the distributor shall reclassify such gains and losses as depreciation expense, and disclose the amount separately.

Sheet App.2-BA_FA Cont 2016 MIFRS
O1: File Number: | P1: =EBNUMBER -> EB-2015-0110
O2: Exhibit: | P2: 2
O3: Tab: | P3: 1
O4: Schedule: | P4: 4
O5: Page: | P5: 17
O7: Date: | P7: Mar-4-2016
A9: Appendix 2-BA
A10: Fixed Asset Continuity Schedule 1
G12: Accounting Standard | H12: MIFRS | I12: 2014 is Transiton Year - Adopted IFRS on January 1, 2015
G13: Year | H13: 2016 | I13: With Capitalization and Depreciation Policy Changes effective January 1st 2012 (as approved in last CoS EB-2011-0249)
D15: Cost | L15: Accumulated Depreciation
A16: CCA Class 2 | B16: OEB Account 3 | C16: Description 3 | D16: Opening Balance | E16: 1508 Assets Included | F16: 1508 Accum Amortization | G16: Additions 4 | H16: Disposals | I16: Closing Balance | K16: Opening Balance | L16: Additions | M16: Amort on 1508 Additions | N16: Disposals | O16: Closing Balance | P16: Net Book Value
A17: 45 | B17: 1611 | C17: Computer Software (Formally known as Account 1925) | D17: ='App.2-BA_FA Cont 2015 MIFRS'!G17 -> 917528.12 | G17: ='[12]2.6 Fixed Asset Cont Stmt'!E580 -> 1300 | I17: =D17+G17+H17 -> 918828.12 | K17: ='App.2-BA_FA Cont 2015 MIFRS'!L17 -> 866280.761 | L17: ='[12]2.6 Fixed Asset Cont Stmt'!K580 -> 17061.194 | N17: ='[12]2.6 Fixed Asset Cont Stmt'!M580 -> 0 | O17: =K17+L17+N17 -> 883341.955 | P17: =I17-O17 -> 35486.165
A18: CEC | B18: 1612 | C18: Land Rights (Formally known as Account 1906) | D18: ='App.2-BA_FA Cont 2015 MIFRS'!G18 -> 28650.65 | G18: ='[12]2.6 Fixed Asset Cont Stmt'!E581 -> 0 | I18: =D18+G18+H18 -> 28650.65 | K18: ='App.2-BA_FA Cont 2015 MIFRS'!L18 -> 0 | L18: ='[12]2.6 Fixed Asset Cont Stmt'!K581 -> 0 | N18: ='[12]2.6 Fixed Asset Cont Stmt'!M581 -> 0 | O18: =K18+L18+N18 -> 0 | P18: =I18-O18 -> 28650.65
A19: N/A | B19: 1805 | C19: Land | D19: ='App.2-BA_FA Cont 2015 MIFRS'!G19 -> 41987.65 | G19: ='[12]2.6 Fixed Asset Cont Stmt'!E582 -> 0 | I19: 41987.65 | K19: ='App.2-BA_FA Cont 2015 MIFRS'!L19 -> 0 | L19: ='[12]2.6 Fixed Asset Cont Stmt'!K582 -> 0 | N19: ='[12]2.6 Fixed Asset Cont Stmt'!M582 -> 0 | O19: 0 | P19: 41987.65
A20: 47 | B20: 1808 | C20: Buildings | D20: ='App.2-BA_FA Cont 2015 MIFRS'!G20 -> 584951.81 | G20: =SUM('[12]2.6 Fixed Asset Cont Stmt'!E584:E592) -> 30000 | I20: 614951.81 | K20: ='App.2-BA_FA Cont 2015 MIFRS'!L20 -> 235129.3457 | L20: =SUM('[12]2.6 Fixed Asset Cont Stmt'!K584:K593) -> 14402.3715 | N20: =SUM('[12]2.6 Fixed Asset Cont Stmt'!M584:M593) -> 0 | O20: =K20+L20+N20-1 -> 249530.7172 | P20: =I20-O20 -> 365421.0928
A21: 13 | B21: 1810 | C21: Leasehold Improvements | I21: 0 | O21: 0 | P21: 0
A22: 47 | B22: 1815 | C22: Transformer Station Equipment >50 kV | I22: 0 | O22: 0 | P22: 0
A23: 47 | B23: 1820 | C23: Distribution Station Equipment <50 kV | D23: ='App.2-BA_FA Cont 2015 MIFRS'!G23 -> 1230988.04 | E23: =SUM('[12]2.6 Fixed Asset Cont Stmt'!$D$562:$D$569) -> 1003742.13 | F23: =-SUM('[12]2.6 Fixed Asset Cont Stmt'!$N$562:$N$569) -> -35066.13 | G23: =SUM('[12]2.6 Fixed Asset Cont Stmt'!E594:E601) -> 0 | I23: =D23+G23+H23+E23+F23 -> 2199664.04 | K23: ='App.2-BA_FA Cont 2015 MIFRS'!L23 -> 632753.44 | L23: =SUM('[12]2.6 Fixed Asset Cont Stmt'!K594:K601)-M23 -> 19828.69 | M23: =SUM('[12]2.6 Fixed Asset Cont Stmt'!K660:K667) -> 23377.42 | N23: =SUM('[12]2.6 Fixed Asset Cont Stmt'!M594:M601) -> 0 | O23: =K23+L23+M23 -> 675959.55 | P23: 1523704.49 | Q23: Includes MS2 Substation Re-Build assets as per Board Approved IRM ICM application for 2014 Distribution Rates - EB-2013-0178
A24: 47 | B24: 1825 | C24: Storage Battery Equipment | I24: 0 | K24: ='App.2-BA_FA Cont 2015 MIFRS'!L24 -> 0 | O24: 0 | P24: 0
A25: 47 | B25: 1830 | C25: Poles, Towers & Fixtures | D25: ='App.2-BA_FA Cont 2015 MIFRS'!G25 -> 3132308.03 | E25: ='[12]2.6 Fixed Asset Cont Stmt'!$D$570 -> 80476.9 | F25: =-'[12]2.6 Fixed Asset Cont Stmt'!$N$570 -> -2682.6 | G25: =SUM('[12]2.6 Fixed Asset Cont Stmt'!E602) -> 397572 | I25: =D25+G25+H25+E25+F25 -> 3607674.33 | K25: ='App.2-BA_FA Cont 2015 MIFRS'!L25 -> 1019518.619 | L25: =SUM('[12]2.6 Fixed Asset Cont Stmt'!K602:K605)-M25 -> 62302.66044 | M25: =SUM('[12]2.6 Fixed Asset Cont Stmt'!K668) -> 1788.4 | N25: =SUM('[12]2.6 Fixed Asset Cont Stmt'!M602:M605) -> 0 | O25: =K25+L25+M25 -> 1083609.68 | P25: 2524064.65 | Q25: Includes MS2 Substation Re-Build assets as per Board Approved IRM ICM application for 2014 Distribution Rates - EB-2013-0178
A26: 47 | B26: 1835 | C26: Overhead Conductors & Devices | D26: ='App.2-BA_FA Cont 2015 MIFRS'!G26 -> 2207699.56 | E26: ='[12]2.6 Fixed Asset Cont Stmt'!$D$571+'[12]2.6 Fixed Asset Cont Stmt'!$D$573 -> 325138.1 | F26: =-'[12]2.6 Fixed Asset Cont Stmt'!$N$571-'[12]2.6 Fixed Asset Cont Stmt'!$N$573 -> -12085.65 | G26: =SUM('[12]2.6 Fixed Asset Cont Stmt'!$E$606:$E$608)+44 -> 30181 | I26: =D26+G26+H26+E26+F26 -> 2550933.01 | K26: ='App.2-BA_FA Cont 2015 MIFRS'!L26 -> 1636443.036 | L26: =SUM('[12]2.6 Fixed Asset Cont Stmt'!K606:K608)-M26 -> 11433.57433 | M26: ='[12]2.6 Fixed Asset Cont Stmt'!K669+'[12]2.6 Fixed Asset Cont Stmt'!K671 -> 8057.1 | N26: =SUM('[12]2.6 Fixed Asset Cont Stmt'!M606:M608) -> 0 | O26: =K26+L26+M26 -> 1655933.711 | P26: 894999.2993 | Q26: Includes MS2 Substation Re-Build assets as per Board Approved IRM ICM application for 2014 Distribution Rates - EB-2013-0178
A27: 47 | B27: 1840 | C27: Underground Conduit | D27: ='App.2-BA_FA Cont 2015 MIFRS'!G27 -> 151376.93 | G27: =SUM('[12]2.6 Fixed Asset Cont Stmt'!E609:E611) -> 0 | I27: 151376.93 | K27: ='App.2-BA_FA Cont 2015 MIFRS'!L27 -> 150551.69 | L27: =SUM('[12]2.6 Fixed Asset Cont Stmt'!K609:K611) -> 17.8 | N27: =SUM('[12]2.6 Fixed Asset Cont Stmt'!M609:M611) -> 0 | O27: 150569.49 | P27: 807.44
A28: 47 | B28: 1845 | C28: Underground Conductors & Devices | D28: ='App.2-BA_FA Cont 2015 MIFRS'!G28 -> 666780.78 | E28: ='[12]2.6 Fixed Asset Cont Stmt'!$D$572 -> 24598.23 | F28: =-'[12]2.6 Fixed Asset Cont Stmt'!$N$572 -> -922.41 | G28: ='[12]2.6 Fixed Asset Cont Stmt'!$E$612 -> 0 | I28: =D28+G28+H28+E28+F28 -> 690456.6 | K28: ='App.2-BA_FA Cont 2015 MIFRS'!L28 -> 183113.5902 | L28: ='[12]2.6 Fixed Asset Cont Stmt'!K612-M28 -> 13852.23036 | M28: ='[12]2.6 Fixed Asset Cont Stmt'!K670 -> 614.94 | N28: ='[12]2.6 Fixed Asset Cont Stmt'!M612 -> 0 | O28: =K28+L28+M28 -> 197580.7605 | P28: 492875.8395 | Q28: Includes MS2 Substation Re-Build assets as per Board Approved IRM ICM application for 2014 Distribution Rates - EB-2013-0178
A29: 47 | B29: 1850 | C29: Line Transformers | D29: ='App.2-BA_FA Cont 2015 MIFRS'!G29 -> 1493522.05 | G29: =SUM('[12]2.6 Fixed Asset Cont Stmt'!E613:E616) -> 38791 | I29: 1532313.05 | K29: ='App.2-BA_FA Cont 2015 MIFRS'!L29 -> 477689.6479 | L29: =SUM('[12]2.6 Fixed Asset Cont Stmt'!K613:K616) -> 30929.50325 | N29: =SUM('[12]2.6 Fixed Asset Cont Stmt'!M613:M616) -> 0 | O29: 508619.1511 | P29: 1023693.899
A30: 47 | B30: 1855 | C30: Services (Overhead & Underground) | D30: ='App.2-BA_FA Cont 2015 MIFRS'!G30 -> 702113.49 | G30: =SUM('[12]2.6 Fixed Asset Cont Stmt'!E617:E618) -> 60000 | I30: 762113.49 | K30: ='App.2-BA_FA Cont 2015 MIFRS'!L30 -> 416438.9495 | L30: =SUM('[12]2.6 Fixed Asset Cont Stmt'!K617:K618) -> 7401.739083 | N30: =SUM('[12]2.6 Fixed Asset Cont Stmt'!M617:M618) -> 0 | O30: 423840.6886 | P30: 338272.8014
A31: 47 | B31: 1860 | C31: Meters | D31: ='App.2-BA_FA Cont 2015 MIFRS'!G31 -> 190693.62 | G31: =SUM('[12]2.6 Fixed Asset Cont Stmt'!E619:E624,'[12]2.6 Fixed Asset Cont Stmt'!E629) -> 60000 | I31: 250693.62 | K31: ='App.2-BA_FA Cont 2015 MIFRS'!L31 -> 91997.91 | L31: =SUM('[12]2.6 Fixed Asset Cont Stmt'!K619:K624,'[12]2.6 Fixed Asset Cont Stmt'!K629) -> 6017.98 | N31: =SUM('[12]2.6 Fixed Asset Cont Stmt'!M619:M624,'[12]2.6 Fixed Asset Cont Stmt'!M629) -> 0 | O31: 98015.89 | P31: 152677.73
A32: 47 | B32: 1860 | C32: Meters (Stranded Meters) | D32: ='App.2-BA_FA Cont 2015 MIFRS'!G32 -> 0 | I32: 0 | K32: ='App.2-BA_FA Cont 2015 MIFRS'!L32 -> -0.03999999998 | O32: -0.03999999998 | P32: 0.03999999998
A33: 47 | B33: 1860 | C33: Meters (Smart Meters) | D33: ='App.2-BA_FA Cont 2015 MIFRS'!G33 -> 615595.4 | G33: ='[12]2.6 Fixed Asset Cont Stmt'!E625 -> 23500 | H33: ='[12]2.6 Fixed Asset Cont Stmt'!F625 -> -39200 | I33: =D33+G33+H33 -> 599895.4 | K33: ='App.2-BA_FA Cont 2015 MIFRS'!L33 -> 245946.0753 | L33: ='[12]2.6 Fixed Asset Cont Stmt'!K625 -> 47648.764 | N33: ='[12]2.6 Fixed Asset Cont Stmt'!M625 -> -11200 | O33: 282394.8393 | P33: 317500.5607
A34: N/A | B34: 1905 | C34: Land | I34: =D34+G34+H34 -> 0 | O34: 0 | P34: 0
A35: 47 | B35: 1908 | C35: Buildings & Fixtures | I35: 0 | O35: 0 | P35: 0
A36: 13 | B36: 1910 | C36: Leasehold Improvements | I36: 0 | O36: 0 | P36: 0
A37: 8 | B37: 1915 | C37: Office Furniture & Equipment (10 years) | D37: ='App.2-BA_FA Cont 2015 MIFRS'!G37 -> 164282.81 | G37: ='[12]2.6 Fixed Asset Cont Stmt'!E630 -> 0 | I37: 164282.81 | K37: ='App.2-BA_FA Cont 2015 MIFRS'!L37 -> 142522.342 | L37: ='[12]2.6 Fixed Asset Cont Stmt'!K630 -> 3507.179 | N37: ='[12]2.6 Fixed Asset Cont Stmt'!M630 -> 0 | O37: 146029.521 | P37: 18253.289
A38: 8 | B38: 1915 | C38: Office Furniture & Equipment (5 years) | I38: 0 | O38: 0 | P38: 0
A39: 10 | B39: 1920 | C39: Computer Equipment - Hardware | I39: 0 | O39: 0 | P39: 0
A40: 10 | B40: 1920 | C40: Computer Equip.-Hardware(Post Mar. 22/04) | D40: ='App.2-BA_FA Cont 2015 MIFRS'!G40 -> 382182.55 | G40: ='[12]2.6 Fixed Asset Cont Stmt'!E631 -> 39350 | I40: 421532.55 | K40: ='App.2-BA_FA Cont 2015 MIFRS'!L40 -> 204004.594 | L40: ='[12]2.6 Fixed Asset Cont Stmt'!K631 -> 46552.458 | N40: ='[12]2.6 Fixed Asset Cont Stmt'!M631 -> 0 | O40: 250557.052 | P40: 170975.498
A41: 10 | B41: 1920 | C41: Computer Equip.-Hardware(Post Mar. 19/07) | I41: 0 | K41: ='App.2-BA_FA Cont 2015 MIFRS'!L41 -> 0 | O41: 0 | P41: 0
A42: 10 | B42: 1930 | C42: Transportation Equipment | D42: ='App.2-BA_FA Cont 2015 MIFRS'!G42 -> 863207.18 | G42: =SUM('[12]2.6 Fixed Asset Cont Stmt'!E632:E634) -> 0 | I42: 863207.18 | K42: ='App.2-BA_FA Cont 2015 MIFRS'!L42 -> 620922.636 | L42: =SUM('[12]2.6 Fixed Asset Cont Stmt'!K632:K634) -> 44993.522 | N42: =SUM('[12]2.6 Fixed Asset Cont Stmt'!M632:M634) -> 0 | O42: 665916.158 | P42: 197291.022
A43: 8 | B43: 1935 | C43: Stores Equipment | D43: ='App.2-BA_FA Cont 2015 MIFRS'!G43 -> 6476.74 | G43: ='[12]2.6 Fixed Asset Cont Stmt'!E635 -> 0 | I43: 6476.74 | K43: ='App.2-BA_FA Cont 2015 MIFRS'!L43 -> 5451.67 | L43: ='[12]2.6 Fixed Asset Cont Stmt'!K635 -> 236.01 | N43: ='[12]2.6 Fixed Asset Cont Stmt'!M635 -> 0 | O43: 5687.68 | P43: 789.06
A44: 8 | B44: 1940 | C44: Tools, Shop & Garage Equipment | D44: ='App.2-BA_FA Cont 2015 MIFRS'!G44 -> 100563.99 | G44: ='[12]2.6 Fixed Asset Cont Stmt'!E636 -> 0 | I44: 100563.99 | K44: ='App.2-BA_FA Cont 2015 MIFRS'!L44 -> 93439.81 | L44: ='[12]2.6 Fixed Asset Cont Stmt'!K636 -> 922.74 | N44: ='[12]2.6 Fixed Asset Cont Stmt'!M636 -> 0 | O44: 94362.55 | P44: 6201.44
A45: 8 | B45: 1945 | C45: Measurement & Testing Equipment | D45: ='App.2-BA_FA Cont 2015 MIFRS'!G45 -> 1964.22 | G45: ='[12]2.6 Fixed Asset Cont Stmt'!E637 -> 0 | I45: 1964.22 | K45: ='App.2-BA_FA Cont 2015 MIFRS'!L45 -> 1964.22 | L45: ='[12]2.6 Fixed Asset Cont Stmt'!K637 -> 0 | N45: ='[12]2.6 Fixed Asset Cont Stmt'!M637 -> 0 | O45: 1964.22 | P45: 0
A46: 8 | B46: 1950 | C46: Power Operated Equipment | D46: ='App.2-BA_FA Cont 2015 MIFRS'!G46 -> 0 | I46: 0 | O46: 0 | P46: 0
A47: 8 | B47: 1955 | C47: Communications Equipment | D47: ='App.2-BA_FA Cont 2015 MIFRS'!G47 -> 30252.64 | G47: ='[12]2.6 Fixed Asset Cont Stmt'!$E638 -> 0 | I47: 30252.64 | K47: ='App.2-BA_FA Cont 2015 MIFRS'!L47 -> 27923.37 | L47: ='[12]2.6 Fixed Asset Cont Stmt'!K638 -> 1487.6 | N47: ='[12]2.6 Fixed Asset Cont Stmt'!M638 -> 0 | O47: 29410.97 | P47: 841.67
A48: 8 | B48: 1955 | C48: Communication Equipment (Smart Meters - Collectors & Repeaters) | D48: ='App.2-BA_FA Cont 2015 MIFRS'!G48 -> 87888.61 | G48: =SUM('[12]2.6 Fixed Asset Cont Stmt'!E626:E627) -> 0 | I48: 87888.61 | K48: ='App.2-BA_FA Cont 2015 MIFRS'!L48 -> 63496.56 | L48: =SUM('[12]2.6 Fixed Asset Cont Stmt'!K626:K627) -> 0 | N48: =SUM('[12]2.6 Fixed Asset Cont Stmt'!M626:M627) -> 0 | O48: 63496.56 | P48: 24392.05
A49: 8 | B49: 1960 | C49: Miscellaneous Equipment | I49: 0 | O49: 0 | P49: 0
A50: 47 | B50: 1970 | C50: Load Management Controls Customer Premises | I50: 0 | O50: 0 | P50: 0
A51: 47 | B51: 1975 | C51: Load Management Controls Utility Premises | I51: 0 | O51: 0 | P51: 0
A52: 47 | B52: 1980 | C52: System Supervisor Equipment | D52: ='App.2-BA_FA Cont 2015 MIFRS'!G52 -> 535044.5 | G52: ='[12]2.6 Fixed Asset Cont Stmt'!E639 -> 0 | I52: 535044.5 | K52: ='App.2-BA_FA Cont 2015 MIFRS'!L52 -> 297757.997 | L52: ='[12]2.6 Fixed Asset Cont Stmt'!K639 -> 32719.404 | N52: ='[12]2.6 Fixed Asset Cont Stmt'!M639 -> 0 | O52: 330477.401 | P52: 204567.099
A53: 47 | B53: 1985 | C53: Miscellaneous Fixed Assets (Sentinel Lighting Rentals) | I53: 0 | O53: 0 | P53: 0
A54: 47 | B54: 1990 | C54: Other Tangible Property | I54: 0 | O54: 0 | P54: 0
A55: 47 | B55: 1995 | C55: Contributions & Grants | D55: ='App.2-BA_FA Cont 2015 MIFRS'!G55 -> 0 | G55: ='[12]2.6 Fixed Asset Cont Stmt'!E641 -> 0 | I55: 0 | L55: ='[12]2.6 Fixed Asset Cont Stmt'!K641 -> 0 | N55: ='[12]2.6 Fixed Asset Cont Stmt'!M641 -> 0 | O55: 0 | P55: 0
A56: 47 | B56: 2440 | C56: Deferred Revenue5 | D56: ='App.2-BA_FA Cont 2015 MIFRS'!G56 -> -486102.2 | G56: ='[12]2.6 Fixed Asset Cont Stmt'!E641 -> 0 | H56: ='[12]2.6 Fixed Asset Cont Stmt'!F641 -> 11565.22 | I56: -474536.98 | K56: ='App.2-BA_FA Cont 2015 MIFRS'!L56 -> -64000.56 | O56: -64000.56 | P56: -410536.42
A57: 47 | B57: 1609 | C57: Capital Contributions Paid | G57: ='[12]2.6 Fixed Asset Cont Stmt'!E642-44 -> 913217 | I57: =D57+G57+H57 -> 913217 | L57: ='[12]2.6 Fixed Asset Cont Stmt'!K642 -> 18265.22 | N57: ='[12]2.6 Fixed Asset Cont Stmt'!M642 -> 0 | O57: 18265.22 | P57: 894951.78
C58: Sub-Total | D58: =SUM(D17:D57) -> 13649957.17 | E58: =SUM(E17:E57) -> 1433955.36 | F58: =SUM(F17:F57) -> -50756.79 | G58: =SUM(G17:G57) -> 1593911 | H58: =SUM(H17:H57) -> -27634.78 | I58: 16599431.96 | K58: =SUM(K17:K57) -> 7349345.664 | L58: =SUM(L17:L57) -> 379580.64 | M58: 33837.86 | N58: -11200 | O58: 7751563.164 | P58: 8847868.796
C59: Less Socialized Renewable Energy Generation Investments (input as negative) | I59: =D59+G59+H59 -> 0 | O59: =K59+L59+N59 -> 0 | P59: =I59+O59 -> 0
C60: Less Other Non Rate-Regulated Utility Assets (input as negative) | I60: 0 | O60: 0 | P60: 0
C61: Total PP&E | D61: =SUM(D58:D60) -> 13649957.17 | E61: =SUM(E58:E60) -> 1433955.36 | F61: =SUM(F58:F60) -> -50756.79 | G61: =SUM(G58:G60) -> 1593911 | H61: -27634.78 | I61: 16599431.96 | K61: =SUM(K58:K60) -> 7349345.664 | L61: =SUM(L58:L60)+M58 -> 413418.5 | N61: -11200 | O61: 7751563.164 | P61: 8847868.796
C62: Depreciation Expense adj. from gain or loss on the retirement of assets (pool of like assets), if applicable6
C63: Total | L63: =L61+L62 -> 413418.5
K65: Less: Fully Allocated Depreciation
A66: 10 | C66: Transportation | K66: Transportation | N66: =L42 -> 44993.522
A67: 8 | C67: Stores Equipment | K67: Stores Equipment | N67: =L43 -> 236.01
A68: 8 | C68: Tools, Shop | K68: Tools, Shop | N68: =L44 -> 922.74
A69: 8 | C69: Meas/Testing | K69: Measurement & Testing | N69: =L45 -> 0
A70: 8 | C70: Communications Equipment | K70: Communications Equipment | N70: =L47 -> 1487.6
K71: Net Depreciation | N71: =L63-N66-N67-N68-N69-N70 -> 365778.628
A73: Notes:
A75: 1 | B75: Tables in the format outlined above covering all fixed asset accounts should be submitted for the Test Year, Bridge Year and all relevant historical years. At a minimum , the applicant must provide data for the earlier of: 1) all historical years back to its last rebasing; or 2) at least three years of historical actuals, in addition to Bridge Year and Test Year forecasts.
A78: 2 | B78: The "CCA Class" for fixed assets should agree with the CCA Class used for tax purposes in Tax Returns. Fixed Assets sub-components may be used where the underlying asset components are classified under multiple CCA Classes for tax purposes. If an applicant uses any different classes from those shown in the table, an explanation should be provided. (also see note 3).
A81: 3 | B81: The table may need to be customized for a utility's asset categories or for any new asset accounts announced or authorized by the Board.
A83: 4 | B83: The additions in column (E) must not include construction work in progress (CWIP).
A85: 5 | B85: Effective on the date of IFRS adoption, customer contributions will no longer be recorded in Account 1995 Contributions & Grants, but will be recorded in Account 2440, Deferred Revenues.
A87: 6 | B87: Where a distributor for general financial reporting purposes under IFRS has accounted for the amount of gain or loss on the retirement of assets in a pool of like assets as a charge or credit to income, for reporting and rate application filings, the distributor shall reclassify such gains and losses as depreciation expense, and disclose the amount separately.

Sheet Appendix 2-BB Service Life
M1: File Number: | O1: EB-2015-0110
M2: Exhibit: | O2: 4
M3: Tab: | O3: 4
M4: Schedule: | O4: 4
M5: Page: | O5: 74
M7: Date: | O7: Mar-4-2016
A9: Appendix 2-BB
A10: Service Life Comparison
A11: Table F-1 from Kinectrics Report1
C15: Asset Details | F15: Useful Life | J15: USoA Account Number | K15: USoA Account Description | L15: Current | N15: Proposed | P15: Outside Range of Min, Max TUL?
A16: Parent* | B16: # | C16: Category| Component | Type | F16: MIN UL | G16: TUL | H16: MAX UL | L16: Years | M16: Rate | N16: Years | O16: Rate | P16: Below Min TUL | Q16: Above Max TUL
A17: OH | B17: 1 | C17: Fully Dressed Wood Poles | D17: Overall | F17: 35 | G17: 45 | H17: 75 | J17: ='[12]2.5 Service Life Comp'!J17 -> 1830 | K17: ='[12]2.5 Service Life Comp'!K17 -> Poles, Towers and Fixtures | L17: ='[12]2.5 Service Life Comp'!L17 -> 25 | M17: =IF(ISERROR(1/L17), "", 1/L17) -> 0.04 | N17: ='[12]2.5 Service Life Comp'!N17 -> 45 | O17: =IF(ISERROR(1/N17), "", 1/N17) -> 0.02222222222 | P17: =IF(ISBLANK(N17),"",IF(N17<F17,"Yes","No")) -> No | Q17: =IF(ISBLANK(N17),"",IF(N17>H17,"Yes","No")) -> No
D18: Cross Arm | E18: Wood | F18: 20 | G18: 40 | H18: 55 | J18: ='[12]2.5 Service Life Comp'!J18 -> 1830 | K18: ='[12]2.5 Service Life Comp'!K18 -> Poles, Towers and Fixtures | L18: ='[12]2.5 Service Life Comp'!L18 -> 25 | M18: =IF(ISERROR(1/L18), "", 1/L18) -> 0.04 | N18: ='[12]2.5 Service Life Comp'!N18 -> 45 | O18: =IF(ISERROR(1/N18), "", 1/N18) -> 0.02222222222 | P18: =IF(ISBLANK(N18),"",IF(N18<F18,"Yes","No")) -> No | Q18: =IF(ISBLANK(N18),"",IF(N18>H18,"Yes","No")) -> No
E19: Steel | F19: 30 | G19: 70 | H19: 95 | J19: ='[12]2.5 Service Life Comp'!J19 -> 1830 | K19: ='[12]2.5 Service Life Comp'!K19 -> Poles, Towers and Fixtures | L19: ='[12]2.5 Service Life Comp'!L19 -> 25 | M19: 0.04 | N19: ='[12]2.5 Service Life Comp'!N19 -> 45 | O19: 0.02222222222 | P19: No | Q19: No
B20: 2 | C20: Fully Dressed Concrete Poles | D20: Overall | F20: 50 | G20: 60 | H20: 80 | J20: ='[12]2.5 Service Life Comp'!J20 -> 1830 | K20: ='[12]2.5 Service Life Comp'!K20 -> Poles, Towers and Fixtures | L20: ='[12]2.5 Service Life Comp'!L20 -> 25 | M20: 0.04 | N20: ='[12]2.5 Service Life Comp'!N20 -> 60 | O20: 0.01666666667 | P20: No | Q20: No
D21: Cross Arm | E21: Wood | F21: 20 | G21: 40 | H21: 55 | J21: ='[12]2.5 Service Life Comp'!J21 -> 1830 | K21: ='[12]2.5 Service Life Comp'!K21 -> Poles, Towers and Fixtures | L21: ='[12]2.5 Service Life Comp'!L21 -> 25 | M21: 0.04 | N21: ='[12]2.5 Service Life Comp'!N21 -> 40 | O21: 0.025 | P21: No | Q21: No
E22: Steel | F22: 30 | G22: 70 | H22: 95 | J22: ='[12]2.5 Service Life Comp'!J22 -> 1830 | K22: ='[12]2.5 Service Life Comp'!K22 -> Poles, Towers and Fixtures | L22: ='[12]2.5 Service Life Comp'!L22 -> 25 | M22: 0.04 | N22: ='[12]2.5 Service Life Comp'!N22 -> 60 | O22: 0.01666666667 | P22: No | Q22: No
B23: 3 | C23: Fully Dressed Steel Poles | D23: Overall | F23: 60 | G23: 60 | H23: 80 | J23: ='[12]2.5 Service Life Comp'!J23 -> 1830 | K23: ='[12]2.5 Service Life Comp'!K23 -> Poles, Towers and Fixtures | L23: ='[12]2.5 Service Life Comp'!L23 -> 25 | M23: 0.04 | N23: ='[12]2.5 Service Life Comp'!N23 -> 60 | O23: 0.01666666667 | P23: No | Q23: No
D24: Cross Arm | E24: Wood | F24: 20 | G24: 40 | H24: 55 | J24: ='[12]2.5 Service Life Comp'!J24 -> 1830 | K24: ='[12]2.5 Service Life Comp'!K24 -> Poles, Towers and Fixtures | L24: ='[12]2.5 Service Life Comp'!L24 -> 25 | M24: 0.04 | N24: ='[12]2.5 Service Life Comp'!N24 -> 40 | O24: 0.025 | P24: No | Q24: No
E25: Steel | F25: 30 | G25: 70 | H25: 95 | J25: ='[12]2.5 Service Life Comp'!J25 -> 1830 | K25: ='[12]2.5 Service Life Comp'!K25 -> Poles, Towers and Fixtures | L25: ='[12]2.5 Service Life Comp'!L25 -> 25 | M25: 0.04 | N25: ='[12]2.5 Service Life Comp'!N25 -> 60 | O25: 0.01666666667 | P25: No | Q25: No
B26: 4 | C26: OH Line Switch | F26: 30 | G26: 45 | H26: 55 | J26: ='[12]2.5 Service Life Comp'!J26 -> 1835 | K26: ='[12]2.5 Service Life Comp'!K26 -> Overhead Conductors & Devices | L26: ='[12]2.5 Service Life Comp'!L26 -> 25 | M26: 0.04 | N26: ='[12]2.5 Service Life Comp'!N26 -> 45 | O26: 0.02222222222 | P26: No | Q26: No
B27: 5 | C27: OH Line Switch Motor | F27: 15 | G27: 25 | H27: 25 | J27: ='[12]2.5 Service Life Comp'!J27 -> 1835 | K27: ='[12]2.5 Service Life Comp'!K27 -> Overhead Conductors & Devices | L27: ='[12]2.5 Service Life Comp'!L27 -> 25 | M27: 0.04 | N27: ='[12]2.5 Service Life Comp'!N27 -> 25 | O27: 0.04 | P27: No | Q27: No
B28: 6 | C28: OH Line Switch RTU | F28: 15 | G28: 20 | H28: 20 | J28: ='[12]2.5 Service Life Comp'!J28 -> 1835 | K28: ='[12]2.5 Service Life Comp'!K28 -> Overhead Conductors & Devices | L28: ='[12]2.5 Service Life Comp'!L28 -> 25 | M28: 0.04 | N28: ='[12]2.5 Service Life Comp'!N28 -> 20 | O28: 0.05 | P28: No | Q28: No
B29: 7 | C29: OH Integral Switches | F29: 35 | G29: 45 | H29: 60 | J29: ='[12]2.5 Service Life Comp'!J29 -> 1835 | K29: ='[12]2.5 Service Life Comp'!K29 -> Overhead Conductors & Devices | L29: ='[12]2.5 Service Life Comp'!L29 -> 25 | M29: 0.04 | N29: ='[12]2.5 Service Life Comp'!N29 -> 45 | O29: 0.02222222222 | P29: No | Q29: No
B30: 8 | C30: OH Conductors | F30: 50 | G30: 60 | H30: 75 | J30: ='[12]2.5 Service Life Comp'!J30 -> 1835 | K30: ='[12]2.5 Service Life Comp'!K30 -> Overhead Conductors & Devices | L30: ='[12]2.5 Service Life Comp'!L30 -> 25 | M30: 0.04 | N30: ='[12]2.5 Service Life Comp'!N30 -> 60 | O30: 0.01666666667 | P30: No | Q30: No
B31: 9 | C31: OH Transformers & Voltage Regulators | F31: 30 | G31: 40 | H31: 60 | J31: ='[12]2.5 Service Life Comp'!J31 -> 1850 | K31: ='[12]2.5 Service Life Comp'!K31 -> Line Transformers | L31: ='[12]2.5 Service Life Comp'!L31 -> 25 | M31: 0.04 | N31: ='[12]2.5 Service Life Comp'!N31 -> 40 | O31: 0.025 | P31: No | Q31: No
B32: 10 | C32: OH Shunt Capacitor Banks | F32: 25 | G32: 30 | H32: 40 | J32: ='[12]2.5 Service Life Comp'!J32 -> N/A | K32: ='[12]2.5 Service Life Comp'!K32 -> 0 | L32: ='[12]2.5 Service Life Comp'!L32 -> 0 | N32: ='[12]2.5 Service Life Comp'!N32 -> 0 | P32: Yes | Q32: No
B33: 11 | C33: Reclosers | F33: 25 | G33: 40 | H33: 55 | J33: ='[12]2.5 Service Life Comp'!J33 -> N/A | K33: ='[12]2.5 Service Life Comp'!K33 -> 0 | L33: ='[12]2.5 Service Life Comp'!L33 -> 0 | N33: ='[12]2.5 Service Life Comp'!N33 -> 0 | P33: Yes | Q33: No
A34: TS & MS | B34: 12 | C34: Power Transformers | D34: Overall | F34: 30 | G34: 45 | H34: 60 | J34: ='[12]2.5 Service Life Comp'!J34 -> 1850 | K34: ='[12]2.5 Service Life Comp'!K34 -> Line Transformers | L34: ='[12]2.5 Service Life Comp'!L34 -> 25 | M34: 0.04 | N34: ='[12]2.5 Service Life Comp'!N34 -> 40 | O34: 0.025 | P34: No | Q34: No
D35: Bushing | F35: 10 | G35: 20 | H35: 30
D36: Tap Changer | F36: 20 | G36: 30 | H36: 60
B37: 13 | C37: Station Service Transformer | F37: 30 | G37: 45 | H37: 55
B38: 14 | C38: Station Grounding Transformer | F38: 30 | G38: 40 | H38: 40 | J38: ='[12]2.5 Service Life Comp'!J38 -> 1820 | K38: ='[12]2.5 Service Life Comp'!K38 -> Distribution Station Equipment | L38: ='[12]2.5 Service Life Comp'!L38 -> 40 | M38: 0.025 | N38: ='[12]2.5 Service Life Comp'!N38 -> 40 | O38: 0.025 | P38: No | Q38: No
B39: 15 | C39: Station DC System | D39: Overall | F39: 10 | G39: 20 | H39: 30 | J39: ='[12]2.5 Service Life Comp'!J39 -> 1820 | K39: ='[12]2.5 Service Life Comp'!K39 -> Distribution Station Equipment | L39: ='[12]2.5 Service Life Comp'!L39 -> 20 | M39: 0.05 | N39: ='[12]2.5 Service Life Comp'!N39 -> 20 | O39: 0.05 | P39: No | Q39: No
D40: Battery Bank | F40: 10 | G40: 15 | H40: 15 | J40: ='[12]2.5 Service Life Comp'!J40 -> 1820 | K40: ='[12]2.5 Service Life Comp'!K40 -> Distribution Station Equipment | L40: ='[12]2.5 Service Life Comp'!L40 -> 30 | M40: 0.03333333333 | N40: ='[12]2.5 Service Life Comp'!N40 -> 20 | O40: 0.05 | P40: No | Q40: Yes
D41: Charger | F41: 20 | G41: 20 | H41: 30 | J41: ='[12]2.5 Service Life Comp'!J41 -> 1820 | K41: ='[12]2.5 Service Life Comp'!K41 -> Distribution Station Equipment | L41: ='[12]2.5 Service Life Comp'!L41 -> 30 | M41: 0.03333333333 | N41: ='[12]2.5 Service Life Comp'!N41 -> 20 | O41: 0.05 | P41: No | Q41: No
B42: 16 | C42: Station Metal Clad Switchgear | D42: Overall | F42: 30 | G42: 40 | H42: 60 | J42: ='[12]2.5 Service Life Comp'!J42 -> 1820 | K42: ='[12]2.5 Service Life Comp'!K42 -> Distribution Station Equipment | L42: ='[12]2.5 Service Life Comp'!L42 -> 25 | M42: 0.04 | N42: ='[12]2.5 Service Life Comp'!N42 -> 40 | O42: 0.025 | P42: No | Q42: No
D43: Removable Breaker | F43: 25 | G43: 40 | H43: 60
B44: 17 | C44: Station Independent Breakers | F44: 35 | G44: 45 | H44: 65 | J44: ='[12]2.5 Service Life Comp'!J44 -> 1820 | K44: ='[12]2.5 Service Life Comp'!K44 -> Distribution Station Equipment | L44: ='[12]2.5 Service Life Comp'!L44 -> 40 | M44: 0.025 | N44: ='[12]2.5 Service Life Comp'!N44 -> 45 | O44: 0.02222222222 | P44: No | Q44: No
B45: 18 | C45: Station Switch | F45: 30 | G45: 50 | H45: 60 | J45: ='[12]2.5 Service Life Comp'!J45 -> 1820 | K45: ='[12]2.5 Service Life Comp'!K45 -> Distribution Station Equipment | L45: ='[12]2.5 Service Life Comp'!L45 -> 50 | M45: 0.02 | N45: ='[12]2.5 Service Life Comp'!N45 -> 50 | O45: 0.02 | P45: No | Q45: No
B46: 19 | C46: Electromechanical Relays | F46: 25 | G46: 35 | H46: 50 | J46: ='[12]2.5 Service Life Comp'!J46 -> 1820 | K46: ='[12]2.5 Service Life Comp'!K46 -> Distribution Station Equipment | L46: ='[12]2.5 Service Life Comp'!L46 -> 25 | M46: 0.04 | N46: ='[12]2.5 Service Life Comp'!N46 -> 35 | O46: 0.02857142857 | P46: No | Q46: No
B47: 20 | C47: Solid State Relays | F47: 10 | G47: 30 | H47: 45 | J47: ='[12]2.5 Service Life Comp'!J47 -> 1820 | K47: ='[12]2.5 Service Life Comp'!K47 -> Distribution Station Equipment | L47: ='[12]2.5 Service Life Comp'!L47 -> 25 | M47: 0.04 | N47: ='[12]2.5 Service Life Comp'!N47 -> 30 | O47: 0.03333333333 | P47: No | Q47: No
B48: 21 | C48: Digital & Numeric Relays | F48: 15 | G48: 20 | H48: 20 | J48: ='[12]2.5 Service Life Comp'!J48 -> 1820 | K48: ='[12]2.5 Service Life Comp'!K48 -> Distribution Station Equipment | L48: ='[12]2.5 Service Life Comp'!L48 -> 0 | N48: ='[12]2.5 Service Life Comp'!N48 -> 20 | O48: 0.05 | P48: No | Q48: No
B49: 22 | C49: Rigid Busbars | F49: 30 | G49: 55 | H49: 60 | J49: ='[12]2.5 Service Life Comp'!J49 -> 1820 | K49: ='[12]2.5 Service Life Comp'!K49 -> Distribution Station Equipment | L49: ='[12]2.5 Service Life Comp'!L49 -> 50 | M49: 0.02 | N49: ='[12]2.5 Service Life Comp'!N49 -> 55 | O49: 0.01818181818 | P49: No | Q49: No
B50: 23 | C50: Steel Structure | F50: 35 | G50: 50 | H50: 90 | J50: ='[12]2.5 Service Life Comp'!J50 -> 1820 | K50: ='[12]2.5 Service Life Comp'!K50 -> Distribution Station Equipment | L50: ='[12]2.5 Service Life Comp'!L50 -> 50 | M50: 0.02 | N50: ='[12]2.5 Service Life Comp'!N50 -> 50 | O50: 0.02 | P50: No | Q50: No
A51: UG | B51: 24 | C51: Primary Paper Insulated Lead Covered (PILC) Cables | F51: 60 | G51: 65 | H51: 75 | J51: ='[12]2.5 Service Life Comp'!J51 -> N/A | K51: ='[12]2.5 Service Life Comp'!K51 -> 0 | L51: ='[12]2.5 Service Life Comp'!L51 -> 0 | N51: ='[12]2.5 Service Life Comp'!N51 -> 0 | P51: Yes | Q51: No
B52: 25 | C52: Primary Ethylene-Propylene Rubber (EPR) Cables | F52: 20 | G52: 25 | H52: 25 | J52: ='[12]2.5 Service Life Comp'!J52 -> 1845 | K52: ='[12]2.5 Service Life Comp'!K52 -> Underground Conductors & Devices | L52: ='[12]2.5 Service Life Comp'!L52 -> 25 | M52: 0.04 | N52: ='[12]2.5 Service Life Comp'!N52 -> 25 | O52: 0.04 | P52: No | Q52: No
B53: 26 | C53: Primary Non-Tree Retardant (TR) Cross Linked Polyethylene (XLPE) Cables Direct Buried | F53: 20 | G53: 25 | H53: 30 | J53: ='[12]2.5 Service Life Comp'!J53 -> 1845 | K53: ='[12]2.5 Service Life Comp'!K53 -> Underground Conductors & Devices | L53: ='[12]2.5 Service Life Comp'!L53 -> 25 | M53: 0.04 | N53: ='[12]2.5 Service Life Comp'!N53 -> 25 | O53: 0.04 | P53: No | Q53: No
B54: 27 | C54: Primary Non-TR XLPE Cables in Duct | F54: 20 | G54: 25 | H54: 30 | J54: ='[12]2.5 Service Life Comp'!J54 -> 1845 | K54: ='[12]2.5 Service Life Comp'!K54 -> Underground Conductors & Devices | L54: ='[12]2.5 Service Life Comp'!L54 -> 25 | M54: 0.04 | N54: ='[12]2.5 Service Life Comp'!N54 -> 25 | O54: 0.04 | P54: No | Q54: No
B55: 30 | C55: Secondary PILC Cables | F55: 70 | G55: 75 | H55: 80
B56: 31 | C56: Secondary Cables Direct Buried | F56: 25 | G56: 35 | H56: 40 | J56: ='[12]2.5 Service Life Comp'!J58 -> 1855 | K56: ='[12]2.5 Service Life Comp'!K58 -> Services | L56: ='[12]2.5 Service Life Comp'!L58 -> 25 | M56: 0.04 | N56: ='[12]2.5 Service Life Comp'!N58 -> 35 | O56: 0.02857142857 | P56: No | Q56: No
B57: 32 | C57: Secondary Cables in Duct | F57: 35 | G57: 40 | H57: 60 | J57: ='[12]2.5 Service Life Comp'!J59 -> 1855 | K57: ='[12]2.5 Service Life Comp'!K59 -> Services | L57: ='[12]2.5 Service Life Comp'!L59 -> 25 | M57: 0.04 | N57: ='[12]2.5 Service Life Comp'!N59 -> 40 | O57: 0.025 | P57: No | Q57: No
B58: 33 | C58: Network Tranformers | D58: Overall | F58: 20 | G58: 35 | H58: 50
D59: Protector | F59: 20 | G59: 35 | H59: 40
B60: 34 | C60: Pad-Mounted Transformers | F60: 25 | G60: 40 | H60: 45 | J60: ='[12]2.5 Service Life Comp'!J62 -> 1850 | K60: ='[12]2.5 Service Life Comp'!K62 -> Line Transformers | L60: ='[12]2.5 Service Life Comp'!L62 -> 25 | M60: 0.04 | N60: ='[12]2.5 Service Life Comp'!N62 -> 40 | O60: 0.025 | P60: No | Q60: No
B61: 35 | C61: Submersible/Vault Transformers | F61: 25 | G61: 35 | H61: 45 | J61: ='[12]2.5 Service Life Comp'!J63 -> 1850 | K61: ='[12]2.5 Service Life Comp'!K63 -> Line Transformers | L61: ='[12]2.5 Service Life Comp'!L63 -> 25 | M61: 0.04 | N61: ='[12]2.5 Service Life Comp'!N63 -> 35 | O61: 0.02857142857 | P61: No | Q61: No
B62: 36 | C62: UG Foundation | F62: 35 | G62: 55 | H62: 70 | J62: ='[12]2.5 Service Life Comp'!J64 -> 1840 | K62: ='[12]2.5 Service Life Comp'!K64 -> Underground Conduit | L62: ='[12]2.5 Service Life Comp'!L64 -> 25 | M62: 0.04 | N62: ='[12]2.5 Service Life Comp'!N64 -> 55 | O62: 0.01818181818 | P62: No | Q62: No
B63: 37 | C63: UG Vaults | D63: Overall | F63: 40 | G63: 60 | H63: 80
D64: Roof | F64: 20 | G64: 30 | H64: 45
B65: 38 | C65: UG Vault Switches | F65: 20 | G65: 35 | H65: 50 | J65: ='[12]2.5 Service Life Comp'!J67 -> 1845 | K65: ='[12]2.5 Service Life Comp'!K67 -> Underground Conductors & Devices | L65: ='[12]2.5 Service Life Comp'!L67 -> 25 | M65: 0.04 | N65: ='[12]2.5 Service Life Comp'!N67 -> 35 | O65: 0.02857142857 | P65: No | Q65: No
B66: 39 | C66: Pad-Mounted Switchgear | F66: 20 | G66: 30 | H66: 45 | J66: ='[12]2.5 Service Life Comp'!J68 -> 1845 | K66: ='[12]2.5 Service Life Comp'!K68 -> Underground Conductors & Devices | L66: ='[12]2.5 Service Life Comp'!L68 -> 25 | M66: 0.04 | N66: ='[12]2.5 Service Life Comp'!N68 -> 30 | O66: 0.03333333333 | P66: No | Q66: No
B67: 40 | C67: Ducts | F67: 30 | G67: 50 | H67: 85 | J67: ='[12]2.5 Service Life Comp'!J69 -> 1840 | K67: ='[12]2.5 Service Life Comp'!K69 -> Underground Conduit | L67: ='[12]2.5 Service Life Comp'!L69 -> 25 | M67: 0.04 | N67: ='[12]2.5 Service Life Comp'!N69 -> 50 | O67: 0.02 | P67: No | Q67: No
B68: 41 | C68: Concrete Encased Duct Banks | F68: 35 | G68: 55 | H68: 80 | J68: ='[12]2.5 Service Life Comp'!J70 -> 1840 | K68: ='[12]2.5 Service Life Comp'!K70 -> Underground Conduit | L68: ='[12]2.5 Service Life Comp'!L70 -> 25 | M68: 0.04 | N68: ='[12]2.5 Service Life Comp'!N70 -> 55 | O68: 0.01818181818 | P68: No | Q68: No
B69: 42 | C69: Cable Chambers | F69: 50 | G69: 60 | H69: 80 | J69: ='[12]2.5 Service Life Comp'!J71 -> 1840 | K69: ='[12]2.5 Service Life Comp'!K71 -> Underground Conduit | L69: ='[12]2.5 Service Life Comp'!L71 -> 25 | M69: 0.04 | N69: ='[12]2.5 Service Life Comp'!N71 -> 60 | O69: 0.01666666667 | P69: No | Q69: No
A70: S | B70: 43 | C70: Remote SCADA | F70: 15 | G70: 20 | H70: 30
A73: Table F-2 from Kinetrics Report1
C75: Asset Details | F75: Useful Life Range | J75: USoA Account Number | K75: USoA Account Description | L75: Current | N75: Proposed | P75: Outside Range of Min, Max TUL?
B76: # | C76: Category| Component | Type | L76: Years | M76: Rate | N76: Years | O76: Rate | P76: Below Min Range | Q76: Above Max Range
B77: 1 | C77: Office Equipment | F77: 5 | G77: 15 | J77: ='[12]2.5 Service Life Comp'!J79 -> 1915 | K77: ='[12]2.5 Service Life Comp'!K79 -> Office Furniture & Equipment | L77: ='[12]2.5 Service Life Comp'!L79 -> 10 | M77: =IF(ISERROR(1/L77), "", 1/L77) -> 0.1 | N77: ='[12]2.5 Service Life Comp'!N79 -> 8 | O77: =IF(ISERROR(1/N77), "", 1/N77) -> 0.125 | P77: =IF(ISBLANK(N77),"",IF(N77<F77,"Yes","No")) -> No | Q77: =IF(ISBLANK(N77),"",IF(N77>G77,"Yes","No")) -> No
B78: 2 | C78: Vehicles | D78: Trucks & Buckets | F78: 5 | G78: 15 | J78: ='[12]2.5 Service Life Comp'!J80 -> 1930 | K78: ='[12]2.5 Service Life Comp'!K80 -> Transportation Equipment | L78: ='[12]2.5 Service Life Comp'!L80 -> 8 | M78: =IF(ISERROR(1/L78), "", 1/L78) -> 0.125 | N78: ='[12]2.5 Service Life Comp'!N80 -> 10 | O78: =IF(ISERROR(1/N78), "", 1/N78) -> 0.1 | P78: =IF(ISBLANK(N78),"",IF(N78<F78,"Yes","No")) -> No | Q78: =IF(ISBLANK(N78),"",IF(N78>G78,"Yes","No")) -> No
D79: Trailers | F79: 5 | G79: 20 | J79: ='[12]2.5 Service Life Comp'!J81 -> 1930 | K79: ='[12]2.5 Service Life Comp'!K81 -> Transportation Equipment | L79: ='[12]2.5 Service Life Comp'!L81 -> 8 | M79: 0.125 | N79: ='[12]2.5 Service Life Comp'!N81 -> 10 | O79: 0.1 | P79: No | Q79: No
D80: Vans | F80: 5 | G80: 10 | J80: ='[12]2.5 Service Life Comp'!J82 -> 1930 | K80: ='[12]2.5 Service Life Comp'!K82 -> Transportation Equipment | L80: ='[12]2.5 Service Life Comp'!L82 -> 5 | M80: 0.2 | N80: ='[12]2.5 Service Life Comp'!N82 -> 5 | O80: 0.2 | P80: No | Q80: No
B81: 3 | C81: Administrative Buildings | F81: 50 | G81: 75 | J81: ='[12]2.5 Service Life Comp'!J83 -> 200/201 | K81: ='[12]2.5 Service Life Comp'!K83 -> Building & Fixtures | L81: ='[12]2.5 Service Life Comp'!L83 -> 60 | M81: 0.01666666667 | N81: ='[12]2.5 Service Life Comp'!N83 -> 60 | O81: 0.01666666667 | P81: No | Q81: No
B82: 4 | C82: Leasehold Improvements | F82: Lease dependent | J82: ='[12]2.5 Service Life Comp'!J84 -> 0 | K82: ='[12]2.5 Service Life Comp'!K84 -> 0 | L82: ='[12]2.5 Service Life Comp'!L84 -> 0 | N82: ='[12]2.5 Service Life Comp'!N84 -> 0
B83: 5 | C83: Station Buildings | D83: Station Buildings | F83: 50 | G83: 75 | J83: ='[12]2.5 Service Life Comp'!J85 -> 1808 | K83: ='[12]2.5 Service Life Comp'!K85 -> Building & Fixtures | L83: ='[12]2.5 Service Life Comp'!L85 -> 50 | M83: 0.02 | N83: ='[12]2.5 Service Life Comp'!N85 -> 60 | O83: 0.01666666667 | P83: No | Q83: No
D84: Parking | F84: 25 | G84: 30 | J84: ='[12]2.5 Service Life Comp'!J86 -> 1808 | K84: ='[12]2.5 Service Life Comp'!K86 -> Building & Fixtures | L84: ='[12]2.5 Service Life Comp'!L86 -> 25 | M84: 0.04 | N84: ='[12]2.5 Service Life Comp'!N86 -> 25 | O84: 0.04 | P84: No | Q84: No
D85: Fence | F85: 25 | G85: 60 | J85: ='[12]2.5 Service Life Comp'!J87 -> 1808 | K85: ='[12]2.5 Service Life Comp'!K87 -> Building & Fixtures | L85: ='[12]2.5 Service Life Comp'!L87 -> 25 | M85: 0.04 | N85: ='[12]2.5 Service Life Comp'!N87 -> 25 | O85: 0.04 | P85: No | Q85: No
D86: Roof | F86: 20 | G86: 30 | J86: ='[12]2.5 Service Life Comp'!J88 -> 1808 | K86: ='[12]2.5 Service Life Comp'!K88 -> Building & Fixtures | L86: ='[12]2.5 Service Life Comp'!L88 -> 20 | M86: 0.05 | N86: ='[12]2.5 Service Life Comp'!N88 -> 25 | O86: 0.04 | P86: No | Q86: No
B87: 6 | C87: Computer Equipment | D87: Hardware | F87: 3 | G87: 5 | J87: ='[12]2.5 Service Life Comp'!J89 -> 1920 | K87: ='[12]2.5 Service Life Comp'!K89 -> Computer Equipment - Hardware | L87: ='[12]2.5 Service Life Comp'!L89 -> 5 | M87: 0.2 | N87: ='[12]2.5 Service Life Comp'!N89 -> 5 | O87: 0.2 | P87: No | Q87: No
D88: Software | F88: 2 | G88: 5 | J88: ='[12]2.5 Service Life Comp'!J90 -> 1925 | K88: ='[12]2.5 Service Life Comp'!K90 -> Computer Equipment - Software | L88: ='[12]2.5 Service Life Comp'!L90 -> 5 | M88: 0.2 | N88: ='[12]2.5 Service Life Comp'!N90 -> 5 | O88: 0.2 | P88: No | Q88: No
B89: 7 | C89: Equipment | D89: Power Operated | F89: 5 | G89: 10 | J89: ='[12]2.5 Service Life Comp'!J91 -> 0 | K89: ='[12]2.5 Service Life Comp'!K91 -> 0 | L89: ='[12]2.5 Service Life Comp'!L91 -> 0 | N89: ='[12]2.5 Service Life Comp'!N91 -> 0 | P89: Yes | Q89: No
D90: Stores | F90: 5 | G90: 10 | J90: ='[12]2.5 Service Life Comp'!J92 -> 1935 | K90: ='[12]2.5 Service Life Comp'!K92 -> Stores Equipment | L90: ='[12]2.5 Service Life Comp'!L92 -> 8 | M90: 0.125 | N90: ='[12]2.5 Service Life Comp'!N92 -> 8 | O90: 0.125 | P90: No | Q90: No
D91: Tools, Shop, Garage Equipment | F91: 5 | G91: 10 | J91: ='[12]2.5 Service Life Comp'!J93 -> 1940 | K91: ='[12]2.5 Service Life Comp'!K93 -> Tools, Shops Garage Equipment | L91: ='[12]2.5 Service Life Comp'!L93 -> 8 | M91: 0.125 | N91: ='[12]2.5 Service Life Comp'!N93 -> 8 | O91: 0.125 | P91: No | Q91: No
D92: Measurement & Testing Equipment | F92: 5 | G92: 10 | J92: ='[12]2.5 Service Life Comp'!J94 -> 1945 | K92: ='[12]2.5 Service Life Comp'!K94 -> Measurement and Testing Equipment | L92: ='[12]2.5 Service Life Comp'!L94 -> 8 | M92: 0.125 | N92: ='[12]2.5 Service Life Comp'!N94 -> 8 | O92: 0.125 | P92: No | Q92: No
B93: 8 | C93: Communication | D93: Towers | F93: 60 | G93: 70 | J93: ='[12]2.5 Service Life Comp'!J95 -> 1955 | K93: ='[12]2.5 Service Life Comp'!K95 -> Communication Equipment | L93: ='[12]2.5 Service Life Comp'!L95 -> 10 | M93: 0.1 | N93: ='[12]2.5 Service Life Comp'!N95 -> 10 | O93: 0.1 | P93: Yes | Q93: No
D94: Wireless | F94: 2 | G94: 10 | J94: ='[12]2.5 Service Life Comp'!J96 -> 1955 | K94: ='[12]2.5 Service Life Comp'!K96 -> Communication Equipment | L94: ='[12]2.5 Service Life Comp'!L96 -> 10 | M94: 0.1 | N94: ='[12]2.5 Service Life Comp'!N96 -> 10 | O94: 0.1 | P94: No | Q94: No
B95: 9 | C95: Residential Energy Meters | F95: 25 | G95: 35 | J95: ='[12]2.5 Service Life Comp'!J97 -> 1860 | K95: ='[12]2.5 Service Life Comp'!K97 -> Meters - Mechanical | L95: ='[12]2.5 Service Life Comp'!L97 -> 25 | M95: 0.04 | N95: ='[12]2.5 Service Life Comp'!N97 -> 25 | O95: 0.04 | P95: No | Q95: No
B96: 10 | C96: Industrial/Commercial Energy Meters | F96: 25 | G96: 35 | J96: ='[12]2.5 Service Life Comp'!J98 -> 1860 | K96: ='[12]2.5 Service Life Comp'!K98 -> Industrial/Commercial Energy Meters | L96: ='[12]2.5 Service Life Comp'!L98 -> 25 | M96: 0.04 | N96: ='[12]2.5 Service Life Comp'!N98 -> 25 | O96: 0.04 | P96: No | Q96: No
B97: 11 | C97: Wholesale Energy Meters | F97: 15 | G97: 30 | J97: ='[12]2.5 Service Life Comp'!J99 -> 1860 | K97: ='[12]2.5 Service Life Comp'!K99 -> Wholesale Energy Meters | L97: ='[12]2.5 Service Life Comp'!L99 -> 15 | M97: 0.06666666667 | N97: ='[12]2.5 Service Life Comp'!N99 -> 15 | O97: 0.06666666667 | P97: No | Q97: No
B98: 12 | C98: Current & Potential Transformer (CT & PT) | F98: 35 | G98: 50 | J98: ='[12]2.5 Service Life Comp'!J100 -> 1860 | K98: ='[12]2.5 Service Life Comp'!K100 -> Current & Potential Transformer (CT & PT) | L98: ='[12]2.5 Service Life Comp'!L100 -> 40 | M98: 0.025 | N98: ='[12]2.5 Service Life Comp'!N100 -> 40 | O98: 0.025 | P98: No | Q98: No
B99: 13 | C99: Smart Meters | F99: 5 | G99: 15 | J99: ='[12]2.5 Service Life Comp'!J101 -> 1860 | K99: ='[12]2.5 Service Life Comp'!K101 -> Smart Meters | L99: ='[12]2.5 Service Life Comp'!L101 -> 15 | M99: 0.06666666667 | N99: ='[12]2.5 Service Life Comp'!N101 -> 15 | O99: 0.06666666667 | P99: No | Q99: No
B100: 14 | C100: Repeaters - Smart Metering | F100: 10 | G100: 15 | J100: ='[12]2.5 Service Life Comp'!J102 -> 1860 | K100: ='[12]2.5 Service Life Comp'!K102 -> Repeaters - Smart Metering | L100: ='[12]2.5 Service Life Comp'!L102 -> 15 | M100: 0.06666666667 | N100: ='[12]2.5 Service Life Comp'!N102 -> 15 | O100: 0.06666666667 | P100: No | Q100: No
B101: 15 | C101: Data Collectors - Smart Metering | F101: 15 | G101: 20 | J101: ='[12]2.5 Service Life Comp'!J103 -> 1860 | K101: ='[12]2.5 Service Life Comp'!K103 -> Data Collectors - Smart Metering | L101: ='[12]2.5 Service Life Comp'!L103 -> 15 | M101: 0.06666666667 | N101: ='[12]2.5 Service Life Comp'!N103 -> 15 | O101: 0.06666666667 | P101: No | Q101: No
A104: * TS & MS = Transformer and Municipal Stations UG = Underground Systems S = Monitoring and Control Systems
A106: Note 1: | B106: Tables F-1 and F-2 above are to be used as a reference in order to complete columns J, K, L and N.
B107: See pages 17-19 of Kinetrics Report

Sheet App.2-CA_OldCGAAP_DepExp_2012
K1: File Number: | L1: =EBNUMBER -> EB-2015-0110
K2: Exhibit: | L2: NA
K3: Tab:
K4: Schedule:
K5: Page:
K7: Date: | L7: Mar-4-2016
A9: Appendix 2-CA
A10: Depreciation and Amortization Expense
B11: Assumes the applicant made capitalization and depreciation expense accounting policy changes under CGAAP effective January 1, 2012 and has adopted IFRS for financial reporting purposes effective January 1, 2015.
C13: Year | D13: 2012 | E13: Former CGAAP
A15: Account | B15: Description | C15: Opening Regulatory Gross PP&E as at Jan 1, 2012 | D15: Less Fully Depreciated | E15: Net for Depreciation | F15: Additions | G15: Total for Depreciation 1 | H15: Years | I15: Depreciation Rate | J15: Depreciation Expense | K15: 2012 Depreciation Expense per Appendix 2-BA Fixed Assets, Column J (l) | L15: Variance 2
C16: (a) | D16: (b) | E16: (c) | F16: (d) | G16: (e) = (c) + ½ x (d) | H16: (f) | I16: (g) = 1 / (f) | J16: (h) = (e) / (f) | L16: (m) = (h) - (l)
A17: 1611 | B17: Computer Software (Formally known as Account 1925) | E17: =C17-D17 -> 0 | G17: =E17+0.5*F17 -> 0 | I17: =IF(H17=0,0,1/H17) -> 0 | J17: =IF(H17=0,0,G17/H17) -> 0 | L17: =IF(ISERROR(+J17-K17), 0, +J17-K17) -> 0
A18: 1612 | B18: Land Rights (Formally known as Account 1906) | E18: =C18-D18 -> 0 | G18: =E18+0.5*F18 -> 0 | I18: 0 | J18: 0 | L18: 0
A19: 1805 | B19: Land | E19: 0 | G19: 0 | I19: 0 | J19: 0 | L19: 0
A20: 1808 | B20: Buildings | E20: 0 | G20: 0 | I20: 0 | J20: 0 | L20: 0
A21: 1810 | B21: Leasehold Improvements | E21: 0 | G21: 0 | I21: 0 | J21: 0 | L21: 0
A22: 1815 | B22: Transformer Station Equipment >50 kV | E22: 0 | G22: 0 | I22: 0 | J22: 0 | L22: 0
A23: 1820 | B23: Distribution Station Equipment <50 kV | E23: 0 | G23: 0 | I23: 0 | J23: 0 | L23: 0
A24: 1825 | B24: Storage Battery Equipment | E24: 0 | G24: 0 | I24: 0 | J24: 0 | L24: 0
A25: 1830 | B25: Poles, Towers & Fixtures | E25: 0 | G25: 0 | I25: 0 | J25: 0 | L25: 0
A26: 1835 | B26: Overhead Conductors & Devices | E26: 0 | G26: 0 | I26: 0 | J26: 0 | L26: 0
A27: 1840 | B27: Underground Conduit | E27: 0 | G27: 0 | I27: 0 | J27: 0 | L27: 0
A28: 1845 | B28: Underground Conductors & Devices | E28: 0 | G28: 0 | I28: 0 | J28: 0 | L28: 0
A29: 1850 | B29: Line Transformers | E29: 0 | G29: 0 | I29: 0 | J29: 0 | L29: 0
A30: 1855 | B30: Services (Overhead & Underground) | E30: 0 | G30: 0 | I30: 0 | J30: 0 | L30: 0
A31: 1860 | B31: Meters | E31: 0 | G31: 0 | I31: 0 | J31: 0 | L31: 0
A32: 1860 | B32: Meters (Smart Meters) | E32: 0 | G32: 0 | I32: 0 | J32: 0 | L32: 0
A33: 1905 | B33: Land | E33: 0 | G33: 0 | I33: 0 | J33: 0 | L33: 0
A34: 1908 | B34: Buildings & Fixtures | E34: 0 | G34: 0 | I34: 0 | J34: 0 | L34: 0
A35: 1910 | B35: Leasehold Improvements | E35: 0 | G35: 0 | I35: 0 | J35: 0 | L35: 0
A36: 1915 | B36: Office Furniture & Equipment (10 years) | E36: 0 | G36: 0 | I36: 0 | J36: 0 | L36: 0
A37: 1915 | B37: Office Furniture & Equipment (5 years) | E37: 0 | G37: 0 | I37: 0 | J37: 0 | L37: 0
A38: 1920 | B38: Computer Equipment - Hardware | E38: 0 | G38: 0 | I38: 0 | J38: 0 | L38: 0
A39: 1920 | B39: Computer Equip.-Hardware(Post Mar. 22/04) | E39: 0 | G39: 0 | I39: 0 | J39: 0 | L39: 0
A40: 1920 | B40: Computer Equip.-Hardware(Post Mar. 19/07) | E40: 0 | G40: 0 | I40: 0 | J40: 0 | L40: 0
A41: 1930 | B41: Transportation Equipment | E41: 0 | G41: 0 | I41: 0 | J41: 0 | L41: 0
A42: 1935 | B42: Stores Equipment | E42: 0 | G42: 0 | I42: 0 | J42: 0 | L42: 0
A43: 1940 | B43: Tools, Shop & Garage Equipment | E43: 0 | G43: 0 | I43: 0 | J43: 0 | L43: 0
A44: 1945 | B44: Measurement & Testing Equipment | E44: 0 | G44: 0 | I44: 0 | J44: 0 | L44: 0
A45: 1950 | B45: Power Operated Equipment | E45: 0 | G45: 0 | I45: 0 | J45: 0 | L45: 0
A46: 1955 | B46: Communications Equipment | E46: 0 | G46: 0 | I46: 0 | J46: 0 | L46: 0
A47: 1955 | B47: Communication Equipment (Smart Meters) | E47: 0 | G47: 0 | I47: 0 | J47: 0 | L47: 0
A48: 1960 | B48: Miscellaneous Equipment | E48: 0 | G48: 0 | I48: 0 | J48: 0 | L48: 0
A49: 1970 | B49: Load Management Controls Customer Premises | E49: 0 | G49: 0 | I49: 0 | J49: 0 | L49: 0
A50: 1975 | B50: Load Management Controls Utility Premises | E50: 0 | G50: 0 | I50: 0 | J50: 0 | L50: 0
A51: 1980 | B51: System Supervisor Equipment | E51: 0 | G51: 0 | I51: 0 | J51: 0 | L51: 0
A52: 1985 | B52: Miscellaneous Fixed Assets | E52: 0 | G52: 0 | I52: 0 | J52: 0 | L52: 0
A53: 1990 | B53: Other Tangible Property | E53: 0 | G53: 0 | I53: 0 | J53: 0 | L53: 0
A54: 1995 | B54: Contributions & Grants | E54: 0 | G54: 0 | I54: 0 | J54: 0 | L54: 0
B55: Total | C55: =SUM(C17:C54) -> 0 | D55: =SUM(D17:D54) -> 0 | E55: =SUM(E17:E54) -> 0 | F55: =SUM(F17:F54) -> 0 | G55: =SUM(G17:G54) -> 0 | J55: =SUM(J17:J54) -> 0 | K55: =SUM(K17:K54) -> 0 | L55: =SUM(L17:L54) -> 0
A57: Notes:
A59: 1 | B59: Board policy of the "half-year" rule - the applicant must ensure that additions in the year attract a half-year depreciation expense in the first year. Deviations from this standard practice must be supported in the application.
A60: 2 | B60: The applicant must provide an explanation of material variances in evidence.
A62: General | B62: Applicants must provide a breakdown of depreciation and amortization expense in the above format for all relevant accounts. Asset Retirement Obligations (AROs), depreciation and accretion expense should be disclosed separately consistent with the Notes of historical Audited Financial Statements.

Sheet App.2-CB_NewCGAAP_DepExp_2012
N1: File Number: | O1: =EBNUMBER -> EB-2015-0110
N2: Exhibit: | O2: 4
N3: Tab: | O3: 4
N4: Schedule: | O4: 2
N5: Page: | O5: 66
N7: Date: | O7: Mar-4-2016
A9: Appendix 2-CB
A10: Depreciation and Amortization Expense
A11: Assumes the applicant made capitalization and depreciation expense accounting policy changes under CGAAP effective January 1, 2012 and has adopted IFRS for financial reporting purposes effective January 1, 2015.
C13: Year | D13: 2012 | E13: Revised CGAAP
A15: Account | B15: Description | C15: Opening NBV as at Jan 1, 2012 5 | D15: Additions | E15: Average Remaining Life of Opening NBV 4 | F15: Years (new additions only) 3 | G15: Depreciation Rate on New Additions | H15: Depreciation Expense on Opening NBV | I15: Depreciation Expense on Additions 1 | J15: 2012 Depreciation Expense | K15: 2012 Depreciation Expense per Appendix 2-BA Fixed Assets, Column J (l) | L15: Variance 2 | M15: Depreciation Expense on 2012 Full Year Additions | N15: Less Depreciation Expense on Assets Fully Depreciated during the year (o) | O15: 2012 Full Year Depreciation 6
C16: (a) | D16: (d) | E16: (i) | F16: (f) | G16: (g) = 1 / (f) | H16: (j) = (a) / (i) | I16: (h)=((d)*0.5)/(f) | J16: (k) = (j) + (h) | L16: (m) = (k) - (l) | M16: (n) = (d)/(f) | O16: (p) = (j) + (n) - (o)
A17: 1611 | B17: Computer Software (Formally known as Account 1925) | C17: ='[12]2.6 Fixed Asset Cont Stmt'!D142-'[12]2.6 Fixed Asset Cont Stmt'!K142+'[12]2.6 Fixed Asset Cont Stmt'!G142 -> 622967.096 | E17: 4.1 | F17: 0 | G17: =IF(F17=0,0,1/F17) -> 0 | H17: =IF(E17=0,0,+C17/E17) -> 151943.1941 | I17: =IF(F17=0,0,+(D17*0.5)/F17) -> 0 | J17: =IF(ISERROR(+H17+I17), 0, +H17+I17) -> 151943.1941 | K17: ='[12]2.9 Depreciation Expenses'!K14 -> 258970.18 | L17: =IF(ISERROR(+J17-K17), 0, +J17-K17) -> -107026.9859 | M17: =IF(F17=0,0,+(D17)/F17) -> 0 | N17: =8751+6900 -> 15651 | O17: =IF(ISERROR(+M17+H17-N17), 0, +M17+H17-N17) -> 136292.1941
A18: 1612 | B18: Land Rights (Formally known as Account 1906) | C18: ='[12]2.6 Fixed Asset Cont Stmt'!D145-'[12]2.6 Fixed Asset Cont Stmt'!K145 -> 6821.05 | D18: ='[12]2.6 Fixed Asset Cont Stmt'!G143+'[12]2.6 Fixed Asset Cont Stmt'!$H$145 -> 1650 | G18: 0 | H18: 0 | I18: 0 | J18: 0 | K18: ='[12]2.9 Depreciation Expenses'!K15 -> 0 | L18: 0 | M18: 0 | O18: =IF(ISERROR(+M18+H18-N18), 0, +M18+H18-N18) -> 0
A19: 1805 | B19: Land | C19: ='[12]2.6 Fixed Asset Cont Stmt'!D144-'[12]2.6 Fixed Asset Cont Stmt'!K144 -> 41987.65 | D19: ='[12]2.9 Depreciation Expenses'!F16 -> 0 | G19: 0 | H19: 0 | I19: 0 | J19: 0 | K19: ='[12]2.9 Depreciation Expenses'!K16 -> 0 | L19: 0 | M19: 0 | O19: 0
A20: 1808 | B20: Buildings | C20: ='[12]2.6 Fixed Asset Cont Stmt'!D146-'[12]2.6 Fixed Asset Cont Stmt'!K146 -> 257918.31 | D20: =SUM('[12]2.6 Fixed Asset Cont Stmt'!G146:G155) -> 56563.57 | E20: 27 | F20: 30 | G20: 0.03333333333 | H20: 9552.53 | I20: 942.7261667 | J20: 10495.25617 | K20: =SUM('[12]2.9 Depreciation Expenses'!K18:K27) -> 10864.17 | L20: -368.9138333 | M20: 1885.452333 | O20: 11437.98233
A21: 1810 | B21: Leasehold Improvements | G21: 0 | H21: 0 | I21: 0 | J21: 0 | L21: 0 | M21: 0 | O21: 0
A22: 1815 | B22: Transformer Station Equipment >50 kV | G22: 0 | H22: 0 | I22: 0 | J22: 0 | L22: 0 | M22: 0 | O22: 0
A23: 1820 | B23: Distribution Station Equipment <50 kV | C23: ='[12]2.6 Fixed Asset Cont Stmt'!D156-'[12]2.6 Fixed Asset Cont Stmt'!K156 -> 371540.94 | D23: =SUM('[12]2.6 Fixed Asset Cont Stmt'!G156:G163) -> 9565.2 | E23: 25.5 | F23: 40 | G23: 0.025 | H23: 14570.23294 | I23: 119.565 | J23: 14689.79794 | K23: =SUM('[12]2.9 Depreciation Expenses'!K28:K35) -> 14659.81 | L23: 29.98794118 | M23: 239.13 | O23: 14809.36294
A24: 1825 | B24: Storage Battery Equipment | G24: 0 | H24: 0 | I24: 0 | J24: 0 | L24: 0 | M24: 0 | O24: 0
A25: 1830 | B25: Poles, Towers & Fixtures | C25: ='[12]2.6 Fixed Asset Cont Stmt'!D164-'[12]2.6 Fixed Asset Cont Stmt'!K164 -> 1836508.81 | D25: =SUM('[12]2.6 Fixed Asset Cont Stmt'!G164:G166) -> 126330.84 | E25: 39.5 | F25: 45 | G25: 0.02222222222 | H25: 46493.89392 | I25: 1403.676 | J25: 47897.56992 | K25: =SUM('[12]2.9 Depreciation Expenses'!K36:K38) -> 47579.24 | L25: 318.3299241 | M25: 2807.352 | N25: 1415 | O25: 47886.24592
A26: 1835 | B26: Overhead Conductors & Devices | C26: ='[12]2.6 Fixed Asset Cont Stmt'!D167-'[12]2.6 Fixed Asset Cont Stmt'!K167 -> 294587.18 | D26: =SUM('[12]2.6 Fixed Asset Cont Stmt'!G167:G168) -> 116504.72 | E26: 47 | F26: 60 | G26: 0.01666666667 | H26: 6267.81234 | I26: 970.8726667 | J26: 7238.685007 | K26: ='[12]2.9 Depreciation Expenses'!K39 -> 7554.44 | L26: -315.7549929 | M26: 1941.745333 | O26: 8209.557674
A27: 1840 | B27: Underground Conduit | C27: ='[12]2.6 Fixed Asset Cont Stmt'!D169-'[12]2.6 Fixed Asset Cont Stmt'!K169 -> -0.28 | D27: =SUM('[12]2.6 Fixed Asset Cont Stmt'!G169:G171) -> 888 | F27: 55 | G27: 0.01818181818 | H27: 0 | I27: 8.072727273 | J27: 8.072727273 | K27: ='[12]2.9 Depreciation Expenses'!K42 -> 8.88 | L27: -0.8072727273 | M27: 16.14545455 | O27: 16.14545455
A28: 1845 | B28: Underground Conductors & Devices | C28: ='[12]2.6 Fixed Asset Cont Stmt'!D172-'[12]2.6 Fixed Asset Cont Stmt'!K172 -> 316239.73 | D28: ='[12]2.6 Fixed Asset Cont Stmt'!G172 -> 22149.88 | E28: 32 | F28: 55 | G28: 0.01818181818 | H28: 9882.491562 | I28: 201.3625455 | J28: 10083.85411 | K28: ='[12]2.9 Depreciation Expenses'!K44 -> 9646.06 | L28: 437.794108 | M28: 402.7250909 | O28: 10285.21665
A29: 1850 | B29: Line Transformers | C29: ='[12]2.6 Fixed Asset Cont Stmt'!D173-'[12]2.6 Fixed Asset Cont Stmt'!K173 -> 774629.75 | D29: =SUM('[12]2.6 Fixed Asset Cont Stmt'!G174:G176) -> 99196.25 | E29: 35 | F29: 40 | G29: 0.025 | H29: 22132.27857 | I29: 1239.953125 | J29: 23372.2317 | K29: ='[12]2.9 Depreciation Expenses'!K47 -> 13205.84 | L29: 10166.3917 | M29: 2479.90625 | O29: 24612.18482
A30: 1855 | B30: Services (Overhead & Underground) | C30: ='[12]2.6 Fixed Asset Cont Stmt'!D177-'[12]2.6 Fixed Asset Cont Stmt'!K177 -> 123381.51 | D30: =SUM('[12]2.6 Fixed Asset Cont Stmt'!G177:G178) -> 27651.31 | E30: 39 | F30: 50 | G30: 0.02 | H30: 3163.628462 | I30: 276.5131 | J30: 3440.141562 | K30: =SUM('[12]2.9 Depreciation Expenses'!K49:K50) -> 12400.99 | L30: -8960.848438 | M30: 553.0262 | O30: 3716.654662
A31: 1860 | B31: Meters | C31: ='[12]2.6 Fixed Asset Cont Stmt'!D179-'[12]2.6 Fixed Asset Cont Stmt'!K179+'[12]2.6 Fixed Asset Cont Stmt'!$H$188-'[12]2.6 Fixed Asset Cont Stmt'!$O$188 -> 112198.2 | D31: ='[12]2.6 Fixed Asset Cont Stmt'!G180 -> 13987 | E31: 12.5 | F31: 15 | G31: 0.06666666667 | H31: 8975.856 | I31: 466.2333333 | J31: 9442.089333 | K31: =SUM('[12]2.9 Depreciation Expenses'!K51:K55) -> 7903.16 | L31: 1538.929333 | M31: 932.4666667 | N31: 2766 | O31: 7142.322667
A32: 1860 | B32: Meters (Smart Meters) | C32: ='[12]2.6 Fixed Asset Cont Stmt'!G185 -> 614067.85 | E32: 14 | F32: 0 | G32: 0 | H32: 43861.98929 | I32: =IF(F32=0,0,+(D32)/F32) -> 0 | J32: 43861.98929 | K32: ='[12]2.9 Depreciation Expenses'!K57 -> 125034.89 | L32: -81172.90071 | M32: 0 | N32: -1745 | O32: 45606.98929
A33: 1905 | B33: Land | G33: 0 | H33: 0 | I33: 0 | J33: 0 | L33: 0 | M33: 0 | O33: 0
A34: 1908 | B34: Buildings & Fixtures | G34: 0 | H34: 0 | I34: 0 | J34: 0 | L34: 0 | M34: 0 | O34: 0
A35: 1910 | B35: Leasehold Improvements | G35: 0 | H35: 0 | I35: 0 | J35: 0 | L35: 0 | M35: 0 | O35: 0
A36: 1915 | B36: Office Furniture & Equipment (10 years) | C36: ='[12]2.6 Fixed Asset Cont Stmt'!D189-'[12]2.6 Fixed Asset Cont Stmt'!K189 -> 42721.0475 | D36: ='[12]2.6 Fixed Asset Cont Stmt'!G189 -> 0 | E36: 4.2 | F36: 10 | G36: 0.1 | H36: 10171.67798 | I36: 0 | J36: 10171.67798 | K36: ='[12]2.9 Depreciation Expenses'!K61 -> 10479.71 | L36: -308.0320238 | M36: 0 | O36: 10171.67798
A37: 1915 | B37: Office Furniture & Equipment (5 years) | G37: 0 | H37: 0 | I37: 0 | J37: 0 | L37: 0 | M37: 0 | O37: 0
A38: 1920 | B38: Computer Equipment - Hardware | G38: 0 | H38: 0 | I38: 0 | J38: 0 | L38: 0 | M38: 0 | O38: 0
A39: 1920 | B39: Computer Equip.-Hardware(Post Mar. 22/04) | C39: ='[12]2.6 Fixed Asset Cont Stmt'!D190-'[12]2.6 Fixed Asset Cont Stmt'!K190 -> 151983.08 | D39: ='[12]2.6 Fixed Asset Cont Stmt'!G190 -> 62866.72 | E39: 6.6 | F39: 5 | G39: 0.2 | H39: 23027.73939 | I39: 6286.672 | J39: 29314.41139 | K39: ='[12]2.9 Depreciation Expenses'!K62 -> 43538.27 | L39: -14223.85861 | M39: 12573.344 | N39: 4851 | O39: 30750.08339
A40: 1920 | B40: Computer Equip.-Hardware(Post Mar. 19/07) | G40: 0 | H40: 0 | I40: 0 | J40: 0 | L40: 0 | M40: 0 | O40: 0
A41: 1930 | B41: Transportation Equipment | C41: ='[12]2.6 Fixed Asset Cont Stmt'!D191-'[12]2.6 Fixed Asset Cont Stmt'!K191 -> 208070.555 | D41: ='[12]2.6 Fixed Asset Cont Stmt'!G193 -> 0 | E41: 4 | G41: 0 | H41: 52017.63875 | I41: 0 | J41: 52017.63875 | K41: =SUM('[12]2.9 Depreciation Expenses'!K63:K65) -> 62157.22 | L41: -10139.58125 | M41: 0 | N41: 0 | O41: 52017.63875
A42: 1935 | B42: Stores Equipment | C42: ='[12]2.6 Fixed Asset Cont Stmt'!E194-'[12]2.6 Fixed Asset Cont Stmt'!K194 -> -0.05 | D42: ='[12]2.6 Fixed Asset Cont Stmt'!G194 -> 1842.19 | F42: 8 | G42: 0.125 | H42: 0 | I42: 115.136875 | J42: 115.136875 | K42: ='[12]2.9 Depreciation Expenses'!K66 -> 115.14 | L42: -0.003125 | M42: 230.27375 | O42: 230.27375
A43: 1940 | B43: Tools, Shop & Garage Equipment | C43: ='[12]2.6 Fixed Asset Cont Stmt'!D195-'[12]2.6 Fixed Asset Cont Stmt'!K195 -> 0 | D43: ='[12]2.6 Fixed Asset Cont Stmt'!G195 -> 4400 | F43: 10 | G43: 0.1 | H43: 0 | I43: 220 | J43: 220 | K43: ='[12]2.9 Depreciation Expenses'!K67 -> 48.7 | L43: 171.3 | M43: 440 | O43: 440
A44: 1945 | B44: Measurement & Testing Equipment | C44: ='[12]2.6 Fixed Asset Cont Stmt'!D196-'[12]2.6 Fixed Asset Cont Stmt'!K196 -> 0.22 | D44: ='[12]2.6 Fixed Asset Cont Stmt'!G196 -> 0 | G44: 0 | H44: 0 | I44: 0 | J44: 0 | L44: 0 | M44: 0 | O44: 0
A45: 1950 | B45: Power Operated Equipment | G45: 0 | H45: 0 | I45: 0 | J45: 0 | L45: 0 | M45: 0 | O45: 0
A46: 1955 | B46: Communications Equipment | C46: ='[12]2.6 Fixed Asset Cont Stmt'!D197-'[12]2.6 Fixed Asset Cont Stmt'!K197 -> 9055.07 | D46: ='[12]2.6 Fixed Asset Cont Stmt'!G197 -> 4995 | E46: 4.03 | F46: 5 | G46: 0.2 | H46: 2246.915633 | I46: 499.5 | J46: 2746.415633 | K46: ='[12]2.9 Depreciation Expenses'!K69 -> 2746.13 | L46: 0.2856327543 | M46: 999 | O46: 3245.915633
A47: 1955 | B47: Communication Equipment (Smart Meters) | C47: =SUM('[12]2.6 Fixed Asset Cont Stmt'!G186:G187)-24432 -> 63456.61 | E47: 3.2 | F47: 5 | G47: 0.2 | H47: 19830.19062 | I47: 0 | J47: 19830.19062 | K47: =SUM('[12]2.9 Depreciation Expenses'!K58:K59) -> 31502.34 | L47: -11672.14937 | M47: 0 | N47: =24432/3 -> 8144 | O47: 11686.19062
A48: 1960 | B48: Miscellaneous Equipment | G48: 0 | H48: 0 | I48: 0 | J48: 0 | L48: 0 | M48: 0 | O48: 0
A49: 1970 | B49: Load Management Controls Customer Premises | G49: 0 | H49: 0 | I49: 0 | J49: 0 | L49: 0 | M49: 0 | O49: 0
A50: 1975 | B50: Load Management Controls Utility Premises | G50: 0 | H50: 0 | I50: 0 | J50: 0 | L50: 0 | M50: 0 | O50: 0
A51: 1980 | B51: System Supervisor Equipment | C51: ='[12]2.6 Fixed Asset Cont Stmt'!D198-'[12]2.6 Fixed Asset Cont Stmt'!K198 -> 111801.39 | D51: ='[12]2.6 Fixed Asset Cont Stmt'!G198 -> 3810 | E51: 8.2 | F51: 10 | G51: 0.1 | H51: 13634.31585 | I51: 190.5 | J51: 13824.81585 | K51: ='[12]2.9 Depreciation Expenses'!K70 -> 13844.13 | L51: -19.31414634 | M51: 381 | O51: 14015.31585
A52: 1985 | B52: Miscellaneous Fixed Assets | C52: ='[12]2.6 Fixed Asset Cont Stmt'!D199-'[12]2.6 Fixed Asset Cont Stmt'!K199 -> 0 | D52: ='[12]2.6 Fixed Asset Cont Stmt'!G199 -> 0 | G52: 0 | H52: 0 | I52: 0 | J52: 0 | L52: 0 | M52: 0 | O52: 0
A53: 1990 | B53: Other Tangible Property | G53: 0 | H53: 0 | I53: 0 | J53: 0 | L53: 0 | M53: 0 | O53: 0
A54: 1995 | B54: Contributions & Grants | C54: ='[12]2.6 Fixed Asset Cont Stmt'!D200-'[12]2.6 Fixed Asset Cont Stmt'!K200 -> -344257.15 | D54: ='[12]2.6 Fixed Asset Cont Stmt'!G200 -> -4691.01 | E54: 39.5 | F54: 45 | G54: 0.02222222222 | H54: -8715.370886 | I54: -52.12233333 | J54: -8767.493219 | K54: ='[12]2.9 Depreciation Expenses'!K72 -> -17084.28 | L54: 8316.786781 | M54: -104.2446667 | O54: -8819.615553
B55: Total | C55: =SUM(C17:C54) -> 5615678.569 | D55: =SUM(D17:D54) -> 547709.67 | H55: =SUM(H17:H54) -> 429057.0146 | I55: 12888.66121 | J55: 441945.6758 | K55: 655175.02 | L55: -213229.3442 | M55: 25777.32241 | N55: 31082 | O55: 423752.337
A57: Notes:
A59: 1 | B59: Board policy of the "half-year" rule - the applicant must ensure that additions in the year attract a half-year depreciation expense in the first year. Deviations from this standard practice must be supported in the application.
A60: 2 | B60: The applicant must provide an explanation of material variances in evidence.
A61: 3 | B61: The applicant should ensure that the years for new additions of assets are the asset useful lives determined by management in accordance with the Board's regulatory accounting policies. The capitalization and depreciation expense accounting changes should be implemented consistent with the Board’s regulatory accounting policies as set out for modified IFRS as contained in the Report of the Board, Transition to International Financial Reporting Standards, EB-2008-0408, the Kinectrics Report, and the Revised 2012 Accounting Procedures Handbook for Electricity Distributors (“APH”).
A62: 4 | B62: A recalculation should be performed to determine the average remaining life of opening balance of assets (i.e. excluding 2012 additions) under the change in policies under CGAAP. For example, Asset A had a useful life of 20 years under CGAAP without the change in policies. On January 1, 2012, the effective date of the changes in policies, Asset A was 3 years depreciated. As a result, Asset A would have a remaining service life of 17 years (20 years less 3 years) as of January 1, 2012. Due to making the change in policies under CGAAP, management re-assessed the asset useful lives and concluded that the revised useful life of Asset A is now 30 years. Therefore, the average remaining useful life of the opening balance of Asset A is determined to be 27 years (30 years less 3 years) under the revised CGAAP as of January 1, 2012.
A63: 5 | B63: NBV must exclude assets still on the books but which have been fully amortized or depreciated.
A64: 6 | B64: This column refers to the calculated full year depreciation but excludes the depreciation expense on assets fully depreciated during the year. This column is used for the purpose of calculating depreciation expense in the following year on the next worksheet.
A66: General: | B66: Applicants must provide a breakdown of depreciation and amortization expense in the above format for all relevant accounts. Asset Retirement Obligations (AROs), depreciation and accretion expense should be disclosed separately consistent with the Notes of historical Audited Financial Statements.

Sheet App.2-CC_NewCGAAP_DepExp_2013
J1: File Number: | K1: =EBNUMBER -> EB-2015-0110
J2: Exhibit: | K2: 4
J3: Tab: | K3: 4
J4: Schedule: | K4: 2
J5: Page: | K5: 67
J7: Date: | K7: Mar-4-2016
A9: Appendix 2-CC
A10: Depreciation and Amortization Expense
A11: Assumes the applicant made capitalization and depreciation expense accounting policy changes under CGAAP effective January 1, 2012 and has adopted IFRS for financial reporting purposes effective January 1, 2015.
C13: 2013 | D13: Revised CGAAP
A15: Account | B15: Description | C15: Additions | D15: Years (new additions only) | E15: Depreciation Rate on New Additions | F15: 2013 Depreciation Expense 1 | G15: 2013 Depreciation Expense per Apppendix 2-BA Fixed Assets, Column J (l) | H15: Variance 2 | I15: Depreciation Expense on 2013 Full Year Additions | J15: Less Depreciation Expense on Assets Fully Depreciated during the year (o) | K15: 2013 Full Year Depreciation 3
C16: (d) | D16: (f) | E16: (g) = 1 / (f) | F16: (h)=2012 Full Year Deprecation + ((d)*0.5)/(f) | H16: (m) = (h) - (l) | I16: (n)=((d))/(f) | K16: (p) = 2012 Full Year Depreciation + (n) - (o)
A17: 1611 | B17: Computer Software (Formally known as Account 1925) | C17: ='[12]2.6 Fixed Asset Cont Stmt'!E221 -> 10143.28 | D17: 5 | E17: =IF(D17=0,0,1/D17) -> 0.2 | F17: =IF(D17=0,+'App.2-CB_NewCGAAP_DepExp_2012'!O17,+'App.2-CB_NewCGAAP_DepExp_2012'!O17+((C17*0.5)/D17)) -> 137306.5221 | G17: ='[12]2.6 Fixed Asset Cont Stmt'!K221 -> 137479.33 | H17: =IF(ISERROR(+F17-G17), 0, +F17-G17) -> -172.8078537 | I17: =IF(D17=0,0,+(C17)/D17) -> 2028.656 | J17: 7912 | K17: =IF(ISERROR(+I17+'App.2-CB_NewCGAAP_DepExp_2012'!O17-J17), 0, +I17+'App.2-CB_NewCGAAP_DepExp_2012'!O17-J17) -> 130408.8501
A18: 1612 | B18: Land Rights (Formally known as Account 1906) | C18: ='[12]2.6 Fixed Asset Cont Stmt'!E222 -> 10768.5 | E18: 0 | F18: =IF(D18=0,+'App.2-CB_NewCGAAP_DepExp_2012'!O18,+'App.2-CB_NewCGAAP_DepExp_2012'!O18+((C18*0.5)/D18)) -> 0 | H18: 0 | I18: 0 | K18: =IF(ISERROR(+I18+'App.2-CB_NewCGAAP_DepExp_2012'!O18-J18), 0, +I18+'App.2-CB_NewCGAAP_DepExp_2012'!O18-J18) -> 0
A19: 1805 | B19: Land | E19: 0 | F19: =IF(D19=0,+'App.2-CB_NewCGAAP_DepExp_2012'!O19,+'App.2-CB_NewCGAAP_DepExp_2012'!O19+((C19*0.5)/D19)) -> 0 | H19: 0 | I19: 0 | K19: =IF(ISERROR(+I19+'App.2-CB_NewCGAAP_DepExp_2012'!O19-J19), 0, +I19+'App.2-CB_NewCGAAP_DepExp_2012'!O19-J19) -> 0
A20: 1808 | B20: Buildings | C20: =SUM('[12]2.6 Fixed Asset Cont Stmt'!E225:E234) -> 3450 | D20: 60 | E20: 0.01666666667 | F20: =IF(D20=0,+'App.2-CB_NewCGAAP_DepExp_2012'!O20,+'App.2-CB_NewCGAAP_DepExp_2012'!O20+((C20*0.5)/D20)) -> 11466.73233 | G20: =SUM('[12]2.6 Fixed Asset Cont Stmt'!K225:K234) -> 11807.06 | H20: -340.3276667 | I20: 57.5 | K20: =IF(ISERROR(+I20+'App.2-CB_NewCGAAP_DepExp_2012'!O20-J20), 0, +I20+'App.2-CB_NewCGAAP_DepExp_2012'!O20-J20) -> 11495.48233
A21: 1810 | B21: Leasehold Improvements | E21: 0 | F21: =IF(D21=0,+'App.2-CB_NewCGAAP_DepExp_2012'!O21,+'App.2-CB_NewCGAAP_DepExp_2012'!O21+((C21*0.5)/D21)) -> 0 | H21: 0 | I21: 0 | K21: =IF(ISERROR(+I21+'App.2-CB_NewCGAAP_DepExp_2012'!O21-J21), 0, +I21+'App.2-CB_NewCGAAP_DepExp_2012'!O21-J21) -> 0
A22: 1815 | B22: Transformer Station Equipment >50 kV | E22: 0 | F22: =IF(D22=0,+'App.2-CB_NewCGAAP_DepExp_2012'!O22,+'App.2-CB_NewCGAAP_DepExp_2012'!O22+((C22*0.5)/D22)) -> 0 | H22: 0 | I22: 0 | K22: =IF(ISERROR(+I22+'App.2-CB_NewCGAAP_DepExp_2012'!O22-J22), 0, +I22+'App.2-CB_NewCGAAP_DepExp_2012'!O22-J22) -> 0
A23: 1820 | B23: Distribution Station Equipment <50 kV | C23: =SUM('[12]2.6 Fixed Asset Cont Stmt'!E235:E242) -> 49608.95 | D23: 45 | E23: 0.02222222222 | F23: =IF(D23=0,+'App.2-CB_NewCGAAP_DepExp_2012'!O23,+'App.2-CB_NewCGAAP_DepExp_2012'!O23+((C23*0.5)/D23)) -> 15360.5735 | G23: =SUM('[12]2.6 Fixed Asset Cont Stmt'!K235:K242) -> 15289.64 | H23: 70.93349673 | I23: 1102.421111 | K23: =IF(ISERROR(+I23+'App.2-CB_NewCGAAP_DepExp_2012'!O23-J23), 0, +I23+'App.2-CB_NewCGAAP_DepExp_2012'!O23-J23) -> 15911.78405
A24: 1825 | B24: Storage Battery Equipment | E24: 0 | F24: =IF(D24=0,+'App.2-CB_NewCGAAP_DepExp_2012'!O24,+'App.2-CB_NewCGAAP_DepExp_2012'!O24+((C24*0.5)/D24)) -> 0 | H24: 0 | I24: 0 | K24: =IF(ISERROR(+I24+'App.2-CB_NewCGAAP_DepExp_2012'!O24-J24), 0, +I24+'App.2-CB_NewCGAAP_DepExp_2012'!O24-J24) -> 0
A25: 1830 | B25: Poles, Towers & Fixtures | C25: =SUM('[12]2.6 Fixed Asset Cont Stmt'!E243:E245) -> 127006.12 | D25: 45 | E25: 0.02222222222 | F25: =IF(D25=0,+'App.2-CB_NewCGAAP_DepExp_2012'!O25,+'App.2-CB_NewCGAAP_DepExp_2012'!O25+((C25*0.5)/D25)) -> 49297.42504 | G25: =SUM('[12]2.6 Fixed Asset Cont Stmt'!K243:K245) -> 46951.57 | H25: 2345.855035 | I25: 2822.358222 | K25: =IF(ISERROR(+I25+'App.2-CB_NewCGAAP_DepExp_2012'!O25-J25), 0, +I25+'App.2-CB_NewCGAAP_DepExp_2012'!O25-J25) -> 50708.60415
A26: 1835 | B26: Overhead Conductors & Devices | C26: =SUM('[12]2.6 Fixed Asset Cont Stmt'!E246:E247) -> 64608.98 | D26: 60 | E26: 0.01666666667 | F26: =IF(D26=0,+'App.2-CB_NewCGAAP_DepExp_2012'!O26,+'App.2-CB_NewCGAAP_DepExp_2012'!O26+((C26*0.5)/D26)) -> 8747.96584 | G26: =SUM('[12]2.6 Fixed Asset Cont Stmt'!K246:K247) -> 3013.34 | H26: 5734.62584 | I26: 1076.816333 | K26: =IF(ISERROR(+I26+'App.2-CB_NewCGAAP_DepExp_2012'!O26-J26), 0, +I26+'App.2-CB_NewCGAAP_DepExp_2012'!O26-J26) -> 9286.374007
A27: 1840 | B27: Underground Conduit | E27: 0 | F27: =IF(D27=0,+'App.2-CB_NewCGAAP_DepExp_2012'!O27,+'App.2-CB_NewCGAAP_DepExp_2012'!O27+((C27*0.5)/D27)) -> 16.14545455 | G27: =SUM('[12]2.6 Fixed Asset Cont Stmt'!K249:K250) -> 106 | H27: -89.85454545 | I27: 0 | K27: =IF(ISERROR(+I27+'App.2-CB_NewCGAAP_DepExp_2012'!O27-J27), 0, +I27+'App.2-CB_NewCGAAP_DepExp_2012'!O27-J27) -> 16.14545455
A28: 1845 | B28: Underground Conductors & Devices | C28: ='[12]2.6 Fixed Asset Cont Stmt'!E251 -> 5261.28 | D28: 55 | E28: 0.01818181818 | F28: =IF(D28=0,+'App.2-CB_NewCGAAP_DepExp_2012'!O28,+'App.2-CB_NewCGAAP_DepExp_2012'!O28+((C28*0.5)/D28)) -> 10333.04647 | G28: ='[12]2.6 Fixed Asset Cont Stmt'!K251 -> 10780.81 | H28: -447.7635284 | I28: 95.65963636 | K28: =IF(ISERROR(+I28+'App.2-CB_NewCGAAP_DepExp_2012'!O28-J28), 0, +I28+'App.2-CB_NewCGAAP_DepExp_2012'!O28-J28) -> 10380.87629
A29: 1850 | B29: Line Transformers | C29: =SUM('[12]2.6 Fixed Asset Cont Stmt'!E252:E255) -> 83750.44 | D29: 40 | E29: 0.025 | F29: =IF(D29=0,+'App.2-CB_NewCGAAP_DepExp_2012'!O29,+'App.2-CB_NewCGAAP_DepExp_2012'!O29+((C29*0.5)/D29)) -> 25659.06532 | G29: =SUM('[12]2.6 Fixed Asset Cont Stmt'!K252:K255) -> 8205.12 | H29: 17453.94532 | I29: 2093.761 | K29: =IF(ISERROR(+I29+'App.2-CB_NewCGAAP_DepExp_2012'!O29-J29), 0, +I29+'App.2-CB_NewCGAAP_DepExp_2012'!O29-J29) -> 26705.94582
A30: 1855 | B30: Services (Overhead & Underground) | C30: =SUM('[12]2.6 Fixed Asset Cont Stmt'!E256:E257) -> 42588.75 | D30: 50 | E30: 0.02 | F30: =IF(D30=0,+'App.2-CB_NewCGAAP_DepExp_2012'!O30,+'App.2-CB_NewCGAAP_DepExp_2012'!O30+((C30*0.5)/D30)) -> 4142.542162 | G30: =SUM('[12]2.6 Fixed Asset Cont Stmt'!K256:K257) -> 4068 | H30: 74.54216154 | I30: 851.775 | K30: =IF(ISERROR(+I30+'App.2-CB_NewCGAAP_DepExp_2012'!O30-J30), 0, +I30+'App.2-CB_NewCGAAP_DepExp_2012'!O30-J30) -> 4568.429662
A31: 1860 | B31: Meters | C31: =SUM('[12]2.6 Fixed Asset Cont Stmt'!E260:E263) -> 21470.32 | D31: 15 | E31: 0.06666666667 | F31: =IF(D31=0,+'App.2-CB_NewCGAAP_DepExp_2012'!O31,+'App.2-CB_NewCGAAP_DepExp_2012'!O31+((C31*0.5)/D31)) -> 7858 | G31: =SUM('[12]2.6 Fixed Asset Cont Stmt'!K258:K263) -> 5031.8 | H31: 2826.2 | I31: 1431.354667 | K31: =IF(ISERROR(+I31+'App.2-CB_NewCGAAP_DepExp_2012'!O31-J31), 0, +I31+'App.2-CB_NewCGAAP_DepExp_2012'!O31-J31) -> 8573.677333
A32: 1860 | B32: Meters (Smart Meters) | C32: =SUM('[12]2.6 Fixed Asset Cont Stmt'!E264) -> 907.21 | D32: 15 | E32: 0.06666666667 | F32: =IF(D32=0,+'App.2-CB_NewCGAAP_DepExp_2012'!O32,+'App.2-CB_NewCGAAP_DepExp_2012'!O32+((C32*0.5)/D32)) -> 45637.22962 | G32: ='[12]2.6 Fixed Asset Cont Stmt'!K264 -> 44028.97 | H32: 1608.259619 | I32: 60.48066667 | J32: 427 | K32: =IF(ISERROR(+I32+'App.2-CB_NewCGAAP_DepExp_2012'!O32-J32), 0, +I32+'App.2-CB_NewCGAAP_DepExp_2012'!O32-J32) -> 45240.46995
A33: 1905 | B33: Land | E33: 0 | F33: =IF(D33=0,+'App.2-CB_NewCGAAP_DepExp_2012'!O33,+'App.2-CB_NewCGAAP_DepExp_2012'!O33+((C33*0.5)/D33)) -> 0 | H33: 0 | I33: 0 | K33: =IF(ISERROR(+I33+'App.2-CB_NewCGAAP_DepExp_2012'!O33-J33), 0, +I33+'App.2-CB_NewCGAAP_DepExp_2012'!O33-J33) -> 0
A34: 1908 | B34: Buildings & Fixtures | E34: 0 | F34: =IF(D34=0,+'App.2-CB_NewCGAAP_DepExp_2012'!O34,+'App.2-CB_NewCGAAP_DepExp_2012'!O34+((C34*0.5)/D34)) -> 0 | H34: 0 | I34: 0 | K34: =IF(ISERROR(+I34+'App.2-CB_NewCGAAP_DepExp_2012'!O34-J34), 0, +I34+'App.2-CB_NewCGAAP_DepExp_2012'!O34-J34) -> 0
A35: 1910 | B35: Leasehold Improvements | E35: 0 | F35: =IF(D35=0,+'App.2-CB_NewCGAAP_DepExp_2012'!O35,+'App.2-CB_NewCGAAP_DepExp_2012'!O35+((C35*0.5)/D35)) -> 0 | H35: 0 | I35: 0 | K35: =IF(ISERROR(+I35+'App.2-CB_NewCGAAP_DepExp_2012'!O35-J35), 0, +I35+'App.2-CB_NewCGAAP_DepExp_2012'!O35-J35) -> 0
A36: 1915 | B36: Office Furniture & Equipment (10 years) | C36: ='[12]2.6 Fixed Asset Cont Stmt'!E268 -> 16600 | D36: 10 | E36: 0.1 | F36: =IF(D36=0,+'App.2-CB_NewCGAAP_DepExp_2012'!O36,+'App.2-CB_NewCGAAP_DepExp_2012'!O36+((C36*0.5)/D36)) -> 11001.67798 | G36: =SUM('[12]2.6 Fixed Asset Cont Stmt'!K268) -> 10671.35 | H36: 330.3279762 | I36: 1660 | J36: 1155 | K36: =IF(ISERROR(+I36+'App.2-CB_NewCGAAP_DepExp_2012'!O36-J36), 0, +I36+'App.2-CB_NewCGAAP_DepExp_2012'!O36-J36) -> 10676.67798
A37: 1915 | B37: Office Furniture & Equipment (5 years) | E37: 0 | F37: =IF(D37=0,+'App.2-CB_NewCGAAP_DepExp_2012'!O37,+'App.2-CB_NewCGAAP_DepExp_2012'!O37+((C37*0.5)/D37)) -> 0 | H37: 0 | I37: 0 | K37: =IF(ISERROR(+I37+'App.2-CB_NewCGAAP_DepExp_2012'!O37-J37), 0, +I37+'App.2-CB_NewCGAAP_DepExp_2012'!O37-J37) -> 0
A38: 1920 | B38: Computer Equipment - Hardware | E38: 0 | F38: =IF(D38=0,+'App.2-CB_NewCGAAP_DepExp_2012'!O38,+'App.2-CB_NewCGAAP_DepExp_2012'!O38+((C38*0.5)/D38)) -> 0 | H38: 0 | I38: 0 | K38: =IF(ISERROR(+I38+'App.2-CB_NewCGAAP_DepExp_2012'!O38-J38), 0, +I38+'App.2-CB_NewCGAAP_DepExp_2012'!O38-J38) -> 0
A39: 1920 | B39: Computer Equip.-Hardware(Post Mar. 22/04) | C39: =SUM('[12]2.6 Fixed Asset Cont Stmt'!E269) -> 8886.47 | D39: 5 | E39: 0.2 | F39: =IF(D39=0,+'App.2-CB_NewCGAAP_DepExp_2012'!O39,+'App.2-CB_NewCGAAP_DepExp_2012'!O39+((C39*0.5)/D39)) -> 31638.73039 | G39: ='[12]2.6 Fixed Asset Cont Stmt'!K269 -> 31281.64 | H39: 357.0903939 | I39: 1777.294 | J39: 6626 | K39: =IF(ISERROR(+I39+'App.2-CB_NewCGAAP_DepExp_2012'!O39-J39), 0, +I39+'App.2-CB_NewCGAAP_DepExp_2012'!O39-J39) -> 25901.37739
A40: 1920 | B40: Computer Equip.-Hardware(Post Mar. 19/07) | E40: 0 | F40: =IF(D40=0,+'App.2-CB_NewCGAAP_DepExp_2012'!O40,+'App.2-CB_NewCGAAP_DepExp_2012'!O40+((C40*0.5)/D40)) -> 0 | H40: 0 | I40: 0 | K40: =IF(ISERROR(+I40+'App.2-CB_NewCGAAP_DepExp_2012'!O40-J40), 0, +I40+'App.2-CB_NewCGAAP_DepExp_2012'!O40-J40) -> 0
A41: 1930 | B41: Transportation Equipment | C41: =SUM('[12]2.6 Fixed Asset Cont Stmt'!E270:E272) -> 309830.79 | D41: 8 | E41: 0.125 | F41: =IF(D41=0,+'App.2-CB_NewCGAAP_DepExp_2012'!O41,+'App.2-CB_NewCGAAP_DepExp_2012'!O41+((C41*0.5)/D41)) -> 71382.06313 | G41: =SUM('[12]2.6 Fixed Asset Cont Stmt'!K270:K272) -> 72184.43 | H41: -802.366875 | I41: 38728.84875 | J41: 6888 | K41: =IF(ISERROR(+I41+'App.2-CB_NewCGAAP_DepExp_2012'!O41-J41), 0, +I41+'App.2-CB_NewCGAAP_DepExp_2012'!O41-J41) -> 83858.4875
A42: 1935 | B42: Stores Equipment | E42: 0 | F42: =IF(D42=0,+'App.2-CB_NewCGAAP_DepExp_2012'!O42,+'App.2-CB_NewCGAAP_DepExp_2012'!O42+((C42*0.5)/D42)) -> 230.27375 | G42: ='[12]2.6 Fixed Asset Cont Stmt'!K273 -> 230.28 | H42: -0.00625 | I42: 0 | K42: =IF(ISERROR(+I42+'App.2-CB_NewCGAAP_DepExp_2012'!O42-J42), 0, +I42+'App.2-CB_NewCGAAP_DepExp_2012'!O42-J42) -> 230.27375
A43: 1940 | B43: Tools, Shop & Garage Equipment | E43: 0 | F43: =IF(D43=0,+'App.2-CB_NewCGAAP_DepExp_2012'!O43,+'App.2-CB_NewCGAAP_DepExp_2012'!O43+((C43*0.5)/D43)) -> 440 | G43: ='[12]2.6 Fixed Asset Cont Stmt'!K274 -> 708.87 | H43: -268.87 | I43: 0 | K43: =IF(ISERROR(+I43+'App.2-CB_NewCGAAP_DepExp_2012'!O43-J43), 0, +I43+'App.2-CB_NewCGAAP_DepExp_2012'!O43-J43) -> 440
A44: 1945 | B44: Measurement & Testing Equipment | E44: 0 | F44: =IF(D44=0,+'App.2-CB_NewCGAAP_DepExp_2012'!O44,+'App.2-CB_NewCGAAP_DepExp_2012'!O44+((C44*0.5)/D44)) -> 0 | H44: 0 | I44: 0 | K44: =IF(ISERROR(+I44+'App.2-CB_NewCGAAP_DepExp_2012'!O44-J44), 0, +I44+'App.2-CB_NewCGAAP_DepExp_2012'!O44-J44) -> 0
A45: 1950 | B45: Power Operated Equipment | E45: 0 | F45: =IF(D45=0,+'App.2-CB_NewCGAAP_DepExp_2012'!O45,+'App.2-CB_NewCGAAP_DepExp_2012'!O45+((C45*0.5)/D45)) -> 0 | H45: 0 | I45: 0 | K45: =IF(ISERROR(+I45+'App.2-CB_NewCGAAP_DepExp_2012'!O45-J45), 0, +I45+'App.2-CB_NewCGAAP_DepExp_2012'!O45-J45) -> 0
A46: 1955 | B46: Communications Equipment | C46: ='[12]2.6 Fixed Asset Cont Stmt'!E276 -> 2008.71 | D46: 8 | E46: 0.125 | F46: =IF(D46=0,+'App.2-CB_NewCGAAP_DepExp_2012'!O46,+'App.2-CB_NewCGAAP_DepExp_2012'!O46+((C46*0.5)/D46)) -> 3371.460008 | G46: ='[12]2.6 Fixed Asset Cont Stmt'!K276 -> 4050.9 | H46: -679.4399922 | I46: 251.08875 | K46: =IF(ISERROR(+I46+'App.2-CB_NewCGAAP_DepExp_2012'!O46-J46), 0, +I46+'App.2-CB_NewCGAAP_DepExp_2012'!O46-J46) -> 3497.004383
A47: 1955 | B47: Communication Equipment (Smart Meters) | E47: 0 | F47: =IF(D47=0,+'App.2-CB_NewCGAAP_DepExp_2012'!O47,+'App.2-CB_NewCGAAP_DepExp_2012'!O47+((C47*0.5)/D47)) -> 11686.19062 | G47: =SUM('[12]2.6 Fixed Asset Cont Stmt'!K265:K266) -> 12699.25 | H47: -1013.059375 | I47: 0 | K47: =IF(ISERROR(+I47+'App.2-CB_NewCGAAP_DepExp_2012'!O47-J47), 0, +I47+'App.2-CB_NewCGAAP_DepExp_2012'!O47-J47) -> 11686.19062
A48: 1960 | B48: Miscellaneous Equipment | E48: 0 | F48: =IF(D48=0,+'App.2-CB_NewCGAAP_DepExp_2012'!O48,+'App.2-CB_NewCGAAP_DepExp_2012'!O48+((C48*0.5)/D48)) -> 0 | H48: 0 | I48: 0 | K48: =IF(ISERROR(+I48+'App.2-CB_NewCGAAP_DepExp_2012'!O48-J48), 0, +I48+'App.2-CB_NewCGAAP_DepExp_2012'!O48-J48) -> 0
A49: 1970 | B49: Load Management Controls Customer Premises | E49: 0 | F49: =IF(D49=0,+'App.2-CB_NewCGAAP_DepExp_2012'!O49,+'App.2-CB_NewCGAAP_DepExp_2012'!O49+((C49*0.5)/D49)) -> 0 | H49: 0 | I49: 0 | K49: =IF(ISERROR(+I49+'App.2-CB_NewCGAAP_DepExp_2012'!O49-J49), 0, +I49+'App.2-CB_NewCGAAP_DepExp_2012'!O49-J49) -> 0
A50: 1975 | B50: Load Management Controls Utility Premises | E50: 0 | F50: =IF(D50=0,+'App.2-CB_NewCGAAP_DepExp_2012'!O50,+'App.2-CB_NewCGAAP_DepExp_2012'!O50+((C50*0.5)/D50)) -> 0 | H50: 0 | I50: 0 | K50: =IF(ISERROR(+I50+'App.2-CB_NewCGAAP_DepExp_2012'!O50-J50), 0, +I50+'App.2-CB_NewCGAAP_DepExp_2012'!O50-J50) -> 0
A51: 1980 | B51: System Supervisor Equipment | E51: 0 | F51: =IF(D51=0,+'App.2-CB_NewCGAAP_DepExp_2012'!O51,+'App.2-CB_NewCGAAP_DepExp_2012'!O51+((C51*0.5)/D51)) -> 14015.31585 | G51: ='[12]2.6 Fixed Asset Cont Stmt'!K277 -> 13997.35 | H51: 17.96585366 | I51: 0 | K51: =IF(ISERROR(+I51+'App.2-CB_NewCGAAP_DepExp_2012'!O51-J51), 0, +I51+'App.2-CB_NewCGAAP_DepExp_2012'!O51-J51) -> 14015.31585
A52: 1985 | B52: Miscellaneous Fixed Assets | E52: 0 | F52: =IF(D52=0,+'App.2-CB_NewCGAAP_DepExp_2012'!O52,+'App.2-CB_NewCGAAP_DepExp_2012'!O52+((C52*0.5)/D52)) -> 0 | H52: 0 | I52: 0 | K52: =IF(ISERROR(+I52+'App.2-CB_NewCGAAP_DepExp_2012'!O52-J52), 0, +I52+'App.2-CB_NewCGAAP_DepExp_2012'!O52-J52) -> 0
A53: 1990 | B53: Other Tangible Property | E53: 0 | F53: =IF(D53=0,+'App.2-CB_NewCGAAP_DepExp_2012'!O53,+'App.2-CB_NewCGAAP_DepExp_2012'!O53+((C53*0.5)/D53)) -> 0 | H53: 0 | I53: 0 | K53: =IF(ISERROR(+I53+'App.2-CB_NewCGAAP_DepExp_2012'!O53-J53), 0, +I53+'App.2-CB_NewCGAAP_DepExp_2012'!O53-J53) -> 0
A54: 1995 | B54: Contributions & Grants | C54: ='[12]2.6 Fixed Asset Cont Stmt'!E279 -> 785 | E54: 0 | F54: =IF(D54=0,+'App.2-CB_NewCGAAP_DepExp_2012'!O54,+'App.2-CB_NewCGAAP_DepExp_2012'!O54+((C54*0.5)/D54)) -> -8819.615553 | G54: ='[12]2.6 Fixed Asset Cont Stmt'!K279 -> -515 | H54: -8304.615553 | I54: 0 | K54: =IF(ISERROR(+I54+'App.2-CB_NewCGAAP_DepExp_2012'!O54-J54), 0, +I54+'App.2-CB_NewCGAAP_DepExp_2012'!O54-J54) -> -8819.615553
B55: Total | C55: =SUM(C17:C54) -> 757674.8 | F55: =SUM(F17:F54) -> 450771.3441 | G55: 432070.71 | H55: 18700.63406 | I55: 54038.01414 | J55: 23008 | K55: 454782.3511
A57: Notes:
A58: 1 | B58: Board policy of the "half-year" rule - the applicant must ensure that additions in the year attract a half-year depreciation expense in the first year. Deviations from this standard practice must be supported in the application.
A59: 2 | B59: The applicant must provide an explanation of material variances in evidence.
A60: 3 | B60: This column refers to the calculated full year depreciation but excludes the depreciation expense on assets fully depreciated during the year. This column is used for the purpose of calculating depreciation expense in the following year on the next worksheet.
A62: General: | B62: Applicants must provide a breakdown of depreciation and amortization expense in the above format for all relevant accounts. Asset Retirement Obligations (AROs), depreciation and accretion expense should be disclosed separately consistent with the Notes of historical Audited Financial Statements.

Sheet App.2-CD_MIFRS_DepExp_2014
J1: File Number: | K1: =EBNUMBER -> EB-2015-0110
J2: Exhibit: | K2: 4
J3: Tab: | K3: 4
J4: Schedule: | K4: 2
J5: Page: | K5: 68
J7: Date: | K7: Mar-4-2016
A9: Appendix 2-CD
A10: Depreciation and Amortization Expense
A11: Assumes the applicant made capitalization and depreciation expense accounting policy changes under CGAAP effective January 1, 2012 and has adopted IFRS for financial reporting purposes effective January 1, 2015.
E13: 2014 | F13: MIFRS
A15: Account | B15: Description | C15: Additions | D15: Years (new additions only) | E15: Depreciation Rate on New Additions | F15: 2014 Depreciation Expense 1 | G15: 2014 Depreciation Expense per Apppendix 2-BA Fixed Assets, Column J (l) | H15: Variance 2 | I15: Depreciation Expense on 2014 Full Year Additions | J15: Less Depreciation Expense on Assets Fully Depreciated during the year (o) | K15: 2014 Full Year Depreciation 3
C16: (d) | D16: (f) | E16: (g) = 1 / (f) | F16: (h)=2013 Full Year Deprecation + ((d)*0.5)/(f) | H16: (m) = (h) - (l) | I16: (n)=((d))/(f) | K16: (p) = 2013 Full Year Depreciation + (n) - (o)
A17: 1611 | B17: Computer Software (Formally known as Account 1925) | C17: ='[12]2.6 Fixed Asset Cont Stmt'!E400 -> 10319.64 | E17: =IF(D17=0,0,1/D17) -> 0 | F17: =IF(D17=0,+'App.2-CC_NewCGAAP_DepExp_2013'!K17,'App.2-CC_NewCGAAP_DepExp_2013'!K17+((C17*0.5)/D17)) -> 130408.8501 | G17: ='[12]2.6 Fixed Asset Cont Stmt'!K302 -> 130245.09 | H17: =IF(ISERROR(+F17-G17), 0, +F17-G17) -> 163.7601463 | I17: =IF(D17=0,0,+(C17)/D17) -> 0 | J17: =129245-86264 -> 42981 | K17: =IF(ISERROR(+I17+'App.2-CC_NewCGAAP_DepExp_2013'!K17-J17), 0, +I17+'App.2-CC_NewCGAAP_DepExp_2013'!K17-J17) -> 87427.85015
A18: 1612 | B18: Land Rights (Formally known as Account 1906) | C18: ='[12]2.6 Fixed Asset Cont Stmt'!E401 -> 9411.1 | E18: 0 | F18: =IF(D18=0,+'App.2-CC_NewCGAAP_DepExp_2013'!K18,'App.2-CC_NewCGAAP_DepExp_2013'!K18+((C18*0.5)/D18)) -> 0 | H18: 0 | I18: =IF(D18=0,0,+(C18)/D18) -> 0 | K18: =IF(ISERROR(+I18+'App.2-CC_NewCGAAP_DepExp_2013'!K18-J18), 0, +I18+'App.2-CC_NewCGAAP_DepExp_2013'!K18-J18) -> 0
A19: 1805 | B19: Land | E19: 0 | F19: =IF(D19=0,+'App.2-CC_NewCGAAP_DepExp_2013'!K19,'App.2-CC_NewCGAAP_DepExp_2013'!K19+((C19*0.5)/D19)) -> 0 | H19: 0 | I19: 0 | K19: =IF(ISERROR(+I19+'App.2-CC_NewCGAAP_DepExp_2013'!K19-J19), 0, +I19+'App.2-CC_NewCGAAP_DepExp_2013'!K19-J19) -> 0
A20: 1808 | B20: Buildings | C20: =SUM('[12]2.6 Fixed Asset Cont Stmt'!E404:E413) -> 4250 | D20: 60 | E20: 0.01666666667 | F20: =IF(D20=0,+'App.2-CC_NewCGAAP_DepExp_2013'!K20,'App.2-CC_NewCGAAP_DepExp_2013'!K20+((C20*0.5)/D20)) -> 11530.899 | G20: =SUM('[12]2.6 Fixed Asset Cont Stmt'!K306:K315) -> 11886.15 | H20: -355.251 | I20: 70.83333333 | K20: =IF(ISERROR(+I20+'App.2-CC_NewCGAAP_DepExp_2013'!K20-J20), 0, +I20+'App.2-CC_NewCGAAP_DepExp_2013'!K20-J20) -> 11566.31567
A21: 1810 | B21: Leasehold Improvements | E21: 0 | F21: =IF(D21=0,+'App.2-CC_NewCGAAP_DepExp_2013'!K21,'App.2-CC_NewCGAAP_DepExp_2013'!K21+((C21*0.5)/D21)) -> 0 | H21: 0 | I21: 0 | K21: =IF(ISERROR(+I21+'App.2-CC_NewCGAAP_DepExp_2013'!K21-J21), 0, +I21+'App.2-CC_NewCGAAP_DepExp_2013'!K21-J21) -> 0
A22: 1815 | B22: Transformer Station Equipment >50 kV | E22: 0 | F22: =IF(D22=0,+'App.2-CC_NewCGAAP_DepExp_2013'!K22,'App.2-CC_NewCGAAP_DepExp_2013'!K22+((C22*0.5)/D22)) -> 0 | H22: 0 | I22: 0 | K22: =IF(ISERROR(+I22+'App.2-CC_NewCGAAP_DepExp_2013'!K22-J22), 0, +I22+'App.2-CC_NewCGAAP_DepExp_2013'!K22-J22) -> 0
A23: 1820 | B23: Distribution Station Equipment <50 kV | C23: =SUM('[12]2.6 Fixed Asset Cont Stmt'!E414:E421) -> 237845.58 | D23: 40 | E23: 0.025 | F23: =IF(D23=0,+'App.2-CC_NewCGAAP_DepExp_2013'!K23,'App.2-CC_NewCGAAP_DepExp_2013'!K23+((C23*0.5)/D23)) -> 18884.8538 | G23: =SUM('[12]2.6 Fixed Asset Cont Stmt'!K316:K323) -> 18644.27 | H23: 240.5838023 | I23: 5946.1395 | J23: 1271 | K23: =IF(ISERROR(+I23+'App.2-CC_NewCGAAP_DepExp_2013'!K23-J23), 0, +I23+'App.2-CC_NewCGAAP_DepExp_2013'!K23-J23) -> 20586.92355
A24: 1825 | B24: Storage Battery Equipment | E24: 0 | F24: =IF(D24=0,+'App.2-CC_NewCGAAP_DepExp_2013'!K24,'App.2-CC_NewCGAAP_DepExp_2013'!K24+((C24*0.5)/D24)) -> 0 | H24: 0 | I24: 0 | K24: =IF(ISERROR(+I24+'App.2-CC_NewCGAAP_DepExp_2013'!K24-J24), 0, +I24+'App.2-CC_NewCGAAP_DepExp_2013'!K24-J24) -> 0
A25: 1830 | B25: Poles, Towers & Fixtures | C25: =SUM('[12]2.6 Fixed Asset Cont Stmt'!E422:E425) -> 94033.71 | D25: 45 | E25: 0.02222222222 | F25: =IF(D25=0,+'App.2-CC_NewCGAAP_DepExp_2013'!K25,'App.2-CC_NewCGAAP_DepExp_2013'!K25+((C25*0.5)/D25)) -> 51753.42315 | G25: =SUM('[12]2.6 Fixed Asset Cont Stmt'!K324:K327) -> 52026.76 | H25: -273.3368537 | I25: 2089.638 | K25: =IF(ISERROR(+I25+'App.2-CC_NewCGAAP_DepExp_2013'!K25-J25), 0, +I25+'App.2-CC_NewCGAAP_DepExp_2013'!K25-J25) -> 52798.24215
A26: 1835 | B26: Overhead Conductors & Devices | C26: =SUM('[12]2.6 Fixed Asset Cont Stmt'!E426:E427) -> 51847.17 | D26: 60 | E26: 0.01666666667 | F26: =IF(D26=0,+'App.2-CC_NewCGAAP_DepExp_2013'!K26,'App.2-CC_NewCGAAP_DepExp_2013'!K26+((C26*0.5)/D26)) -> 9718.433757 | G26: =SUM('[12]2.6 Fixed Asset Cont Stmt'!K328:K329) -> 9416.87 | H26: 301.5637571 | I26: 864.1195 | K26: =IF(ISERROR(+I26+'App.2-CC_NewCGAAP_DepExp_2013'!K26-J26), 0, +I26+'App.2-CC_NewCGAAP_DepExp_2013'!K26-J26) -> 10150.49351
A27: 1840 | B27: Underground Conduit | C27: 0 | E27: 0 | F27: =IF(D27=0,+'App.2-CC_NewCGAAP_DepExp_2013'!K27,'App.2-CC_NewCGAAP_DepExp_2013'!K27+((C27*0.5)/D27)) -> 16.14545455 | G27: =SUM('[12]2.6 Fixed Asset Cont Stmt'!K330:K332) -> 17.8 | H27: -1.654545455 | I27: 0 | K27: =IF(ISERROR(+I27+'App.2-CC_NewCGAAP_DepExp_2013'!K27-J27), 0, +I27+'App.2-CC_NewCGAAP_DepExp_2013'!K27-J27) -> 16.14545455
A28: 1845 | B28: Underground Conductors & Devices | C28: ='[12]2.6 Fixed Asset Cont Stmt'!E431 -> 123029.26 | D28: 55 | E28: 0.01818181818 | F28: =IF(D28=0,+'App.2-CC_NewCGAAP_DepExp_2013'!K28,'App.2-CC_NewCGAAP_DepExp_2013'!K28+((C28*0.5)/D28)) -> 11499.32411 | G28: ='[12]2.6 Fixed Asset Cont Stmt'!K333 -> 11189.03 | H28: 310.294108 | I28: 2236.895636 | K28: =IF(ISERROR(+I28+'App.2-CC_NewCGAAP_DepExp_2013'!K28-J28), 0, +I28+'App.2-CC_NewCGAAP_DepExp_2013'!K28-J28) -> 12617.77193
A29: 1850 | B29: Line Transformers | C29: =SUM('[12]2.6 Fixed Asset Cont Stmt'!E432:E435) -> 96958.06 | D29: 40 | E29: 0.025 | F29: =IF(D29=0,+'App.2-CC_NewCGAAP_DepExp_2013'!K29,'App.2-CC_NewCGAAP_DepExp_2013'!K29+((C29*0.5)/D29)) -> 27917.92157 | G29: =SUM('[12]2.6 Fixed Asset Cont Stmt'!K334:K337) -> 27865.65 | H29: 52.27157143 | I29: 2423.9515 | K29: =IF(ISERROR(+I29+'App.2-CC_NewCGAAP_DepExp_2013'!K29-J29), 0, +I29+'App.2-CC_NewCGAAP_DepExp_2013'!K29-J29) -> 29129.89732
A30: 1855 | B30: Services (Overhead & Underground) | C30: =SUM('[12]2.6 Fixed Asset Cont Stmt'!E436:E437) -> 83349.3 | D30: 50 | E30: 0.02 | F30: =IF(D30=0,+'App.2-CC_NewCGAAP_DepExp_2013'!K30,'App.2-CC_NewCGAAP_DepExp_2013'!K30+((C30*0.5)/D30)) -> 5401.922662 | G30: =SUM('[12]2.6 Fixed Asset Cont Stmt'!K338:K339) -> 5368.35 | H30: 33.57266154 | I30: 1666.986 | K30: =IF(ISERROR(+I30+'App.2-CC_NewCGAAP_DepExp_2013'!K30-J30), 0, +I30+'App.2-CC_NewCGAAP_DepExp_2013'!K30-J30) -> 6235.415662
A31: 1860 | B31: Meters | E31: 0 | F31: =IF(D31=0,+'App.2-CC_NewCGAAP_DepExp_2013'!K31,'App.2-CC_NewCGAAP_DepExp_2013'!K31+((C31*0.5)/D31)) -> 8573.677333 | G31: =SUM('[12]2.6 Fixed Asset Cont Stmt'!K340:K345)+'[12]2.6 Fixed Asset Cont Stmt'!K350 -> 5278.31 | H31: 3295.367333 | I31: 0 | K31: =IF(ISERROR(+I31+'App.2-CC_NewCGAAP_DepExp_2013'!K31-J31), 0, +I31+'App.2-CC_NewCGAAP_DepExp_2013'!K31-J31) -> 8573.677333
A32: 1860 | B32: Meters (Smart Meters) | C32: ='[12]2.6 Fixed Asset Cont Stmt'!E444+'[12]2.6 Fixed Asset Cont Stmt'!E448 -> 20340.3 | D32: 15 | E32: 0.06666666667 | F32: =IF(D32=0,+'App.2-CC_NewCGAAP_DepExp_2013'!K32,'App.2-CC_NewCGAAP_DepExp_2013'!K32+((C32*0.5)/D32)) -> 45918.47995 | G32: =SUM('[12]2.6 Fixed Asset Cont Stmt'!K346) -> 45152.51 | H32: 765.9699524 | I32: 1356.02 | J32: 1003 | K32: =IF(ISERROR(+I32+'App.2-CC_NewCGAAP_DepExp_2013'!K32-J32), 0, +I32+'App.2-CC_NewCGAAP_DepExp_2013'!K32-J32) -> 45593.48995
A33: 1905 | B33: Land | E33: 0 | F33: =IF(D33=0,+'App.2-CC_NewCGAAP_DepExp_2013'!K33,'App.2-CC_NewCGAAP_DepExp_2013'!K33+((C33*0.5)/D33)) -> 0 | H33: 0 | I33: 0 | K33: =IF(ISERROR(+I33+'App.2-CC_NewCGAAP_DepExp_2013'!K33-J33), 0, +I33+'App.2-CC_NewCGAAP_DepExp_2013'!K33-J33) -> 0
A34: 1908 | B34: Buildings & Fixtures | E34: 0 | F34: =IF(D34=0,+'App.2-CC_NewCGAAP_DepExp_2013'!K34,'App.2-CC_NewCGAAP_DepExp_2013'!K34+((C34*0.5)/D34)) -> 0 | H34: 0 | I34: 0 | K34: =IF(ISERROR(+I34+'App.2-CC_NewCGAAP_DepExp_2013'!K34-J34), 0, +I34+'App.2-CC_NewCGAAP_DepExp_2013'!K34-J34) -> 0
A35: 1910 | B35: Leasehold Improvements | E35: 0 | F35: =IF(D35=0,+'App.2-CC_NewCGAAP_DepExp_2013'!K35,'App.2-CC_NewCGAAP_DepExp_2013'!K35+((C35*0.5)/D35)) -> 0 | H35: 0 | I35: 0 | K35: =IF(ISERROR(+I35+'App.2-CC_NewCGAAP_DepExp_2013'!K35-J35), 0, +I35+'App.2-CC_NewCGAAP_DepExp_2013'!K35-J35) -> 0
A36: 1915 | B36: Office Furniture & Equipment (10 years) | C36: 0 | E36: 0 | F36: =IF(D36=0,+'App.2-CC_NewCGAAP_DepExp_2013'!K36,'App.2-CC_NewCGAAP_DepExp_2013'!K36+((C36*0.5)/D36)) -> 10676.67798 | G36: ='[12]2.6 Fixed Asset Cont Stmt'!K351 -> 10475.11 | H36: 201.5679762 | I36: 0 | J36: 3421 | K36: =IF(ISERROR(+I36+'App.2-CC_NewCGAAP_DepExp_2013'!K36-J36), 0, +I36+'App.2-CC_NewCGAAP_DepExp_2013'!K36-J36) -> 7255.677976
A37: 1915 | B37: Office Furniture & Equipment (5 years) | E37: 0 | F37: =IF(D37=0,+'App.2-CC_NewCGAAP_DepExp_2013'!K37,'App.2-CC_NewCGAAP_DepExp_2013'!K37+((C37*0.5)/D37)) -> 0 | H37: 0 | I37: 0 | K37: =IF(ISERROR(+I37+'App.2-CC_NewCGAAP_DepExp_2013'!K37-J37), 0, +I37+'App.2-CC_NewCGAAP_DepExp_2013'!K37-J37) -> 0
A38: 1920 | B38: Computer Equipment - Hardware | E38: 0 | F38: =IF(D38=0,+'App.2-CC_NewCGAAP_DepExp_2013'!K38,'App.2-CC_NewCGAAP_DepExp_2013'!K38+((C38*0.5)/D38)) -> 0 | H38: 0 | I38: 0 | K38: =IF(ISERROR(+I38+'App.2-CC_NewCGAAP_DepExp_2013'!K38-J38), 0, +I38+'App.2-CC_NewCGAAP_DepExp_2013'!K38-J38) -> 0
A39: 1920 | B39: Computer Equip.-Hardware(Post Mar. 22/04) | C39: ='[12]2.6 Fixed Asset Cont Stmt'!E450 -> 18484.39 | D39: 5 | E39: 0.2 | F39: =IF(D39=0,+'App.2-CC_NewCGAAP_DepExp_2013'!K39,'App.2-CC_NewCGAAP_DepExp_2013'!K39+((C39*0.5)/D39)) -> 27749.81639 | G39: ='[12]2.6 Fixed Asset Cont Stmt'!K352 -> 26841.47 | H39: 908.3463939 | I39: 3696.878 | K39: =IF(ISERROR(+I39+'App.2-CC_NewCGAAP_DepExp_2013'!K39-J39), 0, +I39+'App.2-CC_NewCGAAP_DepExp_2013'!K39-J39) -> 29598.25539
A40: 1920 | B40: Computer Equip.-Hardware(Post Mar. 19/07) | E40: 0 | F40: =IF(D40=0,+'App.2-CC_NewCGAAP_DepExp_2013'!K40,'App.2-CC_NewCGAAP_DepExp_2013'!K40+((C40*0.5)/D40)) -> 0 | H40: 0 | I40: 0 | K40: =IF(ISERROR(+I40+'App.2-CC_NewCGAAP_DepExp_2013'!K40-J40), 0, +I40+'App.2-CC_NewCGAAP_DepExp_2013'!K40-J40) -> 0
A41: 1930 | B41: Transportation Equipment | E41: 0 | F41: =IF(D41=0,+'App.2-CC_NewCGAAP_DepExp_2013'!K41,'App.2-CC_NewCGAAP_DepExp_2013'!K41+((C41*0.5)/D41)) -> 83858.4875 | G41: =SUM('[12]2.6 Fixed Asset Cont Stmt'!K353:K355) -> 83936.11 | H41: -77.6225 | I41: 0 | K41: =IF(ISERROR(+I41+'App.2-CC_NewCGAAP_DepExp_2013'!K41-J41), 0, +I41+'App.2-CC_NewCGAAP_DepExp_2013'!K41-J41) -> 83858.4875
A42: 1935 | B42: Stores Equipment | E42: 0 | F42: =IF(D42=0,+'App.2-CC_NewCGAAP_DepExp_2013'!K42,'App.2-CC_NewCGAAP_DepExp_2013'!K42+((C42*0.5)/D42)) -> 230.27375 | G42: ='[12]2.6 Fixed Asset Cont Stmt'!K356 -> 236.01 | H42: -5.73625 | I42: 0 | K42: =IF(ISERROR(+I42+'App.2-CC_NewCGAAP_DepExp_2013'!K42-J42), 0, +I42+'App.2-CC_NewCGAAP_DepExp_2013'!K42-J42) -> 230.27375
A43: 1940 | B43: Tools, Shop & Garage Equipment | C43: ='[12]2.6 Fixed Asset Cont Stmt'!E455 -> 3339.69 | D43: 10 | E43: 0.1 | F43: =IF(D43=0,+'App.2-CC_NewCGAAP_DepExp_2013'!K43,'App.2-CC_NewCGAAP_DepExp_2013'!K43+((C43*0.5)/D43)) -> 606.9845 | G43: ='[12]2.6 Fixed Asset Cont Stmt'!K357 -> 631.25 | H43: -24.2655 | I43: 333.969 | K43: =IF(ISERROR(+I43+'App.2-CC_NewCGAAP_DepExp_2013'!K43-J43), 0, +I43+'App.2-CC_NewCGAAP_DepExp_2013'!K43-J43) -> 773.969
A44: 1945 | B44: Measurement & Testing Equipment | E44: 0 | F44: =IF(D44=0,+'App.2-CC_NewCGAAP_DepExp_2013'!K44,'App.2-CC_NewCGAAP_DepExp_2013'!K44+((C44*0.5)/D44)) -> 0 | H44: 0 | I44: 0 | K44: =IF(ISERROR(+I44+'App.2-CC_NewCGAAP_DepExp_2013'!K44-J44), 0, +I44+'App.2-CC_NewCGAAP_DepExp_2013'!K44-J44) -> 0
A45: 1950 | B45: Power Operated Equipment | E45: 0 | F45: =IF(D45=0,+'App.2-CC_NewCGAAP_DepExp_2013'!K45,'App.2-CC_NewCGAAP_DepExp_2013'!K45+((C45*0.5)/D45)) -> 0 | H45: 0 | I45: 0 | K45: =IF(ISERROR(+I45+'App.2-CC_NewCGAAP_DepExp_2013'!K45-J45), 0, +I45+'App.2-CC_NewCGAAP_DepExp_2013'!K45-J45) -> 0
A46: 1955 | B46: Communications Equipment | E46: 0 | F46: =IF(D46=0,+'App.2-CC_NewCGAAP_DepExp_2013'!K46,'App.2-CC_NewCGAAP_DepExp_2013'!K46+((C46*0.5)/D46)) -> 3497.004383 | G46: ='[12]2.6 Fixed Asset Cont Stmt'!K359 -> 3466.25 | H46: 30.75438275 | I46: 0 | K46: =IF(ISERROR(+I46+'App.2-CC_NewCGAAP_DepExp_2013'!K46-J46), 0, +I46+'App.2-CC_NewCGAAP_DepExp_2013'!K46-J46) -> 3497.004383
A47: 1955 | B47: Communication Equipment (Smart Meters) | E47: 0 | F47: =IF(D47=0,+'App.2-CC_NewCGAAP_DepExp_2013'!K47,'App.2-CC_NewCGAAP_DepExp_2013'!K47+((C47*0.5)/D47)) -> 11686.19062 | G47: =SUM('[12]2.6 Fixed Asset Cont Stmt'!K347:K348) -> 16686.62 | H47: -5000.429375 | I47: 0 | J47: 9078 | K47: =IF(ISERROR(+I47+'App.2-CC_NewCGAAP_DepExp_2013'!K47-J47), 0, +I47+'App.2-CC_NewCGAAP_DepExp_2013'!K47-J47) -> 2608.190625
A48: 1960 | B48: Miscellaneous Equipment | E48: 0 | F48: =IF(D48=0,+'App.2-CC_NewCGAAP_DepExp_2013'!K48,'App.2-CC_NewCGAAP_DepExp_2013'!K48+((C48*0.5)/D48)) -> 0 | H48: 0 | I48: 0 | K48: =IF(ISERROR(+I48+'App.2-CC_NewCGAAP_DepExp_2013'!K48-J48), 0, +I48+'App.2-CC_NewCGAAP_DepExp_2013'!K48-J48) -> 0
A49: 1970 | B49: Load Management Controls Customer Premises | E49: 0 | F49: =IF(D49=0,+'App.2-CC_NewCGAAP_DepExp_2013'!K49,'App.2-CC_NewCGAAP_DepExp_2013'!K49+((C49*0.5)/D49)) -> 0 | H49: 0 | I49: 0 | K49: =IF(ISERROR(+I49+'App.2-CC_NewCGAAP_DepExp_2013'!K49-J49), 0, +I49+'App.2-CC_NewCGAAP_DepExp_2013'!K49-J49) -> 0
A50: 1975 | B50: Load Management Controls Utility Premises | E50: 0 | F50: =IF(D50=0,+'App.2-CC_NewCGAAP_DepExp_2013'!K50,'App.2-CC_NewCGAAP_DepExp_2013'!K50+((C50*0.5)/D50)) -> 0 | H50: 0 | I50: 0 | K50: =IF(ISERROR(+I50+'App.2-CC_NewCGAAP_DepExp_2013'!K50-J50), 0, +I50+'App.2-CC_NewCGAAP_DepExp_2013'!K50-J50) -> 0
A51: 1980 | B51: System Supervisor Equipment | E51: 0 | F51: =IF(D51=0,+'App.2-CC_NewCGAAP_DepExp_2013'!K51,'App.2-CC_NewCGAAP_DepExp_2013'!K51+((C51*0.5)/D51)) -> 14015.31585 | G51: ='[12]2.6 Fixed Asset Cont Stmt'!K360 -> 14027.63 | H51: -12.31414634 | I51: 0 | K51: =IF(ISERROR(+I51+'App.2-CC_NewCGAAP_DepExp_2013'!K51-J51), 0, +I51+'App.2-CC_NewCGAAP_DepExp_2013'!K51-J51) -> 14015.31585
A52: 1985 | B52: Miscellaneous Fixed Assets | E52: 0 | F52: =IF(D52=0,+'App.2-CC_NewCGAAP_DepExp_2013'!K52,'App.2-CC_NewCGAAP_DepExp_2013'!K52+((C52*0.5)/D52)) -> 0 | H52: 0 | I52: 0 | K52: =IF(ISERROR(+I52+'App.2-CC_NewCGAAP_DepExp_2013'!K52-J52), 0, +I52+'App.2-CC_NewCGAAP_DepExp_2013'!K52-J52) -> 0
A53: 1990 | B53: Other Tangible Property | E53: 0 | F53: =IF(D53=0,+'App.2-CC_NewCGAAP_DepExp_2013'!K53,'App.2-CC_NewCGAAP_DepExp_2013'!K53+((C53*0.5)/D53)) -> 0 | H53: 0 | I53: 0 | K53: =IF(ISERROR(+I53+'App.2-CC_NewCGAAP_DepExp_2013'!K53-J53), 0, +I53+'App.2-CC_NewCGAAP_DepExp_2013'!K53-J53) -> 0
A54: 2440 | B54: Deferred Revenue | C54: ='[12]2.6 Fixed Asset Cont Stmt'!E461 -> -113297 | D54: 45 | E54: =IF(D54=0,0,1/D54) -> 0.02222222222 | F54: =IF(D54=0,+'App.2-CC_NewCGAAP_DepExp_2013'!K54,'App.2-CC_NewCGAAP_DepExp_2013'!K54+((C54*0.5)/D54)) -> -10078.47111 | G54: ='[12]2.6 Fixed Asset Cont Stmt'!K362 -> -10194.02 | H54: 115.5488917 | I54: -2517.711111 | K54: =IF(ISERROR(+I54+'App.2-CC_NewCGAAP_DepExp_2013'!K54-J54), 0, +I54+'App.2-CC_NewCGAAP_DepExp_2013'!K54-J54) -> -11337.32666
B55: Total | C55: =SUM(C17:C54) -> 639911.2 | F55: =SUM(F17:F54) -> 463866.2108 | G55: 463197.22 | H55: 668.9908064 | I55: 18167.71936 | J55: 57754 | K55: 415196.0705
B56: Depreciation exp. adj. from gain or loss on the retirement of assets (pool of like assets)
B57: Total Depreciation Expense | F57: =+F56+F55 -> 463866.2108
A59: Notes:
A60: 1 | B60: Board policy of the "half-year" rule - the applicant must ensure that additions in the year attract a half-year depreciation expense in the first year. Deviations from this standard practice must be supported in the application.
A61: 2 | B61: The applicant must provide an explanation of material variances in evidence.
A62: 3 | B62: This column refers to the calculated full year depreciation but excludes the depreciation expense on assets fully depreciated during the year. This column is used for the purpose of calculating depreciation expense in the following year on the next worksheet.
A64: General: | B64: Applicants must provide a breakdown of depreciation and amortization expense in the above format for all relevant accounts. Asset Retirement Obligations (AROs), depreciation and accretion expense should be disclosed separately consistent with the Notes of historical Audited Financial Statements.

Sheet App.2-CE_MIFRS_DepExp_2015
G1: File Number: | H1: =EBNUMBER -> EB-2015-0110
G2: Exhibit: | H2: 4
G3: Tab: | H3: 4
G4: Schedule: | H4: 2
G5: Page: | H5: 69
G7: Date: | H7: Mar-4-2016
A9: Appendix 2-CE
A10: Depreciation and Amortization Expense
A11: Assumes the applicant made capitalization and depreciation expense accounting policy changes under CGAAP effective January 1, 2012 and has adopted IFRS for financial reporting purposes effective January 1, 2015.
C13: 2015 | D13: MIFRS
A15: Account | B15: Description | C15: Additions | D15: Years (new additions only) | E15: Depreciation Rate on New Additions | F15: 2015 Depreciation Expense 1 | G15: 2015 Depreciation Expense per Appendix 2-BA Fixed Assets, Column J (l) | H15: Variance 2 | I15: Depreciation Expense on 2015 Full Year Additions | J15: Less Depreciation Expense on Assets Fully Depreciated during the year (o) | K15: 2015 Full Year Depreciation 3
C16: (d) | D16: (f) | E16: (g) = 1 / (f) | F16: (h)=2014 Full Year Depreciation + ((d)*0.5)/(f) | H16: (m) = (h) - (l) | I16: (n)=((d))/(f) | K16: (p) = 2014 Full Year Depreciation + (n) - (o)
A17: 1611 | B17: Computer Software (Formally known as Account 1925) | C17: ='[12]2.6 Fixed Asset Cont Stmt'!E481 -> 21972.67 | E17: =IF(D17=0,0,1/D17) -> 0 | F17: =IF(D17=0,+'App.2-CD_MIFRS_DepExp_2014'!K17,+'App.2-CD_MIFRS_DepExp_2014'!K17+((C17*0.5)/D17)) -> 87427.85015 | G17: ='[12]2.6 Fixed Asset Cont Stmt'!K481 -> 87461.727 | H17: =IF(ISERROR(+F17-G17), 0, +F17-G17) -> -33.87685366 | I17: =IF(D17=0,0,+(C17)/D17) -> 0 | J17: =85264-14337 -> 70927 | K17: =IF(ISERROR(+I17+'App.2-CD_MIFRS_DepExp_2014'!K17-J17), 0, +I17+'App.2-CD_MIFRS_DepExp_2014'!K17-J17) -> 16500.85015
A18: 1612 | B18: Land Rights (Formally known as Account 1906) | E18: 0 | F18: =IF(D18=0,+'App.2-CD_MIFRS_DepExp_2014'!K18,+'App.2-CD_MIFRS_DepExp_2014'!K18+((C18*0.5)/D18)) -> 0 | H18: 0 | I18: =IF(D18=0,0,+(C18)/D18) -> 0 | K18: =IF(ISERROR(+I18+'App.2-CD_MIFRS_DepExp_2014'!K18-J18), 0, +I18+'App.2-CD_MIFRS_DepExp_2014'!K18-J18) -> 0
A19: 1805 | B19: Land | E19: 0 | F19: =IF(D19=0,+'App.2-CD_MIFRS_DepExp_2014'!K19,+'App.2-CD_MIFRS_DepExp_2014'!K19+((C19*0.5)/D19)) -> 0 | H19: 0 | I19: 0 | K19: =IF(ISERROR(+I19+'App.2-CD_MIFRS_DepExp_2014'!K19-J19), 0, +I19+'App.2-CD_MIFRS_DepExp_2014'!K19-J19) -> 0
A20: 1808 | B20: Buildings | C20: =SUM('[12]2.6 Fixed Asset Cont Stmt'!E485:E493) -> 75808.29 | D20: 60 | E20: 0.01666666667 | F20: =IF(D20=0,+'App.2-CD_MIFRS_DepExp_2014'!K20,+'App.2-CD_MIFRS_DepExp_2014'!K20+((C20*0.5)/D20)) -> 12198.05142 | G20: =SUM('[12]2.6 Fixed Asset Cont Stmt'!K485:K494) -> 13610.32575 | H20: -1412.274333 | I20: 1263.4715 | K20: =IF(ISERROR(+I20+'App.2-CD_MIFRS_DepExp_2014'!K20-J20), 0, +I20+'App.2-CD_MIFRS_DepExp_2014'!K20-J20) -> 12829.78717
A21: 1810 | B21: Leasehold Improvements | E21: 0 | F21: =IF(D21=0,+'App.2-CD_MIFRS_DepExp_2014'!K21,+'App.2-CD_MIFRS_DepExp_2014'!K21+((C21*0.5)/D21)) -> 0 | H21: 0 | I21: 0 | K21: =IF(ISERROR(+I21+'App.2-CD_MIFRS_DepExp_2014'!K21-J21), 0, +I21+'App.2-CD_MIFRS_DepExp_2014'!K21-J21) -> 0
A22: 1815 | B22: Transformer Station Equipment >50 kV | E22: 0 | F22: =IF(D22=0,+'App.2-CD_MIFRS_DepExp_2014'!K22,+'App.2-CD_MIFRS_DepExp_2014'!K22+((C22*0.5)/D22)) -> 0 | H22: 0 | I22: 0 | K22: =IF(ISERROR(+I22+'App.2-CD_MIFRS_DepExp_2014'!K22-J22), 0, +I22+'App.2-CD_MIFRS_DepExp_2014'!K22-J22) -> 0
A23: 1820 | B23: Distribution Station Equipment <50 kV | E23: 0 | F23: =IF(D23=0,+'App.2-CD_MIFRS_DepExp_2014'!K23,+'App.2-CD_MIFRS_DepExp_2014'!K23+((C23*0.5)/D23)) -> 20586.92355 | G23: =SUM('[12]2.6 Fixed Asset Cont Stmt'!K495:K502) -> 20303.78 | H23: 283.1435523 | I23: 0 | K23: =IF(ISERROR(+I23+'App.2-CD_MIFRS_DepExp_2014'!K23-J23), 0, +I23+'App.2-CD_MIFRS_DepExp_2014'!K23-J23) -> 20586.92355
A24: 1825 | B24: Storage Battery Equipment | E24: 0 | F24: =IF(D24=0,+'App.2-CD_MIFRS_DepExp_2014'!K24,+'App.2-CD_MIFRS_DepExp_2014'!K24+((C24*0.5)/D24)) -> 0 | H24: 0 | I24: 0 | K24: =IF(ISERROR(+I24+'App.2-CD_MIFRS_DepExp_2014'!K24-J24), 0, +I24+'App.2-CD_MIFRS_DepExp_2014'!K24-J24) -> 0
A25: 1830 | B25: Poles, Towers & Fixtures | C25: =SUM('[12]2.6 Fixed Asset Cont Stmt'!E503:E506) -> 148631.32 | D25: 45 | E25: 0.02222222222 | F25: =IF(D25=0,+'App.2-CD_MIFRS_DepExp_2014'!K25,+'App.2-CD_MIFRS_DepExp_2014'!K25+((C25*0.5)/D25)) -> 54449.70126 | G25: =SUM('[12]2.6 Fixed Asset Cont Stmt'!K503:K506) -> 54678.26911 | H25: -228.5678537 | I25: 3302.918222 | K25: =IF(ISERROR(+I25+'App.2-CD_MIFRS_DepExp_2014'!K25-J25), 0, +I25+'App.2-CD_MIFRS_DepExp_2014'!K25-J25) -> 56101.16037
A26: 1835 | B26: Overhead Conductors & Devices | C26: =SUM('[12]2.6 Fixed Asset Cont Stmt'!E507:E508) -> 80009.56 | D26: 60 | E26: 0.01666666667 | F26: =IF(D26=0,+'App.2-CD_MIFRS_DepExp_2014'!K26,+'App.2-CD_MIFRS_DepExp_2014'!K26+((C26*0.5)/D26)) -> 10817.23984 | G26: =SUM('[12]2.6 Fixed Asset Cont Stmt'!K507:K508) -> 10515.68633 | H26: 301.5535071 | I26: 1333.492667 | K26: =IF(ISERROR(+I26+'App.2-CD_MIFRS_DepExp_2014'!K26-J26), 0, +I26+'App.2-CD_MIFRS_DepExp_2014'!K26-J26) -> 11483.98617
A27: 1840 | B27: Underground Conduit | C27: =SUM('[12]2.6 Fixed Asset Cont Stmt'!E509:E511) -> 0 | D27: 55 | E27: 0.01818181818 | F27: =IF(D27=0,+'App.2-CD_MIFRS_DepExp_2014'!K27,+'App.2-CD_MIFRS_DepExp_2014'!K27+((C27*0.5)/D27)) -> 16.14545455 | G27: =SUM('[12]2.6 Fixed Asset Cont Stmt'!K509:K511) -> 17.8 | H27: -1.654545455 | I27: 0 | K27: =IF(ISERROR(+I27+'App.2-CD_MIFRS_DepExp_2014'!K27-J27), 0, +I27+'App.2-CD_MIFRS_DepExp_2014'!K27-J27) -> 16.14545455
A28: 1845 | B28: Underground Conductors & Devices | C28: ='[12]2.6 Fixed Asset Cont Stmt'!E512 -> 61892.62 | D28: 55 | E28: 0.01818181818 | F28: =IF(D28=0,+'App.2-CD_MIFRS_DepExp_2014'!K28,+'App.2-CD_MIFRS_DepExp_2014'!K28+((C28*0.5)/D28)) -> 13180.43211 | G28: ='[12]2.6 Fixed Asset Cont Stmt'!K512 -> 13289.57018 | H28: -109.1380739 | I28: 1125.320364 | K28: =IF(ISERROR(+I28+'App.2-CD_MIFRS_DepExp_2014'!K28-J28), 0, +I28+'App.2-CD_MIFRS_DepExp_2014'!K28-J28) -> 13743.09229
A29: 1850 | B29: Line Transformers | C29: =SUM('[12]2.6 Fixed Asset Cont Stmt'!E513:E516) -> 58123.03 | D29: 40 | E29: 0.025 | F29: =IF(D29=0,+'App.2-CD_MIFRS_DepExp_2014'!K29,+'App.2-CD_MIFRS_DepExp_2014'!K29+((C29*0.5)/D29)) -> 29856.4352 | G29: =SUM('[12]2.6 Fixed Asset Cont Stmt'!K513:K516) -> 29718.07787 | H29: 138.3573214 | I29: 1453.07575 | K29: =IF(ISERROR(+I29+'App.2-CD_MIFRS_DepExp_2014'!K29-J29), 0, +I29+'App.2-CD_MIFRS_DepExp_2014'!K29-J29) -> 30582.97307
A30: 1855 | B30: Services (Overhead & Underground) | C30: =SUM('[12]2.6 Fixed Asset Cont Stmt'!E517:E518) -> 28986.98 | D30: 50 | E30: 0.02 | F30: =IF(D30=0,+'App.2-CD_MIFRS_DepExp_2014'!K30,+'App.2-CD_MIFRS_DepExp_2014'!K30+((C30*0.5)/D30)) -> 6525.285462 | G30: =SUM('[12]2.6 Fixed Asset Cont Stmt'!K517:K518) -> 6450.329542 | H30: 74.95591987 | I30: 579.7396 | K30: =IF(ISERROR(+I30+'App.2-CD_MIFRS_DepExp_2014'!K30-J30), 0, +I30+'App.2-CD_MIFRS_DepExp_2014'!K30-J30) -> 6815.155262
A31: 1860 | B31: Meters | E31: 0 | F31: =IF(D31=0,+'App.2-CD_MIFRS_DepExp_2014'!K31,+'App.2-CD_MIFRS_DepExp_2014'!K31+((C31*0.5)/D31)) -> 8573.677333 | G31: =SUM('[12]2.6 Fixed Asset Cont Stmt'!K519:K524,'[12]2.6 Fixed Asset Cont Stmt'!K529) -> 5017.98 | H31: 3555.697333 | I31: 0 | K31: =IF(ISERROR(+I31+'App.2-CD_MIFRS_DepExp_2014'!K31-J31), 0, +I31+'App.2-CD_MIFRS_DepExp_2014'!K31-J31) -> 8573.677333
A32: 1860 | B32: Meters (Smart Meters) | C32: ='[12]2.6 Fixed Asset Cont Stmt'!E525 -> 28290.16 | D32: 15 | E32: 0.06666666667 | F32: =IF(D32=0,+'App.2-CD_MIFRS_DepExp_2014'!K32,+'App.2-CD_MIFRS_DepExp_2014'!K32+((C32*0.5)/D32)) -> 46536.49529 | G32: ='[12]2.6 Fixed Asset Cont Stmt'!K525 -> 46219.33533 | H32: 317.1599524 | I32: 1886.010667 | J32: 1091 | K32: =IF(ISERROR(+I32+'App.2-CD_MIFRS_DepExp_2014'!K32-J32), 0, +I32+'App.2-CD_MIFRS_DepExp_2014'!K32-J32) -> 46388.50062
A33: 1905 | B33: Land | E33: 0 | F33: =IF(D33=0,+'App.2-CD_MIFRS_DepExp_2014'!K33,+'App.2-CD_MIFRS_DepExp_2014'!K33+((C33*0.5)/D33)) -> 0 | H33: 0 | I33: 0 | K33: =IF(ISERROR(+I33+'App.2-CD_MIFRS_DepExp_2014'!K33-J33), 0, +I33+'App.2-CD_MIFRS_DepExp_2014'!K33-J33) -> 0
A34: 1908 | B34: Buildings & Fixtures | E34: 0 | F34: =IF(D34=0,+'App.2-CD_MIFRS_DepExp_2014'!K34,+'App.2-CD_MIFRS_DepExp_2014'!K34+((C34*0.5)/D34)) -> 0 | H34: 0 | I34: 0 | K34: =IF(ISERROR(+I34+'App.2-CD_MIFRS_DepExp_2014'!K34-J34), 0, +I34+'App.2-CD_MIFRS_DepExp_2014'!K34-J34) -> 0
A35: 1910 | B35: Leasehold Improvements | E35: 0 | F35: =IF(D35=0,+'App.2-CD_MIFRS_DepExp_2014'!K35,+'App.2-CD_MIFRS_DepExp_2014'!K35+((C35*0.5)/D35)) -> 0 | H35: 0 | I35: 0 | K35: =IF(ISERROR(+I35+'App.2-CD_MIFRS_DepExp_2014'!K35-J35), 0, +I35+'App.2-CD_MIFRS_DepExp_2014'!K35-J35) -> 0
A36: 1915 | B36: Office Furniture & Equipment (10 years) | C36: ='[12]2.6 Fixed Asset Cont Stmt'!E530 -> 1229.99 | D36: 10 | E36: 0.1 | F36: =IF(D36=0,+'App.2-CD_MIFRS_DepExp_2014'!K36,+'App.2-CD_MIFRS_DepExp_2014'!K36+((C36*0.5)/D36)) -> 7317.177476 | G36: ='[12]2.6 Fixed Asset Cont Stmt'!K530 -> 7164.3995 | H36: 152.7779762 | I36: 122.999 | J36: 3779 | K36: =IF(ISERROR(+I36+'App.2-CD_MIFRS_DepExp_2014'!K36-J36), 0, +I36+'App.2-CD_MIFRS_DepExp_2014'!K36-J36) -> 3599.676976
A37: 1915 | B37: Office Furniture & Equipment (5 years) | E37: 0 | F37: =IF(D37=0,+'App.2-CD_MIFRS_DepExp_2014'!K37,+'App.2-CD_MIFRS_DepExp_2014'!K37+((C37*0.5)/D37)) -> 0 | H37: 0 | I37: 0 | K37: =IF(ISERROR(+I37+'App.2-CD_MIFRS_DepExp_2014'!K37-J37), 0, +I37+'App.2-CD_MIFRS_DepExp_2014'!K37-J37) -> 0
A38: 1920 | B38: Computer Equipment - Hardware | E38: 0 | F38: =IF(D38=0,+'App.2-CD_MIFRS_DepExp_2014'!K38,+'App.2-CD_MIFRS_DepExp_2014'!K38+((C38*0.5)/D38)) -> 0 | H38: 0 | I38: 0 | K38: =IF(ISERROR(+I38+'App.2-CD_MIFRS_DepExp_2014'!K38-J38), 0, +I38+'App.2-CD_MIFRS_DepExp_2014'!K38-J38) -> 0
A39: 1920 | B39: Computer Equip.-Hardware(Post Mar. 22/04) | C39: ='[12]2.6 Fixed Asset Cont Stmt'!E531 -> 75779.74 | D39: 5 | E39: 0.2 | F39: =IF(D39=0,+'App.2-CD_MIFRS_DepExp_2014'!K39,+'App.2-CD_MIFRS_DepExp_2014'!K39+((C39*0.5)/D39)) -> 37176.22939 | G39: ='[12]2.6 Fixed Asset Cont Stmt'!K531 -> 38161.064 | H39: -984.8346061 | I39: 15155.948 | J39: 2282 | K39: =IF(ISERROR(+I39+'App.2-CD_MIFRS_DepExp_2014'!K39-J39), 0, +I39+'App.2-CD_MIFRS_DepExp_2014'!K39-J39) -> 42472.20339
A40: 1920 | B40: Computer Equip.-Hardware(Post Mar. 19/07) | E40: 0 | F40: =IF(D40=0,+'App.2-CD_MIFRS_DepExp_2014'!K40,+'App.2-CD_MIFRS_DepExp_2014'!K40+((C40*0.5)/D40)) -> 0 | H40: 0 | I40: 0 | K40: =IF(ISERROR(+I40+'App.2-CD_MIFRS_DepExp_2014'!K40-J40), 0, +I40+'App.2-CD_MIFRS_DepExp_2014'!K40-J40) -> 0
A41: 1930 | B41: Transportation Equipment | C41: =SUM('[12]2.6 Fixed Asset Cont Stmt'!E532:E534) -> 29551.21 | D41: 5 | E41: 0.2 | F41: =IF(D41=0,+'App.2-CD_MIFRS_DepExp_2014'!K41,+'App.2-CD_MIFRS_DepExp_2014'!K41+((C41*0.5)/D41)) -> 86813.6085 | G41: =SUM('[12]2.6 Fixed Asset Cont Stmt'!K532:K534) -> 86891.201 | H41: -77.5925 | I41: 5910.242 | J41: 43981 | K41: =IF(ISERROR(+I41+'App.2-CD_MIFRS_DepExp_2014'!K41-J41), 0, +I41+'App.2-CD_MIFRS_DepExp_2014'!K41-J41) -> 45787.7295
A42: 1935 | B42: Stores Equipment | E42: 0 | F42: =IF(D42=0,+'App.2-CD_MIFRS_DepExp_2014'!K42,+'App.2-CD_MIFRS_DepExp_2014'!K42+((C42*0.5)/D42)) -> 230.27375 | G42: ='[12]2.6 Fixed Asset Cont Stmt'!K535 -> 236.01 | H42: -5.73625 | I42: 0 | K42: =IF(ISERROR(+I42+'App.2-CD_MIFRS_DepExp_2014'!K42-J42), 0, +I42+'App.2-CD_MIFRS_DepExp_2014'!K42-J42) -> 230.27375
A43: 1940 | B43: Tools, Shop & Garage Equipment | E43: 0 | F43: =IF(D43=0,+'App.2-CD_MIFRS_DepExp_2014'!K43,+'App.2-CD_MIFRS_DepExp_2014'!K43+((C43*0.5)/D43)) -> 773.969 | G43: ='[12]2.6 Fixed Asset Cont Stmt'!K536 -> 860.49 | H43: -86.521 | I43: 0 | K43: =IF(ISERROR(+I43+'App.2-CD_MIFRS_DepExp_2014'!K43-J43), 0, +I43+'App.2-CD_MIFRS_DepExp_2014'!K43-J43) -> 773.969
A44: 1945 | B44: Measurement & Testing Equipment | E44: 0 | F44: =IF(D44=0,+'App.2-CD_MIFRS_DepExp_2014'!K44,+'App.2-CD_MIFRS_DepExp_2014'!K44+((C44*0.5)/D44)) -> 0 | H44: 0 | I44: 0 | K44: =IF(ISERROR(+I44+'App.2-CD_MIFRS_DepExp_2014'!K44-J44), 0, +I44+'App.2-CD_MIFRS_DepExp_2014'!K44-J44) -> 0
A45: 1950 | B45: Power Operated Equipment | E45: 0 | F45: =IF(D45=0,+'App.2-CD_MIFRS_DepExp_2014'!K45,+'App.2-CD_MIFRS_DepExp_2014'!K45+((C45*0.5)/D45)) -> 0 | H45: 0 | I45: 0 | K45: =IF(ISERROR(+I45+'App.2-CD_MIFRS_DepExp_2014'!K45-J45), 0, +I45+'App.2-CD_MIFRS_DepExp_2014'!K45-J45) -> 0
A46: 1955 | B46: Communications Equipment | E46: 0 | F46: =IF(D46=0,+'App.2-CD_MIFRS_DepExp_2014'!K46,+'App.2-CD_MIFRS_DepExp_2014'!K46+((C46*0.5)/D46)) -> 3497.004383 | G46: ='[12]2.6 Fixed Asset Cont Stmt'!K538 -> 3466.24 | H46: 30.76438275 | I46: 0 | J46: 1949 | K46: =IF(ISERROR(+I46+'App.2-CD_MIFRS_DepExp_2014'!K46-J46), 0, +I46+'App.2-CD_MIFRS_DepExp_2014'!K46-J46) -> 1548.004383
A47: 1955 | B47: Communication Equipment (Smart Meters) | E47: 0 | F47: =IF(D47=0,+'App.2-CD_MIFRS_DepExp_2014'!K47,+'App.2-CD_MIFRS_DepExp_2014'!K47+((C47*0.5)/D47)) -> 2608.190625 | G47: 2608 | H47: 0.190625 | I47: 0 | J47: 2608 | K47: =IF(ISERROR(+I47+'App.2-CD_MIFRS_DepExp_2014'!K47-J47), 0, +I47+'App.2-CD_MIFRS_DepExp_2014'!K47-J47) -> 0.190625
A48: 1960 | B48: Miscellaneous Equipment | E48: 0 | F48: =IF(D48=0,+'App.2-CD_MIFRS_DepExp_2014'!K48,+'App.2-CD_MIFRS_DepExp_2014'!K48+((C48*0.5)/D48)) -> 0 | H48: 0 | I48: 0 | K48: =IF(ISERROR(+I48+'App.2-CD_MIFRS_DepExp_2014'!K48-J48), 0, +I48+'App.2-CD_MIFRS_DepExp_2014'!K48-J48) -> 0
A49: 1970 | B49: Load Management Controls Customer Premises | E49: 0 | F49: =IF(D49=0,+'App.2-CD_MIFRS_DepExp_2014'!K49,+'App.2-CD_MIFRS_DepExp_2014'!K49+((C49*0.5)/D49)) -> 0 | H49: 0 | I49: 0 | K49: =IF(ISERROR(+I49+'App.2-CD_MIFRS_DepExp_2014'!K49-J49), 0, +I49+'App.2-CD_MIFRS_DepExp_2014'!K49-J49) -> 0
A50: 1975 | B50: Load Management Controls Utility Premises | E50: 0 | F50: =IF(D50=0,+'App.2-CD_MIFRS_DepExp_2014'!K50,+'App.2-CD_MIFRS_DepExp_2014'!K50+((C50*0.5)/D50)) -> 0 | H50: 0 | I50: 0 | K50: =IF(ISERROR(+I50+'App.2-CD_MIFRS_DepExp_2014'!K50-J50), 0, +I50+'App.2-CD_MIFRS_DepExp_2014'!K50-J50) -> 0
A51: 1980 | B51: System Supervisor Equipment | C51: ='[12]2.6 Fixed Asset Cont Stmt'!E539 -> 186917.74 | D51: 10 | E51: 0.1 | F51: =IF(D51=0,+'App.2-CD_MIFRS_DepExp_2014'!K51,+'App.2-CD_MIFRS_DepExp_2014'!K51+((C51*0.5)/D51)) -> 23361.20285 | G51: ='[12]2.6 Fixed Asset Cont Stmt'!K539 -> 23373.517 | H51: -12.31414634 | I51: 18691.774 | K51: =IF(ISERROR(+I51+'App.2-CD_MIFRS_DepExp_2014'!K51-J51), 0, +I51+'App.2-CD_MIFRS_DepExp_2014'!K51-J51) -> 32707.08985
A52: 1985 | B52: Miscellaneous Fixed Assets | E52: 0 | F52: =IF(D52=0,+'App.2-CD_MIFRS_DepExp_2014'!K52,+'App.2-CD_MIFRS_DepExp_2014'!K52+((C52*0.5)/D52)) -> 0 | H52: 0 | I52: 0 | K52: =IF(ISERROR(+I52+'App.2-CD_MIFRS_DepExp_2014'!K52-J52), 0, +I52+'App.2-CD_MIFRS_DepExp_2014'!K52-J52) -> 0
A53: 1990 | B53: Other Tangible Property | E53: 0 | F53: =IF(D53=0,+'App.2-CD_MIFRS_DepExp_2014'!K53,+'App.2-CD_MIFRS_DepExp_2014'!K53+((C53*0.5)/D53)) -> 0 | H53: 0 | I53: 0 | K53: =IF(ISERROR(+I53+'App.2-CD_MIFRS_DepExp_2014'!K53-J53), 0, +I53+'App.2-CD_MIFRS_DepExp_2014'!K53-J53) -> 0
A54: 2440 | B54: Deferred Revenue | C54: ='[12]2.6 Fixed Asset Cont Stmt'!E542 -> 0 | D54: 50 | E54: 0.02 | F54: =IF(D54=0,+'App.2-CD_MIFRS_DepExp_2014'!K54,+'App.2-CD_MIFRS_DepExp_2014'!K54+((C54*0.5)/D54)) -> -11337.32666 | G54: =-'[12]2.6 Fixed Asset Cont Stmt'!F542 -> -11565.22 | H54: 227.8933361 | I54: 0 | K54: =IF(ISERROR(+I54+'App.2-CD_MIFRS_DepExp_2014'!K54-J54), 0, +I54+'App.2-CD_MIFRS_DepExp_2014'!K54-J54) -> -11337.32666
B56: Total | C56: =SUM(C17:C54) -> 797193.31 | F56: =SUM(F17:F54) -> 440608.5664 | G56: =SUM(G17:G54) -> 438478.5826 | H56: =SUM(H17:H54) -> 2129.983744 | I56: =SUM(I17:I54) -> 50824.99177 | J56: 126617 | K56: =SUM(K17:K54) -> 339404.0623
B57: Depreciation exp. adj. from gain or loss on the retirement of assets (pool of like assets)
B58: Total Depreciation expense to be included in the test year revenue requirement | F58: =SUM(F56:F57) -> 440608.5664
A59: Notes:
A60: 1 | B60: Board policy of the "half-year" rule - the applicant must ensure that additions in the year attract a half-year depreciation expense in the first year. Deviations from this standard practice must be supported in the application.
A61: 2 | B61: The applicant must provide an explanation of material variances in evidence.
A62: 3 | B62: This column refers to the calculated full year depreciation but excludes the depreciation expense on assets fully depreciated during the year. This column is used for the purpose of calculating depreciation expense in the following year on the next worksheet.
A64: General: | B64: Applicants must provide a breakdown of depreciation and amortization expense in the above format for all relevant accounts. Asset Retirement Obligations (AROs), depreciation and accretion expense should be disclosed separately consistent with the Notes of historical Audited Financial Statements.

Sheet App.2-CF_MIFRS_DepExp_2016
G1: File Number: | H1: =EBNUMBER -> EB-2015-0110
G2: Exhibit: | H2: 4
G3: Tab: | H3: 4
G4: Schedule: | H4: 2
G5: Page: | H5: 70
G7: Date: | H7: Mar-4-2016
A9: Appendix 2-CF
A10: Depreciation and Amortization Expense
A11: Assumes the applicant made capitalization and depreciation expense accounting policy changes under CGAAP effective January 1, 2012 and has adopted IFRS for financial reporting purposes effective January 1, 2015.
C13: 2016 | D13: MIFRS
A15: Account | B15: Description | C15: ICM Additions (Full year amortization) | D15: Additions | E15: Years (new additions only) | F15: Depreciation Rate on New Additions | G15: Depreciation Rate on New Additions | H15: 2016 Depreciation Expense per Appendix 2-BA Fixed Assets, Column J (l) | I15: Variance 2
C16: (n) | D16: (d) | E16: (f) | F16: (g) = 1 / (f) | G16: (h)=2015 Full Year Depreciation + ((d)*0.5)/(f) | I16: (m) = (h) - (l)
A17: 1611 | B17: Computer Software (Formally known as Account 1925) | D17: ='[12]2.6 Fixed Asset Cont Stmt'!E580 -> 1300 | E17: 5 | F17: =IF(E17=0,0,1/E17) -> 0.2 | G17: =IF(E17=0,'App.2-CE_MIFRS_DepExp_2015'!K17,+'App.2-CE_MIFRS_DepExp_2015'!K17+((D17*0.5)/E17)) -> 16630.85015 | H17: ='[12]2.6 Fixed Asset Cont Stmt'!K580 -> 17061.194 | I17: =IF(ISERROR(+G17-H17), 0, +G17-H17) -> -430.3438537
A18: 1612 | B18: Land Rights (Formally known as Account 1906) | F18: 0 | G18: =IF(E18=0,'App.2-CE_MIFRS_DepExp_2015'!K18,+'App.2-CE_MIFRS_DepExp_2015'!K18+((D18*0.5)/E18)) -> 0 | I18: 0
A19: 1805 | B19: Land | F19: 0 | G19: =IF(E19=0,'App.2-CE_MIFRS_DepExp_2015'!K19,+'App.2-CE_MIFRS_DepExp_2015'!K19+((D19*0.5)/E19)) -> 0 | I19: 0
A20: 1808 | B20: Buildings | D20: =SUM('[12]2.6 Fixed Asset Cont Stmt'!E584:E592) -> 30000 | E20: 60 | F20: 0.01666666667 | G20: =IF(E20=0,'App.2-CE_MIFRS_DepExp_2015'!K20,+'App.2-CE_MIFRS_DepExp_2015'!K20+((D20*0.5)/E20)) -> 13079.78717 | H20: =SUM('[12]2.6 Fixed Asset Cont Stmt'!K584:K593) -> 14402.3715 | I20: -1322.584333
A21: 1810 | B21: Leasehold Improvements | F21: 0 | G21: =IF(E21=0,'App.2-CE_MIFRS_DepExp_2015'!K21,+'App.2-CE_MIFRS_DepExp_2015'!K21+((D21*0.5)/E21)) -> 0 | I21: 0
A22: 1815 | B22: Transformer Station Equipment >50 kV | F22: 0 | G22: =IF(E22=0,'App.2-CE_MIFRS_DepExp_2015'!K22,+'App.2-CE_MIFRS_DepExp_2015'!K22+((D22*0.5)/E22)) -> 0 | I22: 0
A23: 1820 | B23: Distribution Station Equipment <50 kV | C23: 968676 | F23: 0 | G23: =IF(E23=0,'App.2-CE_MIFRS_DepExp_2015'!K23+C23*0.023,+'App.2-CE_MIFRS_DepExp_2015'!K23+((D23*0.5)/E23)) -> 42866.47155 | H23: =SUM('[12]2.6 Fixed Asset Cont Stmt'!K594:K601) -> 43206.11 | I23: -339.6384477 | K23: Adding Distribution Equipment $968,676
A24: 1825 | B24: Storage Battery Equipment | F24: 0 | G24: =IF(E24=0,'App.2-CE_MIFRS_DepExp_2015'!K24,+'App.2-CE_MIFRS_DepExp_2015'!K24+((D24*0.5)/E24)) -> 0 | I24: 0
A25: 1830 | B25: Poles, Towers & Fixtures | C25: 77794 | D25: =SUM('[12]2.6 Fixed Asset Cont Stmt'!E602) -> 397572 | E25: 45 | F25: 0.02222222222 | G25: =IF(E25=0,'App.2-CE_MIFRS_DepExp_2015'!K25,+'App.2-CE_MIFRS_DepExp_2015'!K25+((D25*0.5)/E25)+C25*0.0222) -> 62245.65384 | H25: =SUM('[12]2.6 Fixed Asset Cont Stmt'!K602:K605) -> 64091.06044 | I25: -1845.406609 | K25: Adding Distribution Equipment $77,794
A26: 1835 | B26: Overhead Conductors & Devices | C26: 313052 | D26: =SUM('[12]2.6 Fixed Asset Cont Stmt'!$E$606:$E$608) -> 30137 | E26: 60 | F26: 0.01666666667 | G26: =IF(E26=0,'App.2-CE_MIFRS_DepExp_2015'!K26,+'App.2-CE_MIFRS_DepExp_2015'!K26+((D26*0.5)/E26)+C26*0.0167) -> 16963.09624 | H26: =SUM('[12]2.6 Fixed Asset Cont Stmt'!K606:K608) -> 19490.67433 | I26: -2527.578093 | K26: Adding Distribution Equipment $313,052
A27: 1840 | B27: Underground Conduit | F27: 0 | G27: =IF(E27=0,'App.2-CE_MIFRS_DepExp_2015'!K27,+'App.2-CE_MIFRS_DepExp_2015'!K27+((D27*0.5)/E27)) -> 16.14545455 | H27: =SUM('[12]2.6 Fixed Asset Cont Stmt'!K609:K611) -> 17.8 | I27: -1.654545455
A28: 1845 | B28: Underground Conductors & Devices | C28: 23676 | D28: ='[12]2.6 Fixed Asset Cont Stmt'!$E$612 -> 0 | F28: 0 | G28: =IF(E28=0,'App.2-CE_MIFRS_DepExp_2015'!K28+C28*0.0182,+'App.2-CE_MIFRS_DepExp_2015'!K28+((D28*0.5)/E28)) -> 14173.99549 | H28: ='[12]2.6 Fixed Asset Cont Stmt'!K612 -> 14467.17036 | I28: -293.1748739 | K28: Adding Distribution Equipment $23,676
A29: 1850 | B29: Line Transformers | D29: =SUM('[12]2.6 Fixed Asset Cont Stmt'!E613:E616) -> 38791 | E29: 40 | F29: 0.025 | G29: =IF(E29=0,'App.2-CE_MIFRS_DepExp_2015'!K29,+'App.2-CE_MIFRS_DepExp_2015'!K29+((D29*0.5)/E29)) -> 31067.86057 | H29: =SUM('[12]2.6 Fixed Asset Cont Stmt'!K613:K616) -> 30929.50325 | I29: 138.3573214
A30: 1855 | B30: Services (Overhead & Underground) | D30: =SUM('[12]2.6 Fixed Asset Cont Stmt'!E617:E618) -> 60000 | E30: 50 | F30: 0.02 | G30: =IF(E30=0,'App.2-CE_MIFRS_DepExp_2015'!K30,+'App.2-CE_MIFRS_DepExp_2015'!K30+((D30*0.5)/E30)) -> 7415.155262 | H30: =SUM('[12]2.6 Fixed Asset Cont Stmt'!K617:K618) -> 7401.739083 | I30: 13.41617821
A31: 1860 | B31: Meters | F31: 0 | G31: =IF(E31=0,'App.2-CE_MIFRS_DepExp_2015'!K31,+'App.2-CE_MIFRS_DepExp_2015'!K31+((D31*0.5)/E31)) -> 8573.677333 | H31: =SUM('[12]2.6 Fixed Asset Cont Stmt'!K619:K624,'[12]2.6 Fixed Asset Cont Stmt'!K629) -> 6017.98 | I31: 2555.697333
A32: 1860 | B32: Meters (Smart Meters) | D32: ='[12]2.6 Fixed Asset Cont Stmt'!E625 -> 23500 | E32: 10 | F32: 0.1 | G32: =IF(E32=0,'App.2-CE_MIFRS_DepExp_2015'!K32,+'App.2-CE_MIFRS_DepExp_2015'!K32+((D32*0.5)/E32)) -> 47563.50062 | H32: ='[12]2.6 Fixed Asset Cont Stmt'!K625 -> 47648.764 | I32: -85.26338095
A33: 1905 | B33: Land | F33: 0 | G33: =IF(E33=0,'App.2-CE_MIFRS_DepExp_2015'!K33,+'App.2-CE_MIFRS_DepExp_2015'!K33+((D33*0.5)/E33)) -> 0 | I33: 0
A34: 1908 | B34: Buildings & Fixtures | F34: 0 | G34: =IF(E34=0,'App.2-CE_MIFRS_DepExp_2015'!K34,+'App.2-CE_MIFRS_DepExp_2015'!K34+((D34*0.5)/E34)) -> 0 | I34: 0
A35: 1910 | B35: Leasehold Improvements | F35: 0 | G35: =IF(E35=0,'App.2-CE_MIFRS_DepExp_2015'!K35,+'App.2-CE_MIFRS_DepExp_2015'!K35+((D35*0.5)/E35)) -> 0 | I35: 0
A36: 1915 | B36: Office Furniture & Equipment (10 years) | D36: ='[12]2.6 Fixed Asset Cont Stmt'!E630 -> 0 | E36: 10 | F36: 0.1 | G36: =IF(E36=0,'App.2-CE_MIFRS_DepExp_2015'!K36,+'App.2-CE_MIFRS_DepExp_2015'!K36+((D36*0.5)/E36)) -> 3599.676976 | H36: ='[12]2.6 Fixed Asset Cont Stmt'!K630 -> 3507.179 | I36: 92.49797619
A37: 1915 | B37: Office Furniture & Equipment (5 years) | F37: 0 | G37: =IF(E37=0,'App.2-CE_MIFRS_DepExp_2015'!K37,+'App.2-CE_MIFRS_DepExp_2015'!K37+((D37*0.5)/E37)) -> 0 | I37: 0
A38: 1920 | B38: Computer Equipment - Hardware | F38: 0 | G38: =IF(E38=0,'App.2-CE_MIFRS_DepExp_2015'!K38,+'App.2-CE_MIFRS_DepExp_2015'!K38+((D38*0.5)/E38)) -> 0 | I38: 0
A39: 1920 | B39: Computer Equip.-Hardware(Post Mar. 22/04) | D39: ='[12]2.6 Fixed Asset Cont Stmt'!E631 -> 39350 | E39: 5 | F39: 0.2 | G39: =IF(E39=0,'App.2-CE_MIFRS_DepExp_2015'!K39,+'App.2-CE_MIFRS_DepExp_2015'!K39+((D39*0.5)/E39)) -> 46407.20339 | H39: ='[12]2.6 Fixed Asset Cont Stmt'!K631 -> 46552.458 | I39: -145.2546061
A40: 1920 | B40: Computer Equip.-Hardware(Post Mar. 19/07) | F40: 0 | G40: =IF(E40=0,'App.2-CE_MIFRS_DepExp_2015'!K40,+'App.2-CE_MIFRS_DepExp_2015'!K40+((D40*0.5)/E40)) -> 0 | I40: 0
A41: 1930 | B41: Transportation Equipment | F41: 0 | G41: =IF(E41=0,'App.2-CE_MIFRS_DepExp_2015'!K41,+'App.2-CE_MIFRS_DepExp_2015'!K41+((D41*0.5)/E41)) -> 45787.7295 | H41: =SUM('[12]2.6 Fixed Asset Cont Stmt'!K632:K634) -> 44993.522 | I41: 794.2075
A42: 1935 | B42: Stores Equipment | F42: 0 | G42: =IF(E42=0,'App.2-CE_MIFRS_DepExp_2015'!K42,+'App.2-CE_MIFRS_DepExp_2015'!K42+((D42*0.5)/E42)) -> 230.27375 | H42: ='[12]2.6 Fixed Asset Cont Stmt'!K635 -> 236.01 | I42: -5.73625
A43: 1940 | B43: Tools, Shop & Garage Equipment | F43: 0 | G43: =IF(E43=0,'App.2-CE_MIFRS_DepExp_2015'!K43,+'App.2-CE_MIFRS_DepExp_2015'!K43+((D43*0.5)/E43)) -> 773.969 | H43: ='[12]2.6 Fixed Asset Cont Stmt'!K636 -> 922.74 | I43: -148.771
A44: 1945 | B44: Measurement & Testing Equipment | F44: 0 | G44: =IF(E44=0,'App.2-CE_MIFRS_DepExp_2015'!K44,+'App.2-CE_MIFRS_DepExp_2015'!K44+((D44*0.5)/E44)) -> 0 | I44: 0
A45: 1950 | B45: Power Operated Equipment | F45: 0 | G45: =IF(E45=0,'App.2-CE_MIFRS_DepExp_2015'!K45,+'App.2-CE_MIFRS_DepExp_2015'!K45+((D45*0.5)/E45)) -> 0 | I45: 0
A46: 1955 | B46: Communications Equipment | F46: 0 | G46: =IF(E46=0,'App.2-CE_MIFRS_DepExp_2015'!K46,+'App.2-CE_MIFRS_DepExp_2015'!K46+((D46*0.5)/E46)) -> 1548.004383 | H46: ='[12]2.6 Fixed Asset Cont Stmt'!K638 -> 1487.6 | I46: 60.40438275
A47: 1955 | B47: Communication Equipment (Smart Meters) | F47: 0 | G47: =IF(E47=0,'App.2-CE_MIFRS_DepExp_2015'!K47,+'App.2-CE_MIFRS_DepExp_2015'!K47+((D47*0.5)/E47)) -> 0.190625 | I47: 0.190625
A48: 1960 | B48: Miscellaneous Equipment | F48: 0 | G48: =IF(E48=0,'App.2-CE_MIFRS_DepExp_2015'!K48,+'App.2-CE_MIFRS_DepExp_2015'!K48+((D48*0.5)/E48)) -> 0 | I48: 0
A49: 1970 | B49: Load Management Controls Customer Premises | F49: 0 | G49: =IF(E49=0,'App.2-CE_MIFRS_DepExp_2015'!K49,+'App.2-CE_MIFRS_DepExp_2015'!K49+((D49*0.5)/E49)) -> 0 | I49: 0
A50: 1975 | B50: Load Management Controls Utility Premises | F50: 0 | G50: =IF(E50=0,'App.2-CE_MIFRS_DepExp_2015'!K50,+'App.2-CE_MIFRS_DepExp_2015'!K50+((D50*0.5)/E50)) -> 0 | I50: 0
A51: 1980 | B51: System Supervisor Equipment | F51: 0 | G51: =IF(E51=0,'App.2-CE_MIFRS_DepExp_2015'!K51,+'App.2-CE_MIFRS_DepExp_2015'!K51+((D51*0.5)/E51)) -> 32707.08985 | H51: ='[12]2.6 Fixed Asset Cont Stmt'!K639 -> 32719.404 | I51: -12.31414634
A52: 1985 | B52: Miscellaneous Fixed Assets | F52: 0 | G52: =IF(E52=0,'App.2-CE_MIFRS_DepExp_2015'!K52,+'App.2-CE_MIFRS_DepExp_2015'!K52+((D52*0.5)/E52)) -> 0 | I52: 0
A53: 1990 | B53: Other Tangible Property | F53: 0 | G53: =IF(E53=0,'App.2-CE_MIFRS_DepExp_2015'!K53,+'App.2-CE_MIFRS_DepExp_2015'!K53+((D53*0.5)/E53)) -> 0 | H53: ='[12]2.6 Fixed Asset Cont Stmt'!K641 -> 0 | I53: 0
A54: 2440 | B54: Deferred Revenue | F54: 0 | G54: =IF(E54=0,'App.2-CE_MIFRS_DepExp_2015'!K54,+'App.2-CE_MIFRS_DepExp_2015'!K54+((D54*0.5)/E54)) -> -11337.32666 | H54: =-'[12]2.6 Fixed Asset Cont Stmt'!F641 -> -11565.22 | I54: 227.8933361
A55: 1609 | B55: Capital Contributions Paid | D55: ='[12]2.6 Fixed Asset Cont Stmt'!E642 -> 913261 | E55: 50 | F55: 0.02 | G55: =IF(E55=0,'App.2-CE_MIFRS_DepExp_2015'!K55,+'App.2-CE_MIFRS_DepExp_2015'!K55+((D55*0.5)/E55)) -> 9132.61 | H55: ='[12]2.6 Fixed Asset Cont Stmt'!K642 -> 18265.22 | I55: -9132.61
B56: Total | C56: =SUM(C17:C55) -> 1383198 | F56: =SUM(F17:F54) -> 0.7005555556 | G56: =SUM(G17:G55) -> 389445.6145 | H56: =SUM(H17:H55) -> 401853.28 | I56: =SUM(I17:I55) -> -12407.66549
B57: Depreciation exp. adj. from gain or loss on the retirement of assets (pool of like assets)
B58: Total Depreciation expense to be included in the test year revenue requirement | G58: =SUM(G56:G57) -> 389445.6145
A59: Notes:
A60: 1 | B60: Board policy of the "half-year" rule - the applicant must ensure that additions in the year attract a half-year depreciation expense in the first year. Deviations from this standard practice must be supported in the application.
A61: 2 | B61: The applicant must provide an explanation of material variances in evidence.
A64: General: | B64: Applicants must provide a breakdown of depreciation and amortization expense in the above format for all relevant accounts. Asset Retirement Obligations (AROs), depreciation and accretion expense should be disclosed separately consistent with the Notes of historical Audited Financial Statements.

Sheet App.2-CG_OldCGAAP_DepExp_2013
K1: File Number: | L1: =EBNUMBER -> EB-2015-0110
K2: Exhibit: | L2: NA
K3: Tab:
K4: Schedule:
K5: Page:
K7: Date: | L7: Mar-4-2016
A9: Appendix 2-CG
A10: Depreciation and Amortization Expense
B11: Assumes the applicant made capitalization and depreciation expense accounting policy changes under CGAAP effective January 1, 2013 and has adopted IFRS for financial reporting purposes effective January 1, 2015.
C13: Year | D13: 2013 | E13: Former CGAAP
A15: Account | B15: Description | C15: Opening Regulatory Gross PP&E as at Jan 1, 2013 | D15: Less Fully Depreciated | E15: Net for Depreciation | F15: Additions | G15: Total for Depreciation 1 | H15: Years | I15: Depreciation Rate | J15: Depreciation Expense | K15: 2013 Depreciation Expense per Appendix 2-BA Fixed Assets, Column J (l) | L15: Variance 2
C16: (a) | D16: (b) | E16: (c) | F16: (d) | G16: (e) = (c) + ½ x (d) | H16: (f) | I16: (g) = 1 / (f) | J16: (h) = (e) / (f) | L16: (m) = (h) - (l)
A17: 1611 | B17: Computer Software (Formally known as Account 1925) | E17: =C17-D17 -> 0 | G17: =E17+0.5*F17 -> 0 | I17: =IF(H17=0,0,1/H17) -> 0 | J17: =IF(H17=0,0,G17/H17) -> 0 | L17: =IF(ISERROR(+J17-K17), 0, +J17-K17) -> 0
A18: 1612 | B18: Land Rights (Formally known as Account 1906) | E18: =C18-D18 -> 0 | G18: =E18+0.5*F18 -> 0 | I18: 0 | J18: 0 | L18: 0
A19: 1805 | B19: Land | E19: 0 | G19: 0 | I19: 0 | J19: 0 | L19: 0
A20: 1808 | B20: Buildings | E20: 0 | G20: 0 | I20: 0 | J20: 0 | L20: 0
A21: 1810 | B21: Leasehold Improvements | E21: 0 | G21: 0 | I21: 0 | J21: 0 | L21: 0
A22: 1815 | B22: Transformer Station Equipment >50 kV | E22: 0 | G22: 0 | I22: 0 | J22: 0 | L22: 0
A23: 1820 | B23: Distribution Station Equipment <50 kV | E23: 0 | G23: 0 | I23: 0 | J23: 0 | L23: 0
A24: 1825 | B24: Storage Battery Equipment | E24: 0 | G24: 0 | I24: 0 | J24: 0 | L24: 0
A25: 1830 | B25: Poles, Towers & Fixtures | E25: 0 | G25: 0 | I25: 0 | J25: 0 | L25: 0
A26: 1835 | B26: Overhead Conductors & Devices | E26: 0 | G26: 0 | I26: 0 | J26: 0 | L26: 0
A27: 1840 | B27: Underground Conduit | E27: 0 | G27: 0 | I27: 0 | J27: 0 | L27: 0
A28: 1845 | B28: Underground Conductors & Devices | E28: 0 | G28: 0 | I28: 0 | J28: 0 | L28: 0
A29: 1850 | B29: Line Transformers | E29: 0 | G29: 0 | I29: 0 | J29: 0 | L29: 0
A30: 1855 | B30: Services (Overhead & Underground) | E30: 0 | G30: 0 | I30: 0 | J30: 0 | L30: 0
A31: 1860 | B31: Meters | E31: 0 | G31: 0 | I31: 0 | J31: 0 | L31: 0
A32: 1860 | B32: Meters (Smart Meters) | E32: 0 | G32: 0 | I32: 0 | J32: 0 | L32: 0
A33: 1905 | B33: Land | E33: 0 | G33: 0 | I33: 0 | J33: 0 | L33: 0
A34: 1908 | B34: Buildings & Fixtures | E34: 0 | G34: 0 | I34: 0 | J34: 0 | L34: 0
A35: 1910 | B35: Leasehold Improvements | E35: 0 | G35: 0 | I35: 0 | J35: 0 | L35: 0
A36: 1915 | B36: Office Furniture & Equipment (10 years) | E36: 0 | G36: 0 | I36: 0 | J36: 0 | L36: 0
A37: 1915 | B37: Office Furniture & Equipment (5 years) | E37: 0 | G37: 0 | I37: 0 | J37: 0 | L37: 0
A38: 1920 | B38: Computer Equipment - Hardware | E38: 0 | G38: 0 | I38: 0 | J38: 0 | L38: 0
A39: 1920 | B39: Computer Equip.-Hardware(Post Mar. 22/04) | E39: 0 | G39: 0 | I39: 0 | J39: 0 | L39: 0
A40: 1920 | B40: Computer Equip.-Hardware(Post Mar. 19/07) | E40: 0 | G40: 0 | I40: 0 | J40: 0 | L40: 0
A41: 1930 | B41: Transportation Equipment | E41: 0 | G41: 0 | I41: 0 | J41: 0 | L41: 0
A42: 1935 | B42: Stores Equipment | E42: 0 | G42: 0 | I42: 0 | J42: 0 | L42: 0
A43: 1940 | B43: Tools, Shop & Garage Equipment | E43: 0 | G43: 0 | I43: 0 | J43: 0 | L43: 0
A44: 1945 | B44: Measurement & Testing Equipment | E44: 0 | G44: 0 | I44: 0 | J44: 0 | L44: 0
A45: 1950 | B45: Power Operated Equipment | E45: 0 | G45: 0 | I45: 0 | J45: 0 | L45: 0
A46: 1955 | B46: Communications Equipment | E46: 0 | G46: 0 | I46: 0 | J46: 0 | L46: 0
A47: 1955 | B47: Communication Equipment (Smart Meters) | E47: 0 | G47: 0 | I47: 0 | J47: 0 | L47: 0
A48: 1960 | B48: Miscellaneous Equipment | E48: 0 | G48: 0 | I48: 0 | J48: 0 | L48: 0
A49: 1970 | B49: Load Management Controls - Customer Premises | E49: 0 | G49: 0 | I49: 0 | J49: 0 | L49: 0
A50: 1975 | B50: Load Management Controls Utility Premises | E50: 0 | G50: 0 | I50: 0 | J50: 0 | L50: 0
A51: 1980 | B51: System Supervisor Equipment | E51: 0 | G51: 0 | I51: 0 | J51: 0 | L51: 0
A52: 1985 | B52: Miscellaneous Fixed Assets | E52: 0 | G52: 0 | I52: 0 | J52: 0 | L52: 0
A53: 1990 | B53: Other Tangible Property | E53: 0 | G53: 0 | I53: 0 | J53: 0 | L53: 0
A54: 1995 | B54: Contributions & Grants | E54: 0 | G54: 0 | I54: 0 | J54: 0 | L54: 0
B55: Total | C55: =SUM(C17:C54) -> 0 | D55: =SUM(D17:D54) -> 0 | E55: =SUM(E17:E54) -> 0 | F55: =SUM(F17:F54) -> 0 | G55: =SUM(G17:G54) -> 0 | J55: =SUM(J17:J54) -> 0 | K55: =SUM(K17:K54) -> 0 | L55: =SUM(L17:L54) -> 0
A57: Notes:
A59: 1 | B59: Board policy of the "half-year" rule - the applicant must ensure that additions in the year attract a half-year depreciation expense in the first year. Deviations from this standard practice must be supported in the application.
A60: 2 | B60: The applicant must provide an explanation of material variances in evidence.
A62: General | B62: Applicants must provide a breakdown of depreciation and amortization expense in the above format for all relevant accounts. Asset Retirement Obligations (AROs), depreciation and accretion expense should be disclosed separately consistent with the Notes of historical Audited Financial Statements.

Sheet App.2-CH_NewCGAAP_DepExp_2013
N1: File Number: | O1: =EBNUMBER -> EB-2015-0110
N2: Exhibit: | O2: NA
N3: Tab:
N4: Schedule:
N5: Page:
N7: Date:
A9: Appendix 2-CH
A10: Depreciation and Amortization Expense
A11: Assumes the applicant made capitalization and depreciation expense accounting policy changes under CGAAP effective January 1, 2013 and has adopted IFRS for financial reporting purposes effective January 1, 2015.
C13: Year | D13: 2013 | E13: Revised CGAAP
A15: Account | B15: Description | C15: Opening NBV as at Jan 1, 2013 5 | D15: Additions | E15: Average Remaining Life of Opening NBV 4 | F15: Years (new additions only) 3 | G15: Depreciation Rate on New Additions | H15: Depreciation Expense on Opening NBV | I15: Depreciation Expense on Additions 1 | J15: 2013 Depreciation Expense | K15: 2013 Depreciation Expense per Appendix 2-BA Fixed Assets, Column J (l) | L15: Variance 2 | M15: Depreciation Expense on 2013 Full Year Additions | N15: Less Depreciation Expense on Assets Fully Depreciated during the year (o) | O15: 2013 Full Year Depreciation 6
C16: (a) | D16: (d) | E16: (i) | F16: (f) | G16: (g) = 1 / (f) | H16: (j) = (a) / (i) | I16: (h)=((d)*0.5)/(f) | J16: (k) = (j) + (h) | L16: (m) = (k) - (l) | M16: (n) = (d)/(f) | O16: (p) = (j) + (n) - (o)
A17: 1611 | B17: Computer Software (Formally known as Account 1925) | G17: =IF(F17=0,0,1/F17) -> 0 | H17: =IF(E17=0,0,+C17/E17) -> 0 | I17: =IF(F17=0,0,+(D17*0.5)/F17) -> 0 | J17: =IF(ISERROR(+H17+I17), 0, +H17+I17) -> 0 | L17: =IF(ISERROR(+J17-K17), 0, +J17-K17) -> 0 | M17: =IF(F17=0,0,+(D17)/F17) -> 0 | O17: =IF(ISERROR(+M17+H17-N17), 0, +M17+H17-N17) -> 0
A18: 1612 | B18: Land Rights (Formally known as Account 1906) | G18: 0 | H18: 0 | I18: 0 | J18: 0 | L18: 0 | M18: 0 | O18: =IF(ISERROR(+M18+H18-N18), 0, +M18+H18-N18) -> 0
A19: 1805 | B19: Land | G19: 0 | H19: 0 | I19: 0 | J19: 0 | L19: 0 | M19: 0 | O19: 0
A20: 1808 | B20: Buildings | G20: 0 | H20: 0 | I20: 0 | J20: 0 | L20: 0 | M20: 0 | O20: 0
A21: 1810 | B21: Leasehold Improvements | G21: 0 | H21: 0 | I21: 0 | J21: 0 | L21: 0 | M21: 0 | O21: 0
A22: 1815 | B22: Transformer Station Equipment >50 kV | G22: 0 | H22: 0 | I22: 0 | J22: 0 | L22: 0 | M22: 0 | O22: 0
A23: 1820 | B23: Distribution Station Equipment <50 kV | G23: 0 | H23: 0 | I23: 0 | J23: 0 | L23: 0 | M23: 0 | O23: 0
A24: 1825 | B24: Storage Battery Equipment | G24: 0 | H24: 0 | I24: 0 | J24: 0 | L24: 0 | M24: 0 | O24: 0
A25: 1830 | B25: Poles, Towers & Fixtures | G25: 0 | H25: 0 | I25: 0 | J25: 0 | L25: 0 | M25: 0 | O25: 0
A26: 1835 | B26: Overhead Conductors & Devices | G26: 0 | H26: 0 | I26: 0 | J26: 0 | L26: 0 | M26: 0 | O26: 0
A27: 1840 | B27: Underground Conduit | G27: 0 | H27: 0 | I27: 0 | J27: 0 | L27: 0 | M27: 0 | O27: 0
A28: 1845 | B28: Underground Conductors & Devices | G28: 0 | H28: 0 | I28: 0 | J28: 0 | L28: 0 | M28: 0 | O28: 0
A29: 1850 | B29: Line Transformers | G29: 0 | H29: 0 | I29: 0 | J29: 0 | L29: 0 | M29: 0 | O29: 0
A30: 1855 | B30: Services (Overhead & Underground) | G30: 0 | H30: 0 | I30: 0 | J30: 0 | L30: 0 | M30: 0 | O30: 0
A31: 1860 | B31: Meters | G31: 0 | H31: 0 | I31: 0 | J31: 0 | L31: 0 | M31: 0 | O31: 0
A32: 1860 | B32: Meters (Smart Meters) | G32: 0 | H32: 0 | I32: 0 | J32: 0 | L32: 0 | M32: 0 | O32: 0
A33: 1905 | B33: Land | G33: 0 | H33: 0 | I33: 0 | J33: 0 | L33: 0 | M33: 0 | O33: 0
A34: 1908 | B34: Buildings & Fixtures | G34: 0 | H34: 0 | I34: 0 | J34: 0 | L34: 0 | M34: 0 | O34: 0
A35: 1910 | B35: Leasehold Improvements | G35: 0 | H35: 0 | I35: 0 | J35: 0 | L35: 0 | M35: 0 | O35: 0
A36: 1915 | B36: Office Furniture & Equipment (10 years) | G36: 0 | H36: 0 | I36: 0 | J36: 0 | L36: 0 | M36: 0 | O36: 0
A37: 1915 | B37: Office Furniture & Equipment (5 years) | G37: 0 | H37: 0 | I37: 0 | J37: 0 | L37: 0 | M37: 0 | O37: 0
A38: 1920 | B38: Computer Equipment - Hardware | G38: 0 | H38: 0 | I38: 0 | J38: 0 | L38: 0 | M38: 0 | O38: 0
A39: 1920 | B39: Computer Equip.-Hardware(Post Mar. 22/04) | G39: 0 | H39: 0 | I39: 0 | J39: 0 | L39: 0 | M39: 0 | O39: 0
A40: 1920 | B40: Computer Equip.-Hardware(Post Mar. 19/07) | G40: 0 | H40: 0 | I40: 0 | J40: 0 | L40: 0 | M40: 0 | O40: 0
A41: 1930 | B41: Transportation Equipment | G41: 0 | H41: 0 | I41: 0 | J41: 0 | L41: 0 | M41: 0 | O41: 0
A42: 1935 | B42: Stores Equipment | G42: 0 | H42: 0 | I42: 0 | J42: 0 | L42: 0 | M42: 0 | O42: 0
A43: 1940 | B43: Tools, Shop & Garage Equipment | G43: 0 | H43: 0 | I43: 0 | J43: 0 | L43: 0 | M43: 0 | O43: 0
A44: 1945 | B44: Measurement & Testing Equipment | G44: 0 | H44: 0 | I44: 0 | J44: 0 | L44: 0 | M44: 0 | O44: 0
A45: 1950 | B45: Power Operated Equipment | G45: 0 | H45: 0 | I45: 0 | J45: 0 | L45: 0 | M45: 0 | O45: 0
A46: 1955 | B46: Communications Equipment | G46: 0 | H46: 0 | I46: 0 | J46: 0 | L46: 0 | M46: 0 | O46: 0
A47: 1955 | B47: Communication Equipment (Smart Meters) | G47: 0 | H47: 0 | I47: 0 | J47: 0 | L47: 0 | M47: 0 | O47: 0
A48: 1960 | B48: Miscellaneous Equipment | G48: 0 | H48: 0 | I48: 0 | J48: 0 | L48: 0 | M48: 0 | O48: 0
A49: 1970 | B49: Load Management Controls - Customer Premises | G49: 0 | H49: 0 | I49: 0 | J49: 0 | L49: 0 | M49: 0 | O49: 0
A50: 1975 | B50: Load Management Controls Utility Premises | G50: 0 | H50: 0 | I50: 0 | J50: 0 | L50: 0 | M50: 0 | O50: 0
A51: 1980 | B51: System Supervisor Equipment | G51: 0 | H51: 0 | I51: 0 | J51: 0 | L51: 0 | M51: 0 | O51: 0
A52: 1985 | B52: Miscellaneous Fixed Assets | G52: 0 | H52: 0 | I52: 0 | J52: 0 | L52: 0 | M52: 0 | O52: 0
A53: 1990 | B53: Other Tangible Property | G53: 0 | H53: 0 | I53: 0 | J53: 0 | L53: 0 | M53: 0 | O53: 0
A54: 1995 | B54: Contributions & Grants | G54: 0 | H54: 0 | I54: 0 | J54: 0 | L54: 0 | M54: 0 | O54: 0
B55: Total | C55: =SUM(C17:C54) -> 0 | D55: =SUM(D17:D54) -> 0 | H55: =SUM(H17:H54) -> 0 | I55: 0 | J55: 0 | K55: 0 | L55: 0 | M55: 0 | N55: 0 | O55: 0
A57: Notes:
A59: 1 | B59: Board policy of the "half-year" rule - the applicant must ensure that additions in the year attract a half-year depreciation expense in the first year. Deviations from this standard practice must be supported in the application.
A60: 2 | B60: The applicant must provide an explanation of material variances in evidence.
A61: 3 | B61: The applicant should ensure that the years for new additions of assets are the asset useful lives determined by management in accordance with the Board's regulatory accounting policies. The capitalization and depreciation expense accounting changes should be implemented consistent with the Board’s regulatory accounting policies as set out for MIFRS as contained in the Report of the Board, Transition to International Financial Reporting Standards, EB-2008-0408, the Kinectrics Report, and the Revised 2012 Accounting Procedures Handbook for Electricity Distributors.
A62: 4 | B62: A recalculation should be performed to determine the average remaining life of opening balance of assets (i.e. excluding 2013 additions) under the change in policies under CGAAP. For example, Asset A had a useful life of 20 years under CGAAP without the change in policies. On January 1, 2013, the effective date of the changes in policies, Asset A was 3 years depreciated. As a result, Asset A would have a remaining service life of 17 years (20 years less 3 years) as of January 1, 2013. Due to making the change in policies under CGAAP, management re-assessed the asset useful lives and concluded that the revised useful life of Asset A is now 30 years. Therefore, the average remaining useful life of the opening balance of Asset A is determined to be 27 years (30 years less 3 years) under the revised CGAAP as of January 1, 2013.
A63: 5 | B63: NBV must exclude assets still on the books but which have been fully amortized or depreciated.
A64: 6 | B64: This column refers to the calculated full year depreciation but excludes the depreciation expense on assets fully depreciated during the year. This column is used for the purpose of calculating depreciation expense in the following year on the next worksheet.
A66: General: | B66: Applicants must provide a breakdown of depreciation and amortization expense in the above format for all relevant accounts. Asset Retirement Obligations (AROs), depreciation and accretion expense should be disclosed separately consistent with the Notes of historical Audited Financial Statements.

Sheet App.2-CI_MIFRS_DepExp_2014
J1: File Number: | K1: =EBNUMBER -> EB-2015-0110
J2: Exhibit: | K2: NA
J3: Tab:
J4: Schedule:
J5: Page:
J7: Date:
A9: Appendix 2-CI
A10: Depreciation and Amortization Expense
A11: Assumes the applicant made capitalization and depreciation expense accounting policy changes under CGAAP effective January 1, 2013 and has adopted IFRS for financial reporting purposes effective January 1, 2015.
E13: 2014 | F13: MIFRS
A15: Account | B15: Description | C15: Additions | D15: Years (new additions only) | E15: Depreciation Rate on New Additions | F15: 2014 Depreciation Expense 1 | G15: 2014 Depreciation Expense per Apppendix 2-BA Fixed Assets, Column J (l) | H15: Variance 2 | I15: Depreciation Expense on 2014 Full Year Additions | J15: Less Depreciation Expense on Assets Fully Depreciated during the year (o) | K15: 2014 Full Year Depreciation 3
C16: (d) | D16: (f) | E16: (g) = 1 / (f) | F16: (h)=2013 Full Year Deprecation + ((d)*0.5)/(f) | H16: (m) = (h) - (l) | I16: (n)=((d))/(f) | K16: (p) = 2013 Full Year Depreciation + (n) - (o)
A17: 1611 | B17: Computer Software (Formally known as Account 1925) | E17: =IF(D17=0,0,1/D17) -> 0 | F17: =IF(D17=0,+'App.2-CH_NewCGAAP_DepExp_2013'!O17,+'App.2-CH_NewCGAAP_DepExp_2013'!O17+((C17*0.5)/D17)) -> 0 | H17: =IF(ISERROR(+F17-G17), 0, +F17-G17) -> 0 | I17: =IF(D17=0,0,+(C17)/D17) -> 0 | K17: =IF(ISERROR(+I17+'App.2-CH_NewCGAAP_DepExp_2013'!O17-J17), 0, +I17+'App.2-CH_NewCGAAP_DepExp_2013'!O17-J17) -> 0
A18: 1612 | B18: Land Rights (Formally known as Account 1906) | E18: 0 | F18: =IF(D18=0,+'App.2-CH_NewCGAAP_DepExp_2013'!O18,+'App.2-CH_NewCGAAP_DepExp_2013'!O18+((C18*0.5)/D18)) -> 0 | H18: 0 | I18: 0 | K18: =IF(ISERROR(+I18+'App.2-CH_NewCGAAP_DepExp_2013'!O18-J18), 0, +I18+'App.2-CH_NewCGAAP_DepExp_2013'!O18-J18) -> 0
A19: 1805 | B19: Land | E19: 0 | F19: =IF(D19=0,+'App.2-CH_NewCGAAP_DepExp_2013'!O19,+'App.2-CH_NewCGAAP_DepExp_2013'!O19+((C19*0.5)/D19)) -> 0 | H19: 0 | I19: 0 | K19: =IF(ISERROR(+I19+'App.2-CH_NewCGAAP_DepExp_2013'!O19-J19), 0, +I19+'App.2-CH_NewCGAAP_DepExp_2013'!O19-J19) -> 0
A20: 1808 | B20: Buildings | E20: 0 | F20: =IF(D20=0,+'App.2-CH_NewCGAAP_DepExp_2013'!O20,+'App.2-CH_NewCGAAP_DepExp_2013'!O20+((C20*0.5)/D20)) -> 0 | H20: 0 | I20: 0 | K20: =IF(ISERROR(+I20+'App.2-CH_NewCGAAP_DepExp_2013'!O20-J20), 0, +I20+'App.2-CH_NewCGAAP_DepExp_2013'!O20-J20) -> 0
A21: 1810 | B21: Leasehold Improvements | E21: 0 | F21: =IF(D21=0,+'App.2-CH_NewCGAAP_DepExp_2013'!O21,+'App.2-CH_NewCGAAP_DepExp_2013'!O21+((C21*0.5)/D21)) -> 0 | H21: 0 | I21: 0 | K21: =IF(ISERROR(+I21+'App.2-CH_NewCGAAP_DepExp_2013'!O21-J21), 0, +I21+'App.2-CH_NewCGAAP_DepExp_2013'!O21-J21) -> 0
A22: 1815 | B22: Transformer Station Equipment >50 kV | E22: 0 | F22: =IF(D22=0,+'App.2-CH_NewCGAAP_DepExp_2013'!O22,+'App.2-CH_NewCGAAP_DepExp_2013'!O22+((C22*0.5)/D22)) -> 0 | H22: 0 | I22: 0 | K22: =IF(ISERROR(+I22+'App.2-CH_NewCGAAP_DepExp_2013'!O22-J22), 0, +I22+'App.2-CH_NewCGAAP_DepExp_2013'!O22-J22) -> 0
A23: 1820 | B23: Distribution Station Equipment <50 kV | E23: 0 | F23: =IF(D23=0,+'App.2-CH_NewCGAAP_DepExp_2013'!O23,+'App.2-CH_NewCGAAP_DepExp_2013'!O23+((C23*0.5)/D23)) -> 0 | H23: 0 | I23: 0 | K23: =IF(ISERROR(+I23+'App.2-CH_NewCGAAP_DepExp_2013'!O23-J23), 0, +I23+'App.2-CH_NewCGAAP_DepExp_2013'!O23-J23) -> 0
A24: 1825 | B24: Storage Battery Equipment | E24: 0 | F24: =IF(D24=0,+'App.2-CH_NewCGAAP_DepExp_2013'!O24,+'App.2-CH_NewCGAAP_DepExp_2013'!O24+((C24*0.5)/D24)) -> 0 | H24: 0 | I24: 0 | K24: =IF(ISERROR(+I24+'App.2-CH_NewCGAAP_DepExp_2013'!O24-J24), 0, +I24+'App.2-CH_NewCGAAP_DepExp_2013'!O24-J24) -> 0
A25: 1830 | B25: Poles, Towers & Fixtures | E25: 0 | F25: =IF(D25=0,+'App.2-CH_NewCGAAP_DepExp_2013'!O25,+'App.2-CH_NewCGAAP_DepExp_2013'!O25+((C25*0.5)/D25)) -> 0 | H25: 0 | I25: 0 | K25: =IF(ISERROR(+I25+'App.2-CH_NewCGAAP_DepExp_2013'!O25-J25), 0, +I25+'App.2-CH_NewCGAAP_DepExp_2013'!O25-J25) -> 0
A26: 1835 | B26: Overhead Conductors & Devices | E26: 0 | F26: =IF(D26=0,+'App.2-CH_NewCGAAP_DepExp_2013'!O26,+'App.2-CH_NewCGAAP_DepExp_2013'!O26+((C26*0.5)/D26)) -> 0 | H26: 0 | I26: 0 | K26: =IF(ISERROR(+I26+'App.2-CH_NewCGAAP_DepExp_2013'!O26-J26), 0, +I26+'App.2-CH_NewCGAAP_DepExp_2013'!O26-J26) -> 0
A27: 1840 | B27: Underground Conduit | E27: 0 | F27: =IF(D27=0,+'App.2-CH_NewCGAAP_DepExp_2013'!O27,+'App.2-CH_NewCGAAP_DepExp_2013'!O27+((C27*0.5)/D27)) -> 0 | H27: 0 | I27: 0 | K27: =IF(ISERROR(+I27+'App.2-CH_NewCGAAP_DepExp_2013'!O27-J27), 0, +I27+'App.2-CH_NewCGAAP_DepExp_2013'!O27-J27) -> 0
A28: 1845 | B28: Underground Conductors & Devices | E28: 0 | F28: =IF(D28=0,+'App.2-CH_NewCGAAP_DepExp_2013'!O28,+'App.2-CH_NewCGAAP_DepExp_2013'!O28+((C28*0.5)/D28)) -> 0 | H28: 0 | I28: 0 | K28: =IF(ISERROR(+I28+'App.2-CH_NewCGAAP_DepExp_2013'!O28-J28), 0, +I28+'App.2-CH_NewCGAAP_DepExp_2013'!O28-J28) -> 0
A29: 1850 | B29: Line Transformers | E29: 0 | F29: =IF(D29=0,+'App.2-CH_NewCGAAP_DepExp_2013'!O29,+'App.2-CH_NewCGAAP_DepExp_2013'!O29+((C29*0.5)/D29)) -> 0 | H29: 0 | I29: 0 | K29: =IF(ISERROR(+I29+'App.2-CH_NewCGAAP_DepExp_2013'!O29-J29), 0, +I29+'App.2-CH_NewCGAAP_DepExp_2013'!O29-J29) -> 0
A30: 1855 | B30: Services (Overhead & Underground) | E30: 0 | F30: =IF(D30=0,+'App.2-CH_NewCGAAP_DepExp_2013'!O30,+'App.2-CH_NewCGAAP_DepExp_2013'!O30+((C30*0.5)/D30)) -> 0 | H30: 0 | I30: 0 | K30: =IF(ISERROR(+I30+'App.2-CH_NewCGAAP_DepExp_2013'!O30-J30), 0, +I30+'App.2-CH_NewCGAAP_DepExp_2013'!O30-J30) -> 0
A31: 1860 | B31: Meters | E31: 0 | F31: =IF(D31=0,+'App.2-CH_NewCGAAP_DepExp_2013'!O31,+'App.2-CH_NewCGAAP_DepExp_2013'!O31+((C31*0.5)/D31)) -> 0 | H31: 0 | I31: 0 | K31: =IF(ISERROR(+I31+'App.2-CH_NewCGAAP_DepExp_2013'!O31-J31), 0, +I31+'App.2-CH_NewCGAAP_DepExp_2013'!O31-J31) -> 0
A32: 1860 | B32: Meters (Smart Meters) | E32: 0 | F32: =IF(D32=0,+'App.2-CH_NewCGAAP_DepExp_2013'!O32,+'App.2-CH_NewCGAAP_DepExp_2013'!O32+((C32*0.5)/D32)) -> 0 | H32: 0 | I32: 0 | K32: =IF(ISERROR(+I32+'App.2-CH_NewCGAAP_DepExp_2013'!O32-J32), 0, +I32+'App.2-CH_NewCGAAP_DepExp_2013'!O32-J32) -> 0
A33: 1905 | B33: Land | E33: 0 | F33: =IF(D33=0,+'App.2-CH_NewCGAAP_DepExp_2013'!O33,+'App.2-CH_NewCGAAP_DepExp_2013'!O33+((C33*0.5)/D33)) -> 0 | H33: 0 | I33: 0 | K33: =IF(ISERROR(+I33+'App.2-CH_NewCGAAP_DepExp_2013'!O33-J33), 0, +I33+'App.2-CH_NewCGAAP_DepExp_2013'!O33-J33) -> 0
A34: 1908 | B34: Buildings & Fixtures | E34: 0 | F34: =IF(D34=0,+'App.2-CH_NewCGAAP_DepExp_2013'!O34,+'App.2-CH_NewCGAAP_DepExp_2013'!O34+((C34*0.5)/D34)) -> 0 | H34: 0 | I34: 0 | K34: =IF(ISERROR(+I34+'App.2-CH_NewCGAAP_DepExp_2013'!O34-J34), 0, +I34+'App.2-CH_NewCGAAP_DepExp_2013'!O34-J34) -> 0
A35: 1910 | B35: Leasehold Improvements | E35: 0 | F35: =IF(D35=0,+'App.2-CH_NewCGAAP_DepExp_2013'!O35,+'App.2-CH_NewCGAAP_DepExp_2013'!O35+((C35*0.5)/D35)) -> 0 | H35: 0 | I35: 0 | K35: =IF(ISERROR(+I35+'App.2-CH_NewCGAAP_DepExp_2013'!O35-J35), 0, +I35+'App.2-CH_NewCGAAP_DepExp_2013'!O35-J35) -> 0
A36: 1915 | B36: Office Furniture & Equipment (10 years) | E36: 0 | F36: =IF(D36=0,+'App.2-CH_NewCGAAP_DepExp_2013'!O36,+'App.2-CH_NewCGAAP_DepExp_2013'!O36+((C36*0.5)/D36)) -> 0 | H36: 0 | I36: 0 | K36: =IF(ISERROR(+I36+'App.2-CH_NewCGAAP_DepExp_2013'!O36-J36), 0, +I36+'App.2-CH_NewCGAAP_DepExp_2013'!O36-J36) -> 0
A37: 1915 | B37: Office Furniture & Equipment (5 years) | E37: 0 | F37: =IF(D37=0,+'App.2-CH_NewCGAAP_DepExp_2013'!O37,+'App.2-CH_NewCGAAP_DepExp_2013'!O37+((C37*0.5)/D37)) -> 0 | H37: 0 | I37: 0 | K37: =IF(ISERROR(+I37+'App.2-CH_NewCGAAP_DepExp_2013'!O37-J37), 0, +I37+'App.2-CH_NewCGAAP_DepExp_2013'!O37-J37) -> 0
A38: 1920 | B38: Computer Equipment - Hardware | E38: 0 | F38: =IF(D38=0,+'App.2-CH_NewCGAAP_DepExp_2013'!O38,+'App.2-CH_NewCGAAP_DepExp_2013'!O38+((C38*0.5)/D38)) -> 0 | H38: 0 | I38: 0 | K38: =IF(ISERROR(+I38+'App.2-CH_NewCGAAP_DepExp_2013'!O38-J38), 0, +I38+'App.2-CH_NewCGAAP_DepExp_2013'!O38-J38) -> 0
A39: 1920 | B39: Computer Equip.-Hardware(Post Mar. 22/04) | E39: 0 | F39: =IF(D39=0,+'App.2-CH_NewCGAAP_DepExp_2013'!O39,+'App.2-CH_NewCGAAP_DepExp_2013'!O39+((C39*0.5)/D39)) -> 0 | H39: 0 | I39: 0 | K39: =IF(ISERROR(+I39+'App.2-CH_NewCGAAP_DepExp_2013'!O39-J39), 0, +I39+'App.2-CH_NewCGAAP_DepExp_2013'!O39-J39) -> 0
A40: 1920 | B40: Computer Equip.-Hardware(Post Mar. 19/07) | E40: 0 | F40: =IF(D40=0,+'App.2-CH_NewCGAAP_DepExp_2013'!O40,+'App.2-CH_NewCGAAP_DepExp_2013'!O40+((C40*0.5)/D40)) -> 0 | H40: 0 | I40: 0 | K40: =IF(ISERROR(+I40+'App.2-CH_NewCGAAP_DepExp_2013'!O40-J40), 0, +I40+'App.2-CH_NewCGAAP_DepExp_2013'!O40-J40) -> 0
A41: 1930 | B41: Transportation Equipment | E41: 0 | F41: =IF(D41=0,+'App.2-CH_NewCGAAP_DepExp_2013'!O41,+'App.2-CH_NewCGAAP_DepExp_2013'!O41+((C41*0.5)/D41)) -> 0 | H41: 0 | I41: 0 | K41: =IF(ISERROR(+I41+'App.2-CH_NewCGAAP_DepExp_2013'!O41-J41), 0, +I41+'App.2-CH_NewCGAAP_DepExp_2013'!O41-J41) -> 0
A42: 1935 | B42: Stores Equipment | E42: 0 | F42: =IF(D42=0,+'App.2-CH_NewCGAAP_DepExp_2013'!O42,+'App.2-CH_NewCGAAP_DepExp_2013'!O42+((C42*0.5)/D42)) -> 0 | H42: 0 | I42: 0 | K42: =IF(ISERROR(+I42+'App.2-CH_NewCGAAP_DepExp_2013'!O42-J42), 0, +I42+'App.2-CH_NewCGAAP_DepExp_2013'!O42-J42) -> 0
A43: 1940 | B43: Tools, Shop & Garage Equipment | E43: 0 | F43: =IF(D43=0,+'App.2-CH_NewCGAAP_DepExp_2013'!O43,+'App.2-CH_NewCGAAP_DepExp_2013'!O43+((C43*0.5)/D43)) -> 0 | H43: 0 | I43: 0 | K43: =IF(ISERROR(+I43+'App.2-CH_NewCGAAP_DepExp_2013'!O43-J43), 0, +I43+'App.2-CH_NewCGAAP_DepExp_2013'!O43-J43) -> 0
A44: 1945 | B44: Measurement & Testing Equipment | E44: 0 | F44: =IF(D44=0,+'App.2-CH_NewCGAAP_DepExp_2013'!O44,+'App.2-CH_NewCGAAP_DepExp_2013'!O44+((C44*0.5)/D44)) -> 0 | H44: 0 | I44: 0 | K44: =IF(ISERROR(+I44+'App.2-CH_NewCGAAP_DepExp_2013'!O44-J44), 0, +I44+'App.2-CH_NewCGAAP_DepExp_2013'!O44-J44) -> 0
A45: 1950 | B45: Power Operated Equipment | E45: 0 | F45: =IF(D45=0,+'App.2-CH_NewCGAAP_DepExp_2013'!O45,+'App.2-CH_NewCGAAP_DepExp_2013'!O45+((C45*0.5)/D45)) -> 0 | H45: 0 | I45: 0 | K45: =IF(ISERROR(+I45+'App.2-CH_NewCGAAP_DepExp_2013'!O45-J45), 0, +I45+'App.2-CH_NewCGAAP_DepExp_2013'!O45-J45) -> 0
A46: 1955 | B46: Communications Equipment | E46: 0 | F46: =IF(D46=0,+'App.2-CH_NewCGAAP_DepExp_2013'!O46,+'App.2-CH_NewCGAAP_DepExp_2013'!O46+((C46*0.5)/D46)) -> 0 | H46: 0 | I46: 0 | K46: =IF(ISERROR(+I46+'App.2-CH_NewCGAAP_DepExp_2013'!O46-J46), 0, +I46+'App.2-CH_NewCGAAP_DepExp_2013'!O46-J46) -> 0
A47: 1955 | B47: Communication Equipment (Smart Meters) | E47: 0 | F47: =IF(D47=0,+'App.2-CH_NewCGAAP_DepExp_2013'!O47,+'App.2-CH_NewCGAAP_DepExp_2013'!O47+((C47*0.5)/D47)) -> 0 | H47: 0 | I47: 0 | K47: =IF(ISERROR(+I47+'App.2-CH_NewCGAAP_DepExp_2013'!O47-J47), 0, +I47+'App.2-CH_NewCGAAP_DepExp_2013'!O47-J47) -> 0
A48: 1960 | B48: Miscellaneous Equipment | E48: 0 | F48: =IF(D48=0,+'App.2-CH_NewCGAAP_DepExp_2013'!O48,+'App.2-CH_NewCGAAP_DepExp_2013'!O48+((C48*0.5)/D48)) -> 0 | H48: 0 | I48: 0 | K48: =IF(ISERROR(+I48+'App.2-CH_NewCGAAP_DepExp_2013'!O48-J48), 0, +I48+'App.2-CH_NewCGAAP_DepExp_2013'!O48-J48) -> 0
A49: 1970 | B49: Load Management Controls - Customer Premises | E49: 0 | F49: =IF(D49=0,+'App.2-CH_NewCGAAP_DepExp_2013'!O49,+'App.2-CH_NewCGAAP_DepExp_2013'!O49+((C49*0.5)/D49)) -> 0 | H49: 0 | I49: 0 | K49: =IF(ISERROR(+I49+'App.2-CH_NewCGAAP_DepExp_2013'!O49-J49), 0, +I49+'App.2-CH_NewCGAAP_DepExp_2013'!O49-J49) -> 0
A50: 1975 | B50: Load Management Controls Utility Premises | E50: 0 | F50: =IF(D50=0,+'App.2-CH_NewCGAAP_DepExp_2013'!O50,+'App.2-CH_NewCGAAP_DepExp_2013'!O50+((C50*0.5)/D50)) -> 0 | H50: 0 | I50: 0 | K50: =IF(ISERROR(+I50+'App.2-CH_NewCGAAP_DepExp_2013'!O50-J50), 0, +I50+'App.2-CH_NewCGAAP_DepExp_2013'!O50-J50) -> 0
A51: 1980 | B51: System Supervisor Equipment | E51: 0 | F51: =IF(D51=0,+'App.2-CH_NewCGAAP_DepExp_2013'!O51,+'App.2-CH_NewCGAAP_DepExp_2013'!O51+((C51*0.5)/D51)) -> 0 | H51: 0 | I51: 0 | K51: =IF(ISERROR(+I51+'App.2-CH_NewCGAAP_DepExp_2013'!O51-J51), 0, +I51+'App.2-CH_NewCGAAP_DepExp_2013'!O51-J51) -> 0
A52: 1985 | B52: Miscellaneous Fixed Assets | E52: 0 | F52: =IF(D52=0,+'App.2-CH_NewCGAAP_DepExp_2013'!O52,+'App.2-CH_NewCGAAP_DepExp_2013'!O52+((C52*0.5)/D52)) -> 0 | H52: 0 | I52: 0 | K52: =IF(ISERROR(+I52+'App.2-CH_NewCGAAP_DepExp_2013'!O52-J52), 0, +I52+'App.2-CH_NewCGAAP_DepExp_2013'!O52-J52) -> 0
A53: 1990 | B53: Other Tangible Property | E53: 0 | F53: =IF(D53=0,+'App.2-CH_NewCGAAP_DepExp_2013'!O53,+'App.2-CH_NewCGAAP_DepExp_2013'!O53+((C53*0.5)/D53)) -> 0 | H53: 0 | I53: 0 | K53: =IF(ISERROR(+I53+'App.2-CH_NewCGAAP_DepExp_2013'!O53-J53), 0, +I53+'App.2-CH_NewCGAAP_DepExp_2013'!O53-J53) -> 0
A54: 1995 | B54: Contributions & Grants | E54: =IF(D54=0,0,1/D54) -> 0 | F54: =IF(D54=0,+'App.2-CH_NewCGAAP_DepExp_2013'!O54,+'App.2-CH_NewCGAAP_DepExp_2013'!O54+((C54*0.5)/D54)) -> 0 | H54: 0 | I54: 0 | K54: =IF(ISERROR(+I54+'App.2-CH_NewCGAAP_DepExp_2013'!O54-J54), 0, +I54+'App.2-CH_NewCGAAP_DepExp_2013'!O54-J54) -> 0
B55: Total | C55: =SUM(C17:C54) -> 0 | F55: =SUM(F17:F54) -> 0 | G55: 0 | H55: 0 | I55: 0 | J55: 0 | K55: 0
B56: Depreciation exp. adj. from gain or loss on the retirement of assets (pool of like assets)
B57: Total Depreciation Expense | F57: =SUM(F55:F56) -> 0
A59: Notes:
A60: 1 | B60: Board policy of the "half-year" rule - the applicant must ensure that additions in the year attract a half-year depreciation expense in the first year. Deviations from this standard practice must be supported in the application.
A61: 2 | B61: The applicant must provide an explanation of material variances in evidence.
A62: 3 | B62: This column refers to the calculated full year depreciation but excludes the depreciation expense on assets fully depreciated during the year. This column is used for the purpose of calculating depreciation expense in the following year on the next worksheet.
A64: General: | B64: Applicants must provide a breakdown of depreciation and amortization expense in the above format for all relevant accounts. Asset Retirement Obligations (AROs), depreciation and accretion expense should be disclosed separately consistent with the Notes of historical Audited Financial Statements.

Sheet App.2-CJ MIFRS_DepExp_2015
G1: File Number: | H1: =EBNUMBER -> EB-2015-0110
G2: Exhibit: | H2: NA
G3: Tab:
G4: Schedule:
G5: Page:
G7: Date: | H7: 2016-01-27
A9: Appendix 2-CJ
A10: Depreciation and Amortization Expense
A11: Assumes the applicant made capitalization and depreciation expense accounting policy changes under CGAAP effective January 1, 2013 and has adopted IFRS for financial reporting purposes effective January 1, 2015.
D13: 2015 | E13: MIFRS
A15: Account | B15: Description | C15: Additions | D15: Years (new additions only) | E15: Depreciation Rate on New Additions | F15: 2015 Depreciation Expense 1 | G15: 2015 Depreciation Expense per Appendix 2-BA Fixed Assets, Column J (l) | H15: Variance 2 | I15: Depreciation Expense on 2015 Full Year Additions | J15: Less Depreciation Expense on Assets Fully Depreciated during the year (o) | K15: 2015 Full Year Depreciation 3
C16: (d) | D16: (f) | E16: (g) = 1 / (f) | F16: (h)=2014 Full Year Depreciation + ((d)*0.5)/(f) | H16: (m) = (h) - (l) | I16: (n)=((d))/(f) | K16: (p) = 2014 Full Year Depreciation + (n) - (o)
A17: 1611 | B17: Computer Software (Formally known as Account 1925) | E17: =IF(D17=0,0,1/D17) -> 0 | F17: =IF(D17=0,'App.2-CI_MIFRS_DepExp_2014'!K17,+'App.2-CI_MIFRS_DepExp_2014'!K17+((C17*0.5)/D17)) -> 0 | H17: =IF(ISERROR(+F17-G17), 0, +F17-G17) -> 0 | I17: =IF(D17=0,0,+(C17)/D17) -> 0 | K17: =IF(ISERROR(+I17+'App.2-CI_MIFRS_DepExp_2014'!K17-J17), 0, +I17+'App.2-CI_MIFRS_DepExp_2014'!K17-J17) -> 0
A18: 1612 | B18: Land Rights (Formally known as Account 1906) | E18: 0 | F18: =IF(D18=0,'App.2-CI_MIFRS_DepExp_2014'!K18,+'App.2-CI_MIFRS_DepExp_2014'!K18+((C18*0.5)/D18)) -> 0 | H18: 0 | I18: =IF(D18=0,0,+(C18)/D18) -> 0 | K18: =IF(ISERROR(+I18+'App.2-CI_MIFRS_DepExp_2014'!K18-J18), 0, +I18+'App.2-CI_MIFRS_DepExp_2014'!K18-J18) -> 0
A19: 1805 | B19: Land | E19: 0 | F19: =IF(D19=0,'App.2-CI_MIFRS_DepExp_2014'!K19,+'App.2-CI_MIFRS_DepExp_2014'!K19+((C19*0.5)/D19)) -> 0 | H19: 0 | I19: 0 | K19: =IF(ISERROR(+I19+'App.2-CI_MIFRS_DepExp_2014'!K19-J19), 0, +I19+'App.2-CI_MIFRS_DepExp_2014'!K19-J19) -> 0
A20: 1808 | B20: Buildings | E20: 0 | F20: =IF(D20=0,'App.2-CI_MIFRS_DepExp_2014'!K20,+'App.2-CI_MIFRS_DepExp_2014'!K20+((C20*0.5)/D20)) -> 0 | H20: 0 | I20: 0 | K20: =IF(ISERROR(+I20+'App.2-CI_MIFRS_DepExp_2014'!K20-J20), 0, +I20+'App.2-CI_MIFRS_DepExp_2014'!K20-J20) -> 0
A21: 1810 | B21: Leasehold Improvements | E21: 0 | F21: =IF(D21=0,'App.2-CI_MIFRS_DepExp_2014'!K21,+'App.2-CI_MIFRS_DepExp_2014'!K21+((C21*0.5)/D21)) -> 0 | H21: 0 | I21: 0 | K21: =IF(ISERROR(+I21+'App.2-CI_MIFRS_DepExp_2014'!K21-J21), 0, +I21+'App.2-CI_MIFRS_DepExp_2014'!K21-J21) -> 0
A22: 1815 | B22: Transformer Station Equipment >50 kV | E22: 0 | F22: =IF(D22=0,'App.2-CI_MIFRS_DepExp_2014'!K22,+'App.2-CI_MIFRS_DepExp_2014'!K22+((C22*0.5)/D22)) -> 0 | H22: 0 | I22: 0 | K22: =IF(ISERROR(+I22+'App.2-CI_MIFRS_DepExp_2014'!K22-J22), 0, +I22+'App.2-CI_MIFRS_DepExp_2014'!K22-J22) -> 0
A23: 1820 | B23: Distribution Station Equipment <50 kV | E23: 0 | F23: =IF(D23=0,'App.2-CI_MIFRS_DepExp_2014'!K23,+'App.2-CI_MIFRS_DepExp_2014'!K23+((C23*0.5)/D23)) -> 0 | H23: 0 | I23: 0 | K23: =IF(ISERROR(+I23+'App.2-CI_MIFRS_DepExp_2014'!K23-J23), 0, +I23+'App.2-CI_MIFRS_DepExp_2014'!K23-J23) -> 0
A24: 1825 | B24: Storage Battery Equipment | E24: 0 | F24: =IF(D24=0,'App.2-CI_MIFRS_DepExp_2014'!K24,+'App.2-CI_MIFRS_DepExp_2014'!K24+((C24*0.5)/D24)) -> 0 | H24: 0 | I24: 0 | K24: =IF(ISERROR(+I24+'App.2-CI_MIFRS_DepExp_2014'!K24-J24), 0, +I24+'App.2-CI_MIFRS_DepExp_2014'!K24-J24) -> 0
A25: 1830 | B25: Poles, Towers & Fixtures | E25: 0 | F25: =IF(D25=0,'App.2-CI_MIFRS_DepExp_2014'!K25,+'App.2-CI_MIFRS_DepExp_2014'!K25+((C25*0.5)/D25)) -> 0 | H25: 0 | I25: 0 | K25: =IF(ISERROR(+I25+'App.2-CI_MIFRS_DepExp_2014'!K25-J25), 0, +I25+'App.2-CI_MIFRS_DepExp_2014'!K25-J25) -> 0
A26: 1835 | B26: Overhead Conductors & Devices | E26: 0 | F26: =IF(D26=0,'App.2-CI_MIFRS_DepExp_2014'!K26,+'App.2-CI_MIFRS_DepExp_2014'!K26+((C26*0.5)/D26)) -> 0 | H26: 0 | I26: 0 | K26: =IF(ISERROR(+I26+'App.2-CI_MIFRS_DepExp_2014'!K26-J26), 0, +I26+'App.2-CI_MIFRS_DepExp_2014'!K26-J26) -> 0
A27: 1840 | B27: Underground Conduit | E27: 0 | F27: =IF(D27=0,'App.2-CI_MIFRS_DepExp_2014'!K27,+'App.2-CI_MIFRS_DepExp_2014'!K27+((C27*0.5)/D27)) -> 0 | H27: 0 | I27: 0 | K27: =IF(ISERROR(+I27+'App.2-CI_MIFRS_DepExp_2014'!K27-J27), 0, +I27+'App.2-CI_MIFRS_DepExp_2014'!K27-J27) -> 0
A28: 1845 | B28: Underground Conductors & Devices | E28: 0 | F28: =IF(D28=0,'App.2-CI_MIFRS_DepExp_2014'!K28,+'App.2-CI_MIFRS_DepExp_2014'!K28+((C28*0.5)/D28)) -> 0 | H28: 0 | I28: 0 | K28: =IF(ISERROR(+I28+'App.2-CI_MIFRS_DepExp_2014'!K28-J28), 0, +I28+'App.2-CI_MIFRS_DepExp_2014'!K28-J28) -> 0
A29: 1850 | B29: Line Transformers | E29: 0 | F29: =IF(D29=0,'App.2-CI_MIFRS_DepExp_2014'!K29,+'App.2-CI_MIFRS_DepExp_2014'!K29+((C29*0.5)/D29)) -> 0 | H29: 0 | I29: 0 | K29: =IF(ISERROR(+I29+'App.2-CI_MIFRS_DepExp_2014'!K29-J29), 0, +I29+'App.2-CI_MIFRS_DepExp_2014'!K29-J29) -> 0
A30: 1855 | B30: Services (Overhead & Underground) | E30: 0 | F30: =IF(D30=0,'App.2-CI_MIFRS_DepExp_2014'!K30,+'App.2-CI_MIFRS_DepExp_2014'!K30+((C30*0.5)/D30)) -> 0 | H30: 0 | I30: 0 | K30: =IF(ISERROR(+I30+'App.2-CI_MIFRS_DepExp_2014'!K30-J30), 0, +I30+'App.2-CI_MIFRS_DepExp_2014'!K30-J30) -> 0
A31: 1860 | B31: Meters | E31: 0 | F31: =IF(D31=0,'App.2-CI_MIFRS_DepExp_2014'!K31,+'App.2-CI_MIFRS_DepExp_2014'!K31+((C31*0.5)/D31)) -> 0 | H31: 0 | I31: 0 | K31: =IF(ISERROR(+I31+'App.2-CI_MIFRS_DepExp_2014'!K31-J31), 0, +I31+'App.2-CI_MIFRS_DepExp_2014'!K31-J31) -> 0
A32: 1860 | B32: Meters (Smart Meters) | E32: 0 | F32: =IF(D32=0,'App.2-CI_MIFRS_DepExp_2014'!K32,+'App.2-CI_MIFRS_DepExp_2014'!K32+((C32*0.5)/D32)) -> 0 | H32: 0 | I32: 0 | K32: =IF(ISERROR(+I32+'App.2-CI_MIFRS_DepExp_2014'!K32-J32), 0, +I32+'App.2-CI_MIFRS_DepExp_2014'!K32-J32) -> 0
A33: 1905 | B33: Land | E33: 0 | F33: =IF(D33=0,'App.2-CI_MIFRS_DepExp_2014'!K33,+'App.2-CI_MIFRS_DepExp_2014'!K33+((C33*0.5)/D33)) -> 0 | H33: 0 | I33: 0 | K33: =IF(ISERROR(+I33+'App.2-CI_MIFRS_DepExp_2014'!K33-J33), 0, +I33+'App.2-CI_MIFRS_DepExp_2014'!K33-J33) -> 0
A34: 1908 | B34: Buildings & Fixtures | E34: 0 | F34: =IF(D34=0,'App.2-CI_MIFRS_DepExp_2014'!K34,+'App.2-CI_MIFRS_DepExp_2014'!K34+((C34*0.5)/D34)) -> 0 | H34: 0 | I34: 0 | K34: =IF(ISERROR(+I34+'App.2-CI_MIFRS_DepExp_2014'!K34-J34), 0, +I34+'App.2-CI_MIFRS_DepExp_2014'!K34-J34) -> 0
A35: 1910 | B35: Leasehold Improvements | E35: 0 | F35: =IF(D35=0,'App.2-CI_MIFRS_DepExp_2014'!K35,+'App.2-CI_MIFRS_DepExp_2014'!K35+((C35*0.5)/D35)) -> 0 | H35: 0 | I35: 0 | K35: =IF(ISERROR(+I35+'App.2-CI_MIFRS_DepExp_2014'!K35-J35), 0, +I35+'App.2-CI_MIFRS_DepExp_2014'!K35-J35) -> 0
A36: 1915 | B36: Office Furniture & Equipment (10 years) | E36: 0 | F36: =IF(D36=0,'App.2-CI_MIFRS_DepExp_2014'!K36,+'App.2-CI_MIFRS_DepExp_2014'!K36+((C36*0.5)/D36)) -> 0 | H36: 0 | I36: 0 | K36: =IF(ISERROR(+I36+'App.2-CI_MIFRS_DepExp_2014'!K36-J36), 0, +I36+'App.2-CI_MIFRS_DepExp_2014'!K36-J36) -> 0
A37: 1915 | B37: Office Furniture & Equipment (5 years) | E37: 0 | F37: =IF(D37=0,'App.2-CI_MIFRS_DepExp_2014'!K37,+'App.2-CI_MIFRS_DepExp_2014'!K37+((C37*0.5)/D37)) -> 0 | H37: 0 | I37: 0 | K37: =IF(ISERROR(+I37+'App.2-CI_MIFRS_DepExp_2014'!K37-J37), 0, +I37+'App.2-CI_MIFRS_DepExp_2014'!K37-J37) -> 0
A38: 1920 | B38: Computer Equipment - Hardware | E38: 0 | F38: =IF(D38=0,'App.2-CI_MIFRS_DepExp_2014'!K38,+'App.2-CI_MIFRS_DepExp_2014'!K38+((C38*0.5)/D38)) -> 0 | H38: 0 | I38: 0 | K38: =IF(ISERROR(+I38+'App.2-CI_MIFRS_DepExp_2014'!K38-J38), 0, +I38+'App.2-CI_MIFRS_DepExp_2014'!K38-J38) -> 0
A39: 1920 | B39: Computer Equip.-Hardware(Post Mar. 22/04) | E39: 0 | F39: =IF(D39=0,'App.2-CI_MIFRS_DepExp_2014'!K39,+'App.2-CI_MIFRS_DepExp_2014'!K39+((C39*0.5)/D39)) -> 0 | H39: 0 | I39: 0 | K39: =IF(ISERROR(+I39+'App.2-CI_MIFRS_DepExp_2014'!K39-J39), 0, +I39+'App.2-CI_MIFRS_DepExp_2014'!K39-J39) -> 0
A40: 1920 | B40: Computer Equip.-Hardware(Post Mar. 19/07) | E40: 0 | F40: =IF(D40=0,'App.2-CI_MIFRS_DepExp_2014'!K40,+'App.2-CI_MIFRS_DepExp_2014'!K40+((C40*0.5)/D40)) -> 0 | H40: 0 | I40: 0 | K40: =IF(ISERROR(+I40+'App.2-CI_MIFRS_DepExp_2014'!K40-J40), 0, +I40+'App.2-CI_MIFRS_DepExp_2014'!K40-J40) -> 0
A41: 1930 | B41: Transportation Equipment | E41: 0 | F41: =IF(D41=0,'App.2-CI_MIFRS_DepExp_2014'!K41,+'App.2-CI_MIFRS_DepExp_2014'!K41+((C41*0.5)/D41)) -> 0 | H41: 0 | I41: 0 | K41: =IF(ISERROR(+I41+'App.2-CI_MIFRS_DepExp_2014'!K41-J41), 0, +I41+'App.2-CI_MIFRS_DepExp_2014'!K41-J41) -> 0
A42: 1935 | B42: Stores Equipment | E42: 0 | F42: =IF(D42=0,'App.2-CI_MIFRS_DepExp_2014'!K42,+'App.2-CI_MIFRS_DepExp_2014'!K42+((C42*0.5)/D42)) -> 0 | H42: 0 | I42: 0 | K42: =IF(ISERROR(+I42+'App.2-CI_MIFRS_DepExp_2014'!K42-J42), 0, +I42+'App.2-CI_MIFRS_DepExp_2014'!K42-J42) -> 0
A43: 1940 | B43: Tools, Shop & Garage Equipment | E43: 0 | F43: =IF(D43=0,'App.2-CI_MIFRS_DepExp_2014'!K43,+'App.2-CI_MIFRS_DepExp_2014'!K43+((C43*0.5)/D43)) -> 0 | H43: 0 | I43: 0 | K43: =IF(ISERROR(+I43+'App.2-CI_MIFRS_DepExp_2014'!K43-J43), 0, +I43+'App.2-CI_MIFRS_DepExp_2014'!K43-J43) -> 0
A44: 1945 | B44: Measurement & Testing Equipment | E44: 0 | F44: =IF(D44=0,'App.2-CI_MIFRS_DepExp_2014'!K44,+'App.2-CI_MIFRS_DepExp_2014'!K44+((C44*0.5)/D44)) -> 0 | H44: 0 | I44: 0 | K44: =IF(ISERROR(+I44+'App.2-CI_MIFRS_DepExp_2014'!K44-J44), 0, +I44+'App.2-CI_MIFRS_DepExp_2014'!K44-J44) -> 0
A45: 1950 | B45: Power Operated Equipment | E45: 0 | F45: =IF(D45=0,'App.2-CI_MIFRS_DepExp_2014'!K45,+'App.2-CI_MIFRS_DepExp_2014'!K45+((C45*0.5)/D45)) -> 0 | H45: 0 | I45: 0 | K45: =IF(ISERROR(+I45+'App.2-CI_MIFRS_DepExp_2014'!K45-J45), 0, +I45+'App.2-CI_MIFRS_DepExp_2014'!K45-J45) -> 0
A46: 1955 | B46: Communications Equipment | E46: 0 | F46: =IF(D46=0,'App.2-CI_MIFRS_DepExp_2014'!K46,+'App.2-CI_MIFRS_DepExp_2014'!K46+((C46*0.5)/D46)) -> 0 | H46: 0 | I46: 0 | K46: =IF(ISERROR(+I46+'App.2-CI_MIFRS_DepExp_2014'!K46-J46), 0, +I46+'App.2-CI_MIFRS_DepExp_2014'!K46-J46) -> 0
A47: 1955 | B47: Communication Equipment (Smart Meters) | E47: 0 | F47: =IF(D47=0,'App.2-CI_MIFRS_DepExp_2014'!K47,+'App.2-CI_MIFRS_DepExp_2014'!K47+((C47*0.5)/D47)) -> 0 | H47: 0 | I47: 0 | K47: =IF(ISERROR(+I47+'App.2-CI_MIFRS_DepExp_2014'!K47-J47), 0, +I47+'App.2-CI_MIFRS_DepExp_2014'!K47-J47) -> 0
A48: 1960 | B48: Miscellaneous Equipment | E48: 0 | F48: =IF(D48=0,'App.2-CI_MIFRS_DepExp_2014'!K48,+'App.2-CI_MIFRS_DepExp_2014'!K48+((C48*0.5)/D48)) -> 0 | H48: 0 | I48: 0 | K48: =IF(ISERROR(+I48+'App.2-CI_MIFRS_DepExp_2014'!K48-J48), 0, +I48+'App.2-CI_MIFRS_DepExp_2014'!K48-J48) -> 0
A49: 1970 | B49: Load Management Controls - Customer Premises | E49: 0 | F49: =IF(D49=0,'App.2-CI_MIFRS_DepExp_2014'!K49,+'App.2-CI_MIFRS_DepExp_2014'!K49+((C49*0.5)/D49)) -> 0 | H49: 0 | I49: 0 | K49: =IF(ISERROR(+I49+'App.2-CI_MIFRS_DepExp_2014'!K49-J49), 0, +I49+'App.2-CI_MIFRS_DepExp_2014'!K49-J49) -> 0
A50: 1975 | B50: Load Management Controls Utility Premises | E50: 0 | F50: =IF(D50=0,'App.2-CI_MIFRS_DepExp_2014'!K50,+'App.2-CI_MIFRS_DepExp_2014'!K50+((C50*0.5)/D50)) -> 0 | H50: 0 | I50: 0 | K50: =IF(ISERROR(+I50+'App.2-CI_MIFRS_DepExp_2014'!K50-J50), 0, +I50+'App.2-CI_MIFRS_DepExp_2014'!K50-J50) -> 0
A51: 1980 | B51: System Supervisor Equipment | E51: 0 | F51: =IF(D51=0,'App.2-CI_MIFRS_DepExp_2014'!K51,+'App.2-CI_MIFRS_DepExp_2014'!K51+((C51*0.5)/D51)) -> 0 | H51: 0 | I51: 0 | K51: =IF(ISERROR(+I51+'App.2-CI_MIFRS_DepExp_2014'!K51-J51), 0, +I51+'App.2-CI_MIFRS_DepExp_2014'!K51-J51) -> 0
A52: 1985 | B52: Miscellaneous Fixed Assets | E52: 0 | F52: =IF(D52=0,'App.2-CI_MIFRS_DepExp_2014'!K52,+'App.2-CI_MIFRS_DepExp_2014'!K52+((C52*0.5)/D52)) -> 0 | H52: 0 | I52: 0 | K52: =IF(ISERROR(+I52+'App.2-CI_MIFRS_DepExp_2014'!K52-J52), 0, +I52+'App.2-CI_MIFRS_DepExp_2014'!K52-J52) -> 0
A53: 1990 | B53: Other Tangible Property | E53: 0 | F53: =IF(D53=0,'App.2-CI_MIFRS_DepExp_2014'!K53,+'App.2-CI_MIFRS_DepExp_2014'!K53+((C53*0.5)/D53)) -> 0 | H53: 0 | I53: 0 | K53: =IF(ISERROR(+I53+'App.2-CI_MIFRS_DepExp_2014'!K53-J53), 0, +I53+'App.2-CI_MIFRS_DepExp_2014'!K53-J53) -> 0
A54: 1995 | B54: Contributions & Grants | E54: 0 | F54: =IF(D54=0,'App.2-CI_MIFRS_DepExp_2014'!K54,+'App.2-CI_MIFRS_DepExp_2014'!K54+((C54*0.5)/D54)) -> 0 | H54: 0 | I54: 0 | K54: =IF(ISERROR(+I54+'App.2-CI_MIFRS_DepExp_2014'!K54-J54), 0, +I54+'App.2-CI_MIFRS_DepExp_2014'!K54-J54) -> 0
B55: Total | C55: =SUM(C17:C54) -> 0 | F55: =SUM(F17:F54) -> 0 | G55: =SUM(G17:G54) -> 0 | H55: =SUM(H17:H54) -> 0 | I55: =SUM(I17:I54) -> 0 | J55: 0 | K55: =SUM(K17:K54) -> 0
B56: Depreciation exp. adj. from gain or loss on the retirement of assets (pool of like assets)
B57: Total Depreciation expense to be included in the test year revenue requirement | F57: =SUM(F55:F56) -> 0
A58: Notes:
A59: 1 | B59: Board policy of the "half-year" rule - the applicant must ensure that additions in the year attract a half-year depreciation expense in the first year. Deviations from this standard practice must be supported in the application.
A60: 2 | B60: The applicant must provide an explanation of material variances in evidence.
A61: 3 | B61: This column refers to the calculated full year depreciation but excludes the depreciation expense on assets fully depreciated during the year. This column is used for the purpose of calculating depreciation expense in the following year on the next worksheet.
A64: General: | B64: Applicants must provide a breakdown of depreciation and amortization expense in the above format for all relevant accounts. Asset Retirement Obligations (AROs), depreciation and accretion expense should be disclosed separately consistent with the Notes of historical Audited Financial Statements.

Sheet App.2-CK MIFRS_DepExp_2016
G1: File Number: | H1: =EBNUMBER -> EB-2015-0110
G2: Exhibit: | H2: NA
G3: Tab:
G4: Schedule:
G5: Page:
G7: Date: | H7: 2016-01-27
A9: Appendix 2-CK
A10: Depreciation and Amortization Expense
A11: Assumes the applicant made capitalization and depreciation expense accounting policy changes under CGAAP effective January 1, 2013 and has adopted IFRS for financial reporting purposes effective January 1, 2015.
D13: 2016 | E13: MIFRS
A15: Account | B15: Description | C15: Additions | D15: Years (new additions only) | E15: Depreciation Rate on New Additions | F15: 2016 Depreciation Expense 1 | G15: 2016 Depreciation Expense per Appendix 2-BA Fixed Assets, Column J (l) | H15: Variance 2
C16: (d) | D16: (f) | E16: (g) = 1 / (f) | F16: (h)=2015 Full Year Depreciation + ((d)*0.5)/(f) | H16: (m) = (h) - (l)
A17: 1611 | B17: Computer Software (Formally known as Account 1925) | E17: =IF(D17=0,0,1/D17) -> 0 | F17: =IF(D17=0,'App.2-CJ MIFRS_DepExp_2015'!K17,+'App.2-CJ MIFRS_DepExp_2015'!K17+((C17*0.5)/D17)) -> 0 | H17: =IF(ISERROR(+F17-G17), 0, +F17-G17) -> 0
A18: 1612 | B18: Land Rights (Formally known as Account 1906) | E18: 0 | F18: =IF(D18=0,'App.2-CJ MIFRS_DepExp_2015'!K18,+'App.2-CJ MIFRS_DepExp_2015'!K18+((C18*0.5)/D18)) -> 0 | H18: 0
A19: 1805 | B19: Land | E19: 0 | F19: =IF(D19=0,'App.2-CJ MIFRS_DepExp_2015'!K19,+'App.2-CJ MIFRS_DepExp_2015'!K19+((C19*0.5)/D19)) -> 0 | H19: 0
A20: 1808 | B20: Buildings | E20: 0 | F20: =IF(D20=0,'App.2-CJ MIFRS_DepExp_2015'!K20,+'App.2-CJ MIFRS_DepExp_2015'!K20+((C20*0.5)/D20)) -> 0 | H20: 0
A21: 1810 | B21: Leasehold Improvements | E21: 0 | F21: =IF(D21=0,'App.2-CJ MIFRS_DepExp_2015'!K21,+'App.2-CJ MIFRS_DepExp_2015'!K21+((C21*0.5)/D21)) -> 0 | H21: 0
A22: 1815 | B22: Transformer Station Equipment >50 kV | E22: 0 | F22: =IF(D22=0,'App.2-CJ MIFRS_DepExp_2015'!K22,+'App.2-CJ MIFRS_DepExp_2015'!K22+((C22*0.5)/D22)) -> 0 | H22: 0
A23: 1820 | B23: Distribution Station Equipment <50 kV | E23: 0 | F23: =IF(D23=0,'App.2-CJ MIFRS_DepExp_2015'!K23,+'App.2-CJ MIFRS_DepExp_2015'!K23+((C23*0.5)/D23)) -> 0 | H23: 0
A24: 1825 | B24: Storage Battery Equipment | E24: 0 | F24: =IF(D24=0,'App.2-CJ MIFRS_DepExp_2015'!K24,+'App.2-CJ MIFRS_DepExp_2015'!K24+((C24*0.5)/D24)) -> 0 | H24: 0
